Workbook

Sheet Start
B2: =IF($C$2="English",CX3,CW3) -> Sprache auswählen Select language | C2: Deutsch | CV2: Deutsch | CW2: Hinweise zum Gebrauch der Tabellen | CX2: Instruction for Using the Spreadsheets
CV3: English | CW3: Sprache auswählen Select language | CX3: Select language Sprache auswählen
C4: =IF(C2="English",CX2,CW2) -> Hinweise zum Gebrauch der Tabellen
B6: =IF(C2="English",CX6,CW6) -> Die Tabellen werden mit Hilfe von Makros und Programmen gesteuert und sind untereinander verknüpft! | CW6: Die Tabellen werden mit Hilfe von Makros und Programmen gesteuert und sind untereinander verknüpft! | CX6: The Spreadsheets are under Control of Macros and Programs and are linked together
B7: =IF($C$2="English",CX7,CW7) -> Sie müssen deshalb unmittelbar nach dem Herunterladen der Finanzplanungstabellen die Makros aktivieren | CW7: Sie müssen deshalb unmittelbar nach dem Herunterladen der Finanzplanungstabellen die Makros aktivieren | CX7: Therfore directly activate the Macroinstructions
C9: =IF($C$2="English",CX9,CW9) -> Je nach Systemumgebung erfordert dies unterschiedliche Wege | CW9: Je nach Systemumgebung erfordert dies unterschiedliche Wege | CX9: Depending on your system enviroment exists different ways
CW10: Fall 2 | CX10: Case 2
CW11: Das Fenster "Sicherheitshinweis für Microsoft Excel" erscheint | CX11: The Window "Sicherheitshinweis für Microsoft Excel" appears
B12: =IF($C$2="English",CX12,CW12) -> Fall 1 | D12: =IF($C$2="English",CX10,CW10) -> Fall 2 | CW12: Fall 1 | CX12: Case 1
B13: =IF($C$2="English",CX13,CW13) -> In einer Leiste oberhalb der Tabellen wird | D13: =IF($C$2="English",CX11,CW11) -> Das Fenster "Sicherheitshinweis für Microsoft Excel" erscheint | CW13: In einer Leiste oberhalb der Tabellen wird | CX13: In the bar above the sheet you recognize the
B14: =IF($C$2="English",CX14,CW14) -> der untenstehende Hinweis angezeigt | CW14: der untenstehende Hinweis angezeigt | CX14: following hint
CW15: Hier finden Sie die | CX15: Here you find the Manual for the Finance Planning Spreadsheets (in German)
CW16: Bedienungsanleitung-zur-Finanzplanung | CX16: Bedienungsanleitung-zur-Finanzplanung
CW21: Klicken Sie auf die Schaltfläche "Optionen..." | CX21: Click the Button "Option.."
CW22: und danach auf "Inhalt aktivieren" | CX22: and thereafter "Inhalt aktivieren"
CW24: Danach erscheint das Fenster "Microsoft Office-Sicherheitsoptionen" | CX24: Therafter appears the Window "Microsoft Office-Sicherheitsoptionen"
B26: =IF($C$2="English",CX21,CW21) -> Klicken Sie auf die Schaltfläche "Optionen..."
B27: =IF($C$2="English",CX22,CW22) -> und danach auf "Inhalt aktivieren" | D27: =IF($C$2="English",CX31,CW31) -> Hier muss auf die Schaltfläche "Makros aktivieren" geklickt werden
D30: =IF($C$2="English",CX15,CW15) -> Hier finden Sie die | E30: =IF($C$2="English",CX16,CW16) -> Bedienungsanleitung-zur-Finanzplanung
CW31: Hier muss auf die Schaltfläche "Makros aktivieren" geklickt werden | CX31: Click the button "Makros aktivieren"
CW37: 2. Markieren Sie | CX37: 2. Select
CW38: "Diesen Inhalt aktivieren" | CX38: "Diesen Inhalt aktivieren"
CW44: 3. Mit "OK" bestätigen | CX44: 3. Confirm with "OK"

Sheet Deckblatt|Cover (hidden)
B2: Dipl. Ing. Peter Kindermann
B3: -Wirtschaftsingenieur-
B4: Roseggerweg 1, 71254 Ditzingen-Schöckingen
B5: Tel: 07156 6959, Fax: 07156 18220
A6: Mail: peter@kindermanns.de, www.Kindermanns.de | K6: www.senioren-der-wirtschaft.de
G29: Ausgefüllte Beispieltabellen der Ausgabe 3V0
B31: Die Änderung zur Vorgängerversion sind unter dem Menüpunkt "Datei" und dort bei "Eigenschaften" in "Kommentare" einzusehen.

Sheet Vorwort|Preface (hidden)
A1: -4146 | B1: ='Deckblatt Gründer|Data Founder'!D6 -> Deutsch
B2: =IF($B$1="English",IF(CW2="","",CW2),IF(CV2="","",CV2)) -> Finanzplanung für Gründer und Gründerinnen leicht gemacht! | CV2: Finanzplanung für Gründer und Gründerinnen leicht gemacht! | CW2: Finance planning for business founders made easy!
B3: =IF($B$1="English",IF(CW3="","",CW3),IF(CV3="","",CV3)) -> 
B4: Vorwort | CV4: Vorwort | CW4: Preface
B6: Finanzplanungstabellen sind für Freiberufler, Einzelunternehmer, umsatzsteuerpflichtigen Unternehmen, wie Personengesellschaften (z.B. GbR, KG), | CV6: Finanzplanungstabellen sind für Freiberufler, Einzelunternehmer, umsatzsteuerpflichtigen Unternehmen, wie Personengesellschaften (z.B. GbR, KG), | CW6: This finance planning spreadsheet is useful for freelancers, sole proprietors or VAT-liable companies such as private companies
B7: Einzelhandel und Kapitalgesellschaften (wie GmbH) verwendbar. | CV7: Einzelhandel und Kapitalgesellschaften (wie GmbH) verwendbar. | CW7: (e.g. GbR=civil law association, KG=limited partnership), retrail sale, partnerships or corporations.
B9: Vor der Finanzplanung haben Existenzgründer und Existenzgründerinnen in der Regel eine große Scheu. Für Viele ist die Finanzplanung ein Buch | CV9: Vor der Finanzplanung haben Existenzgründer und Existenzgründerinnen in der Regel eine große Scheu. Für Viele ist die Finanzplanung ein Buch | CW9: Many business founders and foundresses have an aversion to financial planning. For them the finance planning is a closed book, an unknown terrain.
B10: mit sieben Siegeln,ein bisher unbekanntes Terrain. Aber zu jeder Existenzgründung und zu jedem Business-Plan gehört nun einmal auch eine grobe | CV10: mit sieben Siegeln,ein bisher unbekanntes Terrain. Aber zu jeder Existenzgründung und zu jedem Business-Plan gehört nun einmal auch eine grobe | CW10: Nevertheless every business startup and every business plan must include a rough finance planning with sales projection, profitability calculation and
B11: Finanzplanung mit Umsatzvorausschau, Rentabilitätsberechnung und Liquiditätsbetrachtung. Erst diese Daten – auch wenn es nur Prognosewerte sind - | CV11: Finanzplanung mit Umsatzvorausschau, Rentabilitätsberechnung und Liquiditätsbetrachtung. Erst diese Daten – auch wenn es nur Prognosewerte sind - | CW11: liquidity assessment. These data show– even if there are only forecast values - , whether your planned project will produce a profit and will succeed
B12: zeigen, ob das geplante Unternehmen voraussichtlich auch Gewinn abwirft und sich in den nächsten Jahren auch auf dem Markt durchsetzen kann. | CV12: zeigen, ob das geplante Unternehmen voraussichtlich auch Gewinn abwirft und sich in den nächsten Jahren auch auf dem Markt durchsetzen kann. | CW12: in the market.
B14: Ohne eine Darstellung der voraussichtlichen Finanzverhältnisse wird keine Bank dem Existenzgründer oder | CV14: Ohne eine Darstellung der voraussichtlichen Finanzverhältnisse wird keine Bank dem Existenzgründer oder | CW14: No bank will grant a loan for a startup without a description of the expected financial circumstances. Also for the Agency of Employment
B15: der Gründerin ein Darlehen geben oder einen Kredit einräumen. Auch für die Erstellung einer Tragfähigkeitsbescheinigung für die Agentur für Arbeit oder | CV15: der Gründerin ein Darlehen geben oder einen Kredit einräumen. Auch für die Erstellung einer Tragfähigkeitsbescheinigung für die Agentur für Arbeit oder | CW15: or for the JobCenter a financial plan is required to prove the business concept.
B16: das Jobcenter ist eine Finanzplanung Voraussetzung. | CV16: das Jobcenter ist eine Finanzplanung Voraussetzung.
B18: Die Tabellen sollen dem Gründer/der Gründerin die Finanzplanung erleichtern. Es wird empfohlen, die Tabellen, eine nach der anderen, auszufüllen. | CV18: Die Tabellen sollen dem Gründer/der Gründerin die Finanzplanung erleichtern. Es wird empfohlen, die Tabellen, eine nach der anderen, auszufüllen. | CW18: This excel sheet facilitates the finance planning for the business founder. It is recommended to fill in the sheets one after the other.
B19: Tabellen sind miteinander verknüpft, so dass jederzeit die Auswirkung einer Planänderung auf das Ergebnis erkennbar ist. Außerdem wird jetzt sofort | CV19: Tabellen sind miteinander verknüpft, so dass jederzeit die Auswirkung einer Planänderung auf das Ergebnis erkennbar ist. Außerdem wird jetzt sofort | CW19: The sheets are linked so that each plan amendment is visible in the result. In addition a graphic is generated from the entered data. Furthermore
B20: aus den eingebenen Zahlen eine anschauliche Grafik über den jeweiligen Zeithorizont erzeugt. Zusätzlich sind dann alle Grafiken nochmals zusammen | CV20: aus den eingebenen Zahlen eine anschauliche Grafik über den jeweiligen Zeithorizont erzeugt. Zusätzlich sind dann alle Grafiken nochmals zusammen | CW20: all graphics are shown in the sheet “Cockpit Chart”. Open tasks for each table can be written in the provided field "Tasks or Comments". One click
B21: im Blatt "Cockpit-Chart" zu sehen. Noch zu erledigende Arbeiten können Sie in jeder Tabelle in die dafür vorgesehenen Zellen schreiben. Mit Klick auf | CV21: im Blatt "Cockpit-Chart" zu sehen. Noch zu erledigende Arbeiten können Sie in jeder Tabelle in die dafür vorgesehenen Zellen schreiben. Mit Klick auf | CW21: on the button “Create ToDo List” in the "Cockpit Chart" will create a printable list of all open tasks.
B22: "To Do Liste erstellen" im Deckblatt Gründer erhalten Sie ein ausdruckbare Zusammenfassung aller offenen | CV22: "To Do Liste erstellen" im Deckblatt Gründer erhalten Sie ein ausdruckbare Zusammenfassung aller offenen
B24: Probieren Sie es! Mit den Tabellen ist die Finanzplanung für Ihr Unternehmen relativ einfach. | CV24: Probieren Sie es! Mit den Tabellen ist die Finanzplanung für Ihr Unternehmen relativ einfach. | CW24: Try it out! With this excel sheet the financial planning for your business is quite simple
B26: Eine Bedienungsanleitung mit Tipps zum Ausfüllen der Tabellen kann aus dem Internet (www.kindermanns.de) unter Downloads heruntergeladen werden. | CV26: Eine Bedienungsanleitung mit Tipps zum Ausfüllen der Tabellen kann aus dem Internet (www.kindermanns.de) unter Downloads heruntergeladen werden. | CW26: A User Guide (inGerman) with tips for filling in the sheets can be downloaded from the internet (www.kindermanns.de).
B28: Wir hoffen, dass die überarbeiten Tabellen die Finanzplanung erleichtern. Anregungen und Verbesserungsvorschläge sind herzlich willkommen. | CV28: Wir hoffen, dass die überarbeiten Tabellen die Finanzplanung erleichtern. Anregungen und Verbesserungsvorschläge sind herzlich willkommen. | CW28: We hope, the revised tables will facilitate your finance planning. Feedback and suggestions are always welcome.
B30: Jürgen Erlewein und Peter Kindermann | CV30: Jürgen Erlewein und Peter Kindermann | CW30: Jürgen Erlewein and Peter Kindermann
B32: Jegliche Haftung für die Richtigkeit der berechneten Werte ist ausgeschlossen. | CV32: Jegliche Haftung für die Richtigkeit der berechneten Werte ist ausgeschlossen. | CW32: Any liability for the correctness of the calculated results is excluded.

Sheet Deckblatt Gründer|Data Founder (hidden)
C1: =IF($D$6="English",CO1,CN1) -> FreiberuflerIn | G1: =IF($D$6="English",CS1,CR1) -> Kleinunternehmerregelung | J1: =IF(OR(I11=G1,D11=C4),"mit MwSt","ohne MwSt") -> ohne MwSt | K1: =IF(OR(I11=G1,D11=C4),"incl. VAT","w/o VAT") -> w/o VAT | L1: =YEAR(TODAY()) -> 2015 | M1: =IF(AND(D11="",I11=""),1,IF(AND(OR(D11=C1,D11=C2,D11=C3),I11=G2),0,IF(AND(OR(D11=C1,D11=C2,D11=C3),I11=G1),1,IF(D11=C4,2,3)))) -> 0 | N1: M1=0:=Einzelunternehmer etc Umsatzsateuer | S1: January | T1: Januar | U1: 1 | V1: =IF($D$6="English",S1,T1) -> Januar | CN1: FreiberuflerIn | CO1: Professional Person | CR1: Kleinunternehmerregelung | CS1: Smal business regulation
C2: =IF($D$6="English",CO2,CN2) -> Einzelunternehmen | G2: =IF($D$6="English",CS2,CR2) -> umsatzsteuerpflichtig | J2: =IF(J1="ohne MwSt","mit MwSt", "ohne MwSt") -> mit MwSt | K2: =IF(K1="w/o VAT","incl VAT", "w/o VAT") -> incl VAT | L2: =L1+1 -> 2016 | N2: M1=1:=Kleinunternehmerregelung | S2: Ferbruary | T2: Februar | U2: 2 | V2: =IF($D$6="English",S2,T2) -> Februar | CN2: Einzelunternehmen | CO2: Individual enterprise | CR2: umsatzsteuerpflichtig | CS2: liable to tax on sales
C3: =IF($D$6="English",CO4,CN4) -> Personengesellschaft | L3: =L2+1 -> 2017 | N3: M1=2:=Einzelhandel | S3: March | T3: März | U3: 3 | V3: März | CN3: Einzelhandel | CO3: Retail | CR3: Kleinunternehmerregelung | CS3: Smal business regulation
C4: =IF($D$6="English",CO3,CN3) -> Einzelhandel | L4: 2018 | N4: M1=3:=Kapitalgesellschaften | S4: April | T4: April | U4: 4 | V4: April | CN4: Personengesellschaft | CO4: Partnership
C5: =IF($D$6="English",CO5,CN5) -> Kapitalgesellschaft | D5: =IF($D$6="English",CP5,CO6) -> Finanzplan zum Businessplan | S5: May | T5: Mai | U5: 5 | V5: Mai | CK5: Monatsplanung in 1. Jahr | CL5: monthly scedule for the 1st. year | CN5: Kapitalgesellschaft | CO5: Capital company | CP5: Financial plan to the businessplan
D6: =Start!$C$2 -> Deutsch | E6: Deutsch | I6: =IF($D$6="English",CL5,CK5) -> Monatsplanung in 1. Jahr | S6: June | T6: Juni | U6: 6 | V6: Juni | CK6: Monatsplanung für die ersten beiden Jahre | CL6: monthly scedule for the first 2 years | CM6: Sprache auswählen: | CN6: Select your language: | CO6: Finanzplan zum Businessplan
I7: =IF($D$6="English",CL6,CK6) -> Monatsplanung für die ersten beiden Jahre | S7: July | T7: Juli | U7: 7 | V7: Juli
S8: August | T8: August | U8: 8 | V8: August
A9: =IF($D$6="English",CN9,CM9) -> Unternehmensname*): | L9: =IF($D$6="English",CX9,CW9) -> Grün hinterlegte Felder bitte ausfüllen | S9: Sepember | T9: September | U9: 9 | V9: September | CM9: Unternehmensname*): | CN9: Name of enterprise *): | CT9: =IF(AND(OR(CO11=CN1,CO11=CN2),CT10=""),"bitte Besteuerungsart auswählen",IF(AND(CO11=CN4,CT10=CR1),"Geht nicht! Bitte löschen","")) ->  | CW9: Grün hinterlegte Felder bitte ausfüllen | CX9: please fill in the green fields
D10: =IF(AND(D11<>C1,D11<>C2,D11<>C3,D11<>C4,D11<>C5),IF(D11="","","Neu auswählen/Select new"),"") ->  | I10: =IF(D10<>"",IF(I11<>"","Neu auswählen/Select new",""),IF(AND(D11=C2,I11=""),"Besteuerungsart auswählen/select taxtype",IF(AND(OR(D11=C5,D11=C4),I11=G1),"Nicht erlaubt/not allowed",""))) ->  | S10: October | T10: Oktober | U10: 10 | V10: Oktober
A11: =IF($D$6="English",CN11,CM11) -> Unternehmensform*): | D11: Personengesellschaft | H11: =IF($D$6="English",CT11,CS11) -> Steuerpflicht*): | I11: umsatzsteuerpflichtig | L11: =IF($D$6="English",CX11,CW11) -> Voreingestellter Inhalt der roten Felder | S11: November | T11: November | U11: 11 | V11: November | CM11: Unternehmensform*): | CN11: Form of enterprise*): | CS11: Steuerpflicht*): | CT11: Tax liability*): | CW11: Voreingestellter Inhalt der roten Felder | CX11: Default content of the red fields
L12: =IF($D$6="English",CX12,CW12) -> Unternehmensform: | O12: =IF($D$6="English",CN12,CM12) -> Keine Kapitalgesellschaft | S12: December | T12: Dezember | U12: 12 | V12: Dezember | CM12: Keine Kapitalgesellschaft | CN12: Not an Incorporated Enterprise | CW12: Unternehmensform: | CX12: Type of enterprise: | CZ12: Keine Kapitalgesellschaft | DA12: No incorporated enterprise
A13: =IF($D$6="English",CN13,CM13) -> Gründungsjahr*): | D13: 2016 | E13: =IF($D$6="English",CQ13,CP13) -> Gründungsmonat: | H13: =IF($D$6="English",CT13,CS13) -> Rechtsform**): | L13: =IF($D$6="English",CX13,CW13) -> Steuerpflicht: | O13: =IF($D$6="English",DA13,CZ13) -> umsatzsteuerpflichtig | CM13: Gründungsjahr*): | CN13: Founding year*): | CP13: Gründungsmonat: | CQ13: Founding month: | CS13: Rechtsform**): | CT13: Legal form**): | CW13: Steuerpflicht: | CX13: Tax liability: | CZ13: umsatzsteuerpflichtig | DA13: liable to tax on sales
L14: =IF($D$6="English",CX14,CW14) -> Gründungsjahr: | O14: =IF($D$6="English",DA14,CZ14) -> aktuelles Jahr | CW14: Gründungsjahr: | CX14: Founding year: | CZ14: aktuelles Jahr | DA14: current year
A15: =IF($D$6="English",CN15,CM15) -> Namen GründerIn(nen)*): | CM15: Namen GründerIn(nen)*): | CN15: Name(s) of founder*):
A17: =IF($D$6="English",CN17,CM17) -> Adresse*): | L17: =IF($D$6="English",CX17,CW17) -> Um die Tabellen zu erhalten müssen Sie | CM17: Adresse*): | CN17: Adress*): | CW17: Um die Tabellen zu erhalten müssen Sie | CX17: To open the spreadsheets select
L18: =IF($D$6="English",CX18,CW18) -> die Anzahl der Jahre mit monatlichen Planung | CW18: die Anzahl der Jahre mit monatlichen Planung | CX18: the number of years with monthly sceduling
L19: =IF($D$6="English",CX19,CW19) -> durch Klick in den entsprechenden Kreis | CW19: durch Klick in den entsprechenden Kreis | CX19: by click in the appropriate circle
A20: =IF($D$6="English",CN21,CM21) -> Telefon: | H20: =IF($D$6="English",CT21,CS21) -> Mobil: | L20: =IF($D$6="English",CX20,CW20) -> auswählen | CW20: auswählen
L21: =IF($D$6="English",CX21,CW21) -> Danach auf Schaltfläche "Weiter/Go" klicken | CM21: Telefon: | CN21: Phon: | CS21: Mobil: | CT21: Mobil: | CW21: Danach auf Schaltfläche "Weiter/Go" klicken | CX21: Thereafter click the button "Weiter/Go"
A22: =IF($D$6="English",CN23,CM23) -> Mail: | H22: =IF($D$6="English",CT23,CS23) -> Abgabedatum*):
CM23: Mail: | CN23: Mail: | CS23: Abgabedatum*): | CT23: Date of issue:
C25: =IF($D$6="English",CO25,CN25) -> *) Pflichtfelder sind Mindestangaben für einen Businessplan | CN25: *) Pflichtfelder sind Mindestangaben für einen Businessplan | CO25: *) Mandatory fields are minimum specifications for a business plan
C26: =IF($D$6="English",CO26,CN26) -> **) Erläuterung zu Rechtsformen siehe z.B. | F26: Wikipedia | CN26: **) Erläuterung zu Rechtsformen siehe z.B. | CO26: **) Explanation to legal forms see f.e.

Sheet 1 Pers.Ausgaben|Pers Expenses (hidden)
B1: ='Deckblatt Gründer|Data Founder'!$D$6 -> Deutsch | C1: =YEAR(TODAY()) -> 2015 | T1: Aufgaben und/oder Kommentar | CW1: Bubbas&47 | DC1: Jan. | DD1: Febr. | DE1: März | DF1: April | DG1: Mai | DH1: Juni | DI1: Juli | DJ1: Aug. | DK1: Sept. | DL1: Okt. | DM1: Nov. | DN1: Dez. | DO1: ="Jahr "&'1 Pers.Ausgaben|Pers Expenses'!C3 -> Jahr 2016
B2: =IF(B1="English",CZ2,CY2)&$C$3 -> 1a Persönliche Ausgaben in EUR für die Monate des Jahres 2016 | T2: To Do list / Comments | CY2: ="1a Persönliche Ausgaben in EUR für die Monate des Jahres " -> 1a Persönliche Ausgaben in EUR für die Monate des Jahres | CZ2: ="1a Personal Expenses in EUR for the Months of the Year " -> 1a Personal Expenses in EUR for the Months of the Year | DC2: Jan | DD2: Feb | DE2: Mar | DF2: Apr | DG2: May | DH2: June | DI2: July | DJ2: Aug | DK2: Sept | DL2: Oct | DM2: Nov | DN2: Dec | DO2: ="Year "&'1 Pers.Ausgaben|Pers Expenses'!C3 -> Year 2016
C3: =IF('Deckblatt Gründer|Data Founder'!D13<>"",'Deckblatt Gründer|Data Founder'!D13,'1 Pers.Ausgaben|Pers Expenses'!C1) -> 2016
B4: No. | C4: =IF($B$1="English", CZ4,CY4) -> Kostenart | D4: =IF($B$1="English", DC2,DC1) -> Jan. | E4: =IF($B$1="English", DD2,DD1) -> Febr. | F4: März | G4: April | H4: Mai | I4: Juni | J4: Juli | K4: Aug. | L4: Sept. | M4: Okt. | N4: Nov. | O4: Dez. | P4: =IF(B1="English","Year ","Jahr ")&C3 -> Jahr 2016 | S4: =IF(B1="English",T2,T1) -> Aufgaben und/oder Kommentar | CY4: Kostenart | CZ4: Cost Category
B5: 1 | C5: =IF($B$1="English", CZ5,CY5) -> Wohnen | CY5: Wohnen | CZ5: Habitation
C6: =IF($B$1="English", CZ6,CY6) -> Miete (oder vergleichbare Belastung) | D6: 400.0 | E6: 400.0 | F6: 400.0 | G6: 400.0 | H6: 400.0 | I6: 400.0 | J6: 400.0 | K6: 400.0 | L6: 400.0 | M6: 400.0 | N6: 400.0 | O6: 400.0 | P6: =SUM(D6:O6) -> 4,800.0 | CY6: Miete (oder vergleichbare Belastung) | CZ6: Rent (or comparable charge)
C7: Heizung, Schornsteinfeger, Emission | D7: 60.0 | E7: 60.0 | F7: 60.0 | G7: 60.0 | H7: 60.0 | I7: 60.0 | J7: 60.0 | K7: 60.0 | L7: 60.0 | M7: 60.0 | N7: 60.0 | O7: 60.0 | P7: =SUM(D7:O7) -> 720.0 | CY7: Heizung, Schornsteinfeger, Emission | CZ7: Heating, sweep, emission
C8: Strom, Wasser, Abwasser, Müll | D8: 30.0 | E8: 30.0 | F8: 30.0 | G8: 30.0 | H8: 30.0 | I8: 30.0 | J8: 30.0 | K8: 30.0 | L8: 30.0 | M8: 30.0 | N8: 30.0 | O8: 30.0 | P8: 360.0 | CY8: Strom, Wasser, Abwasser, Müll | CZ8: Electricity, water, waste water, garbage
C9: Telefon, Mobil, Fax, Internet | D9: 50.0 | E9: 50.0 | F9: 50.0 | G9: 50.0 | H9: 50.0 | I9: 50.0 | J9: 50.0 | K9: 50.0 | L9: 50.0 | M9: 50.0 | N9: 50.0 | O9: 50.0 | P9: 600.0 | CY9: Telefon, Mobil, Fax, Internet | CZ9: Phone, mobil, fax, internet, porto
C10: Rundfunk / Fernsehen usw. | P10: 0.0 | CY10: Rundfunk / Fernsehen usw. | CZ10: Radio / TV etc.
C11: Kredit (Zins u. Tilgung) | P11: 0.0 | CY11: Kredit (Zins u. Tilgung) | CZ11: Credit (interest & repayment)
C12: Wohnungsreparaturen | D12: 30.0 | E12: 30.0 | F12: 30.0 | G12: 30.0 | H12: 30.0 | I12: 30.0 | J12: 30.0 | K12: 30.0 | L12: 30.0 | M12: 30.0 | N12: 30.0 | O12: 30.0 | P12: 360.0 | CY12: Wohnungsreparaturen | CZ12: Building repairs
C13: Sonstiges (z.B. Grundsteuern) | D13: 100.0 | E13: 100.0 | F13: 100.0 | G13: 100.0 | H13: 100.0 | I13: 100.0 | J13: 100.0 | K13: 100.0 | L13: 100.0 | M13: 100.0 | N13: 100.0 | O13: 100.0 | P13: 1,200.0 | CY13: Sonstiges (z.B. Grundsteuern) | CZ13: Miscellaneous (f.e. property tax)
C14: =IF('Deckblatt Gründer|Data Founder'!$D$6="Deutsch",CY14,CZ14) -> Summe | D14: =SUM(D6:D13) -> 670.0 | E14: =SUM(E6:E13) -> 670.0 | F14: 670.0 | G14: 670.0 | H14: 670.0 | I14: 670.0 | J14: 670.0 | K14: 670.0 | L14: 670.0 | M14: 670.0 | N14: 670.0 | O14: 670.0 | P14: =SUM(P6:P13) -> 8,040.0 | CY14: Summe | CZ14: Sum
B15: 2 | C15: =IF($B$1="English", CZ15,CY15) -> Lebensunterhalt / Haushaltsgeld | CY15: Lebensunterhalt / Haushaltsgeld | CZ15: Living / housekeeping money
C16: =IF($B$1="English", CZ16,CY16) -> Lebensmittel , auswärts Essen | D16: 300.0 | E16: 300.0 | F16: 300.0 | G16: 300.0 | H16: 300.0 | I16: 300.0 | J16: 300.0 | K16: 300.0 | L16: 300.0 | M16: 300.0 | N16: 300.0 | O16: 300.0 | P16: =SUM(D16:O16) -> 3,600.0 | CY16: Lebensmittel , auswärts Essen | CZ16: Food, to eat out
C17: =IF($B$1="English", CZ17,CY17) -> Kleidung, kosmetika, Sonstiges | D17: 100.0 | E17: 100.0 | F17: 100.0 | G17: 100.0 | H17: 100.0 | I17: 100.0 | J17: 100.0 | K17: 100.0 | L17: 100.0 | M17: 100.0 | N17: 100.0 | O17: 100.0 | P17: =SUM(D17:O17) -> 1,200.0 | CY17: Kleidung, kosmetika, Sonstiges | CZ17: Clothes, cosdmetics, miscellaneous
C18: =IF('Deckblatt Gründer|Data Founder'!$D$6="Deutsch",CY18,CZ18) -> Summe | D18: =SUM(D16:D17) -> 400.0 | E18: =SUM(E16:E17) -> 400.0 | F18: 400.0 | G18: 400.0 | H18: 400.0 | I18: 400.0 | J18: 400.0 | K18: 400.0 | L18: 400.0 | M18: 400.0 | N18: 400.0 | O18: 400.0 | P18: =SUM(P16:P17) -> 4,800.0 | CY18: Summe | CZ18: Sum
B19: 3 | C19: =IF($B$1="English", CZ19,CY19) -> PKW | CY19: PKW | CZ19: Passenger car
C20: =IF($B$1="English", CZ20,CY20) -> Kredit (Zins u. Tilgung) / Leasing | P20: =SUM(D20:O20) -> 0.0 | CY20: Kredit (Zins u. Tilgung) / Leasing | CZ20: Credit (interest & repayment) / leasing
C21: =IF($B$1="English", CZ21,CY21) -> Versicherung, Steuern, Reparaturen | D21: 20.0 | E21: 20.0 | F21: 20.0 | G21: 20.0 | H21: 20.0 | I21: 20.0 | J21: 20.0 | K21: 20.0 | L21: 20.0 | M21: 20.0 | N21: 20.0 | O21: 20.0 | P21: =SUM(D21:O21) -> 240.0 | CY21: Versicherung, Steuern, Reparaturen | CZ21: Insurances, taxes, repairs
C22: =IF($B$1="English", CZ22,CY22) -> Benzin / Diesel / Reparaturen | D22: 30.0 | E22: 30.0 | F22: 30.0 | G22: 30.0 | H22: 30.0 | I22: 30.0 | J22: 30.0 | K22: 30.0 | L22: 30.0 | M22: 30.0 | N22: 30.0 | O22: 30.0 | P22: =SUM(D22:O22) -> 360.0 | CY22: Benzin / Diesel / Reparaturen | CZ22: Benzin / diesel / repairs,
C23: =IF('Deckblatt Gründer|Data Founder'!$D$6="Deutsch",CY23,CZ23) -> Summe | D23: =SUM(D20:D22) -> 50.0 | E23: =SUM(E20:E22) -> 50.0 | F23: 50.0 | G23: 50.0 | H23: 50.0 | I23: 50.0 | J23: 50.0 | K23: 50.0 | L23: 50.0 | M23: 50.0 | N23: 50.0 | O23: 50.0 | P23: =SUM(P20:P22) -> 600.0 | CY23: Summe | CZ23: Sum
B24: 4 | C24: =IF($B$1="English", CZ24,CY24) -> Versicherungen | CY24: Versicherungen | CZ24: Insurances
C25: Rentenversicherung, freiw. Versicher. 1) | D25: 100.0 | E25: 100.0 | F25: 100.0 | G25: 100.0 | H25: 100.0 | I25: 100.0 | J25: 100.0 | K25: 100.0 | L25: 100.0 | M25: 100.0 | N25: 100.0 | O25: 100.0 | P25: =SUM(D25:O25) -> 1,200.0 | CY25: Rentenversicherung, freiw. Versicher. 1) | CZ25: Pension insurance, voluntary insurance 1)
C26: Krankenversicherung u Medikamente 2) | D26: 300.0 | E26: 300.0 | F26: 300.0 | G26: 300.0 | H26: 300.0 | I26: 300.0 | J26: 300.0 | K26: 300.0 | L26: 300.0 | M26: 300.0 | N26: 300.0 | O26: 300.0 | P26: =SUM(D26:O26) -> 3,600.0 | CY26: Krankenversicherung u Medikamente 2) | CZ26: Health insurance & drug 2)
C27: Unfallversicherung, Berufsunfähigkeit | P27: =SUM(D27:O27) -> 0.0 | CY27: Unfallversicherung, Berufsunfähigkeit | CZ27: Accident insurance, incapacity to work
C28: Hausratsversicherung, Haftpflicht | P28: =SUM(D28:O28) -> 0.0 | CY28: Hausratsversicherung, Haftpflicht | CZ28: Insurance of contents.insurance
C29: Sonstige.Versicherungen. | P29: =SUM(D29:O29) -> 0.0 | CY29: Sonstige.Versicherungen. | CZ29: Other insurances
C30: Summe | D30: =SUM(D25:D29) -> 400.0 | E30: =SUM(E25:E29) -> 400.0 | F30: 400.0 | G30: 400.0 | H30: 400.0 | I30: 400.0 | J30: 400.0 | K30: 400.0 | L30: 400.0 | M30: 400.0 | N30: 400.0 | O30: 400.0 | P30: =SUM(P25:P29) -> 4,800.0 | CY30: Summe | CZ30: Sum
B31: 5 | C31: Freizeit / Unterhaltung | CY31: Freizeit / Unterhaltung | CZ31: Leisure, entertainement
C32: Hobby, Bücher, Geschenke | D32: 10.0 | E32: 10.0 | F32: 10.0 | G32: 10.0 | H32: 10.0 | I32: 10.0 | J32: 10.0 | K32: 10.0 | L32: 10.0 | M32: 10.0 | N32: 10.0 | O32: 10.0 | P32: =SUM(D32:O32) -> 120.0 | CY32: Hobby, Bücher, Geschenke | CZ32: Hobby, books, gift
C33: Urlaub, Reisen, Sonstiges | K33: 1,500.0 | P33: =SUM(D33:O33) -> 1,500.0 | CY33: Urlaub, Reisen, Sonstiges | CZ33: Holiday, voyages, miscellaneous
C34: =IF('Deckblatt Gründer|Data Founder'!$D$6="Deutsch",CY34,CZ34) -> Summe | D34: =SUM(D32:D33) -> 10.0 | E34: =SUM(E32:E33) -> 10.0 | F34: 10.0 | G34: 10.0 | H34: 10.0 | I34: 10.0 | J34: 10.0 | K34: 1,510.0 | L34: 10.0 | M34: 10.0 | N34: 10.0 | O34: 10.0 | P34: =SUM(P32:P33) -> 1,620.0 | CY34: Summe | CZ34: Sum
B35: 6 | C35: =IF($B$1="English", CZ35,CY35) -> Zahlungsverpflichtungen | CY35: Zahlungsverpflichtungen | CZ35: Payment obligations
C36: =IF($B$1="English", CZ36,CY36) -> Unterhalt, Kredittilgung, Weiterbildung | P36: =SUM(D36:O36) -> 0.0 | CY36: Unterhalt, Kredittilgung, Weiterbildung | CZ36: Livehood, amortisation, urther education
C37: =IF($B$1="English", CZ37,CY37) -> Sonstige private Kredite (Zins + Tilg.) | P37: =SUM(D37:O37) -> 0.0 | CY37: Sonstige private Kredite (Zins + Tilg.) | CZ37: Other private credits (interest + anortization)
C38: =IF('Deckblatt Gründer|Data Founder'!$D$6="Deutsch",CY38,CZ38) -> Summe | D38: =SUM(D36:D37) -> 0.0 | E38: =SUM(E36:E37) -> 0.0 | F38: 0.0 | G38: 0.0 | H38: 0.0 | I38: 0.0 | J38: 0.0 | K38: 0.0 | L38: 0.0 | M38: 0.0 | N38: 0.0 | O38: 0.0 | P38: =SUM(P36:P37) -> 0.0 | CY38: Summe | CZ38: Sum
B39: 7 | C39: =IF($B$1="English", CZ39,CY39) -> Verschiedenes | CY39: Verschiedenes | CZ39: Miscellaneous
C40: =IF($B$1="English", CZ40,CY40) -> Vereinsbeiträge, Spenden, Bausparen | D40: 100.0 | P40: =SUM(D40:O40) -> 100.0 | CY40: Vereinsbeiträge, Spenden, Bausparen | CZ40: Association contributions, donations, building-savings
C41: =IF($B$1="English", CZ41,CY41) -> Beratung (Steuer, Recht usw.) | I41: 300.0 | P41: =SUM(D41:O41) -> 300.0 | CY41: Beratung (Steuer, Recht usw.) | CZ41: Consulting (taxes, law etc.)
C42: =IF('Deckblatt Gründer|Data Founder'!$D$6="Deutsch",CY42,CZ42) -> Summe | D42: =SUM(D40:D41) -> 100.0 | E42: 0.0 | F42: 0.0 | G42: 0.0 | H42: 0.0 | I42: 300.0 | J42: 0.0 | K42: 0.0 | L42: 0.0 | M42: 0.0 | N42: 0.0 | O42: 0.0 | P42: 400.0 | CY42: Summe | CZ42: Sum
C43: =IF($B$1="English", CZ43,CY43) -> Gesamtausgaben o. Einkommensteuer 3) | D43: =SUM(D5:D42)/2 -> 1,630.0 | E43: 1,530.0 | F43: 1,530.0 | G43: 1,530.0 | H43: 1,530.0 | I43: 1,830.0 | J43: 1,530.0 | K43: 3,030.0 | L43: 1,530.0 | M43: 1,530.0 | N43: 1,530.0 | O43: 1,530.0 | P43: =SUM(P6:P42)/2 -> 20,260.0 | CY43: Gesamtausgaben o. Einkommensteuer 3) | CZ43: Total expenses ex income tax 3)
D44: =IF(D43=0,0,1) -> 1 | E44: =IF(E43=0,0,1) -> 1 | F44: 1 | G44: 1 | H44: 1 | I44: 1 | J44: 1 | K44: 1 | L44: 1 | M44: 1 | N44: 1 | O44: 1 | P44: =SUM(D44:O44) -> 12
B46: =IF(B1="English",CZ46,CY46)&$C$3&" - "&$C$3+4 -> 1b Persönliche Ausgaben in EUR für die Jahre 2016 - 2020 | M46: =IF(B1="English","Personal Draw","Privatentnahmen") -> Privatentnahmen | CY46: ="1b Persönliche Ausgaben in EUR für die Jahre " -> 1b Persönliche Ausgaben in EUR für die Jahre | CZ46: ="1b Personal Expenses in EUR for the Years " -> 1b Personal Expenses in EUR for the Years
B48: =B4 -> No. | C48: =C4 -> Kostenart | D48: =C3 -> 2016 | E48: =D48+1 -> 2017 | F48: =E48+1 -> 2018 | G48: =F48+1 -> 2019 | H48: =G48+1 -> 2020 | CY48: =CY4 -> Kostenart
B49: 1 | C49: =C5 -> Wohnen | CY49: =CY5 -> Wohnen
C50: Miete (oder vergleichbare Belastung) | D50: =P6 -> 4,800.0 | E50: 4,800.0 | F50: 4,800.0 | G50: 4,800.0 | H50: 4,800.0 | CY50: Miete (oder vergleichbare Belastung)
C51: Heizung, Schornsteinfeger, Emission | D51: =P7 -> 720.0 | E51: 720.0 | F51: 720.0 | G51: 720.0 | H51: 720.0 | CY51: Heizung, Schornsteinfeger, Emission
C52: Strom, Wasser, Abwasser, Müll | D52: 360.0 | E52: 360.0 | F52: 360.0 | G52: 360.0 | H52: 360.0 | CY52: Strom, Wasser, Abwasser, Müll
C53: Telefon, Mobil, Fax, Internet | D53: 600.0 | E53: 600.0 | F53: 600.0 | G53: 600.0 | H53: 600.0 | CY53: Telefon, Mobil, Fax, Internet
C54: Rundfunk / Fernsehen usw. | D54: 0.0 | E54: 0.0 | F54: 0.0 | G54: 0.0 | H54: 0.0 | CY54: Rundfunk / Fernsehen usw.
C55: Kredit (Zins u. Tilgung) | D55: 0.0 | E55: 0.0 | F55: 0.0 | G55: 0.0 | H55: 0.0 | CY55: Kredit (Zins u. Tilgung)
C56: Wohnungsreparaturen | D56: 360.0 | E56: 360.0 | F56: 360.0 | G56: 360.0 | H56: 360.0 | CY56: Wohnungsreparaturen
C57: Sonstiges (z.B. Grundsteuern) | D57: 1,200.0 | E57: 1,200.0 | F57: 1,200.0 | G57: 1,200.0 | H57: 1,200.0 | CY57: Sonstiges (z.B. Grundsteuern)
C58: Summe | D58: 8,040.0 | E58: =SUM(E50:E57) -> 8,040.0 | F58: =SUM(F50:F57) -> 8,040.0 | G58: =SUM(G50:G57) -> 8,040.0 | H58: =SUM(H50:H57) -> 8,040.0 | CY58: Summe
B59: 2 | C59: Lebensunterhalt / Haushaltsgeld | D59: 0.0 | CY59: Lebensunterhalt / Haushaltsgeld
C60: Lebensmittel , auswärts Essen | D60: 3,600.0 | E60: 3,800.0 | F60: 4,000.0 | G60: 4,200.0 | H60: 4,400.0 | CY60: Lebensmittel , auswärts Essen
C61: Kleidung, kosmetika, Sonstiges | D61: 1,200.0 | E61: 1,200.0 | F61: 1,200.0 | G61: 1,200.0 | H61: 1,200.0 | CY61: Kleidung, kosmetika, Sonstiges
C62: Summe | D62: 4,800.0 | E62: =SUM(E60:E61) -> 5,000.0 | F62: =SUM(F60:F61) -> 5,200.0 | G62: =SUM(G60:G61) -> 5,400.0 | H62: =SUM(H60:H61) -> 5,600.0 | CY62: Summe
B63: 3 | C63: PKW | CY63: PKW
C64: Kredit (Zins u. Tilgung) / Leasing | D64: 0.0 | E64: 0.0 | F64: 0.0 | G64: 0.0 | H64: 0.0 | CY64: Kredit (Zins u. Tilgung) / Leasing
C65: Versicherung, Steuern, Reparaturen | D65: 240.0 | E65: 240.0 | F65: 240.0 | G65: 240.0 | H65: 240.0 | CY65: Versicherung, Steuern, Reparaturen
C66: Benzin / Diesel / Reparaturen | D66: 360.0 | E66: 360.0 | F66: 360.0 | G66: 360.0 | H66: 360.0 | CY66: Benzin / Diesel / Reparaturen
C67: Summe | D67: 600.0 | E67: =SUM(E64:E66) -> 600.0 | F67: =SUM(F64:F66) -> 600.0 | G67: =SUM(G64:G66) -> 600.0 | H67: =SUM(H64:H66) -> 600.0 | CY67: Summe
B68: 4 | C68: Versicherungen | CY68: Versicherungen
C69: Rentenversicherung, freiw. Versicher. 1) | D69: 1,200.0 | E69: 1,200.0 | F69: 1,200.0 | G69: 1,200.0 | H69: 1,200.0 | CY69: Rentenversicherung, freiw. Versicher. 1)
C70: Krankenversicherung u Medikamente 2) | D70: 3,600.0 | E70: 3,600.0 | F70: 3,600.0 | G70: 3,600.0 | H70: 3,600.0 | CY70: Krankenversicherung u Medikamente 2)
C71: Unfallversicherung, Berufsunfähigkeit | D71: 0.0 | E71: 0.0 | F71: 0.0 | G71: 0.0 | H71: 0.0 | CY71: Unfallversicherung, Berufsunfähigkeit
C72: Hausratsversicherung, Haftpflicht | D72: 0.0 | E72: 0.0 | F72: 0.0 | G72: 0.0 | H72: 0.0 | CY72: Hausratsversicherung, Haftpflicht
C73: Sonstige.Versicherungen. | D73: 0.0 | E73: 0.0 | F73: 0.0 | G73: 0.0 | H73: 0.0 | CY73: Sonstige.Versicherungen.
C74: Summe | D74: 4,800.0 | E74: =SUM(E69:E73) -> 4,800.0 | F74: =SUM(F69:F73) -> 4,800.0 | G74: =SUM(G69:G73) -> 4,800.0 | H74: =SUM(H69:H73) -> 4,800.0 | CY74: Summe
B75: 5 | C75: Freizeit / Unterhaltung | CY75: Freizeit / Unterhaltung
C76: Hobby, Bücher, Geschenke | D76: 120.0 | E76: 120.0 | F76: 120.0 | G76: 120.0 | H76: 120.0 | CY76: Hobby, Bücher, Geschenke
C77: Urlaub, Reisen, Sonstiges | D77: 1,500.0 | E77: 1,500.0 | F77: 1,500.0 | G77: 1,500.0 | H77: 1,500.0 | CY77: Urlaub, Reisen, Sonstiges
C78: Summe | D78: 1,620.0 | E78: =SUM(E76:E77) -> 1,620.0 | F78: =SUM(F76:F77) -> 1,620.0 | G78: =SUM(G76:G77) -> 1,620.0 | H78: =SUM(H76:H77) -> 1,620.0 | CY78: Summe
B79: 6 | C79: Zahlungsverpflichtungen | CY79: Zahlungsverpflichtungen
C80: Unterhalt, Kredittilgung, Weiterbildung | D80: 0.0 | E80: 0.0 | F80: 0.0 | G80: 0.0 | H80: 0.0 | CY80: Unterhalt, Kredittilgung, Weiterbildung
C81: Sonstige private Kredite (Zins + Tilg.) | D81: 0.0 | E81: 0.0 | F81: 0.0 | G81: 0.0 | H81: 0.0 | CY81: Sonstige private Kredite (Zins + Tilg.)
C82: Summe | D82: 0.0 | E82: =SUM(E80:E81) -> 0.0 | F82: =SUM(F80:F81) -> 0.0 | G82: =SUM(G80:G81) -> 0.0 | H82: =SUM(H80:H81) -> 0.0 | CY82: Summe
B83: 7 | C83: Verschiedenes | CY83: Verschiedenes
C84: Vereinsbeiträge, Spenden, Bausparen | D84: 100.0 | E84: 120.0 | F84: 120.0 | G84: 120.0 | H84: 120.0 | CY84: Vereinsbeiträge, Spenden, Bausparen
C85: Beratung (Steuer, Recht usw.) | D85: 300.0 | E85: 1,500.0 | F85: 1,500.0 | G85: 1,500.0 | H85: 1,500.0 | CY85: Beratung (Steuer, Recht usw.)
C86: Summe | D86: 400.0 | E86: =SUM(E84:E85) -> 1,620.0 | F86: =SUM(F84:F85) -> 1,620.0 | G86: =SUM(G84:G85) -> 1,620.0 | H86: =SUM(H84:H85) -> 1,620.0 | CY86: Summe
C87: =C43 -> Gesamtausgaben o. Einkommensteuer 3) | D87: 20,260.0 | E87: =SUM(E49:E86)/2 -> 21,680.0 | F87: =SUM(F49:F86)/2 -> 21,880.0 | G87: =SUM(G49:G86)/2 -> 22,080.0 | H87: =SUM(H49:H86)/2 -> 22,280.0 | CY87: Gesamtausgaben ohne Einkommensteuer3)
B88: =CY88 -> 3) bei EinzelunternehmerInnen werden üblicherweise die pers. Ausgaben als Entnahme aus dem Unternehmergewinn die Liquiditätsberechnung einbezogen. | CY88: 3) bei EinzelunternehmerInnen werden üblicherweise die pers. Ausgaben als Entnahme aus dem Unternehmergewinn die Liquiditätsberechnung einbezogen.
B89: =CY89 -> Dazu müssen Sie die in Zeile 86 stehenden Werte in die Tabelle 1c händisch übertragen. In die Liquiditätstabelle wird der Wert aus Zeile 98 übernommen. | CY89: Dazu müssen Sie die in Zeile 86 stehenden Werte in die Tabelle 1c händisch übertragen. In die Liquiditätstabelle wird der Wert aus Zeile 98 übernommen.
B90: =CY90 -> - Bei mehreren Gründern kann über Tabelle 1c eine Gesamtschau entwickelt und daraus eine "Aufteilung der Privatentnahmen" erzeugt werden | CY90: - Bei mehreren Gründern kann über Tabelle 1c eine Gesamtschau entwickelt und daraus eine "Aufteilung der Privatentnahmen" erzeugt werden
B91: =CY91 -> Auch bei mehreren GründerInnen werden die Werte aus Zeile 98 in die Liquidationstabelle übenrnommen. | CY91: Auch bei mehreren GründerInnen werden die Werte aus Zeile 98 in die Liquidationstabelle übenrnommen.
B93: =IF($B$1="English",CZ93,CY93)&$C$3&" - "&$C$3+4 -> 1c Privatentnahmen (in EUR) der aufgeführten GründerInnen für die Jahre 2016 - 2020 | CY93: 1c Privatentnahmen (in EUR) der aufgeführten GründerInnen für die Jahre | CZ93: 1c Personal Draw (in EUR) of the Founders for the Years
B94: =B48 -> No. | C94: =IF($B$1="English",CZ94,CY94) -> Namen der GründerInnen | D94: =C3 -> 2016 | E94: =D94+1 -> 2017 | F94: =E94+1 -> 2018 | G94: =F94+1 -> 2019 | H94: =G94+1 -> 2020 | CY94: Namen der GründerInnen | CZ94: Names of the Founder/s
B95: 1. | C95: Name des/der GründerIn | D95: 15,000 | E95: 16,000 | F95: 17,000 | G95: 18,000 | H95: 23,000 | CY95: Gründer | CZ95: Founder/s
B96: 2.
B97: 3.
B98: 4.
B99: 5.
B100: 6.
C101: =CY101 -> Gesamtentnahmen aller GründerInnen | D101: =SUM(D95:D100) -> 15,000 | E101: =SUM(E95:E100) -> 16,000 | F101: =SUM(F95:F100) -> 17,000 | G101: =SUM(G95:G100) -> 18,000 | H101: =SUM(H95:H100) -> 23,000 | CY101: Gesamtentnahmen aller GründerInnen | CZ101: Total Draw of all Founders
B104: =IF($B$1="English",CZ104,CY104) -> Anhang zu Tab 1b | CY104: Anhang zu Tab 1b | CZ104: Annex to Tab 1b
C105: =IF($B$1="English",CZ105,CY105) -> Abschätzung der Einkommensteuer4) | D105: =C3 -> 2016 | E105: =D105+1 -> 2017 | F105: =E105+1 -> 2018 | G105: =F105+1 -> 2019 | H105: =G105+1 -> 2020 | CY105: Abschätzung der Einkommensteuer4) | CZ105: Estimation of Income Tax
C106: =IF($B$1="English",CZ106,CY106) -> Grundlage dafür sind Gesamtausgaben | CY106: Grundlage dafür sind Gesamtausgaben | CZ106: Basis therefor are Total Expenses
B107: =CY107 -> 4) Die EkSt. im Angestelltenverhältnis erhöht die Privatausgaben | S107: Ende | CY107: 4) Die EkSt. im Angestelltenverhältnis erhöht die Privatausgaben
B108: =CY108 -> EkSt. auf die Privatentnahmen wird bei Unternehmensformen die keine Kapitalgesellschaft sind aus dem Gesamtgewinn ermittelt und in der Liquiditätsberechnung berücksichtigt. | CY108: EkSt. auf die Privatentnahmen wird bei Unternehmensformen die keine Kapitalgesellschaft sind aus dem Gesamtgewinn ermittelt und in der Liquiditätsberechnung berücksichtigt.
C109: *) und **) AOK-Gehaltsrechner | CY109: *) und **) AOK-Gehaltsrechner
E111: 50% | F111: 60%

Sheet 2 Umsätze|Sales (hidden)
B1: ='Deckblatt Gründer|Data Founder'!D6 -> Deutsch | D1: =IF(OR('Deckblatt Gründer|Data Founder'!M1=1,'Deckblatt Gründer|Data Founder'!M1=2),"mit MwSt","ohne MwSt") -> ohne MwSt | E1: 0% | F1: =MwStklein -> 7% | G1: =MwSt -> 19% | T1: Aufgaben und/oder Kommentar | CJ1: Nebenrechnung Umsätze/sonstige Einnahmen | CK1: Ancillary account for sales/other Income | CL1: ='Deckblatt Gründer|Data Founder'!CT1 -> 0 | CN1: Jan. | CO1: Febr. | CP1: März | CQ1: April | CR1: Mai | CS1: Juni | CT1: Juli | CU1: Aug. | CV1: Sept. | CW1: Okt. | CX1: Nov. | CY1: Dez. | CZ1: ="Jahr "&'1 Pers.Ausgaben|Pers Expenses'!C3 -> Jahr 2016
B2: =IF($C$3="English",CK2,CJ2) -> 2a Umsätze, Honorare, Sonstige Einnahmen (ohne MwSt) für die Monate des Jahres 2016 in EURO | T2: To Do list / Comments | U2: =IF($B$1="English",CK1,CJ1) -> Nebenrechnung Umsätze/sonstige Einnahmen | CJ2: ="2a Umsätze, Honorare, Sonstige Einnahmen (" & 'Deckblatt Gründer|Data Founder'!$J$1 & ") für die Monate des Jahres " & '1 Pers.Ausgaben|Pers Expenses'!$C$3&" in EURO" -> 2a Umsätze, Honorare, Sonstige Einnahmen (ohne MwSt) für die Monate des Jahres 2016 in EURO | CK2: ="2a Sales, Fees, other Income (" & 'Deckblatt Gründer|Data Founder'!$K$1 & ") for the Months of the Year " & '1 Pers.Ausgaben|Pers Expenses'!$C$3&" in EURO" -> 2a Sales, Fees, other Income (w/o VAT) for the Months of the Year 2016 in EURO | CN2: Jan | CO2: Feb | CP2: Mar | CQ2: Apr | CR2: May | CS2: June | CT2: July | CU2: Aug | CV2: Sept | CW2: Oct | CX2: Nov | CY2: Dec | CZ2: ="Year "&'1 Pers.Ausgaben|Pers Expenses'!C3 -> Year 2016
C3: ='Deckblatt Gründer|Data Founder'!$D$6 -> Deutsch | CJ3: Bitte die Zusammensetzung der Umsätze in der Nebenrechnung (ab Spalte U) angeben | CK3: Please show the structure of sales in auxiliary calculation (Choose column "U")
B4: No. | C4: =IF(C3="English","Type of Income","Einnahmeart") -> Einnahmeart | D4: =IF($C$3="English","VAT","MwSt") -> MwSt | E4: =IF($C$3="English",CN2,CN1) -> Jan. | F4: =IF($C$3="English",CO2,CO1) -> Febr. | G4: März | H4: April | I4: Mai | J4: Juni | K4: Juli | L4: Aug. | M4: Sept. | N4: Okt. | O4: Nov. | P4: Dez. | Q4: Jahr 2016 | S4: =IF(C3="English",T2,T1) -> Aufgaben und/oder Kommentar | U4: No. | V4: =C4 -> Einnahmeart | W4: =IF($C$3="English","VAT","MwSt") -> MwSt | X4: =E4 -> Jan. | Y4: =F4 -> Febr. | Z4: März | AA4: April | AB4: Mai | AC4: Juni | AD4: Juli | AE4: Aug. | AF4: Sept. | AG4: Okt. | AH4: Nov. | AI4: Dez. | AJ4: =Q4 -> Jahr 2016 | CJ4: Einnahmeart | CK4: Type of Income
B5: 1 | C5: =IF($B$1="English",CK6,CJ6) -> Umsatz Produktgruppe 1 | D5: =IF($C$3="English","Selection","Auswahl") -> Auswahl | U5: 1.6 | V5: =C10 -> Umsätze aus Nebenrechnung Gruppe 1 | W5: =D11 -> 7% | CJ5: Auswahl | CK5: Selection
B6: 1.1 | E6: 1,200 | F6: 1,400 | G6: 1,600 | H6: 1,800 | I6: 2,000 | J6: 2,200 | K6: 2,400 | L6: 2,600 | M6: 7,000 | N6: 3,000 | O6: 3,200 | P6: 3,400 | Q6: =SUM(E6:P6) -> 31,800 | U6: 1.6.1 | AJ6: =SUM(X6:AI6) -> 0 | CJ6: Umsatz Produktgruppe 1 | CK6: Sales Product Line 1
B7: 1.2 | Q7: =SUM(E7:P7) -> 0 | U7: 1.6.2 | AJ7: =SUM(X7:AI7) -> 0 | CJ7: Umsätze aus Nebenrechnung Gruppe 1 | CK7: Sales out of Ancillary Account Line 1
B8: 1.3 | Q8: 0 | U8: 1.6.3 | AJ8: 0 | CJ8: Umsätze aus Nebenrechnung Gruppe 2 | CK8: Sales out of Ancillary Account Line 2
B9: 1.4 | Q9: =SUM(E9:P9) -> 0 | U9: 1.6.4 | AJ9: 0
B10: 1.6 | C10: =IF($B$1="English",CK7,CJ7) -> Umsätze aus Nebenrechnung Gruppe 1 | E10: 100 | F10: 200 | G10: 300 | H10: 400 | I10: 500 | J10: 600 | K10: 700 | L10: 800 | M10: 900 | N10: 1,000 | O10: 1,100 | P10: 1,200 | Q10: =SUM(E10:P10) -> 7,800 | U10: 1.6.5 | AJ10: =SUM(X10:AI10) -> 0
C11: =IF($B$1="English",CK11,CJ11) -> darauf MwSt | D11: 7% | E11: =IF(SUM(E6:E10)=0,"",IF($D$1="mit MwST",SUM(E6:E10)-SUM(E6:E10)/(1+$D11),SUM(E6:E10)*($D11))) -> 91.0 | F11: =IF(SUM(F6:F10)=0,"",IF($D$1="mit MwST",SUM(F6:F10)-SUM(F6:F10)/(1+$D11),SUM(F6:F10)*($D11))) -> 112.0 | G11: 133.0 | H11: 154.0 | I11: 175.0 | J11: 196.0 | K11: 217.0 | L11: 238.0 | M11: 553.0 | N11: 280.0 | O11: 301.0 | P11: 322.0 | Q11: =IF(SUM(E11:P11)=0,"",SUM(E11:P11)) -> 2,772 | V11: =IF($B$1="English",CK30,CJ30) -> Summe Nebenrechnung Gruppe1 | X11: =IF(SUM(X6:X10)=0,"",SUM(X6:X10)) ->  | Y11: =IF(SUM(Y6:Y10)=0,"",SUM(Y6:Y10)) ->  | AJ11: =SUM(X11:AI11) -> 0 | CJ11: =IF($D$1="mit MwSt","davon MwSt ","darauf MwSt ") -> darauf MwSt | CK11: =IF($D$1="mit MwSt","theron VAT ","therof VAT") -> therof VAT
C12: =IF($B$1="English",CK35,CJ35) -> Summe Umsatz Produktgruppe 1 | E12: =SUM(E6:E10) -> 1,300 | F12: 1,600 | G12: 1,900 | H12: 2,200 | I12: 2,500 | J12: 2,800 | K12: 3,100 | L12: 3,400 | M12: 7,900 | N12: 4,000 | O12: 4,300 | P12: 4,600 | Q12: 39,600 | U12: 2.6 | V12: =C18 -> Umsätze aus Nebenrechnung Gruppe 2 | W12: =D19 -> 19%
B13: 2 | C13: =IF($B$1="English",CK13,CJ13) -> Umsatz Produktgruppe 2 | U13: 2.6.1 | AJ13: =SUM(X13:AI13) -> 0 | CJ13: Umsatz Produktgruppe 2 | CK13: Sales Product Line 2
B14: 2.1 | E14: 200 | F14: 300 | G14: 400 | H14: 500 | I14: 600 | J14: 700 | K14: 800 | L14: 900 | M14: 1,000 | N14: 1,100 | O14: 1,200 | P14: 1,300 | Q14: =SUM(E14:P14) -> 9,000 | U14: 2.6.2 | AJ14: =SUM(X14:AI14) -> 0 | CJ14: Summe Umsatz Produktgrppe 2 | CK14: Sum Sales Product Line 2
B15: 2.2 | Q15: =SUM(E15:P15) -> 0 | U15: 2.6.3 | AJ15: 0
B16: 2.3 | Q16: 0 | U16: 2.6.4 | AJ16: 0
B17: 2.4 | Q17: 0 | U17: 2.6.5 | AJ17: 0
B18: 2.6 | C18: =IF($B$1="English",CK8,CJ8) -> Umsätze aus Nebenrechnung Gruppe 2 | E18: 10 | F18: 20 | G18: 30 | H18: 40 | I18: 50 | J18: 60 | K18: 70 | L18: 80 | M18: 90 | N18: 100 | O18: 110 | P18: 120 | Q18: 780 | V18: =IF($B$1="English",CK29,CJ29) -> Summe Nebenrechnung Gruppe2 | X18: =IF(SUM(X13:X17)=0,"",SUM(X13:X17)) ->  | Y18: =IF(SUM(Y13:Y17)=0,"",SUM(Y13:Y17)) ->  | AJ18: =SUM(X18:AI18) -> 0
C19: =C11 -> darauf MwSt | D19: 19% | E19: =IF(SUM(E14:E18)=0,"",IF($D$1="mit MwST",SUM(E14:E18)-SUM(E14:E18)/(1+$D19),SUM(E14:E18)*($D19))) -> 39.9 | F19: 60.8 | G19: 81.7 | H19: 102.6 | I19: 123.5 | J19: 144.4 | K19: 165.3 | L19: 186.2 | M19: 207.1 | N19: 228.0 | O19: 248.9 | P19: 269.8 | Q19: =IF(SUM(E19:P19)=0,"",SUM(E19:P19)) -> 1,858 | CJ19: Summe Honorareinnahmen | CK19: Sum Income Consulting
C20: =IF($B$1="English",CK14,CJ14) -> Summe Umsatz Produktgrppe 2 | E20: =SUM(E14:E18) -> 210 | F20: 320 | G20: 430 | H20: 540 | I20: 650 | J20: 760 | K20: 870 | L20: 980 | M20: 1,090 | N20: 1,200 | O20: 1,310 | P20: 1,420 | Q20: 9,780
B21: 3 | C21: =IF($B$1="English",CK21,CJ21) -> Honorareinnahmen | CJ21: Honorareinnahmen | CK21: Income Consulting
B22: 3.1 | E22: 500 | F22: 500 | G22: 500 | H22: 500 | I22: 500 | J22: 500 | K22: 500 | L22: 500 | M22: 500 | N22: 500 | O22: 500 | P22: 500 | Q22: =SUM(E22:P22) -> 6,000
B23: 3.2 | Q23: =SUM(E23:P23) -> 0
C24: =C19 -> darauf MwSt | D24: 7% | E24: =IF(SUM(E22:E23)=0,"",IF($D$1="mit MwST",SUM(E22:E23)-SUM(E22:E23)/(1+$D24),SUM(E22:E23)*($D24))) -> 35.0 | F24: =IF(SUM(F22:F23)=0,"",IF($D$1="mit MwST",SUM(F22:F23)-SUM(F22:F23)/(1+$D24),SUM(F22:F23)*($D24))) -> 35.0 | G24: 35.0 | H24: 35.0 | I24: 35.0 | J24: 35.0 | K24: 35.0 | L24: 35.0 | M24: 35.0 | N24: 35.0 | O24: 35.0 | P24: 35.0 | Q24: =IF(SUM(E24:P24)=0,"",SUM(E24:P24)) -> 420 | CJ24: Summe Sonstige Einnehmen | CK24: Sum Other Income
C25: =IF($B$1="English",CK19,CJ19) -> Summe Honorareinnahmen | E25: =SUM(E22:E23) -> 500 | F25: =SUM(F22:F23) -> 500 | G25: 500 | H25: 500 | I25: 500 | J25: 500 | K25: 500 | L25: 500 | M25: 500 | N25: 500 | O25: 500 | P25: 500 | Q25: =SUM(E25:P25) -> 6,000
B26: 4 | C26: =IF($B$1="English",CK26,CJ26) -> Sonstige Einnahmen | CJ26: Sonstige Einnahmen | CK26: Other Income
B27: 4.1 | E27: 1,000 | F27: 1,000 | G27: 1,000 | H27: 1,000 | I27: 1,000 | J27: 1,000 | Q27: =SUM(E27:P27) -> 6,000
B28: 4.2 | Q28: =SUM(E28:P28) -> 0
C29: =C24 -> darauf MwSt | D29: 7% | E29: =IF(SUM(E27:E28)=0,"",IF($D$1="mit MwST",SUM(E27:E28)-SUM(E27:E28)/(1+$D29),SUM(E27:E28)*($D29))) -> 70.0 | F29: =IF(SUM(F27:F28)=0,"",IF($D$1="mit MwST",SUM(F27:F28)-SUM(F27:F28)/(1+$D29),SUM(F27:F28)*($D29))) -> 70.0 | G29: =IF(SUM(G27:G28)=0,"",IF($D$1="mit MwST",SUM(G27:G28)-SUM(G27:G28)/(1+$D29),SUM(G27:G28)*($D29))) -> 70.0 | H29: =IF(SUM(H27:H28)=0,"",IF($D$1="mit MwST",SUM(H27:H28)-SUM(H27:H28)/(1+$D29),SUM(H27:H28)*($D29))) -> 70.0 | I29: =IF(SUM(I27:I28)=0,"",IF($D$1="mit MwST",SUM(I27:I28)-SUM(I27:I28)/(1+$D29),SUM(I27:I28)*($D29))) -> 70.0 | J29: =IF(SUM(J27:J28)=0,"",IF($D$1="mit MwST",SUM(J27:J28)-SUM(J27:J28)/(1+$D29),SUM(J27:J28)*($D29))) -> 70.0 | K29: =IF(SUM(K27:K28)=0,"",IF($D$1="mit MwST",SUM(K27:K28)-SUM(K27:K28)/(1+$D29),SUM(K27:K28)*($D29))) ->  | L29: =IF(SUM(L27:L28)=0,"",IF($D$1="mit MwST",SUM(L27:L28)-SUM(L27:L28)/(1+$D29),SUM(L27:L28)*($D29))) ->  | M29: =IF(SUM(M27:M28)=0,"",IF($D$1="mit MwST",SUM(M27:M28)-SUM(M27:M28)/(1+$D29),SUM(M27:M28)*($D29))) ->  | N29: =IF(SUM(N27:N28)=0,"",IF($D$1="mit MwST",SUM(N27:N28)-SUM(N27:N28)/(1+$D29),SUM(N27:N28)*($D29))) ->  | O29: =IF(SUM(O27:O28)=0,"",IF($D$1="mit MwST",SUM(O27:O28)-SUM(O27:O28)/(1+$D29),SUM(O27:O28)*($D29))) ->  | P29: =IF(SUM(P27:P28)=0,"",IF($D$1="mit MwST",SUM(P27:P28)-SUM(P27:P28)/(1+$D29),SUM(P27:P28)*($D29))) ->  | Q29: =IF(SUM(E29:P29)=0,"",SUM(E29:P29)) -> 420 | CJ29: Summe Nebenrechnung Gruppe2 | CK29: Sum Ancillary Account Line2
C30: =IF($B$1="English",CK24,CJ24) -> Summe Sonstige Einnehmen | E30: =SUM(E27:E28) -> 1,000 | F30: =SUM(F27:F28) -> 1,000 | G30: 1,000 | H30: 1,000 | I30: 1,000 | J30: 1,000 | K30: 0 | L30: 0 | M30: 0 | N30: 0 | O30: 0 | P30: 0 | Q30: =SUM(E30:P30) -> 6,000 | CJ30: Summe Nebenrechnung Gruppe1 | CK30: Sum Ancillary Account Line1
C31: =IF($B$1="English",CK31,CJ31) -> Summe MwSt 7% | D31: =IF('Deckblatt Gründer|Data Founder'!$I$11='Deckblatt Gründer|Data Founder'!$G$1,"",MwStklein) -> 7% | E31: =IF(E11="",0,E11*IF($D11=MwStklein,1,0))+IF(E19="",0,E19*IF($D19=MwStklein,1,0))+IF(E24="",0,E24*IF($D24=MwStklein,1,0))+IF(E29="",0,E29*IF($D29=MwStklein,1,0)) -> 196.0 | F31: 217.0 | G31: 238.0 | H31: 259.0 | I31: 280.0 | J31: 301.0 | K31: 252.0 | L31: 273.0 | M31: 588.0 | N31: 315.0 | O31: 336.0 | P31: 357.0 | Q31: =IF(SUM(E31:P31)=0,"",SUM(E31:P31)) -> 3,612 | CJ31: ="Summe MwSt "& MwStklein*100 & "%" -> Summe MwSt 7% | CK31: ="Sum VAT "& MwStklein*100 & "%" -> Sum VAT 7%
C32: =IF($B$1="English",CK32,CJ32) -> Summe MwSt 19% | D32: =IF('Deckblatt Gründer|Data Founder'!$I$11='Deckblatt Gründer|Data Founder'!$G$1,"",MwSt) -> 19% | E32: =IF(E11="",0,E11*IF($D11=MwSt,1,0))+IF(E19="",0,E19*IF($D19=MwSt,1,0))+IF(E24="",0,E24*IF($D24=MwSt,1,0))+IF(E29="",0,E29*IF($D29=MwSt,1,0)) -> 39.9 | F32: 60.8 | G32: 81.7 | H32: 102.6 | I32: 123.5 | J32: 144.4 | K32: 165.3 | L32: 186.2 | M32: 207.1 | N32: 228.0 | O32: 248.9 | P32: 269.8 | Q32: =IF(SUM(E32:P32)=0,"",SUM(E32:P32)) -> 1,858 | CJ32: ="Summe MwSt "& MwSt*100 & "%" -> Summe MwSt 19% | CK32: ="Sum VAT "& MwSt*100 & "%" -> Sum VAT 19%
C33: =IF($B$1="English",CK33,CJ33) -> Gesamtumsätze | E33: =E12+E20+E25+E30 -> 3,010 | F33: 3,420 | G33: 3,830 | H33: 4,240 | I33: 4,650 | J33: 5,060 | K33: 4,470 | L33: 4,880 | M33: 9,490 | N33: 5,700 | O33: 6,110 | P33: 6,520 | Q33: =SUM(E33:P33) -> 61,380 | CJ33: Gesamtumsätze | CK33: Total Sales
C34: =IF($B$1="English",CK34,CJ34) -> Gesamtumsätze akkumuliert | E34: =E33 -> 3,010 | F34: =E34+F33 -> 6,430 | G34: =F34+G33 -> 10,260 | H34: 14,500 | I34: 19,150 | J34: 24,210 | K34: 28,680 | L34: 33,560 | M34: 43,050 | N34: 48,750 | O34: 54,860 | P34: 61,380 | CJ34: Gesamtumsätze akkumuliert | CK34: Total Sales accumulated
CJ35: ="Summe "&CJ6 -> Summe Umsatz Produktgruppe 1 | CK35: ="Sum "&CK6 -> Sum Sales Product Line 1
B36: =IF($C$3="English",CK36,CJ36) -> 2b Umsätze, Honorare, Sonstige Einnahmen (ohne MwSt) für die Jahre 2016 - 2020 in EURO | N36: =IF(C3="English","Sales in Euro (w/o VAT)","Umsätze in Euro (ohne MwSt)") -> Umsätze in Euro (ohne MwSt) | U36: =IF($B$1="English",CK28,CJ28) -> 0 | CJ36: ="2b Umsätze, Honorare, Sonstige Einnahmen (" & 'Deckblatt Gründer|Data Founder'!J$1& ") für die Jahre " & '1 Pers.Ausgaben|Pers Expenses'!$C$3 & " - " & '1 Pers.Ausgaben|Pers Expenses'!$C$3+4&" in EURO" -> 2b Umsätze, Honorare, Sonstige Einnahmen (ohne MwSt) für die Jahre 2016 - 2020 in EURO | CK36: ="2b Sales, Fees, other Income (" & 'Deckblatt Gründer|Data Founder'!$K$1& ") for the years " & '1 Pers.Ausgaben|Pers Expenses'!$C$3 & " - " & '1 Pers.Ausgaben|Pers Expenses'!$C$3+4&" in EURO" -> 2b Sales, Fees, other Income (w/o VAT) for the years 2016 - 2020 in EURO
B38: =B4 -> No. | C38: =C4 -> Einnahmeart | D38: MwSt | E38: ='1 Pers.Ausgaben|Pers Expenses'!C3 -> 2016 | F38: =E38+1 -> 2017 | G38: =F38+1 -> 2018 | H38: =G38+1 -> 2019 | I38: =H38+1 -> 2020 | U38: No. | V38: =C38 -> Einnahmeart | W38: =IF($C$3="English","VAT","MwSt") -> MwSt | X38: =E38+1 -> 2017 | Y38: =F38+1 -> 2018 | Z38: 2019 | AA38: 2020 | AB38: =Q38 -> 0.00
B39: =B5 -> 1 | C39: =C5 -> Umsatz Produktgruppe 1 | U39: 1.6 | V39: =C44 -> Umsätze aus Nebenrechnung Gruppe 1 | W39: =D45 -> 7%
B40: =B6 -> 1.1 | C40: =IF(C6="","",C6) ->  | E40: =Q6 -> 31,800 | F40: 32,000 | G40: 35,000 | H40: 40,000 | I40: 45,000 | U40: 1.6.1 | AB40: =SUM(X40:AA40) -> 0
B41: =B7 -> 1.2 | C41: =IF(C7="","",C7) ->  | E41: =Q8 -> 0 | U41: 1.6.2 | AB41: 0
B42: =B8 -> 1.3 | C42: =IF(C8="","",C8) ->  | E42: =Q9 -> 0 | U42: 1.6.3 | AB42: 0
B43: =B9 -> 1.4 | C43: =IF(C9="","",C9) ->  | E43: 7,800 | U43: 1.6.4 | AB43: 0
B44: =B10 -> 1.6 | C44: =IF(C10="","",C10) -> Umsätze aus Nebenrechnung Gruppe 1 | E44: =Q10 -> 7,800 | F44: =X45 -> 0 | G44: 0 | H44: 0 | I44: 0 | U44: 1.6.5 | AB44: =SUM(X44:AA44) -> 0
C45: =C11 -> darauf MwSt | D45: =D11 -> 7% | E45: 2,772.0 | F45: =IF(SUM(F40:F44)=0,"",IF($D$1="mit MwST",SUM(F40:F44)-SUM(F40:F44)/(1+$D45),SUM(F40:F44)*($D45))) -> 2,240.0 | G45: =IF(SUM(G40:G44)=0,"",IF($D$1="mit MwST",SUM(G40:G44)-SUM(G40:G44)/(1+$D45),SUM(G40:G44)*($D45))) -> 2,450.0 | H45: =IF(SUM(H40:H44)=0,"",IF($D$1="mit MwST",SUM(H40:H44)-SUM(H40:H44)/(1+$D45),SUM(H40:H44)*($D45))) -> 2,800.0 | I45: =IF(SUM(I40:I44)=0,"",IF($D$1="mit MwST",SUM(I40:I44)-SUM(I40:I44)/(1+$D45),SUM(I40:I44)*($D45))) -> 3,150.0 | V45: =V11 -> Summe Nebenrechnung Gruppe1 | X45: =SUM(X40:X44) -> 0 | Y45: =SUM(Y40:Y44) -> 0 | Z45: 0 | AA45: 0 | AB45: =SUM(X45:AA45) -> 0
C46: =C12 -> Summe Umsatz Produktgruppe 1 | E46: =Q12 -> 39,600 | F46: =SUM(F40:F44) -> 32,000 | G46: =SUM(G40:G44) -> 35,000 | H46: =SUM(H40:H44) -> 40,000 | I46: =SUM(I40:I44) -> 45,000 | U46: 2.6 | V46: =C52 -> Umsätze aus Nebenrechnung Gruppe 2 | W46: =D53 -> 19%
B47: =B13 -> 2 | C47: =C13 -> Umsatz Produktgruppe 2 | U47: 2.6.1 | X47: 7,777 | AB47: =SUM(X47:AA47) -> 7,777
B48: =B14 -> 2.1 | C48: =IF(C14="","",C14) ->  | E48: =Q14 -> 9,000 | U48: 2.6.2 | AB48: 0
B49: =B15 -> 2.2 | C49: =IF(C15="","",C15) ->  | E49: =Q15 -> 0 | U49: 2.6.3 | AB49: 0
B50: =B16 -> 2.3 | C50: =IF(C16="","",C16) ->  | E50: 0 | U50: 2.6.4 | AB50: 0
B51: =B17 -> 2.4 | C51: =IF(C17="","",C17) ->  | E51: 0 | U51: 2.6.5 | AB51: =SUM(X51:AA51) -> 0
B52: =B18 -> 2.6 | C52: =IF(C18="","",C18) -> Umsätze aus Nebenrechnung Gruppe 2 | E52: =Q18 -> 780 | F52: =X52 -> 7,777 | G52: =Y52 -> 0 | H52: 0 | I52: 0 | V52: =V18 -> Summe Nebenrechnung Gruppe2 | X52: =SUM(X47:X51) -> 7,777 | Y52: =SUM(Y47:Y51) -> 0 | Z52: 0 | AA52: 0 | AB52: =SUM(X52:AA52) -> 7,777
C53: =C19 -> darauf MwSt | D53: =D19 -> 19% | E53: 1,858.2 | F53: =IF(SUM(F48:F52)=0,"",IF($D$1="mit MwST",SUM(F48:F52)-SUM(F48:F52)/(1+$D53),SUM(F48:F52)*($D53))) -> 1,477.6 | G53: =IF(SUM(G48:G52)=0,"",IF($D$1="mit MwST",SUM(G48:G52)-SUM(G48:G52)/(1+$D53),SUM(G48:G52)*($D53))) ->  | H53: =IF(SUM(H48:H52)=0,"",IF($D$1="mit MwST",SUM(H48:H52)-SUM(H48:H52)/(1+$D53),SUM(H48:H52)*($D53))) ->  | I53: =IF(SUM(I48:I52)=0,"",IF($D$1="mit MwST",SUM(I48:I52)-SUM(I48:I52)/(1+$D53),SUM(I48:I52)*($D53))) -> 
C54: Summe Umsatz Produktgrppe 2 | E54: =Q20 -> 9,780 | F54: =SUM(F48:F52) -> 7,777 | G54: =SUM(G48:G52) -> 0 | H54: =SUM(H48:H52) -> 0 | I54: =SUM(I48:I52) -> 0
B55: 3 | C55: =C21 -> Honorareinnahmen
B56: 3.1 | C56: =IF(C22="","",C22) ->  | E56: =Q22 -> 6,000
B57: 3.2 | C57: =IF(C23="","",C23) ->  | E57: =Q23 -> 0
C58: =C24 -> darauf MwSt | D58: 7% | E58: =Q24 -> 420.0 | F58: =IF(SUM(F56:F57)=0,"",IF($D$1="mit MwST",SUM(F56:F57)-SUM(F56:F57)/(1+$D58),SUM(F56:F57)*($D58))) ->  | G58: =IF(SUM(G56:G57)=0,"",IF($D$1="mit MwST",SUM(G56:G57)-SUM(G56:G57)/(1+$D58),SUM(G56:G57)*($D58))) -> 
C59: =C25 -> Summe Honorareinnahmen | E59: =Q25 -> 6,000 | F59: =SUM(F56:F57) -> 0 | G59: =SUM(G56:G57) -> 0 | H59: 0 | I59: 0
B60: =B26 -> 4 | C60: =C26 -> Sonstige Einnahmen
B61: =B27 -> 4.1 | C61: =IF(C27="","",C27) ->  | E61: =Q27 -> 6,000
B62: =B28 -> 4.2 | C62: =IF(C28="","",C28) ->  | E62: =Q28 -> 0
C63: =C29 -> darauf MwSt | D63: =D29 -> 7% | E63: =Q29 -> 420.0 | F63: =IF(SUM(F61:F62)=0,"",IF($D$1="mit MwST",SUM(F61:F62)-SUM(F61:F62)/(1+$D63),SUM(F61:F62)*($D63))) ->  | G63: =IF(SUM(G61:G62)=0,"",IF($D$1="mit MwST",SUM(G61:G62)-SUM(G61:G62)/(1+$D63),SUM(G61:G62)*($D63))) ->  | H63: =IF(SUM(H61:H62)=0,"",IF($D$1="mit MwST",SUM(H61:H62)-SUM(H61:H62)/(1+$D63),SUM(H61:H62)*($D63))) ->  | I63: =IF(SUM(I61:I62)=0,"",IF($D$1="mit MwST",SUM(I61:I62)-SUM(I61:I62)/(1+$D63),SUM(I61:I62)*($D63))) -> 
C64: =C30 -> Summe Sonstige Einnehmen | E64: =Q30 -> 6,000 | F64: =SUM(F61:F62) -> 0 | G64: =SUM(G61:G62) -> 0 | H64: 0 | I64: 0
C65: =C31 -> Summe MwSt 7% | D65: =IF('Deckblatt Gründer|Data Founder'!$I$11='Deckblatt Gründer|Data Founder'!$G$1,"",MwStklein) -> 7% | E65: =IF(E45="",0,E45*IF($D11=MwStklein,1,0))+IF(E53="",0,E53*IF($D19=MwStklein,1,0))+IF(E58="",0,E58*IF($D24=MwStklein,1,0))+IF(E63="",0,E63*IF($D29=MwStklein,1,0)) -> 3,612.0 | F65: =IF(F45="",0,F45*IF($D11=MwStklein,1,0))+IF(F53="",0,F53*IF($D19=MwStklein,1,0))+IF(F58="",0,F58*IF($D24=MwStklein,1,0))+IF(F63="",0,F63*IF($D29=MwStklein,1,0)) -> 2,240.0 | G65: =IF(G45="",0,G45*IF($D11=MwStklein,1,0))+IF(G53="",0,G53*IF($D19=MwStklein,1,0))+IF(G58="",0,G58*IF($D24=MwStklein,1,0))+IF(G63="",0,G63*IF($D29=MwStklein,1,0)) -> 2,450.0 | H65: =IF(H45="",0,H45*IF($D11=MwStklein,1,0))+IF(H53="",0,H53*IF($D19=MwStklein,1,0))+IF(H58="",0,H58*IF($D24=MwStklein,1,0))+IF(H63="",0,H63*IF($D29=MwStklein,1,0)) -> 2,800.0 | I65: =IF(I45="",0,I45*IF($D11=MwStklein,1,0))+IF(I53="",0,I53*IF($D19=MwStklein,1,0))+IF(I58="",0,I58*IF($D24=MwStklein,1,0))+IF(I63="",0,I63*IF($D29=MwStklein,1,0)) -> 3,150.0
C66: =C32 -> Summe MwSt 19% | D66: =IF('Deckblatt Gründer|Data Founder'!$I$11='Deckblatt Gründer|Data Founder'!$G$1,"",MwSt) -> 19% | E66: =IF(E45="",0,E45*IF($D11=MwSt,1,0))+IF(E53="",0,E53*IF($D19=MwSt,1,0))+IF(E58="",0,E58*IF($D24=MwSt,1,0))+IF(E63="",0,E63*IF($D29=MwSt,1,0)) -> 1,858.2 | F66: =IF(F46="",0,F46*IF($D11=MwSt,1,0))+IF(F53="",0,F53*IF($D19=MwSt,1,0))+IF(F60="",0,F60*IF($D24=MwSt,1,0))+IF(F63="",0,F63*IF($D29=MwSt,1,0)) -> 1,477.6 | G66: =IF(G46="",0,G46*IF($D11=MwSt,1,0))+IF(G53="",0,G53*IF($D19=MwSt,1,0))+IF(G60="",0,G60*IF($D24=MwSt,1,0))+IF(G63="",0,G63*IF($D29=MwSt,1,0)) -> 0.0 | H66: =IF(H46="",0,H46*IF($D11=MwSt,1,0))+IF(H53="",0,H53*IF($D19=MwSt,1,0))+IF(H60="",0,H60*IF($D24=MwSt,1,0))+IF(H63="",0,H63*IF($D29=MwSt,1,0)) -> 0.0 | I66: =IF(I46="",0,I46*IF($D11=MwSt,1,0))+IF(I53="",0,I53*IF($D19=MwSt,1,0))+IF(I60="",0,I60*IF($D24=MwSt,1,0))+IF(I63="",0,I63*IF($D29=MwSt,1,0)) -> 0.0
C67: =C33 -> Gesamtumsätze | E67: =E46+E54+E59+E64 -> 61,380 | F67: =F46+F54+F59+F64 -> 39,777 | G67: =G46+G54+G59+G64 -> 35,000 | H67: =H46+H54+H59+H64 -> 40,000 | I67: =I46+I54+I59+I64 -> 45,000
C68: =C34 -> Gesamtumsätze akkumuliert | E68: =E67 -> 61,380 | F68: =E68+F67 -> 101,157 | G68: =F68+G67 -> 136,157 | H68: =G68+H67 -> 176,157 | I68: =H68+I67 -> 221,157
B70: =IF($C$3="English",CK70,CJ70) -> Umsätze, Honorare, Sonstige Einnahmen (ohne MwSt) für Jahr 2016 | CJ70: ="Umsätze, Honorare, Sonstige Einnahmen (" & 'Deckblatt Gründer|Data Founder'!$J$1 & ") für Jahr " & '1 Pers.Ausgaben|Pers Expenses'!$C$3 -> Umsätze, Honorare, Sonstige Einnahmen (ohne MwSt) für Jahr 2016 | CK70: ="Sales, Feese, other Income (" & 'Deckblatt Gründer|Data Founder'!$K$1 & ") for Year " & '1 Pers.Ausgaben|Pers Expenses'!$C$3 -> Sales, Feese, other Income (w/o VAT) for Year 2016
U72: No. | V72: =C72 -> 0 | W72: =IF($C$3="English","VAT","MwSt") -> MwSt | X72: =E72+2 -> 2 | Y72: =X72+1 -> 3 | Z72: =Y72+1 -> 4
I73: =B70 -> Umsätze, Honorare, Sonstige Einnahmen (ohne MwSt) für Jahr 2016 | U73: 1.6 | V73: =C78 -> 0 | W73: =D79 -> 0%
U74: 1.6.1 | X74: 20,000 | Z74: 25,000
U75: 1.6.2
U76: 1.6.3
U77: 1.6.4
U78: 1.6.5
V79: =V45 -> Summe Nebenrechnung Gruppe1 | X79: =SUM(X74:X78) -> 20,000 | Y79: =SUM(Y74:Y78) -> 0 | Z79: 25,000
U80: 2.6 | V80: =C86 -> 0 | W80: =D87 -> 0%
U81: 2.6.1 | Y81: 10,000 | Z81: 12,500
U82: 2.6.2
U83: 2.6.3
U84: 2.6.4
U85: 2.6.5
V86: =V52 -> Summe Nebenrechnung Gruppe2 | X86: =SUM(X81:X85) -> 0 | Y86: =SUM(Y81:Y85) -> 10,000 | Z86: 12,500
S87: Ende
U171: ="Mai "&'1 Pers.Ausgaben|Pers Expenses'!$C$3+1 -> Mai 2017 | V171: ="Juni "&'1 Pers.Ausgaben|Pers Expenses'!$C$3+1 -> Juni 2017 | W171: ="Juli "&'1 Pers.Ausgaben|Pers Expenses'!$C$3+1 -> Juli 2017 | X171: ="Aug. "&'1 Pers.Ausgaben|Pers Expenses'!$C$3+1 -> Aug. 2017 | Y171: ="Sept. "&'1 Pers.Ausgaben|Pers Expenses'!$C$3+1 -> Sept. 2017 | Z171: ="Okt. "&'1 Pers.Ausgaben|Pers Expenses'!$C$3+1 -> Okt. 2017 | AA171: ="Nov. "&'1 Pers.Ausgaben|Pers Expenses'!$C$3+1 -> Nov. 2017 | AB171: ="Dez. "&'1 Pers.Ausgaben|Pers Expenses'!$C$3+1 -> Dez. 2017
U172: =I46 -> 45,000 | V172: 0 | W172: 0 | X172: 0 | Y172: 0 | Z172: 0 | AA172: 0 | AB172: 0
U173: =I54 -> 0 | V173: 0 | W173: 0 | X173: 0 | Y173: 0 | Z173: 0 | AA173: 0 | AB173: 0
U174: =I59 -> 0 | V174: 0 | W174: 0 | X174: 0 | Y174: 0 | Z174: 0 | AA174: 0 | AB174: 0
U175: =I64 -> 0 | V175: 0 | W175: 0 | X175: 0 | Y175: 0 | Z175: 0 | AA175: 0 | AB175: 0

Sheet 2 Umsätze|Sales (hidden)
B1: ='Deckblatt Gründer|Data Founder'!D6 -> Deutsch | D1: =IF('Deckblatt Gründer|Data Founder'!M1>0,"mit MwSt","ohne MwSt") -> ohne MwSt | E1: 0% | F1: =MwStklein -> 7% | G1: =MwSt -> 19% | T1: Aufgaben und/oder Kommentar | CJ1: ="Nebenrechnung Umsätze/sonstige Einnahmen "&'1 Pers.Ausgaben|Pers Expenses'!$C$3 -> Nebenrechnung Umsätze/sonstige Einnahmen 2016 | CK1: ="Ancillary account for sales/other Income "&'1 Pers.Ausgaben|Pers Expenses'!$C$3 -> Ancillary account for sales/other Income 2016 | CL1: ='Deckblatt Gründer|Data Founder'!CT1 -> 0 | CM1: Jan. | CN1: Febr. | CO1: März | CP1: April | CQ1: Mai | CR1: Juni | CS1: Juli | CT1: Aug. | CU1: Sept. | CV1: Okt. | CW1: Nov. | CX1: Dez. | CY1: ="Jahr "&'1 Pers.Ausgaben|Pers Expenses'!C3 -> Jahr 2016 | CZ1: ="Jahr "&'1 Pers.Ausgaben|Pers Expenses'!C3+1 -> Jahr 2017
B2: =IF($C$3="English",CK2,CJ2) -> 2a-1 Umsätze, Honorare, Sonstige Einnahmen (ohne MwSt) für die Monate des Jahres 2016 in EURO | T2: To Do list / Comments | U2: =IF($B$1="English",CK1,CJ1) -> Nebenrechnung Umsätze/sonstige Einnahmen 2016 | CJ2: ="2a-1 Umsätze, Honorare, Sonstige Einnahmen (" & 'Deckblatt Gründer|Data Founder'!$J$1 & ") für die Monate des Jahres " & '1 Pers.Ausgaben|Pers Expenses'!$C$3&" in EURO" -> 2a-1 Umsätze, Honorare, Sonstige Einnahmen (ohne MwSt) für die Monate des Jahres 2016 in EURO | CK2: ="2a-1 Sales, Fees, other Income (" & 'Deckblatt Gründer|Data Founder'!$K$1 & ") for the Months of the Year " & '1 Pers.Ausgaben|Pers Expenses'!$C$3&" in EURO" -> 2a-1 Sales, Fees, other Income (w/o VAT) for the Months of the Year 2016 in EURO | CM2: Jan | CN2: Feb | CO2: Mar | CP2: Apr | CQ2: May | CR2: June | CS2: July | CT2: Aug | CU2: Sept | CV2: Oct | CW2: Nov | CX2: Dec | CY2: ="Year "&'1 Pers.Ausgaben|Pers Expenses'!C3 -> Year 2016 | CZ2: ="Year "&'1 Pers.Ausgaben|Pers Expenses'!C3+1 -> Year 2017
C3: ='Deckblatt Gründer|Data Founder'!$D$6 -> Deutsch | CJ3: Bitte die Zusammensetzung der Umsätze in der Nebenrechnung (ab Spalte U) angeben | CK3: Please show the structure of sales in auxiliary calculation (Choose column "U")
B4: No. | C4: =IF(C3="English","Type of Income","Einnahmeart") -> Einnahmeart | D4: =IF($C$3="English","VAT","MwSt") -> MwSt | E4: =IF($C$3="English",CM2,CM1) -> Jan. | F4: =IF($C$3="English",CN2,CN1) -> Febr. | G4: März | H4: April | I4: Mai | J4: Juni | K4: Juli | L4: Aug. | M4: Sept. | N4: Okt. | O4: Nov. | P4: Dez. | Q4: Jahr 2016 | S4: =IF(C3="English",T2,T1) -> Aufgaben und/oder Kommentar | U4: No. | V4: =C4 -> Einnahmeart | W4: =IF($C$3="English","VAT","MwSt") -> MwSt | X4: =E4 -> Jan. | Y4: =F4 -> Febr. | Z4: März | AA4: April | AB4: Mai | AC4: Juni | AD4: Juli | AE4: Aug. | AF4: Sept. | AG4: Okt. | AH4: Nov. | AI4: Dez. | AJ4: =Q4 -> Jahr 2016 | CJ4: Einnahmeart | CK4: Type of Income
B5: 1 | C5: =IF($B$1="English",CK6,CJ6) -> Umsatz Produktgruppe 1 | D5: =IF($C$3="English","Selection","Auswahl") -> Auswahl | U5: 1.6 | V5: =C10 -> Umsätze aus Nebenrechnung Gruppe 1 | W5: =D11 -> 19% | CJ5: Auswahl | CK5: Selection
B6: 1.1 | E6: 100 | F6: 200 | G6: 300 | H6: 400 | I6: 500 | J6: 600 | K6: 700 | L6: 800 | M6: 900 | N6: 1,000 | O6: 1,100 | P6: 1,200 | Q6: =SUM(E6:P6) -> 7,800 | U6: 1.6.1 | X6: 120 | Y6: 120 | Z6: 120 | AA6: 120 | AB6: 120 | AC6: 120 | AD6: 120 | AE6: 120 | AF6: 120 | AG6: 120 | AH6: 120 | AI6: 120 | AJ6: =SUM(X6:AI6) -> 1,440 | CJ6: Umsatz Produktgruppe 1 | CK6: Sales Product Line 1
B7: 1.2 | Q7: =SUM(E7:P7) -> 0 | U7: 1.6.2 | AJ7: =SUM(X7:AI7) -> 0 | CJ7: Umsätze aus Nebenrechnung Gruppe 1 | CK7: Sales out of Ancillary Account Line 1
B8: 1.3 | Q8: 0 | U8: 1.6.3 | AJ8: 0 | CJ8: Umsätze aus Nebenrechnung Gruppe 2 | CK8: Sales out of Ancillary Account Line 2
B9: 1.4 | Q9: 0 | U9: 1.6.4 | AJ9: 0
B10: 1.6 | C10: =IF($B$1="English",CK7,CJ7) -> Umsätze aus Nebenrechnung Gruppe 1 | E10: =X11 -> 120 | F10: =Y11 -> 120 | G10: 120 | H10: 120 | I10: 120 | J10: 120 | K10: 120 | L10: 120 | M10: 120 | N10: 120 | O10: 120 | P10: 120 | Q10: =SUM(E10:P10) -> 1,440 | U10: 1.6.5 | AJ10: =SUM(X10:AI10) -> 0
C11: =IF($B$1="English",CK11,CJ11) -> darauf MwSt | D11: 19% | E11: =IF(SUM(E6:E10)=0,"",IF($D$1="mit MwST",SUM(E6:E10)-SUM(E6:E10)/(1+$D11),SUM(E6:E10)*($D11))) -> 41.8 | F11: =IF(SUM(F6:F10)=0,"",IF($D$1="mit MwST",SUM(F6:F10)-SUM(F6:F10)/(1+$D11),SUM(F6:F10)*($D11))) -> 60.8 | G11: 79.8 | H11: 98.8 | I11: 117.8 | J11: 136.8 | K11: 155.8 | L11: 174.8 | M11: 193.8 | N11: 212.8 | O11: 231.8 | P11: 250.8 | Q11: =IF(SUM(E11:P11)=0,"",SUM(E11:P11)) -> 1,756 | V11: =IF($B$1="English",CK30,CJ30) -> Summe Nebenrechnung Gruppe1 | X11: =IF(SUM(X6:X10)=0,"",SUM(X6:X10)) -> 120 | Y11: =IF(SUM(Y6:Y10)=0,"",SUM(Y6:Y10)) -> 120 | Z11: =IF(SUM(Z6:Z10)=0,"",SUM(Z6:Z10)) -> 120 | AA11: =IF(SUM(AA6:AA10)=0,"",SUM(AA6:AA10)) -> 120 | AB11: =IF(SUM(AB6:AB10)=0,"",SUM(AB6:AB10)) -> 120 | AC11: =IF(SUM(AC6:AC10)=0,"",SUM(AC6:AC10)) -> 120 | AD11: =IF(SUM(AD6:AD10)=0,"",SUM(AD6:AD10)) -> 120 | AE11: =IF(SUM(AE6:AE10)=0,"",SUM(AE6:AE10)) -> 120 | AF11: =IF(SUM(AF6:AF10)=0,"",SUM(AF6:AF10)) -> 120 | AG11: =IF(SUM(AG6:AG10)=0,"",SUM(AG6:AG10)) -> 120 | AH11: =IF(SUM(AH6:AH10)=0,"",SUM(AH6:AH10)) -> 120 | AI11: =IF(SUM(AI6:AI10)=0,"",SUM(AI6:AI10)) -> 120 | AJ11: =SUM(X11:AI11) -> 1,440 | CJ11: =IF($D$1="mit MwSt","davon MwSt ","darauf MwSt ") -> darauf MwSt | CK11: =IF($D$1="mit MwSt","theron VAT ","therof VAT") -> therof VAT
C12: =IF($B$1="English",CK35,CJ35) -> Summe Umsatz Produktgruppe 1 | E12: =SUM(E6:E10) -> 220 | F12: 320 | G12: 420 | H12: 520 | I12: 620 | J12: 720 | K12: 820 | L12: 920 | M12: 1,020 | N12: 1,120 | O12: 1,220 | P12: 1,320 | Q12: 9,240 | U12: 2.6 | V12: =C18 -> Umsätze aus Nebenrechnung Gruppe 2 | W12: =D19 -> 19%
B13: 2 | C13: =IF($B$1="English",CK13,CJ13) -> Umsatz Produktgruppe 2 | U13: 2.6.1 | AJ13: =SUM(X13:AI13) -> 0 | CJ13: Umsatz Produktgruppe 2 | CK13: Sales Product Line 2
B14: 2.1 | F14: 200 | G14: 300 | H14: 400 | I14: 500 | J14: 600 | K14: 700 | L14: 800 | M14: 900 | N14: 1,000 | O14: 1,100 | P14: 1,200 | Q14: =SUM(E14:P14) -> 7,700 | U14: 2.6.2 | AJ14: =SUM(X14:AI14) -> 0 | CJ14: Summe Umsatz Produktgrppe 2 | CK14: Sum Sales Product Line 2
B15: 2.2 | Q15: =SUM(E15:P15) -> 0 | U15: 2.6.3 | AJ15: 0
B16: 2.3 | Q16: 0 | U16: 2.6.4 | AJ16: 0
B17: 2.4 | Q17: =SUM(E17:P17) -> 0 | U17: 2.6.5 | AJ17: 0
B18: 2.6 | C18: =IF($B$1="English",CK8,CJ8) -> Umsätze aus Nebenrechnung Gruppe 2 | E18: =X18 ->  | F18: =Y18 ->  | Q18: =SUM(E18:P18) -> 0 | V18: =IF($B$1="English",CK29,CJ29) -> Summe Nebenrechnung Gruppe2 | X18: =IF(SUM(X13:X17)=0,"",SUM(X13:X17)) ->  | Y18: =IF(SUM(Y13:Y17)=0,"",SUM(Y13:Y17)) ->  | Z18: =IF(SUM(Z13:Z17)=0,"",SUM(Z13:Z17)) ->  | AA18: =IF(SUM(AA13:AA17)=0,"",SUM(AA13:AA17)) ->  | AB18: =IF(SUM(AB13:AB17)=0,"",SUM(AB13:AB17)) ->  | AC18: =IF(SUM(AC13:AC17)=0,"",SUM(AC13:AC17)) ->  | AD18: =IF(SUM(AD13:AD17)=0,"",SUM(AD13:AD17)) ->  | AE18: =IF(SUM(AE13:AE17)=0,"",SUM(AE13:AE17)) ->  | AF18: =IF(SUM(AF13:AF17)=0,"",SUM(AF13:AF17)) ->  | AG18: =IF(SUM(AG13:AG17)=0,"",SUM(AG13:AG17)) ->  | AH18: =IF(SUM(AH13:AH17)=0,"",SUM(AH13:AH17)) ->  | AI18: =IF(SUM(AI13:AI17)=0,"",SUM(AI13:AI17)) ->  | AJ18: =SUM(X18:AI18) -> 0
C19: =C11 -> darauf MwSt | D19: 19% | E19: =IF(SUM(E14:E18)=0,"",IF($D$1="mit MwST",SUM(E14:E18)-SUM(E14:E18)/(1+$D19),SUM(E14:E18)*($D19))) ->  | F19: 38.0 | G19: 57.0 | H19: 76.0 | I19: 95.0 | J19: 114.0 | K19: 133.0 | L19: 152.0 | M19: 171.0 | N19: 190.0 | O19: 209.0 | P19: 228.0 | Q19: =IF(SUM(E19:P19)=0,"",SUM(E19:P19)) -> 1,463 | CJ19: Summe Honorareinnahmen | CK19: Sum Income Consulting
C20: =IF($B$1="English",CK14,CJ14) -> Summe Umsatz Produktgrppe 2 | E20: =SUM(E14:E18) -> 0 | F20: 200 | G20: 300 | H20: 400 | I20: 500 | J20: 600 | K20: 700 | L20: 800 | M20: 900 | N20: 1,000 | O20: 1,100 | P20: 1,200 | Q20: 7,700
B21: 3 | C21: =IF($B$1="English",CK21,CJ21) -> Honorareinnahmen | CJ21: Honorareinnahmen | CK21: Income Consulting
B22: 3.1 | E22: 500 | F22: 500 | G22: 500 | H22: 500 | I22: 500 | J22: 500 | K22: 500 | L22: 500 | M22: 500 | N22: 500 | O22: 500 | P22: 500 | Q22: =SUM(E22:P22) -> 6,000
B23: 3.2 | Q23: =SUM(E23:P23) -> 0
C24: =C19 -> darauf MwSt | D24: 7% | E24: =IF(SUM(E22:E23)=0,"",IF($D$1="mit MwST",SUM(E22:E23)-SUM(E22:E23)/(1+$D24),SUM(E22:E23)*($D24))) -> 35.0 | F24: =IF(SUM(F22:F23)=0,"",IF($D$1="mit MwST",SUM(F22:F23)-SUM(F22:F23)/(1+$D24),SUM(F22:F23)*($D24))) -> 35.0 | G24: 35.0 | H24: 35.0 | I24: 35.0 | J24: 35.0 | K24: 35.0 | L24: 35.0 | M24: 35.0 | N24: 35.0 | O24: 35.0 | P24: 35.0 | Q24: =IF(SUM(E24:P24)=0,"",SUM(E24:P24)) -> 420 | CJ24: Summe Sonstige Einnahmen | CK24: Sum Other Income
C25: =IF($B$1="English",CK19,CJ19) -> Summe Honorareinnahmen | E25: =SUM(E22:E23) -> 500 | F25: =SUM(F22:F23) -> 500 | G25: 500 | H25: 500 | I25: 500 | J25: 500 | K25: 500 | L25: 500 | M25: 500 | N25: 500 | O25: 500 | P25: 500 | Q25: =SUM(E25:P25) -> 6,000
B26: 4 | C26: =IF($B$1="English",CK26,CJ26) -> Sonstige Einnahmen | CJ26: Sonstige Einnahmen | CK26: Other Income
B27: 4.1 | E27: 1,250 | F27: 1,250 | G27: 1,250 | H27: 1,250 | I27: 1,250 | J27: 1,250 | Q27: =SUM(E27:P27) -> 7,500
B28: 4.2 | E28: 0 | F28: 0 | G28: 0 | H28: 0 | I28: 0 | J28: 0 | K28: 0 | L28: 0 | M28: 0 | N28: 0 | O28: 0 | P28: 0 | Q28: =SUM(E28:P28) -> 0 | CJ28: ="Nebenrechnung Umsätze/sonstige Einnahmen "&'1 Pers.Ausgaben|Pers Expenses'!$C$3+1 -> Nebenrechnung Umsätze/sonstige Einnahmen 2017 | CK28: ="Ancillary account for sales/other Income "&'1 Pers.Ausgaben|Pers Expenses'!$C$3+1 -> Ancillary account for sales/other Income 2017
C29: =C24 -> darauf MwSt | D29: 7% | E29: =IF(SUM(E27:E28)=0,"",IF($D$1="mit MwST",SUM(E27:E28)-SUM(E27:E28)/(1+$D29),SUM(E27:E28)*($D29))) -> 87.5 | F29: =IF(SUM(F27:F28)=0,"",IF($D$1="mit MwST",SUM(F27:F28)-SUM(F27:F28)/(1+$D29),SUM(F27:F28)*($D29))) -> 87.5 | G29: =IF(SUM(G27:G28)=0,"",IF($D$1="mit MwST",SUM(G27:G28)-SUM(G27:G28)/(1+$D29),SUM(G27:G28)*($D29))) -> 87.5 | H29: 87.5 | I29: 87.5 | J29: 87.5 | Q29: =IF(SUM(E29:P29)=0,"",SUM(E29:P29)) -> 525 | CJ29: Summe Nebenrechnung Gruppe2 | CK29: Sum Ancillary Account Line2
C30: =IF($B$1="English",CK24,CJ24) -> Summe Sonstige Einnahmen | E30: =SUM(E27:E28) -> 1,250 | F30: =SUM(F27:F28) -> 1,250 | G30: 1,250 | H30: 1,250 | I30: 1,250 | J30: 1,250 | K30: 0 | L30: 0 | M30: 0 | N30: 0 | O30: 0 | P30: 0 | Q30: =SUM(E30:P30) -> 7,500 | CJ30: Summe Nebenrechnung Gruppe1 | CK30: Sum Ancillary Account Line1
C31: =IF($B$1="English",CK31,CJ31) -> Summe MwSt 7% | D31: =IF('Deckblatt Gründer|Data Founder'!$I$11='Deckblatt Gründer|Data Founder'!$G$1,"",MwStklein) -> 7% | E31: =IF(E11="",0,E11*IF($D11=MwStklein,1,0))+IF(E19="",0,E19*IF($D19=MwStklein,1,0))+IF(E24="",0,E24*IF($D24=MwStklein,1,0))+IF(E29="",0,E29*IF($D29=MwStklein,1,0)) -> 122.5 | F31: 122.5 | G31: 122.5 | H31: 122.5 | I31: 122.5 | J31: 122.5 | K31: 35.0 | L31: 35.0 | M31: 35.0 | N31: 35.0 | O31: 35.0 | P31: 35.0 | Q31: =IF(SUM(E31:P31)=0,"",SUM(E31:P31)) -> 945 | CJ31: ="Summe MwSt "& MwStklein*100 & "%" -> Summe MwSt 7% | CK31: ="Sum VAT "& MwStklein*100 & "%" -> Sum VAT 7%
C32: =IF($B$1="English",CK32,CJ32) -> Summe MwSt 19% | D32: =IF('Deckblatt Gründer|Data Founder'!$I$11='Deckblatt Gründer|Data Founder'!$G$1,"",MwSt) -> 19% | E32: =IF(E11="",0,E11*IF($D11=MwSt,1,0))+IF(E19="",0,E19*IF($D19=MwSt,1,0))+IF(E24="",0,E24*IF($D24=MwSt,1,0))+IF(E29="",0,E29*IF($D29=MwSt,1,0)) -> 41.8 | F32: 98.8 | G32: 136.8 | H32: 174.8 | I32: 212.8 | J32: 250.8 | K32: 288.8 | L32: 326.8 | M32: 364.8 | N32: 402.8 | O32: 440.8 | P32: 478.8 | Q32: =IF(SUM(E32:P32)=0,"",SUM(E32:P32)) -> 3,219 | CJ32: ="Summe MwSt "& MwSt*100 & "%" -> Summe MwSt 19% | CK32: ="Sum VAT "& MwSt*100 & "%" -> Sum VAT 19%
C33: =IF($B$1="English",CK33,CJ33) -> Gesamtumsätze | E33: =E12+E20+E25+E30 -> 1,970 | F33: 2,270 | G33: 2,470 | H33: 2,670 | I33: 2,870 | J33: 3,070 | K33: 2,020 | L33: 2,220 | M33: 2,420 | N33: 2,620 | O33: 2,820 | P33: 3,020 | Q33: =SUM(E33:P33) -> 30,440 | CJ33: Gesamtumsätze | CK33: Total Sales
C34: =IF($B$1="English",CK34,CJ34) -> Gesamtumsätze akkumuliert | E34: =E33 -> 1,970 | F34: =E34+F33 -> 4,240 | G34: =F34+G33 -> 6,710 | H34: 9,380 | I34: 12,250 | J34: 15,320 | K34: 17,340 | L34: 19,560 | M34: 21,980 | N34: 24,600 | O34: 27,420 | P34: 30,440 | CJ34: Gesamtumsätze akkumuliert | CK34: Total Sales accumulated
CJ35: ="Summe "&CJ6 -> Summe Umsatz Produktgruppe 1 | CK35: ="Sum "&CK6 -> Sum Sales Product Line 1
B36: =IF($C$3="English",CK36,CJ36) -> 2a-2 Umsätze, Honorare, Sonstige Einnahmen (ohne MwSt) für die Monate des Jahres 2017 in EURO | U36: =IF($B$1="English",CK28,CJ28) -> Nebenrechnung Umsätze/sonstige Einnahmen 2017 | CJ36: ="2a-2 Umsätze, Honorare, Sonstige Einnahmen (" & 'Deckblatt Gründer|Data Founder'!$J$1 & ") für die Monate des Jahres " & '1 Pers.Ausgaben|Pers Expenses'!$C$3+1&" in EURO" -> 2a-2 Umsätze, Honorare, Sonstige Einnahmen (ohne MwSt) für die Monate des Jahres 2017 in EURO | CK36: ="2a-2 Sales, Fees, other Income (" & 'Deckblatt Gründer|Data Founder'!$K$1 & ") for the Months of the Year " & '1 Pers.Ausgaben|Pers Expenses'!$C$3+1&" in EURO" -> 2a-2 Sales, Fees, other Income (w/o VAT) for the Months of the Year 2017 in EURO
B38: No. | C38: =IF(C37="English","Type of Income","Einnahmeart") -> Einnahmeart | D38: =IF($C$3="English","VAT","MwSt") -> MwSt | E38: =E4 -> Jan. | F38: =F4 -> Febr. | G38: März | H38: April | I38: Mai | J38: Juni | K38: Juli | L38: Aug. | M38: Sept. | N38: Okt. | O38: Nov. | P38: Dez. | Q38: =IF($C$3="English",CZ2,CZ1) -> Jahr 2017 | U38: No. | V38: =C38 -> Einnahmeart | W38: =IF($C$3="English","VAT","MwSt") -> MwSt | X38: =E38 -> Jan. | Y38: =F38 -> Febr. | Z38: =G38 -> März | AA38: =H38 -> April | AB38: =I38 -> Mai | AC38: =J38 -> Juni | AD38: =K38 -> Juli | AE38: =L38 -> Aug. | AF38: =M38 -> Sept. | AG38: =N38 -> Okt. | AH38: =O38 -> Nov. | AI38: =P38 -> Dez. | AJ38: =Q38 -> Jahr 2017 | CJ38: Einnahmeart | CK38: Type of Income
B39: 1 | C39: =C5 -> Umsatz Produktgruppe 1 | U39: 1.6 | V39: =C44 -> Umsätze aus Nebenrechnung Gruppe 1 | W39: =D45 -> 19% | CJ39: Auswahl | CK39: Selection
B40: 1.1 | C40: =IF(C6="","",C6) ->  | E40: 1,300 | F40: 1,400 | G40: 1,500 | H40: 1,600 | I40: 1,700 | J40: 1,800 | K40: 1,900 | L40: 2,000 | M40: 2,100 | N40: 2,200 | O40: 2,300 | P40: 2,400 | Q40: =SUM(E40:P40) -> 22,200 | U40: 1.6.1 | X40: 130 | Y40: 130 | Z40: 130 | AA40: 130 | AB40: 130 | AC40: 130 | AD40: 130 | AE40: 130 | AF40: 130 | AG40: 130 | AH40: 130 | AI40: 130 | AJ40: =SUM(X40:AI40) -> 1,560 | CJ40: Umsatz Produktgruppe 1 | CK40: Sales Product Line 1
B41: 1.2 | C41: =IF(C7="","",C7) ->  | Q41: =SUM(E41:P41) -> 0 | U41: 1.6.2 | AJ41: =SUM(X41:AI41) -> 0 | CJ41: Umsätze aus Nebenrechnung Gruppe 1 | CK41: Sales out of Ancillary Account Line 1
B42: 1.3 | C42: =IF(C8="","",C8) ->  | Q42: 0 | U42: 1.6.3 | AJ42: 0 | CJ42: Umsätze aus Nebenrechnung Gruppe 2 | CK42: Sales out of Ancillary Account Line 2
B43: 1.4 | C43: =IF(C9="","",C9) ->  | Q43: =SUM(E43:P43) -> 0 | U43: 1.6.4 | AJ43: 0
B44: 1.6 | C44: =C10 -> Umsätze aus Nebenrechnung Gruppe 1 | E44: =X45 -> 130 | F44: =Y45 -> 130 | G44: 130 | H44: 130 | I44: 130 | J44: 130 | K44: 130 | L44: 130 | M44: 130 | N44: 130 | O44: 130 | P44: 130 | Q44: =SUM(E44:P44) -> 1,560 | U44: 1.6.5 | AJ44: =SUM(X44:AI44) -> 0
C45: =C11 -> darauf MwSt | D45: =D11 -> 19% | E45: =IF(SUM(E40:E44)=0,"",IF($D$1="mit MwST",SUM(E40:E44)-SUM(E40:E44)/(1+$D45),SUM(E40:E44)*($D45))) -> 271.7 | F45: =IF(SUM(F40:F44)=0,"",IF($D$1="mit MwST",SUM(F40:F44)-SUM(F40:F44)/(1+$D45),SUM(F40:F44)*($D45))) -> 290.7 | G45: 309.7 | H45: 328.7 | I45: 347.7 | J45: 366.7 | K45: 385.7 | L45: 404.7 | M45: 423.7 | N45: 442.7 | O45: 461.7 | P45: 480.7 | Q45: =IF(SUM(E45:P45)=0,"",SUM(E45:P45)) -> 4,514 | V45: =IF($B$1="English",CK64,CJ64) -> Summe Nebenrechnung Gruppe1 | X45: =IF(SUM(X40:X44)=0,"",SUM(X40:X44)) -> 130 | Y45: =IF(SUM(Y40:Y44)=0,"",SUM(Y40:Y44)) -> 130 | Z45: 130 | AA45: 130 | AB45: 130 | AC45: 130 | AD45: 130 | AE45: 130 | AF45: 130 | AG45: 130 | AH45: 130 | AI45: 130 | AJ45: =SUM(X45:AI45) -> 1,560 | CJ45: =IF($D$1="mit MwSt","davon MwSt ","darauf MwSt ") -> darauf MwSt | CK45: =IF($D$1="mit MwSt","theron VAT ","therof VAT") -> therof VAT
C46: =C12 -> Summe Umsatz Produktgruppe 1 | E46: =SUM(E40:E44) -> 1,430 | F46: 1,530 | G46: 1,630 | H46: 1,730 | I46: 1,830 | J46: 1,930 | K46: 2,030 | L46: 2,130 | M46: 2,230 | N46: 2,330 | O46: 2,430 | P46: 2,530 | Q46: 23,760 | U46: 2.6 | V46: =C52 -> Umsätze aus Nebenrechnung Gruppe 2 | W46: =D53 -> 19%
B47: 2 | C47: =C13 -> Umsatz Produktgruppe 2 | U47: 2.6.1 | AJ47: =SUM(X47:AI47) -> 0 | CJ47: Umsatz Produktgruppe 2 | CK47: Sales Product Line 2
B48: 2.1 | C48: =IF(C14="","",C14) ->  | Q48: =SUM(E48:P48) -> 0 | U48: 2.6.2 | AJ48: =SUM(X48:AI48) -> 0 | CJ48: Summe Umsatz Produktgrppe 2 | CK48: Sum Sales Product Line 2
B49: 2.2 | C49: =IF(C15="","",C15) ->  | Q49: =SUM(E49:P49) -> 0 | U49: 2.6.3 | AJ49: 0
B50: 2.3 | Q50: 0 | U50: 2.6.4 | AJ50: 0
B51: 2.4 | Q51: =SUM(E51:P51) -> 0 | U51: 2.6.5 | AJ51: 0
B52: 2.6 | C52: =C18 -> Umsätze aus Nebenrechnung Gruppe 2 | E52: =X52 ->  | F52: =Y52 ->  | Q52: =SUM(E52:P52) -> 0 | V52: =IF($B$1="English",CK63,CJ63) -> Summe Nebenrechnung Gruppe2 | X52: =IF(SUM(X47:X51)=0,"",SUM(X47:X51)) ->  | Y52: =IF(SUM(Y47:Y51)=0,"",SUM(Y47:Y51)) ->  | Z52: =IF(SUM(Z47:Z51)=0,"",SUM(Z47:Z51)) ->  | AA52: =IF(SUM(AA47:AA51)=0,"",SUM(AA47:AA51)) ->  | AB52: =IF(SUM(AB47:AB51)=0,"",SUM(AB47:AB51)) ->  | AC52: =IF(SUM(AC47:AC51)=0,"",SUM(AC47:AC51)) ->  | AD52: =IF(SUM(AD47:AD51)=0,"",SUM(AD47:AD51)) ->  | AE52: =IF(SUM(AE47:AE51)=0,"",SUM(AE47:AE51)) ->  | AF52: =IF(SUM(AF47:AF51)=0,"",SUM(AF47:AF51)) ->  | AG52: =IF(SUM(AG47:AG51)=0,"",SUM(AG47:AG51)) ->  | AH52: =IF(SUM(AH47:AH51)=0,"",SUM(AH47:AH51)) ->  | AI52: =IF(SUM(AI47:AI51)=0,"",SUM(AI47:AI51)) ->  | AJ52: =SUM(X52:AI52) -> 0
C53: =C19 -> darauf MwSt | D53: =D19 -> 19% | E53: =IF(SUM(E48:E52)=0,"",IF($D$1="mit MwST",SUM(E48:E52)-SUM(E48:E52)/(1+$D53),SUM(E48:E52)*($D53))) ->  | F53: =IF(SUM(F48:F52)=0,"",IF($D$1="mit MwST",SUM(F48:F52)-SUM(F48:F52)/(1+$D53),SUM(F48:F52)*($D53))) ->  | G53: =IF(SUM(G48:G52)=0,"",IF($D$1="mit MwST",SUM(G48:G52)-SUM(G48:G52)/(1+$D53),SUM(G48:G52)*($D53))) ->  | H53: =IF(SUM(H48:H52)=0,"",IF($D$1="mit MwST",SUM(H48:H52)-SUM(H48:H52)/(1+$D53),SUM(H48:H52)*($D53))) ->  | I53: =IF(SUM(I48:I52)=0,"",IF($D$1="mit MwST",SUM(I48:I52)-SUM(I48:I52)/(1+$D53),SUM(I48:I52)*($D53))) ->  | J53: =IF(SUM(J48:J52)=0,"",IF($D$1="mit MwST",SUM(J48:J52)-SUM(J48:J52)/(1+$D53),SUM(J48:J52)*($D53))) ->  | K53: =IF(SUM(K48:K52)=0,"",IF($D$1="mit MwST",SUM(K48:K52)-SUM(K48:K52)/(1+$D53),SUM(K48:K52)*($D53))) ->  | L53: =IF(SUM(L48:L52)=0,"",IF($D$1="mit MwST",SUM(L48:L52)-SUM(L48:L52)/(1+$D53),SUM(L48:L52)*($D53))) ->  | M53: =IF(SUM(M48:M52)=0,"",IF($D$1="mit MwST",SUM(M48:M52)-SUM(M48:M52)/(1+$D53),SUM(M48:M52)*($D53))) ->  | N53: =IF(SUM(N48:N52)=0,"",IF($D$1="mit MwST",SUM(N48:N52)-SUM(N48:N52)/(1+$D53),SUM(N48:N52)*($D53))) ->  | O53: =IF(SUM(O48:O52)=0,"",IF($D$1="mit MwST",SUM(O48:O52)-SUM(O48:O52)/(1+$D53),SUM(O48:O52)*($D53))) ->  | P53: =IF(SUM(P48:P52)=0,"",IF($D$1="mit MwST",SUM(P48:P52)-SUM(P48:P52)/(1+$D53),SUM(P48:P52)*($D53))) ->  | Q53: =IF(SUM(E53:P53)=0,"",SUM(E53:P53)) ->  | CJ53: Summe Honorareinnahmen | CK53: Sum Income Consulting
C54: =C20 -> Summe Umsatz Produktgrppe 2 | E54: =SUM(E48:E52) -> 0 | F54: 0 | G54: 0 | H54: 0 | I54: 0 | J54: 0 | K54: 0 | L54: 0 | M54: 0 | N54: 0 | O54: 0 | P54: 0 | Q54: 0
B55: 3 | C55: =C21 -> Honorareinnahmen | CJ55: Honorareinnahmen | CK55: Income Consulting
B56: 3.1 | C56: =IF(C22="","",C22) ->  | Q56: =SUM(E56:P56) -> 0
B57: 3.2 | C57: =IF(C23="","",C23) ->  | Q57: =SUM(E57:P57) -> 0
C58: =C24 -> darauf MwSt | D58: =D24 -> 7% | E58: =IF(SUM(E56:E57)=0,"",IF($D$1="mit MwST",SUM(E56:E57)-SUM(E56:E57)/(1+$D58),SUM(E56:E57)*($D58))) ->  | F58: =IF(SUM(F56:F57)=0,"",IF($D$1="mit MwST",SUM(F56:F57)-SUM(F56:F57)/(1+$D58),SUM(F56:F57)*($D58))) ->  | Q58: =IF(SUM(E58:P58)=0,"",SUM(E58:P58)) ->  | CJ58: Summe Sonstige Einnehmen | CK58: Sum Other Income
C59: =C25 -> Summe Honorareinnahmen | E59: =SUM(E56:E57) -> 0 | F59: =SUM(F56:F57) -> 0 | G59: 0 | H59: 0 | I59: 0 | J59: 0 | K59: 0 | L59: 0 | M59: 0 | N59: 0 | O59: 0 | P59: 0 | Q59: =SUM(E59:P59) -> 0
B60: 4 | C60: =C26 -> Sonstige Einnahmen | CJ60: Sonstige Einnahmen | CK60: Other Income
B61: 4.1 | C61: =IF(C27="","",C27) ->  | Q61: =SUM(E61:P61) -> 0
B62: 4.2 | C62: =IF(C28="","",C28) ->  | E62: 0 | F62: 0 | G62: 0 | H62: 0 | I62: 0 | J62: 0 | K62: 0 | L62: 0 | M62: 0 | N62: 0 | O62: 0 | P62: 0 | Q62: =SUM(E62:P62) -> 0
C63: =C29 -> darauf MwSt | D63: =D29 -> 7% | E63: =IF(SUM(E61:E62)=0,"",IF($D$1="mit MwST",SUM(E61:E62)-SUM(E61:E62)/(1+$D63),SUM(E61:E62)*($D63))) ->  | F63: =IF(SUM(F61:F62)=0,"",IF($D$1="mit MwST",SUM(F61:F62)-SUM(F61:F62)/(1+$D63),SUM(F61:F62)*($D63))) ->  | G63: =IF(SUM(G61:G62)=0,"",IF($D$1="mit MwST",SUM(G61:G62)-SUM(G61:G62)/(1+$D63),SUM(G61:G62)*($D63))) ->  | Q63: =IF(SUM(E63:P63)=0,"",SUM(E63:P63)) ->  | CJ63: Summe Nebenrechnung Gruppe2 | CK63: Sum Ancillary Account Line2
C64: =C30 -> Summe Sonstige Einnahmen | E64: =SUM(E61:E62) -> 0 | F64: =SUM(F61:F62) -> 0 | G64: 0 | H64: 0 | I64: 0 | J64: 0 | K64: 0 | L64: 0 | M64: 0 | N64: 0 | O64: 0 | P64: 0 | Q64: =SUM(E64:P64) -> 0 | CJ64: Summe Nebenrechnung Gruppe1 | CK64: Sum Ancillary Account Line1
C65: =C31 -> Summe MwSt 7% | D65: =IF('Deckblatt Gründer|Data Founder'!$I$11='Deckblatt Gründer|Data Founder'!$G$1,"",MwStklein) -> 7% | E65: =IF(E45="",0,E45*IF($D45=MwStklein,1,0))+IF(E53="",0,E53*IF($D53=MwStklein,1,0))+IF(E58="",0,E58*IF($D58=MwStklein,1,0))+IF(E63="",0,E63*IF($D63=MwStklein,1,0)) -> 0.0 | F65: 0.0 | G65: 0.0 | H65: 0.0 | I65: 0.0 | J65: 0.0 | K65: 0.0 | L65: 0.0 | M65: 0.0 | N65: 0.0 | O65: 0.0 | P65: 0.0 | Q65: =SUM(E65:P65) -> 0.0 | CJ65: ="Summe MwSt "& MwStklein*100 & "%" -> Summe MwSt 7% | CK65: ="Sum VAT "& MwStklein*100 & "%" -> Sum VAT 7%
C66: =C32 -> Summe MwSt 19% | D66: =IF('Deckblatt Gründer|Data Founder'!$I$11='Deckblatt Gründer|Data Founder'!$G$1,"",MwSt) -> 19% | E66: =IF(E45="",0,E45*IF($D45=MwSt,1,0))+IF(E53="",0,E53*IF($D53=MwSt,1,0))+IF(E58="",0,E58*IF($D58=MwSt,1,0))+IF(E63="",0,E63*IF($D63=MwSt,1,0)) -> 271.7 | F66: 290.7 | G66: 309.7 | H66: 328.7 | I66: 347.7 | J66: 366.7 | K66: 385.7 | L66: 404.7 | M66: 423.7 | N66: 442.7 | O66: 461.7 | P66: 480.7 | Q66: =SUM(E66:P66) -> 4,514.4 | CJ66: ="Summe MwSt "& MwSt*100 & "%" -> Summe MwSt 19% | CK66: ="Sum VAT "& MwSt*100 & "%" -> Sum VAT 19%
C67: =C33 -> Gesamtumsätze | E67: =E46+E54+E59+E64 -> 1,430 | F67: 1,530 | G67: 1,630 | H67: 1,730 | I67: 1,830 | J67: 1,930 | K67: 2,030 | L67: 2,130 | M67: 2,230 | N67: 2,330 | O67: 2,430 | P67: 2,530 | Q67: =SUM(E67:P67) -> 23,760 | CJ67: Gesamtumsätze | CK67: Total Sales
C68: =C34 -> Gesamtumsätze akkumuliert | E68: =E67 -> 1,430 | F68: =E68+F67 -> 2,960 | G68: =F68+G67 -> 4,590 | H68: =G68+H67 -> 6,320 | I68: =H68+I67 -> 8,150 | J68: =I68+J67 -> 10,080 | K68: =J68+K67 -> 12,110 | L68: =K68+L67 -> 14,240 | M68: =L68+M67 -> 16,470 | N68: =M68+N67 -> 18,800 | O68: =N68+O67 -> 21,230 | P68: =O68+P67 -> 23,760 | CJ68: Gesamtumsätze akkumuliert | CK68: Total Sales accumulated
B70: =IF($C$3="English",CK70,CJ70) -> 2b Umsätze, Honorare, Sonstige Einnahmen (ohne MwSt) für die Jahre 2016 - 2020 in EURO | N70: =IF(C3="English",CK92,CJ92) -> Umsätze und Einnahmen | CJ70: ="2b Umsätze, Honorare, Sonstige Einnahmen (" & 'Deckblatt Gründer|Data Founder'!$J$1& ") für die Jahre " & '1 Pers.Ausgaben|Pers Expenses'!$C$3 & " - " & '1 Pers.Ausgaben|Pers Expenses'!$C$3+4&" in EURO" -> 2b Umsätze, Honorare, Sonstige Einnahmen (ohne MwSt) für die Jahre 2016 - 2020 in EURO | CK70: ="2b Sales, Fees, other Income (" & 'Deckblatt Gründer|Data Founder'!$K$1& ") for the Years " & '1 Pers.Ausgaben|Pers Expenses'!$C$3 & " - " & '1 Pers.Ausgaben|Pers Expenses'!$C$3+4&" in EURO" -> 2b Sales, Fees, other Income (w/o VAT) for the Years 2016 - 2020 in EURO
B72: =B4 -> No. | C72: =C4 -> Einnahmeart | D72: =D4 -> MwSt | E72: ='1 Pers.Ausgaben|Pers Expenses'!C3 -> 2016 | F72: =E72+1 -> 2017 | G72: =F72+1 -> 2018 | H72: =G72+1 -> 2019 | I72: =H72+1 -> 2020 | U72: No. | V72: =C72 -> Einnahmeart | W72: =IF($C$3="English","VAT","MwSt") -> MwSt | X72: =E72+2 -> 2018 | Y72: =X72+1 -> 2019 | Z72: =Y72+1 -> 2020
B73: 1 | C73: =C5 -> Umsatz Produktgruppe 1 | U73: 1.6 | V73: =C78 -> Umsätze aus Nebenrechnung Gruppe 1 | W73: =D79 -> 19% | CJ73: ="Umsätze und Einnahmen (" & 'Deckblatt Gründer|Data Founder'!$J$1 & ") für die Jahre " & '1 Pers.Ausgaben|Pers Expenses'!$C$3 &" und "& '1 Pers.Ausgaben|Pers Expenses'!$C$3+1 -> Umsätze und Einnahmen (ohne MwSt) für die Jahre 2016 und 2017 | CK73: ="Sales and Income for the Years " & '1 Pers.Ausgaben|Pers Expenses'!$C$3& " and "& '1 Pers.Ausgaben|Pers Expenses'!$C$3+1 -> Sales and Income for the Years 2016 and 2017
B74: 1.1 | C74: =IF(C40="","",C40) ->  | E74: =Q6 -> 7,800 | F74: =Q40 -> 22,200 | U74: 1.6.1 | X74: 2,000 | Y74: 2,000 | Z74: 2,000
B75: 1.2 | C75: =IF(C41="","",C41) ->  | E75: =Q7 -> 0 | F75: 0 | U75: 1.6.2
B76: 1.3 | C76: =IF(C42="","",C42) ->  | E76: 0 | F76: 0 | U76: 1.6.3
B77: 1.4 | C77: =IF(C43="","",C43) ->  | E77: 0 | F77: 0 | U77: 1.6.4
B78: 1.6 | C78: =C10 -> Umsätze aus Nebenrechnung Gruppe 1 | E78: 1,440 | F78: 1,560 | G78: =X79 -> 2,000 | H78: =Y79 -> 2,000 | I78: 2,000 | U78: 1.6.5
C79: =C11 -> darauf MwSt | D79: 19% | E79: 1,756 | F79: 4,514 | G79: =IF(SUM(G74:G78)=0,"",IF($D$1="mit MwST",SUM(G74:G78)-SUM(G74:G78)/(1+$D79),SUM(G74:G78)*($D79))) -> 380.0 | H79: 380.0 | I79: 380.0 | V79: =V45 -> Summe Nebenrechnung Gruppe1 | X79: =IF(SUM(X74:X78)=0,"",SUM(X74:X78)) -> 2,000 | Y79: =IF(SUM(Y74:Y78)=0,"",SUM(Y74:Y78)) -> 2,000 | Z79: =IF(SUM(Z74:Z78)=0,"",SUM(Z74:Z78)) -> 2,000
C80: =C12 -> Summe Umsatz Produktgruppe 1 | E80: 9,240 | F80: 23,760 | G80: =SUM(G74:G78) -> 2,000 | H80: 2,000 | I80: 2,000 | U80: 2.6 | V80: =C86 -> Umsätze aus Nebenrechnung Gruppe 2 | W80: =D87 -> 19%
B81: 2 | C81: =C13 -> Umsatz Produktgruppe 2 | U81: 2.6.1 | X81: 3,000 | Y81: 3,000 | Z81: 3,000
B82: 2.1 | C82: =IF(C48="","",C48) ->  | E82: 7,700 | F82: 0 | U82: 2.6.2
B83: 2.2 | C83: =IF(C49="","",C49) ->  | E83: 0 | F83: 0 | U83: 2.6.3
B84: 2.3 | C84: =IF(C50="","",C50) ->  | E84: 0 | F84: 0 | U84: 2.6.4
B85: 2.4 | C85: =IF(C51="","",C51) ->  | E85: 0 | F85: 0 | U85: 2.6.5
B86: 2.6 | C86: =C18 -> Umsätze aus Nebenrechnung Gruppe 2 | E86: 0 | F86: 0 | G86: =X86 -> 3,000 | H86: =Y86 -> 3,000 | I86: 3,000 | V86: =V52 -> Summe Nebenrechnung Gruppe2 | X86: =IF(SUM(X81:X85)=0,"",SUM(X81:X85)) -> 3,000 | Y86: =IF(SUM(Y81:Y85)=0,"",SUM(Y81:Y85)) -> 3,000 | Z86: =IF(SUM(Z81:Z85)=0,"",SUM(Z81:Z85)) -> 3,000
C87: =C19 -> darauf MwSt | D87: 19% | E87: 1,463 | G87: =IF(SUM(G82:G86)=0,"",IF($D$1="mit MwST",SUM(G82:G86)-SUM(G82:G86)/(1+$D87),SUM(G82:G86)*($D87))) -> 570.0 | H87: =IF(SUM(H82:H86)=0,"",IF($D$1="mit MwST",SUM(H82:H86)-SUM(H82:H86)/(1+$D87),SUM(H82:H86)*($D87))) -> 570.0 | I87: =IF(SUM(I82:I86)=0,"",IF($D$1="mit MwST",SUM(I82:I86)-SUM(I82:I86)/(1+$D87),SUM(I82:I86)*($D87))) -> 570.0
C88: =C20 -> Summe Umsatz Produktgrppe 2 | E88: 7,700 | F88: 0 | G88: =SUM(G82:G86) -> 3,000 | H88: 3,000 | I88: 3,000
B89: 3 | C89: =C21 -> Honorareinnahmen
B90: 3.1 | C90: =IF(C56="","",C56) ->  | E90: 6,000 | F90: 0
B91: 3.2 | C91: =IF(C57="","",C57) ->  | E91: 0 | F91: 0
C92: =C24 -> darauf MwSt | D92: 7% | E92: 420 | G92: =IF(SUM(G90:G91)=0,"",IF($D$1="mit MwST",SUM(G90:G91)-SUM(G90:G91)/(1+$D92),SUM(G90:G91)*($D92))) ->  | CJ92: ="Umsätze und Einnahmen" -> Umsätze und Einnahmen | CK92: ="Sales and Income " -> Sales and Income
C93: =C25 -> Summe Honorareinnahmen | E93: 6,000 | F93: 0 | G93: =SUM(G90:G91) -> 0 | H93: 0 | I93: 0
B94: 4 | C94: =C26 -> Sonstige Einnahmen
B95: 4.1 | C95: =IF(C61="","",C61) ->  | E95: 7,500 | F95: 0
B96: 4.2 | C96: =IF(C62="","",C62) ->  | E96: 0 | F96: 0
C97: =C29 -> darauf MwSt | D97: 7% | E97: 525 | G97: =IF(SUM(G95:G96)=0,"",IF($D$1="mit MwST",SUM(G95:G96)-SUM(G95:G96)/(1+$D97),SUM(G95:G96)*($D97))) -> 
C98: =C30 -> Summe Sonstige Einnahmen | E98: 7,500 | F98: 0 | G98: =SUM(G95:G96) -> 0 | H98: 0 | I98: 0
C99: =C31 -> Summe MwSt 7% | D99: 7% | E99: =Q31 -> 945 | F99: =Q65 -> 0 | G99: =IF(G79="",0,G79*IF($D79=MwStklein,1,0))+IF(G87="",0,G87*IF($D87=MwStklein,1,0))+IF(G92="",0,G92*IF($D92=MwStklein,1,0))+IF(G97="",0,G97*IF($D97=MwStklein,1,0)) -> 0 | H99: 0 | I99: 0
C100: =C32 -> Summe MwSt 19% | D100: 19% | E100: =Q32 -> 3,219 | F100: =Q66 -> 4,514 | G100: =IF(G79="",0,G79*IF($D79=MwSt,1,0))+IF(G87="",0,G87*IF($D87=MwSt,1,0))+IF(G92="",0,G92*IF($D92=MwSt,1,0))+IF(G97="",0,G97*IF($D97=MwSt,1,0)) -> 950 | H100: 950 | I100: 950
C101: =C33 -> Gesamtumsätze | E101: =E80+E88+E93+E98 -> 30,440 | F101: =F80+F88+F93+F98 -> 23,760 | G101: =G80+G88+G93+G98 -> 5,000 | H101: 5,000 | I101: 5,000
C102: =C34 -> Gesamtumsätze akkumuliert | E102: =E101 -> 30,440 | F102: =F101 -> 23,760 | G102: =F102+G101 -> 28,760 | H102: =G102+H101 -> 33,760 | I102: =H102+I101 -> 38,760
I105: =IF($C$3="English",CK73,CJ73) -> Umsätze und Einnahmen (ohne MwSt) für die Jahre 2016 und 2017
S120: Ende
E171: ="Jan. "&'1 Pers.Ausgaben|Pers Expenses'!$C$3 -> Jan. 2016 | F171: ="Feb. "&'1 Pers.Ausgaben|Pers Expenses'!$C$3 -> Feb. 2016 | G171: ="März"&'1 Pers.Ausgaben|Pers Expenses'!$C$3 -> März2016 | H171: ="April "&'1 Pers.Ausgaben|Pers Expenses'!$C$3 -> April 2016 | I171: ="Mai "&'1 Pers.Ausgaben|Pers Expenses'!$C$3 -> Mai 2016 | J171: ="Juni "&'1 Pers.Ausgaben|Pers Expenses'!$C$3 -> Juni 2016 | K171: ="Juli "&'1 Pers.Ausgaben|Pers Expenses'!$C$3 -> Juli 2016 | L171: ="Aug. "&'1 Pers.Ausgaben|Pers Expenses'!$C$3 -> Aug. 2016 | M171: ="Sept. "&'1 Pers.Ausgaben|Pers Expenses'!$C$3 -> Sept. 2016 | N171: ="Okt. "&'1 Pers.Ausgaben|Pers Expenses'!$C$3 -> Okt. 2016 | O171: ="Nov. "&'1 Pers.Ausgaben|Pers Expenses'!$C$3 -> Nov. 2016 | P171: ="Dez. "&'1 Pers.Ausgaben|Pers Expenses'!$C$3 -> Dez. 2016 | Q171: ="Jan. "&'1 Pers.Ausgaben|Pers Expenses'!$C$3+1 -> Jan. 2017 | R171: ="Feb. "&'1 Pers.Ausgaben|Pers Expenses'!$C$3+1 -> Feb. 2017 | S171: ="März "&'1 Pers.Ausgaben|Pers Expenses'!$C$3+1 -> März 2017 | T171: ="April "&'1 Pers.Ausgaben|Pers Expenses'!$C$3+1 -> April 2017 | U171: ="Mai "&'1 Pers.Ausgaben|Pers Expenses'!$C$3+1 -> Mai 2017 | V171: ="Juni "&'1 Pers.Ausgaben|Pers Expenses'!$C$3+1 -> Juni 2017 | W171: ="Juli "&'1 Pers.Ausgaben|Pers Expenses'!$C$3+1 -> Juli 2017 | X171: ="Aug. "&'1 Pers.Ausgaben|Pers Expenses'!$C$3+1 -> Aug. 2017 | Y171: ="Sept. "&'1 Pers.Ausgaben|Pers Expenses'!$C$3+1 -> Sept. 2017 | Z171: ="Okt. "&'1 Pers.Ausgaben|Pers Expenses'!$C$3+1 -> Okt. 2017 | AA171: ="Nov. "&'1 Pers.Ausgaben|Pers Expenses'!$C$3+1 -> Nov. 2017 | AB171: ="Dez. "&'1 Pers.Ausgaben|Pers Expenses'!$C$3+1 -> Dez. 2017
E172: =E12 -> 220 | F172: =F12 -> 320 | G172: 420 | H172: 520 | I172: 620 | J172: 720 | K172: 820 | L172: 920 | M172: 1,020 | N172: 1,120 | O172: 1,220 | P172: 1,320 | Q172: =E46 -> 1,430 | R172: =F46 -> 1,530 | S172: =G46 -> 1,630 | T172: =H46 -> 1,730 | U172: 1,830 | V172: 1,930 | W172: 2,030 | X172: 2,130 | Y172: 2,230 | Z172: 2,330 | AA172: 2,430 | AB172: 2,530
E173: =E20 -> 0 | F173: =F20 -> 200 | G173: 300 | H173: 400 | I173: 500 | J173: 600 | K173: 700 | L173: 800 | M173: 900 | N173: 1,000 | O173: 1,100 | P173: 1,200 | Q173: =E54 -> 0 | R173: =F54 -> 0 | S173: =G54 -> 0 | T173: =H54 -> 0 | U173: 0 | V173: 0 | W173: 0 | X173: 0 | Y173: 0 | Z173: 0 | AA173: 0 | AB173: 0
E174: =E25 -> 500 | F174: =F25 -> 500 | G174: 500 | H174: 500 | I174: 500 | J174: 500 | K174: 500 | L174: 500 | M174: 500 | N174: 500 | O174: 500 | P174: 500 | Q174: =E59 -> 0 | R174: =F59 -> 0 | S174: =G59 -> 0 | T174: =H59 -> 0 | U174: 0 | V174: 0 | W174: 0 | X174: 0 | Y174: 0 | Z174: 0 | AA174: 0 | AB174: 0
E175: =E30 -> 1,250 | F175: =F30 -> 1,250 | G175: 1,250 | H175: 1,250 | I175: 1,250 | J175: 1,250 | K175: 0 | L175: 0 | M175: 0 | N175: 0 | O175: 0 | P175: 0 | Q175: =E64 -> 0 | R175: =F64 -> 0 | S175: =G64 -> 0 | T175: =H64 -> 0 | U175: 0 | V175: 0 | W175: 0 | X175: 0 | Y175: 0 | Z175: 0 | AA175: 0 | AB175: 0

Sheet 3 Anschaffungen|Aquirements (hidden)
C1: ='Deckblatt Gründer|Data Founder'!$D$6 -> Deutsch | T1: Aufgaben und/oder Kommentar | CK1: Deutsch | CL1: English | CN1: Jan. | CO1: Febr. | CP1: März | CQ1: April | CR1: Mai | CS1: Juni | CT1: Juli | CU1: Aug. | CV1: Sept. | CW1: Okt. | CX1: Nov. | CY1: Dez. | CZ1: ="Jahr "&'1 Pers.Ausgaben|Pers Expenses'!C3 -> Jahr 2016
B2: =IF($C$1="English",CL2,CK2) -> 3a Geplante Anschaffungen (ohne MwSt) und deren Abschreibungen 2016 - 2020 in EURO | T2: To Do list / Comments | CK2: ="3a Geplante Anschaffungen (" & IF($C$3<>1,"ohne MwSt)","mit MwSt)") &" und deren Abschreibungen "& '1 Pers.Ausgaben|Pers Expenses'!$C$3 &" - "& '1 Pers.Ausgaben|Pers Expenses'!$C$3+4 & " in EURO" -> 3a Geplante Anschaffungen (ohne MwSt) und deren Abschreibungen 2016 - 2020 in EURO | CL2: ="3a Planned Acquirements (" & IF($C$3<>1,"w/o VAT)","incl. VAT)") &" and depreciation "& '1 Pers.Ausgaben|Pers Expenses'!$C$3 &" - "& '1 Pers.Ausgaben|Pers Expenses'!$C$3+4 & " in EURO" -> 3a Planned Acquirements (w/o VAT) and depreciation 2016 - 2020 in EURO | CN2: Jan | CO2: Feb | CP2: Mar | CQ2: Apr | CR2: May | CS2: June | CT2: July | CU2: Aug | CV2: Sept | CW2: Oct | CX2: Nov | CY2: Dec | CZ2: ="Year "&'1 Pers.Ausgaben|Pers Expenses'!C3 -> Year 2016
C3: ='Deckblatt Gründer|Data Founder'!M1 -> 0 | CK3: Investmonat | CL3: Month of Investment
B4: No. | C4: =IF($C$1="English",CL4,CK4) -> Anschaffungen*) | E4: =IF($C$1="English","Value ","Betrag ")&'1 Pers.Ausgaben|Pers Expenses'!$C$3 -> Betrag 2016 | F4: =IF($C$1="English",CL3,CK3) -> Investmonat | G4: =IF($C$1="English","Value ","Betrag ")&'1 Pers.Ausgaben|Pers Expenses'!$C$3+1 -> Betrag 2017 | H4: =F4 -> Investmonat | I4: =IF($C$1="English","Value ","Betrag ")&'1 Pers.Ausgaben|Pers Expenses'!$C$3+2 -> Betrag 2018 | J4: =F4 -> Investmonat | K4: =IF($C$1="English","Value ","Betrag ")&'1 Pers.Ausgaben|Pers Expenses'!$C$3+3 -> Betrag 2019 | L4: =F4 -> Investmonat | M4: =IF($C$1="English","Value ","Betrag ")&'1 Pers.Ausgaben|Pers Expenses'!$C$3+4 -> Betrag 2020 | N4: =F4 -> Investmonat | P4: =IF($C$1="English",CL14,CK14) -> Nutzung in Jahren1) | S4: =IF(C1="English",T2,T1) -> Aufgaben und/oder Kommentar | CK4: Anschaffungen*) | CL4: Acquirements *)
B5: 1 | C5: =IF($C$1="English",CL5,CK5) -> Investitionsgut 1 | CK5: Investitionsgut 1 | CL5: Producer durable good 1
B6: 2 | C6: Investitionsgut 2 | G6: 40,000 | H6: 4 | P6: 5 | CK6: Investitionsgut 2 | CL6: Producer durable good 2
B7: 3 | C7: Investitionsgut 3 | CK7: Investitionsgut 3 | CL7: Producer durable good 3
B8: 4 | C8: Investitionsgut 4 | CK8: Investitionsgut 4 | CL8: Producer durable good 4
B9: 5 | C9: Investitionsgut 5 | CK9: Investitionsgut 5 | CL9: Producer durable good 5
B10: 6 | C10: Investitionsgut 6 | CK10: Investitionsgut 6 | CL10: Producer durable good 6
B11: 7 | C11: =IF($C$1="English",CL11,CK11) -> Investitionsgut 7 | CK11: Investitionsgut 7 | CL11: Producer durable good 7
B12: 8 | C12: Summe Sammelposten | E12: =IF(E26=0,"",E26) -> 1,200 | F12: =IF(E12="","",1) -> 1 | G12: =IF(H26=0,"",H26) ->  | H12: =IF(G12="","",1) ->  | I12: =IF(K26=0,"",K26) ->  | J12: =IF(I12="","",1) ->  | K12: =IF(N26=0,"",N26) ->  | L12: =IF(K12="","",1) ->  | P12: =IF(E26+H26+K26+N26=0,"",5) -> 5 | CK12: Summe Sammelposten | CL12: Sum compound items
C13: =IF($C$1="English",CL13,CK13) -> Summe Anschaffungen | E13: =SUM(E5:E12) -> 1,200 | G13: =SUM(G5:G12) -> 40,000 | I13: =SUM(I5:I12) -> 0 | K13: =SUM(K5:K12) -> 0 | M13: =SUM(M5:M12) -> 0 | CK13: Summe Anschaffungen | CL13: Sum acquirements
CK14: Nutzung in Jahren1) | CL14: Asset depreciation range (years) 1)
B15: =IF($C$1="English",CL15,CK15) -> 3b Poolabschreibung / Sammelposten (ohne MwSt) | CK15: ="3b Poolabschreibung / Sammelposten (" & IF($C$3<>1,"ohne MwSt)","mit MwSt) ") -> 3b Poolabschreibung / Sammelposten (ohne MwSt) | CL15: ="3b Compound Items (" & IF($C$3<>1,"w/o VAT)","incl. VAT)") -> 3b Compound Items (w/o VAT)
CK16: Wert | CL16: Value
B17: =B4 -> No. | C17: =IF($C$1="English",$CL$17,$CK$17)& '1 Pers.Ausgaben|Pers Expenses'!$C$3 -> Sammelposten 2016 | E17: =IF($C$1="English",$CL$16,$CK$16) -> Wert | F17: =IF($C$1="English",$CL$17,$CK$17)& '1 Pers.Ausgaben|Pers Expenses'!$C$3+1 -> Sammelposten 2017 | H17: =E17 -> Wert | I17: =IF($C$1="English",$CL$17,$CK$17)& '1 Pers.Ausgaben|Pers Expenses'!$C$3+2 -> Sammelposten 2018 | K17: =H17 -> Wert | L17: =IF($C$1="English",$CL$17,$CK$17)& '1 Pers.Ausgaben|Pers Expenses'!$C$3+3 -> Sammelposten 2019 | N17: =K17 -> Wert | CK17: ="Sammelposten " -> Sammelposten | CL17: ="Compound items " -> Compound items
B18: 8.1 | C18: =IF($C$1="English",CL18,CK18) -> Sammelposten 1 | E18: 400 | F18: Sammelposten 1 | I18: Sammelposten 1 | L18: Sammelposten 1 | CK18: Sammelposten 1 | CL18: Compound item 1
B19: 8.2 | C19: =IF($C$1="English",CL19,CK19) -> Sammelposten 2 | E19: 200 | F19: Sammelposten 2 | I19: Sammelposten 2 | L19: Sammelposten 2 | CK19: Sammelposten 2 | CL19: Compound item 2
B20: 8.3 | C20: =IF($C$1="English",CL20,CK20) -> Sammelposten 3 | E20: 200 | F20: Sammelposten 3 | I20: Sammelposten 3 | L20: Sammelposten 3 | CK20: Sammelposten 3 | CL20: Compound item 3
B21: 8.4 | C21: Sammelposten 4 | E21: 400 | F21: Sammelposten 4 | I21: Sammelposten 4 | L21: Sammelposten 4 | CK21: Sammelposten 4 | CL21: Compound item 4
B22: 8.5 | C22: Sammelposten 5 | F22: Sammelposten 5 | I22: Sammelposten 5 | L22: Sammelposten 5 | CK22: Sammelposten 5 | CL22: Compound item 5
B23: 8.6 | C23: Sammelposten 6 | F23: Sammelposten 6 | I23: Sammelposten 6 | L23: Sammelposten 6 | CK23: Sammelposten 6 | CL23: Compound item 6
B24: 8.7 | C24: Sammelposten 7 | F24: Sammelposten 7 | I24: Sammelposten 7 | L24: Sammelposten 7 | CK24: Sammelposten 7 | CL24: Compound item 7
B25: 8.8 | C25: Sammelposten 8 | F25: Sammelposten 8 | I25: Sammelposten 8 | L25: Sammelposten 8 | CK25: Sammelposten 8 | CL25: Compound item 8
C26: =IF($C$1="English",CL26,CK26) -> Summe Sammelposten | E26: =SUM(E18:E25) -> 1,200 | H26: =SUM(H18:H25) -> 0 | K26: =SUM(K18:K25) -> 0 | N26: =SUM(N18:N25) -> 0 | CK26: Summe Sammelposten | CL26: Sum compound items
B28: =IF($C$1="English",CL28,CK28) -> 3c-1 Monatliche Abschreibungen (ohne MwSt) für das Jahr 2016 in EURO | CK28: ="3c-1 Monatliche Abschreibungen (" & IF($C$3<>1,"ohne MwSt)","mit MwSt) ")&" für das Jahr "&'1 Pers.Ausgaben|Pers Expenses'!$C$3&" in EURO" -> 3c-1 Monatliche Abschreibungen (ohne MwSt) für das Jahr 2016 in EURO | CL28: ="3c-1 Monthly depreciacion ("&IF($C$3<>1,"w/o VAT)","incl VAT)")&" for the year "&'1 Pers.Ausgaben|Pers Expenses'!$C$3&" in EURO" -> 3c-1 Monthly depreciacion (w/o VAT) for the year 2016 in EURO
CK29: Wert | CL29: Amount
B30: =IF($C$1="English",CL30,CK30) -> Monate | E30: =IF($C$1="English",CN2,CN1) -> Jan. | F30: Febr. | G30: März | H30: April | I30: Mai | J30: Juni | K30: Juli | L30: Aug. | M30: Sept. | N30: Okt. | O30: Nov. | P30: Dez. | CK30: Monate | CL30: Months
B31: =IF($C$1="English",CL31,CK31) -> monatl. Abschreibungen | E31: =U127 -> 0.0 | F31: 0.0 | G31: 0.0 | H31: 0.0 | I31: 0.0 | J31: 0.0 | K31: 0.0 | L31: 0.0 | M31: 0.0 | N31: 0.0 | O31: 0.0 | P31: =AF127 -> 240.0 | CK31: monatl. Abschreibungen | CL31: monthly write offs
O32: =IF($C$1="English",CL32,CK32) -> Summe 2016 | P32: =SUM(E31:P31) -> 240.0 | CK32: ="Summe " & '1 Pers.Ausgaben|Pers Expenses'!$C$3 -> Summe 2016 | CL32: ="Sum " & '1 Pers.Ausgaben|Pers Expenses'!$C$3 -> Sum 2016
B33: =IF($C$1="English",CL33,CK33) -> 3c-2 Monatliche Abschreibungen (ohne MwSt) für das Jahr 2017 in EURO | CK33: ="3c-2 Monatliche Abschreibungen (" & IF($C$3<>1,"ohne MwSt)","mit MwSt) ")&" für das Jahr "&'1 Pers.Ausgaben|Pers Expenses'!$C$3+1&" in EURO" -> 3c-2 Monatliche Abschreibungen (ohne MwSt) für das Jahr 2017 in EURO | CL33: ="3c-2 Monthly depreciacion ("&IF($C$3<>1,"w/o VAT)","incl VAT)")&" for the year "&'1 Pers.Ausgaben|Pers Expenses'!$C$3+1&" in EURO" -> 3c-2 Monthly depreciacion (w/o VAT) for the year 2017 in EURO
B35: =B30 -> Monate | E35: =E30 -> Jan. | F35: Febr. | G35: März | H35: April | I35: Mai | J35: Juni | K35: Juli | L35: Aug. | M35: Sept. | N35: Okt. | O35: Nov. | P35: Dez. | CK35: Monate | CL35: Months
B36: =B31 -> monatl. Abschreibungen | E36: =AG129 -> 0.0 | F36: 0.0 | G36: 0.0 | H36: 6,000.0 | I36: 0.0 | J36: 0.0 | K36: 0.0 | L36: 0.0 | M36: 0.0 | N36: 0.0 | O36: 0.0 | P36: 240.0 | CK36: monatl. Abschreibungen | CL36: monthly write offs
O37: =IF($C$1="English",CL37,CK37) -> Summe 2017 | P37: =SUM(E36:P36) -> 6,240.0 | CK37: ="Summe " & '1 Pers.Ausgaben|Pers Expenses'!$C$3+1 -> Summe 2017 | CL37: ="Sum " & '1 Pers.Ausgaben|Pers Expenses'!$C$3+1 -> Sum 2017
B39: =IF($C$1="English",CL39,CK39) -> 3d Jährliche Abschreibungen (ohne MwSt) für die Jahre 2016-2020 in EURO | CK39: ="3d Jährliche Abschreibungen ("& IF($C$3<>1,"ohne MwSt)","mit MwSt")&" für die Jahre "&'1 Pers.Ausgaben|Pers Expenses'!$C$3&"-"&'1 Pers.Ausgaben|Pers Expenses'!$C$3+4&" in EURO" -> 3d Jährliche Abschreibungen (ohne MwSt) für die Jahre 2016-2020 in EURO | CL39: ="3d Anual depreciacion ("&IF($C$3<>1,"w/o VAT)","incl VAT)")&" for the Years "&'1 Pers.Ausgaben|Pers Expenses'!$C$3&"-"&'1 Pers.Ausgaben|Pers Expenses'!$C$3+4&" in EURO" -> 3d Anual depreciacion (w/o VAT) for the Years 2016-2020 in EURO
B41: =IF($C$1="English",CL41,CK41) -> Anschaffungen | E41: ='1 Pers.Ausgaben|Pers Expenses'!C3 -> 2016 | F41: =E41+1 -> 2017 | G41: =F41+1 -> 2018 | H41: =G41+1 -> 2019 | I41: =H41+1 -> 2020 | CK41: Anschaffungen | CL41: Acquirements
B42: 1 | C42: =C5 -> Investitionsgut 1 | E42: =IF($O146=1,J146,IF($O157=1,J157,IF($O168=1,J168,IF($O179=1,J179,IF($O190=1,J190,""))))) ->  | CK42: =CK5 -> Investitionsgut 1 | CL42: Producer durable good 1
B43: 2 | C43: Investitionsgut 2 | E43: 0 | F43: 6,000 | G43: 8,000 | H43: 8,000 | I43: 8,000 | CK43: Investitionsgut 2 | CL43: Producer durable good 2
B44: 3 | C44: Investitionsgut 3 | E44: =IF($O148=1,J148,IF($O159=1,J159,IF($O170=1,J170,IF($O181=1,J181,IF($O192=1,J192,""))))) ->  | F44: =IF($O148=1,K148,IF($O159=1,K159,IF($O170=1,K170,IF($O181=1,K181,IF($O192=1,K191,""))))) ->  | G44: =IF($O148=1,L148,IF($O159=1,L159,IF($O170=1,L170,IF($O181=1,L181,IF($O192=1,L191,""))))) ->  | H44: =IF($O148=1,M148,IF($O159=1,M159,IF($O170=1,M170,IF($O181=1,M181,IF($O192=1,M191,""))))) ->  | I44: =IF($O148=1,N148,IF($O159=1,N159,IF($O170=1,N170,IF($O181=1,N181,IF($O192=1,N192,""))))) ->  | CK44: Investitionsgut 3 | CL44: Producer durable good 3
B45: 4 | C45: Investitionsgut 4 | E45: =IF($O149=1,J149,IF($O160=1,J160,IF($O171=1,J171,IF($O182=1,J182,IF($O193=1,J193,""))))) ->  | F45: =IF($O149=1,K149,IF($O160=1,K160,IF($O171=1,K171,IF($O182=1,K182,IF($O193=1,K193,""))))) ->  | I45: =IF($O149=1,N149,IF($O160=1,N160,IF($O171=1,N171,IF($O182=1,N182,IF($O193=1,N193,""))))) ->  | CK45: Investitionsgut 4 | CL45: Producer durable good 4
B46: 5 | C46: Investitionsgut 5 | E46: =IF($O150=1,J150,IF($O161=1,J161,IF($O172=1,J172,IF($O183=1,J183,IF($O194=1,J194,""))))) ->  | I46: =IF($O150=1,N150,IF($O161=1,N161,IF($O172=1,N172,IF($O183=1,N183,IF($O194=1,N194,""))))) ->  | CK46: Investitionsgut 5 | CL46: Producer durable good 5
B47: 6 | C47: Investitionsgut 6 | E47: =IF($O151=1,J151,IF($O162=1,J162,IF($O173=1,J173,IF($O184=1,J184,IF($O195=1,J195,""))))) ->  | F47: =IF($O151=1,K151,IF($O162=1,K162,IF($O173=1,K173,IF($O184=1,K184,IF($O195=1,K195,""))))) ->  | G47: =IF($O151=1,L151,IF($O162=1,L162,IF($O173=1,L173,IF($O184=1,L184,IF($O195=1,M195,""))))) ->  | H47: =IF($O151=1,M151,IF($O162=1,M162,IF($O173=1,M173,IF($O184=1,M184,IF($O195=1,M195,""))))) ->  | I47: =IF($O151=1,N151,IF($O162=1,N162,IF($O173=1,N173,IF($O184=1,N184,IF($O195=1,N195,""))))) ->  | CK47: Investitionsgut 6 | CL47: Producer durable good 6
B48: 7 | C48: Investitionsgut 7 | E48: =IF($O152=1,J152,IF($O163=1,J163,IF($O174=1,J174,IF($O185=1,J185,IF($O196=1,J196,""))))) ->  | F48: =IF($O152=1,K152,IF($O163=1,K163,IF($O174=1,K174,IF($O185=1,K185,IF($O196=1,K196,""))))) ->  | G48: =IF($O152=1,L152,IF($O163=1,L163,IF($O174=1,L174,IF($O185=1,L185,IF($O196=1,L196,""))))) ->  | H48: =IF($O152=1,M152,IF($O163=1,M163,IF($O174=1,M174,IF($O185=1,M185,IF($O196=1,M196,""))))) ->  | I48: =IF($O152=1,N152,IF($O163=1,N163,IF($O174=1,N174,IF($O185=1,N185,IF($O196=1,N196,""))))) ->  | CK48: Investitionsgut 7 | CL48: Producer durable good 7
B49: 8 | C49: =C17 -> Sammelposten 2016 | E49: =IF($O153=1,J153,"") -> 240 | F49: =IF($O153=1,K153,"") -> 240 | G49: =IF($O153=1,L153,"") -> 240 | H49: =IF($O153=1,M153,"") -> 240 | I49: =IF($O153=1,N153,"") -> 240 | CK49: =CK17 -> Sammelposten | CL49: Compound item 15
B50: 8 | C50: =F17 -> Sammelposten 2017 | F50: =IF($O164=1,K164,"") ->  | G50: =IF($O164=1,L164,"") ->  | H50: =IF($O164=1,M164,"") ->  | I50: =IF($O164=1,N164,"") -> 
B51: 8 | C51: =I17 -> Sammelposten 2018 | G51: =IF($O175=1,L175,"") ->  | H51: =IF($O175=1,M175,"") ->  | I51: =IF($O175=1,N175,"") -> 
B52: 8 | C52: =L17 -> Sammelposten 2019 | H52: =IF($O186=1,M186,"") ->  | I52: =IF($O186=1,N186,"") -> 
B53: =IF($C$1="English",CL53,CK53) -> Abschreibungen | E53: =SUM(E42:E52) -> 240 | F53: =SUM(F42:F52) -> 6,240 | G53: =SUM(G42:G52) -> 8,240 | H53: =SUM(H42:H52) -> 8,240 | I53: =SUM(I42:I52) -> 8,240 | CK53: Abschreibungen | CL53: Depreciation
CK54: 1) Ab 1.1.2010 gibt es für die Abschreibung von geringwertigen Wirtschaftsgütern ein Wahlrecht ( zwei Alternativen)
B55: Erläuterungen zu Abschreibungen von geringwertigen Wirtschaftsgütern / Sammelposten | CK55: a)Wirtschaftsgüter mit einem Wert unter 410 EUR (netto) können sofort abgeschrieben werden; d.h. diese Anschaffungen sind in der Tabelle 4 Betriebskosten z.B. unter "Bürobedarf" Zeile 7 oder "Büromöbel" Zeile 10 oder "Werkzeuge, geringwertige Wirtschaftsgüter" Zeile 15 oder unter "Sonstige Kosten" Zeile 47. Wirtschaftsgüter können entsprechend ihrer Nutzungsdauer linear -d.h. in gleichen Raten- abges) s. auch Betriebskostenchrieben werden. Die geplanten Anschaffungen sind mit ihrem Anschaffungswert, Kaufmonat und Nutzungsdauer in die obige Tabelle einzugeben.
S56: Ende | CK56: b)Wirtschaftsgüter, deren Anschaffungswert mehr als 150 € (netto) und nicht mehr als 1000 € (netto) beträgt, können in einen Sammelposten (Pool) eingestellt werden. Diese Wirtschaftsgüter werden dann zusammen einheitlich über 5 Jahre abgeschrieben.
CK57: Die gewählte Abschreibungsmethode muss einheitlich auf alle Wirtschaftsgüter eines Anschaffungsjahres angewendet werden.
CL58: Die Übersetzung aus Zeile 56 bitte in Zeile 62 usw
B63: Weitergehende Erläuterung zu Abschreibung
F108: ='1 Pers.Ausgaben|Pers Expenses'!C3 -> 2016 | H108: =F108+1 -> 2017 | J108: =H108+1 -> 2018 | L108: =J108+1 -> 2019 | N108: =L108+1 -> 2020
E109: =IF(C1="English",CL41,CK41) -> Anschaffungen | F109: =E13 -> 1,200 | H109: =G13 -> 40,000 | J109: =I13 -> 0 | L109: =K13 -> 0 | N109: =M13 -> 0
E110: =IF(C1="English",CL53,CK53) -> Abschreibungen | G110: =E53 -> 240 | I110: =F53 -> 6,240 | K110: =G53 -> 8,240 | M110: =H53 -> 8,240 | O110: =I53 -> 8,240
E113: =E115 -> Betrag 2016 | F113: =G115 -> Betrag 2017 | H113: =J115 -> Betrag 2018 | K113: =N115 -> Betrag 2019 | O113: =T115 -> Betrag 2020 | U113: Startjahr | AG113: 2.Jahr
D114: Zählreihe | E114: 1 | F114: 2 | G114: 1 | H114: 3 | I114: 2 | J114: 1 | K114: 4 | L114: 3 | M114: 2 | N114: 1 | O114: 5 | P114: 4 | R114: 3 | S114: 2 | T114: 1 | U114: =E115 -> Betrag 2016 | V114: Errechnen Monatswerte Abschreibungen | AG114: =R115 -> Betrag 2018 | AH114: Errechnen Monatswerte Abschreibungen | CL114: Zählreihe
D115: Anschaffungsjahr | E115: =E4 -> Betrag 2016 | F115: =E4 -> Betrag 2016 | G115: =G4 -> Betrag 2017 | H115: =E4 -> Betrag 2016 | I115: =G4 -> Betrag 2017 | J115: =I4 -> Betrag 2018 | K115: =E4 -> Betrag 2016 | L115: =G4 -> Betrag 2017 | M115: =I4 -> Betrag 2018 | N115: =K4 -> Betrag 2019 | O115: =E4 -> Betrag 2016 | P115: =G4 -> Betrag 2017 | R115: =I4 -> Betrag 2018 | S115: =K4 -> Betrag 2019 | T115: =M4 -> Betrag 2020 | U115: Jan | V115: Feb | W115: Mrz | X115: Apr | Y115: Mai | Z115: Jun | AA115: Jul | AB115: Aug | AC115: Sep | AD115: Okt | AE115: Nov | AF115: Dez | AG115: Jan | AH115: Feb | AI115: Mrz | AJ115: Apr | AK115: Mai | AL115: Jun | AM115: Jul | AN115: Aug | AO115: Sep | AP115: Okt | AQ115: Nov | AR115: Dez | CL115: Anschaffungsjahr
D116: Abschreibungen über Kalenderjahre | U116: 1 | V116: 2 | W116: 3 | X116: 4 | Y116: 5 | Z116: 6 | AA116: 7 | AB116: 8 | AC116: 9 | AD116: 10 | AE116: 11 | AF116: 12 | AG116: 1 | AH116: 2 | AI116: 3 | AJ116: 4 | AK116: 5 | AL116: 6 | AM116: 7 | AN116: 8 | AO116: 9 | AP116: 10 | AQ116: 11 | AR116: 12 | CL116: Abschreibungen über Kalenderjahre
D117: =SUM(V147:Z147) -> 0 | E117: =IF(P5="","",(13-IF(F5=0,1,F5))/12/P5*E5) ->  | F117: =IF($P5="","",IF(F$114<$D117,$E5/$P5,IF(F$114=$D117,IF($F5=1,$E5/$P5,$E5/$P5-$E117),0))) ->  | G117: =IF(P5="","",(13-IF(H5=0,1,H5))/12/P5*G5) ->  | H117: =IF($P5="","",IF(H$114<$D117,$E5/$P5,IF(H$114=$D117,IF($F5=1,$E5/$P5,$E5/$P5-$E117),0))) ->  | I117: =IF($P5="","",IF(I$114<$D117,$G5/$P5,IF(I$114=$D117,IF($H5=1,$G5/$P5,$G5/$P5-$E117),0))) ->  | J117: =IF(P5="","",(13-IF(J5=0,1,J5))/12*I5/P5) ->  | K117: =IF($P5="","",IF(K$114<$D117,$E5/$P5,IF(K$114=$D117,IF($F5=1,$E5/$P5,$E5/$P5-$E117),0))) ->  | L117: =IF($P5="","",IF(L$114<$D117,$G5/$P5,IF(L$114=$D117,IF($H5=1,$G5/$P5,$G5/$P5-$E117),0))) ->  | M117: =IF($P5="","",IF(M$114<$D117,$I5/$P5,IF(M$114=$D117,IF($J5=1,$I5/$P5,$I5/$P5-$J117),0))) ->  | N117: =IF(P5="","",(13-IF(L5=0,1,L5))/12*K5/P5) ->  | O117: =IF($P5="","",IF(O$114<$D117,$E5/$P5,IF(O$114=$D117,IF($F5=1,$E5/$P5,$E5/$P5-$E117),0))) ->  | P117: =IF($P5="","",IF(P$114<$D117,$G5/$P5,IF(P$114=$D117,IF($H5=1,$G5/$P5,$G5/$P5-$G117),0))) ->  | R117: =IF($P5="","",IF(R$114<$D117,$I5/$P5,IF(R$114=$D117,IF($J5=1,$I5/$P5,$I5/$P5-$J117),0))) ->  | S117: =IF($P5="","",IF(S$114<$D117,$K5/$P5,IF(S$114=$D117,IF($L5=1,$K5/$P5,$K5/$P5-$N117),0))) ->  | T117: =IF(P5="","",(13-IF(N5=0,1,N5))/P5*M5/12) ->  | U117: =IF($F5=U$116,$E117,0) -> 0 | V117: 0 | W117: 0 | X117: 0 | Y117: 0 | Z117: 0 | AA117: 0 | AB117: 0 | AC117: 0 | AD117: 0 | AE117: 0 | AF117: 0 | AG117: =IF($H5=AG$116,$G117,0) -> 0 | AH117: 0 | AI117: 0 | AJ117: 0 | AK117: 0 | AL117: 0 | AM117: 0 | AN117: 0 | AO117: 0 | AP117: 0 | AQ117: 0 | AR117: 0 | CL117: =SUM(DD147:DH147) -> 0
D118: 6 | E118: 0 | F118: 0 | G118: 6,000 | H118: 0 | I118: 8,000 | J118: 0 | K118: 0 | L118: 8,000 | M118: 0 | N118: 0 | O118: 0 | P118: 8,000 | R118: 0 | S118: 0 | T118: 0 | U118: =IF($F6=U$116,$E118,0) -> 0 | V118: 0 | W118: 0 | X118: 0 | Y118: 0 | Z118: 0 | AA118: 0 | AB118: 0 | AC118: 0 | AD118: 0 | AE118: 0 | AF118: 0 | AG118: =IF($H6=AG$116,$G118,0) -> 0 | AH118: 0 | AI118: 0 | AJ118: 6000 | AK118: 0 | AL118: 0 | AM118: 0 | AN118: 0 | AO118: 0 | AP118: 0 | AQ118: 0 | AR118: 0 | CL118: 0
D119: 0 | U119: =IF($F7=U$116,$E119,0) -> 0 | V119: 0 | W119: 0 | X119: 0 | Y119: 0 | Z119: 0 | AA119: 0 | AB119: 0 | AC119: 0 | AD119: 0 | AE119: 0 | AF119: 0 | AG119: =IF($H7=AG$116,$G119,0) -> 0 | AH119: 0 | AI119: 0 | AJ119: 0 | AK119: 0 | AL119: 0 | AM119: 0 | AN119: 0 | AO119: 0 | AP119: 0 | AQ119: 0 | AR119: 0 | CL119: 0
D120: 0 | U120: =IF($F8=U$116,$E120,0) -> 0 | V120: 0 | W120: 0 | X120: 0 | Y120: 0 | Z120: 0 | AA120: 0 | AB120: 0 | AC120: 0 | AD120: 0 | AE120: 0 | AF120: 0 | AG120: =IF($H8=AG$116,$G120,0) -> 0 | AH120: 0 | AI120: 0 | AJ120: 0 | AK120: 0 | AL120: 0 | AM120: 0 | AN120: 0 | AO120: 0 | AP120: 0 | AQ120: 0 | AR120: 0 | CL120: 0
D121: 0 | U121: =IF($F9=U$116,$E121,0) -> 0 | V121: 0 | W121: 0 | X121: 0 | Y121: 0 | Z121: 0 | AA121: 0 | AB121: 0 | AC121: 0 | AD121: 0 | AE121: 0 | AF121: 0 | AG121: =IF($H9=AG$116,$G121,0) -> 0 | AH121: 0 | AI121: 0 | AJ121: 0 | AK121: 0 | AL121: 0 | AM121: 0 | AN121: 0 | AO121: 0 | AP121: 0 | AQ121: 0 | AR121: 0 | CL121: 0
D122: 0 | U122: =IF($F10=U$116,$E122,0) -> 0 | V122: 0 | W122: 0 | X122: 0 | Y122: 0 | Z122: 0 | AA122: 0 | AB122: 0 | AC122: 0 | AD122: 0 | AE122: 0 | AF122: 0 | AG122: =IF($H10=AG$116,$G122,0) -> 0 | AH122: 0 | AI122: 0 | AJ122: 0 | AK122: 0 | AL122: 0 | AM122: 0 | AN122: 0 | AO122: 0 | AP122: 0 | AQ122: 0 | AR122: 0 | CL122: 0
D123: 0 | U123: =IF($F11=U$116,$E123,0) -> 0 | V123: 0 | W123: 0 | X123: 0 | Y123: 0 | Z123: 0 | AA123: 0 | AB123: 0 | AC123: 0 | AD123: 0 | AE123: 0 | AF123: 0 | AG123: =IF($H11=AG$116,$G123,0) -> 0 | AH123: 0 | AI123: 0 | AJ123: 0 | AK123: 0 | AL123: 0 | AM123: 0 | AN123: 0 | AO123: 0 | AP123: 0 | AQ123: 0 | AR123: 0 | CL123: 0
D124: 5 | E124: =E26/5 -> 240 | F124: =E26/5 -> 240 | G124: =H26/5 -> 0 | H124: =E26/5 -> 240 | I124: =H26/5 -> 0 | J124: =K26/5 -> 0 | K124: =E26/5 -> 240 | L124: =H26/5 -> 0 | M124: =K26/5 -> 0 | N124: =N26/5 -> 0 | O124: =E26/5 -> 240 | P124: =H26/5 -> 0 | R124: =K26/5 -> 0 | S124: =N26/12 -> 0 | T124: =R26/12 -> 0 | AF124: =F124 -> 240 | AR124: =H124 -> 240 | CL124: 0
E125: =SUM(E116:E123) -> 0 | F125: =SUM(F116:F124) -> 240 | G125: 6,000 | H125: 240 | I125: 8,000 | J125: 0 | K125: 240 | L125: 8,000 | M125: 0 | N125: 0 | O125: 240 | P125: 8,000 | R125: 0 | S125: 0 | T125: 0 | U125: =SUM(U117:U124) -> 0 | V125: =SUM(V117:V124) -> 0 | W125: 0 | X125: 0 | Y125: 0 | Z125: 0 | AA125: 0 | AB125: 0 | AC125: 0 | AD125: 0 | AE125: 0 | AF125: 240 | AG125: =SUM(AG117:AG124) -> 0 | AH125: =SUM(AH117:AH124) -> 0 | AI125: 0 | AJ125: 6000 | AK125: 0 | AL125: 0 | AM125: 0 | AN125: 0 | AO125: 0 | AP125: 0 | AQ125: 0 | AR125: 240
D126: Abschreibungen Jahreswerte | E126: =E125 -> 0 | G126: =G125+F125 -> 6,240 | J126: =SUM(H125:J125) -> 8,240 | N126: =SUM(L125:N125) -> 8,000 | T126: =SUM(O125:T125) -> 8,240 | U126: =U125/12 -> 0 | V126: =V125/11 -> 0 | W126: =W125/10 -> 0 | X126: =X125/9 -> 0 | Y126: =Y125/8 -> 0 | Z126: =Z125/7 -> 0 | AA126: =AA125/6 -> 0 | AB126: =AB125/5 -> 0 | AC126: =AC125/4 -> 0 | AD126: =AD125/3 -> 0 | AE126: =AE125/2 -> 0 | AF126: =AF125/1 -> 240 | AG126: =AG125/12 -> 0 | AH126: =AH125/11 -> 0 | AI126: =AI125/10 -> 0 | AJ126: =AJ125/9 -> 667 | AK126: =AK125/8 -> 0 | AL126: =AL125/7 -> 0 | AM126: =AM125/6 -> 0 | AN126: =AN125/5 -> 0 | AO126: =AO125/4 -> 0 | AP126: =AP125/3 -> 0 | AQ126: =AQ125/2 -> 0 | AR126: =AR125/1 -> 240 | CL126: Abschreibungen Jahreswerte
U127: =T127+U126 -> 0 | V127: =U127+V126 -> 0 | W127: =V127+W126 -> 0 | X127: 0 | Y127: 0 | Z127: 0 | AA127: 0 | AB127: 0 | AC127: 0 | AD127: 0 | AE127: 0 | AF127: =AE127+AF125 -> 240 | AG127: =AF127-AF125+AG125-AG126 -> 0 | AH127: =AG127-AG125+AH125-AH126 -> 0 | AI127: 0 | AJ127: 5333 | AK127: -667 | AL127: -667 | AM127: -667 | AN127: -667 | AO127: -667 | AP127: -667 | AQ127: -667 | AR127: -667
AG128: =AG126 -> 0 | AH128: =AG128+AH126 -> 0 | AI128: 0 | AJ128: 667 | AK128: 667 | AL128: 667 | AM128: 667 | AN128: 667 | AO128: 667 | AP128: 667 | AQ128: 667 | AR128: 907
AG129: =AG128+AG127 -> 0 | AH129: =AH128+AH127 -> 0 | AI129: 0 | AJ129: 6000 | AK129: 0 | AL129: 0 | AM129: 0 | AN129: 0 | AO129: 0 | AP129: 0 | AQ129: 0 | AR129: 240
C131: Anschaffungen Eingabetabelle | E131: Anschaffungen Eingabetabelle | H131: ="Anschaffungen " & C132 & " auf die Monate zugeordnet" -> Anschaffungen Betrag 2016 auf die Monate zugeordnet | U131: 2.Jahr | CK131: Anschaffungen Eingabetabelle
C132: =E4 -> Betrag 2016 | E132: =G4 -> Betrag 2017 | H132: 1 | I132: 2 | J132: 3 | K132: 4 | L132: 5 | M132: 6 | N132: 7 | O132: 8 | P132: 9 | R132: 10 | S132: 11 | T132: 12 | U132: 1 | V132: 2 | W132: 3 | X132: 4 | Y132: 5 | Z132: 6 | AA132: 7 | AB132: 8 | AC132: 9 | AD132: 10 | AE132: 11 | AF132: 12 | CK132: =CM4 -> 0
C133: 0 | D133: =F5 -> 0 | E133: 0 | F133: =H5 -> 0 | H133: =IF($D133=H$132,$C133,0) -> 0 | I133: 0 | J133: 0 | K133: 0 | L133: 0 | M133: 0 | N133: 0 | O133: 0 | P133: 0 | R133: 0 | S133: 0 | T133: 0 | U133: =IF($F133=U$132,$E133,0) -> 0 | V133: =IF($F133=V$132,$E133,0) -> 0 | W133: 0 | X133: 0 | Y133: 0 | Z133: 0 | AA133: 0 | AB133: 0 | AC133: 0 | AD133: 0 | AE133: 0 | AF133: 0 | CK133: 0 | CL133: =CN5 -> 0
C134: 0 | D134: 0 | E134: 40,000 | F134: 4 | H134: 0 | I134: 0 | J134: 0 | K134: 0 | L134: 0 | M134: 0 | N134: 0 | O134: 0 | P134: 0 | R134: 0 | S134: 0 | T134: 0 | U134: =IF($F134=U$132,$E134,0) -> 0 | V134: 0 | W134: 0 | X134: 40,000 | Y134: 0 | Z134: 0 | AA134: 0 | AB134: 0 | AC134: 0 | AD134: 0 | AE134: 0 | AF134: 0 | CK134: 0 | CL134: 0
C135: 0 | D135: 0 | E135: 0 | F135: 0 | H135: 0 | I135: 0 | J135: 0 | K135: 0 | L135: 0 | M135: 0 | N135: 0 | O135: 0 | P135: 0 | R135: 0 | S135: 0 | T135: 0 | U135: 0 | V135: 0 | W135: 0 | X135: 0 | Y135: 0 | Z135: 0 | AA135: 0 | AB135: 0 | AC135: 0 | AD135: 0 | AE135: 0 | AF135: 0 | CK135: 0 | CL135: 0
C136: 0 | D136: 0 | E136: 0 | F136: 0 | H136: 0 | I136: 0 | J136: 0 | K136: 0 | L136: 0 | M136: 0 | N136: 0 | O136: 0 | P136: 0 | R136: 0 | S136: 0 | T136: 0 | U136: 0 | V136: 0 | W136: 0 | X136: 0 | Y136: 0 | Z136: 0 | AA136: 0 | AB136: 0 | AC136: 0 | AD136: 0 | AE136: 0 | AF136: 0 | CK136: 0 | CL136: 0
C137: 0 | D137: 0 | E137: 0 | F137: 0 | H137: 0 | I137: 0 | J137: 0 | K137: 0 | L137: 0 | M137: 0 | N137: 0 | O137: 0 | P137: 0 | R137: 0 | S137: 0 | T137: 0 | U137: 0 | V137: 0 | W137: 0 | X137: 0 | Y137: 0 | Z137: 0 | AA137: 0 | AB137: 0 | AC137: 0 | AD137: 0 | AE137: 0 | AF137: 0 | CK137: 0 | CL137: 0
C138: 0 | D138: 0 | E138: 0 | F138: 0 | H138: 0 | I138: 0 | J138: 0 | K138: 0 | L138: 0 | M138: 0 | N138: 0 | O138: 0 | P138: 0 | R138: 0 | S138: 0 | T138: 0 | U138: 0 | V138: 0 | W138: 0 | X138: 0 | Y138: 0 | Z138: 0 | AA138: 0 | AB138: 0 | AC138: 0 | AD138: 0 | AE138: 0 | AF138: 0 | CK138: 0 | CL138: 0
C139: 0 | D139: 0 | E139: 0 | F139: 0 | H139: 0 | I139: 0 | J139: 0 | K139: 0 | L139: 0 | M139: 0 | N139: 0 | O139: 0 | P139: 0 | R139: 0 | S139: 0 | T139: 0 | U139: 0 | V139: 0 | W139: 0 | X139: 0 | Y139: 0 | Z139: 0 | AA139: 0 | AB139: 0 | AC139: 0 | AD139: 0 | AE139: 0 | AF139: 0 | CK139: 0 | CL139: 0
C140: 1,200 | D140: 12 | F140: 12 | H140: 0 | I140: 0 | J140: 0 | K140: 0 | L140: 0 | M140: 0 | N140: 0 | O140: 0 | P140: 0 | R140: 0 | S140: 0 | T140: 1,200 | U140: 0 | V140: 0 | W140: 0 | X140: 0 | Y140: 0 | Z140: 0 | AA140: 0 | AB140: 0 | AC140: 0 | AD140: 0 | AE140: 0 | CK140: 0 | CL140: 12
H141: =SUM(H133:H140) -> 0 | I141: 0 | J141: 0 | K141: 0 | L141: 0 | M141: 0 | N141: 0 | O141: 0 | P141: 0 | R141: =SUM(R133:R140) -> 0 | S141: =SUM(S133:S140) -> 0 | T141: =SUM(T133:T140) -> 1,200 | U141: =SUM(U133:U140) -> 0 | V141: 0 | W141: 0 | X141: 40,000 | Y141: 0 | Z141: 0 | AA141: 0 | AB141: 0 | AC141: 0 | AD141: =SUM(AD133:AD140) -> 0 | AE141: =SUM(AE133:AE140) -> 0 | AF141: =SUM(AF133:AF140) -> 0
T142: =SUM(H141:T141) -> 1,200 | AF142: =SUM(U141:AF141) -> 40,000
C144: =E145 -> 2016 | D144: Investjahr | CK144: =CM145 -> 0 | CL144: Investjahr
E145: ='1 Pers.Ausgaben|Pers Expenses'!C3 -> 2016 | F145: =E145+1 -> 2017 | G145: =F145+1 -> 2018 | H145: =G145+1 -> 2019 | I145: =H145+1 -> 2020 | O145: Ausgefüllt | U145: Abschreibungen verteilt über Kalenderjahre
C146: =C5 -> Investitionsgut 1 | E146: =E117 ->  | G146: =H117 ->  | H146: =K117 ->  | I146: =O117 ->  | J146: =IF(E146>0,E146,IF(E146=0,0,"")) ->  | K146: =IF(F146>0,F146,IF(F146=0,0,"")) ->  | L146: =IF(G146>0,G146,IF(G146=0,0,"")) ->  | M146: =IF(H146>0,H146,IF(H146=0,0,"")) ->  | N146: =IF(I146>0,I146,IF(I146=0,0,"")) ->  | O146: =IF(J146="",-1,IF(J146=0,0,1)) -> -1 | V146: 2014 | W146: =V146+1 -> 2015 | X146: =W146+1 -> 2016 | Y146: =X146+1 -> 2017 | Z146: =Y146+1 -> 2018 | CK146: =CK5 -> Investitionsgut 1
C147: Investitionsgut 2 | E147: 0 | F147: 0 | G147: =H118 -> 0 | H147: =K118 -> 0 | I147: =O118 -> 0 | J147: =IF(E147>0,E147,IF(E147=0,0,"")) -> 0 | K147: 0 | L147: 0 | M147: 0 | N147: 0 | O147: =IF(J147="",-1,IF(J147=0,0,1)) -> 0 | V147: =IF(E5>0,IF(F5>1,P5+1,P5),0) -> 0 | W147: =IF(G5>0,IF(H5>1,P5+1,P5),0) -> 0 | X147: =IF(I5>0,IF(J5>1,P5+1,P5),0) -> 0 | Y147: =IF(K5>0,IF(L5>1,P5+1,P5),0) -> 0 | Z147: =IF(M5>0,IF(N5>1,P5+1,P5),0) -> 0 | CK147: Investitionsgut 2
C148: Investitionsgut 3 | O148: -1 | V148: 0 | W148: 6 | X148: 0 | Y148: 0 | Z148: 0 | CK148: Investitionsgut 3
C149: Investitionsgut 4 | O149: -1 | V149: 0 | W149: 0 | X149: 0 | Y149: 0 | Z149: 0 | CK149: Investitionsgut 4
C150: Investitionsgut 5 | O150: -1 | V150: 0 | W150: 0 | X150: 0 | Y150: 0 | Z150: 0 | CK150: Investitionsgut 5
C151: Investitionsgut 6 | O151: -1 | V151: 0 | W151: 0 | X151: 0 | Y151: 0 | Z151: 0 | CK151: Investitionsgut 6
C152: Investitionsgut 7 | O152: -1 | V152: 0 | W152: 0 | X152: 0 | Y152: 0 | Z152: 0 | CK152: Investitionsgut 7
C153: Sammelposten (aus 3c) | E153: 240 | F153: 240 | G153: 240 | H153: 240 | I153: 240 | J153: 240 | K153: 240 | L153: 240 | M153: 240 | N153: 240 | O153: 1 | V153: 0 | W153: 0 | X153: 0 | Y153: 0 | Z153: 0 | CK153: Sammelposten (aus 3c)
E154: =SUM(E146:E153) -> 240 | F154: =SUM(F146:F153) -> 240 | G154: =SUM(G146:G153) -> 240 | H154: =SUM(H146:H153) -> 240 | I154: =SUM(I146:I153) -> 240 | V154: =IF(E12="",0,P12) -> 5 | W154: =IF(G12="",0,P12) -> 0 | X154: =IF(I12="",0,P12) -> 0 | Y154: =IF(K12="",0,P12) -> 0 | Z154: =IF(M12="",0,P12) -> 0
C155: =C144+1 -> 2017 | D155: Investjahr | CK155: =CK144+1 -> 1 | CL155: Investjahr
E156: =E145 -> 2016 | F156: =E156+1 -> 2017 | G156: =F156+1 -> 2018 | H156: =G156+1 -> 2019 | I156: =H156+1 -> 2020
C157: =C5 -> Investitionsgut 1 | F157: =G117 ->  | G157: =L117 ->  | H157: =P117 ->  | I157: =P117 ->  | J157: =IF(E157>0,E157,IF(E157=0,0,"")) -> 0 | K157: =IF(F157>0,F157,IF(F157=0,0,"")) ->  | O157: =IF(K157="",-1,IF(K157=0,0,1)) -> -1 | CK157: =CK5 -> Investitionsgut 1
C158: Investitionsgut 2 | F158: 6,000 | G158: 8,000 | H158: 8,000 | I158: 8,000 | J158: =IF(E158>0,E158,IF(E158=0,0,"")) -> 0 | K158: 6,000 | L158: 8,000 | M158: 8,000 | N158: 8,000 | O158: =IF(K158="",-1,IF(K158=0,0,1)) -> 1 | CK158: Investitionsgut 2
C159: Investitionsgut 3 | J159: 0 | O159: -1 | CK159: Investitionsgut 3
C160: Investitionsgut 4 | J160: 0 | O160: -1 | CK160: Investitionsgut 4
C161: Investitionsgut 5 | J161: 0 | O161: -1 | CK161: Investitionsgut 5
C162: Investitionsgut 6 | J162: 0 | O162: -1 | CK162: Investitionsgut 6
C163: Investitionsgut 7 | J163: 0 | O163: -1 | CK163: Investitionsgut 7
C164: Sammelposten (aus 3c) | F164: 0 | G164: 0 | H164: 0 | I164: 0 | J164: =IF(E164>0,E164,IF(E164=0,0,"")) -> 0 | K164: =IF(F164>0,F164,IF(F164=0,0,"")) -> 0 | L164: =IF(G164>0,G164,IF(G164=0,0,"")) -> 0 | M164: =IF(H164>0,H164,IF(H164=0,0,"")) -> 0 | N164: =IF(I164>0,I164,IF(I164=0,0,"")) -> 0 | O164: =IF(K164="",-1,IF(K164=0,0,1)) -> 0 | CK164: Sammelposten (aus 3c)
E165: =SUM(E157:E164) -> 0 | F165: =SUM(F157:F164) -> 6,000 | G165: =SUM(G157:G164) -> 8,000 | H165: =SUM(H157:H164) -> 8,000 | I165: =SUM(I157:I164) -> 8,000
C166: =C155+1 -> 2018 | D166: Investjahr | CK166: =CK155+1 -> 2 | CL166: Investjahr
E167: =E145 -> 2016 | F167: =E167+1 -> 2017 | G167: =F167+1 -> 2018 | H167: =G167+1 -> 2019 | I167: =H167+1 -> 2020
C168: =C5 -> Investitionsgut 1 | G168: =J117 ->  | H168: =M117 ->  | I168: =R117 ->  | J168: =IF(E168>0,E168,IF(E168=0,0,"")) -> 0 | K168: =IF(F168>0,F168,IF(F168=0,0,"")) -> 0 | L168: =IF(G168>0,G168,IF(G168=0,0,"")) ->  | M168: =IF(H168>0,H168,IF(H168=0,0,"")) ->  | N168: =IF(I168>0,I168,IF(I168=0,0,"")) ->  | O168: =IF(L168="",-1,IF(L168=0,0,1)) -> -1 | CK168: =CK5 -> Investitionsgut 1
C169: Investitionsgut 2 | G169: 0 | H169: 0 | I169: 0 | J169: =IF(E169>0,E169,IF(E169=0,0,"")) -> 0 | K169: 0 | L169: 0 | M169: 0 | N169: 0 | O169: =IF(L169="",-1,IF(L169=0,0,1)) -> 0 | CK169: Investitionsgut 2
C170: Investitionsgut 3 | J170: 0 | K170: 0 | O170: -1 | CK170: Investitionsgut 3
C171: Investitionsgut 4 | J171: 0 | K171: 0 | O171: -1 | CK171: Investitionsgut 4
C172: Investitionsgut 5 | J172: 0 | K172: 0 | O172: -1 | CK172: Investitionsgut 5
C173: Investitionsgut 6 | J173: 0 | K173: 0 | O173: -1 | CK173: Investitionsgut 6
C174: Investitionsgut 7 | J174: 0 | K174: 0 | O174: -1 | CK174: Investitionsgut 7
C175: Sammelposten (aus 3c) | G175: 0 | H175: 0 | I175: =R124 -> 0 | J175: 0 | K175: 0 | L175: =IF(G175>0,G175,IF(G175=0,0,"")) -> 0 | M175: =IF(H175>0,H175,IF(H175=0,0,"")) -> 0 | N175: =IF(I175>0,I175,IF(I175=0,0,"")) -> 0 | O175: =IF(L175="",-1,IF(L175=0,0,1)) -> 0 | CK175: Sammelposten (aus 3c)
E176: =SUM(E168:E175) -> 0 | F176: =SUM(F168:F175) -> 0 | G176: =SUM(G168:G175) -> 0 | H176: =SUM(H168:H175) -> 0 | I176: =SUM(I168:I175) -> 0
C177: =C166+1 -> 2019 | D177: Investjahr | CK177: =CK166+1 -> 3 | CL177: Investjahr
E178: =E145 -> 2016 | F178: =E178+1 -> 2017 | G178: =F178+1 -> 2018 | H178: =G178+1 -> 2019 | I178: =H178+1 -> 2020
C179: =C5 -> Investitionsgut 1 | H179: =N117 ->  | I179: =S117 ->  | J179: =IF(E179>0,E179,IF(E179=0,0,"")) -> 0 | K179: =IF(F179>0,F179,IF(F179=0,0,"")) -> 0 | L179: 0 | O179: =IF(M179="",-1,IF(M179=0,0,1)) -> -1 | CK179: =CK5 -> Investitionsgut 1
C180: Investitionsgut 2 | H180: 0 | I180: 0 | J180: =IF(E180>0,E180,IF(E180=0,0,"")) -> 0 | K180: 0 | L180: 0 | M180: 0 | N180: 0 | O180: =IF(M180="",-1,IF(M180=0,0,1)) -> 0 | CK180: Investitionsgut 2
C181: Investitionsgut 3 | J181: 0 | K181: 0 | L181: 0 | O181: -1 | CK181: Investitionsgut 3
C182: Investitionsgut 4 | J182: 0 | K182: 0 | L182: 0 | O182: -1 | CK182: Investitionsgut 4
C183: Investitionsgut 5 | J183: 0 | K183: 0 | L183: 0 | O183: -1 | CK183: Investitionsgut 5
C184: Investitionsgut 6 | J184: 0 | K184: 0 | L184: 0 | O184: -1 | CK184: Investitionsgut 6
C185: Investitionsgut 7 | J185: 0 | K185: 0 | L185: 0 | M185: =IF(H185>0,H185,IF(H185=0,0,"")) ->  | O185: -1 | CK185: Investitionsgut 7
C186: Summe Sammelposten | H186: =S124 -> 0 | I186: =N124 -> 0 | J186: =IF(E186>0,E186,IF(E186=0,0,"")) -> 0 | K186: =IF(F186>0,F186,IF(F186=0,0,"")) -> 0 | L186: =IF(G186>0,G186,IF(G186=0,0,"")) -> 0 | M186: =IF(H186>0,H186,IF(H186=0,0,"")) -> 0 | N186: =IF(I186>0,I186,IF(I186=0,0,"")) -> 0 | O186: =IF(M186="",-1,IF(M186=0,0,1)) -> 0 | CK186: Summe Sammelposten
E187: =SUM(E179:E186) -> 0 | F187: =SUM(F179:F186) -> 0 | G187: =SUM(G179:G186) -> 0 | H187: =SUM(H179:H186) -> 0 | I187: =SUM(I179:I186) -> 0
C188: =C177+1 -> 2020 | D188: Investjahr | CK188: =CK177+1 -> 4 | CL188: Investjahr
E189: =E145 -> 2016 | F189: =E189+1 -> 2017 | G189: =F189+1 -> 2018 | H189: =G189+1 -> 2019 | I189: =H189+1 -> 2020
C190: =C5 -> Investitionsgut 1 | I190: =T117 ->  | J190: =IF(E190>0,E190,IF(E190=0,0,"")) -> 0 | K190: =IF(F190>0,F190,IF(F190=0,0,"")) -> 0 | L190: 0 | M190: 0 | O190: =IF(N190="",-1,IF(N190=0,0,1)) -> -1 | CK190: =CK5 -> Investitionsgut 1
C191: Investitionsgut 2 | I191: 0 | J191: =IF(E191>0,E191,IF(E191=0,0,"")) -> 0 | K191: 0 | L191: 0 | M191: 0 | N191: 0 | O191: 0 | CK191: Investitionsgut 2
C192: Investitionsgut 3 | J192: 0 | K192: 0 | L192: 0 | M192: 0 | O192: -1 | CK192: Investitionsgut 3
C193: Investitionsgut 4 | J193: 0 | K193: 0 | L193: 0 | M193: 0 | O193: -1 | CK193: Investitionsgut 4
C194: Investitionsgut 5 | J194: 0 | K194: 0 | L194: 0 | M194: 0 | O194: -1 | CK194: Investitionsgut 5
C195: Investitionsgut 6 | J195: 0 | K195: 0 | L195: 0 | M195: 0 | O195: -1 | CK195: Investitionsgut 6
C196: Investitionsgut 7 | J196: 0 | K196: 0 | L196: 0 | M196: 0 | O196: -1 | CK196: Investitionsgut 7
C197: Sammelposten (aus 3c) | CK197: Sammelposten (aus 3c)
E198: =SUM(E190:E197) -> 0 | F198: =SUM(F190:F197) -> 0 | G198: =SUM(G190:G197) -> 0 | H198: =SUM(H190:H197) -> 0 | I198: =SUM(I190:I197) -> 0

Sheet 4 Betriebskosten|Operation Ex (hidden)
A1: Auswahl MwSt | C1: ='Deckblatt Gründer|Data Founder'!$D$6 -> Deutsch | Q1: =MwSt -> 19% | T1: Aufgaben und/oder Kommentar | CW1: Zeilen | CX1: Steuersatz | DA1: Zeilen | DB1: Steuersatz | DC1: Jan. | DD1: Febr. | DE1: März | DF1: April | DG1: Mai | DH1: Juni | DI1: Juli | DJ1: Aug. | DK1: Sept. | DL1: Okt. | DM1: Nov. | DN1: Dez. | DO1: ="Jahr "&'1 Pers.Ausgaben|Pers Expenses'!C3 -> Jahr 2016
B2: =IF($C$1="English",CZ2,CY2) -> 4a Betriebskosten für das Jahr 2016 in EUR (ohne MwSt) | Q2: =MwStklein -> 7% | T2: To Do list / Comments | U2: =IF($C$1="English",CV4,CU4) -> Nebenrechung Personalkosten | CW2: Original | CY2: ="4a Betriebskosten für das Jahr " &'1 Pers.Ausgaben|Pers Expenses'!$C$3&" in EUR" & " (" & IF(OR($D$3=1,$D$3=2),"mit MwSt","ohne MwSt")& ") " -> 4a Betriebskosten für das Jahr 2016 in EUR (ohne MwSt) | CZ2: ="4a Operating Expense for Year " &'1 Pers.Ausgaben|Pers Expenses'!$C$3&" in EUR" & " (" &IF(OR($D$3=1,$D$3=2),"incl. VAT","w/o VAT")& ") " -> 4a Operating Expense for Year 2016 in EUR (w/o VAT) | DA2: DATEV | DC2: Jan | DD2: Feb | DE2: Mar | DF2: Apr | DG2: May | DH2: June | DI2: July | DJ2: Aug | DK2: Sept | DL2: Oct | DM2: Nov | DN2: Dec | DO2: ="Year "&'1 Pers.Ausgaben|Pers Expenses'!C3 -> Year 2016
B3: =IF($C$1="English",CZ3,CY3) -> ┌ MwSt-Satz der jeweiligen Kostenart | D3: ='Deckblatt Gründer|Data Founder'!M1 -> 0 | Q3: 0% | CY3: =IF($D$3=-1,""," ┌ MwSt-Satz der jeweiligen Kostenart") -> ┌ MwSt-Satz der jeweiligen Kostenart | CZ3: =IF($D$3=-1,""," ┌ VAT for Cost Type") -> ┌ VAT for Cost Type
B4: No. | C4: =IF($C$1="Deutsch",CY4,IF($C$1="English",CZ4,DB4)) -> Kostenart | D4: =IF($C$1="English",DC2,DC1) -> Jan. | E4: =IF($C$1="English",DD2,DD1) -> Febr. | F4: März | G4: April | H4: Mai | I4: Juni | J4: Juli | K4: Aug. | L4: Sept. | M4: Okt. | N4: Nov. | O4: Dez. | P4: Jahr 2016 | S4: =IF(C1="English",T2,T1) -> Aufgaben und/oder Kommentar | U4: =D80 -> 2015 | V4: =D4 -> Jan. | W4: Febr. | X4: März | Y4: April | Z4: Mai | AA4: Juni | AB4: Juli | AC4: Aug. | AD4: Sept. | AE4: Okt. | AF4: Nov. | AG4: Dez. | CU4: Nebenrechung Personalkosten | CV4: Ancillary: Account for Personal Costs | CY4: Kostenart | CZ4: Cost Type | DC4: Nebenrechung Personalkosten | DD4: Ancillary Account for Personal Costs
B5: 1 | C5: Bürokosten | U5: =IF($C$1="English",CV5,CU5) -> Anzahl Mitarbeiter | CU5: Anzahl Mitarbeiter | CV5: No of Employees | CW5: 1 | CY5: Bürokosten | CZ5: Office expences | DA5: 1 | DB5: =VLOOKUP(DA5,$CW$5:$CZ$65,2,FALSE) -> 0% | DC5: =VLOOKUP(DA5,$CW$5:$CZ$65,3,FALSE) -> Bürokosten | DD5: =VLOOKUP(DA5,$CW$5:$CZ$65,4,FALSE) -> Office expences
A6: =MwSt -> 19% | B6: =IF($D$3>0, A6,"") ->  | C6: Raummiete | D6: 500.0 | E6: 500.0 | F6: 500.0 | G6: 500.0 | H6: 500.0 | I6: 500.0 | J6: 500.0 | K6: 500.0 | L6: 500.0 | M6: 500.0 | N6: 500.0 | O6: 500.0 | P6: =SUM(D6:O6) -> 6,000.0 | U6: Gehalt1 | CU6: Gehalt1 | CV6: Salary1 | CW6: 2 | CX6: =MwSt -> 19% | CY6: Raummiete | CZ6: Space rent | DA6: 2 | DB6: =VLOOKUP(DA6,$CW$5:$CZ$65,2,FALSE) -> 19% | DC6: =VLOOKUP(DA6,$CW$5:$CZ$65,3,FALSE) -> Raummiete | DD6: =VLOOKUP(DA6,$CW$5:$CZ$65,4,FALSE) -> Space rent
A7: 19% | B7: =IF($D$3>0, A7,"") ->  | C7: Strom, Wasser, Heizung, sonst. Nebenkosten | D7: 50.0 | E7: 50.0 | F7: 50.0 | G7: 50.0 | H7: 50.0 | I7: 50.0 | J7: 50.0 | K7: 50.0 | L7: 50.0 | M7: 50.0 | N7: 50.0 | O7: 50.0 | P7: 600.0 | U7: =IF($C$1="English",CV7,CU7) -> Anzahl Mitarbeiter | CU7: Anzahl Mitarbeiter | CV7: No of Employees | CW7: 3 | CX7: 19% | CY7: Strom, Wasser, Heizung, sonst. Nebenkosten | CZ7: Electricity, water, heating, other costs | DA7: 3 | DB7: 19% | DC7: Strom, Wasser, Heizung, sonst. Nebenkosten | DD7: Electricity, water, heating, other costs
A8: 19% | C8: Telefon, Fax, Internet, Porto | D8: 50.0 | E8: 50.0 | F8: 50.0 | G8: 50.0 | H8: 50.0 | I8: 50.0 | J8: 50.0 | K8: 50.0 | L8: 50.0 | M8: 50.0 | N8: 50.0 | O8: 50.0 | P8: 600.0 | U8: Gehalt2 | CU8: Gehalt2 | CV8: Salary2 | CW8: 4 | CX8: 19% | CY8: Telefon, Fax, Internet, Porto | CZ8: Phone, fax, internet, porto | DA8: 5 | DB8: 19% | DC8: Geringw. Wirtschaftsgüter (Büromöbel, Einrichtungen,...) | DD8: Inferior assets (office furniture, facilities, ...)
A9: 19% | C9: Geringw. Wirtschaftsgüter (Büromöbel, Einrichtungen,...) | P9: 0.0 | U9: Anzahl Mitarbeiter | CU9: Anzahl Mitarbeiter | CV9: No of Employees | CW9: 5 | CX9: 19% | CY9: Geringw. Wirtschaftsgüter (Büromöbel, Einrichtungen,...) | CZ9: Inferior assets (office furniture, facilities, ...) | DA9: 4 | DB9: 19% | DC9: Telefon, Fax, Internet, Porto | DD9: Phone, fax, internet, porto
A10: 19% | C10: IT (Lizenzen, Windows, Office, Wartung) | P10: 0.0 | U10: Gehalt3 | CU10: Gehalt3 | CV10: Salery3 | CW10: 6 | CX10: 19% | CY10: IT (Lizenzen, Windows, Office, Wartung) | CZ10: IT (licenses, windows, office, maintenace, ...) | DA10: 6 | DB10: 19% | DC10: IT (Lizenzen, Windows, Office, Wartung) | DD10: IT (licenses, windows, office, maintenace, ...)
A11: 19% | C11: Sonstiges | D11: 100.0 | E11: 100.0 | F11: 100.0 | G11: 100.0 | H11: 100.0 | I11: 100.0 | J11: 100.0 | K11: 100.0 | L11: 100.0 | M11: 100.0 | N11: 100.0 | O11: 100.0 | P11: 1,200.0 | U11: Nebenkosten (%) | CU11: Nebenkosten (%) | CV11: Additional Expenses (%) | CW11: 7 | CX11: 19% | CY11: Sonstiges | CZ11: Others | DA11: 7 | DB11: 19% | DC11: Sonstiges | DD11: Others
C12: Summe Bürokosten | D12: =SUM(D6:D11) -> 700.0 | E12: =SUM(E6:E11) -> 700.0 | F12: 700.0 | G12: 700.0 | H12: 700.0 | I12: 700.0 | J12: 700.0 | K12: 700.0 | L12: 700.0 | M12: 700.0 | N12: 700.0 | O12: 700.0 | P12: =SUM(D12:O12) -> 8,400.0 | U12: Gehaltssumme | V12: =((V5*V6)+(V7*V8)+(V9*V10))*(1+V11) -> 0 | W12: =((W5*W6)+(W7*W8)+(W9*W10))*(1+W11) -> 0 | X12: 0 | Y12: 0 | Z12: 0 | AA12: 0 | AB12: 0 | AC12: 0 | AD12: 0 | AE12: 0 | AF12: 0 | AG12: 0 | AH12: =SUM(V12:AG12) -> 0 | CU12: Gehaltssumme | CV12: Payroll | CW12: 8 | CY12: ="Summe " &CY5 -> Summe Bürokosten | CZ12: Sum office expences | DA12: 8 | DB12: 0% | DC12: Summe Bürokosten | DD12: Sum office expences
B13: 2 | C13: Produktionskosten | CW13: 9 | CY13: Produktionskosten | CZ13: Production costs | DA13: 9 | DB13: 0% | DC13: Produktionskosten | DD13: Production costs
A14: =MwSt -> 19% | B14: =IF($D$3>0, A14,"") ->  | C14: Raummiete | D14: 1,200.0 | E14: 1,200.0 | F14: 1,200.0 | G14: 1,200.0 | H14: 1,200.0 | I14: 1,200.0 | J14: 1,200.0 | K14: 1,200.0 | L14: 1,200.0 | M14: 1,200.0 | N14: 1,200.0 | O14: 1,200.0 | P14: =SUM(D14:O14) -> 14,400.0 | CW14: 10 | CX14: =MwSt -> 19% | CY14: Raummiete | CZ14: Space rent | DA14: 10 | DB14: 19% | DC14: Raummiete | DD14: Space rent
A15: =MwSt -> 19% | B15: =IF($D$3>0, A15,"") ->  | C15: Strom, Wasser, Heizung, sonst. Nebenkosten | P15: 0.0 | CW15: 11 | CX15: =MwSt -> 19% | CY15: Strom, Wasser, Heizung, sonst. Nebenkosten | CZ15: Electricity, water, heating, other costs | DA15: 11 | DB15: 19% | DC15: Strom, Wasser, Heizung, sonst. Nebenkosten | DD15: Electricity, water, heating, other costs
A16: =MwSt -> 19% | C16: Materialaufwand zur Produktion (19%) | D16: 1,000.0 | E16: 1,000.0 | F16: 1,000.0 | G16: 1,000.0 | H16: 1,000.0 | I16: 1,000.0 | J16: 1,000.0 | K16: 1,000.0 | L16: 1,000.0 | M16: 1,000.0 | N16: 1,000.0 | O16: 1,000.0 | P16: =SUM(D16:O16) -> 12,000.0 | U16: =E80 -> 2016 | V16: =V4 -> Jan. | W16: Febr. | X16: März | Y16: April | Z16: Mai | AA16: Juni | AB16: Juli | AC16: Aug. | AD16: Sept. | AE16: Okt. | AF16: Nov. | AG16: Dez. | CW16: 12 | CX16: =MwSt -> 19% | CY16: ="Materialaufwand zur Produktion ("&MwSt*100 &"%)" -> Materialaufwand zur Produktion (19%) | CZ16: ="Cost for materials for production ("&MwSt*100 &"%)" -> Cost for materials for production (19%) | DA16: 12 | DB16: 19% | DC16: Materialaufwand zur Produktion (19%) | DD16: Cost for materials for production (19%)
A17: =MwStklein -> 7% | C17: Materialaufwand zur Produktion (7%) | P17: 0.0 | U17: =U5 -> Anzahl Mitarbeiter | CW17: 13 | CX17: =MwStklein -> 7% | CY17: ="Materialaufwand zur Produktion ("&MwStklein*100 &"%)" -> Materialaufwand zur Produktion (7%) | CZ17: ="Cost for materials for production ("&MwStklein*100 &"%)" -> Cost for materials for production (7%) | DA17: 13 | DB17: 7% | DC17: Materialaufwand zur Produktion (7%) | DD17: Cost for materials for production (7%)
A18: =MwSt -> 19% | C18: Produktionsbedarf, geringwertige Wirtschaftsgüter | D18: 100.0 | E18: 100.0 | F18: 100.0 | G18: 100.0 | H18: 100.0 | I18: 100.0 | J18: 100.0 | K18: 100.0 | L18: 100.0 | M18: 100.0 | N18: 100.0 | O18: 100.0 | P18: 1,200.0 | U18: Gehalt1 | CW18: 14 | CX18: =MwSt -> 19% | CY18: Produktionsbedarf, geringwertige Wirtschaftsgüter | CZ18: Production need, inferior assets | DA18: 14 | DB18: 19% | DC18: Produktionsbedarf, geringwertige Wirtschaftsgüter | DD18: Production need, inferior assets
A19: =MwSt -> 19% | C19: Leasingraten für Produktionsanlagen, -maschinen | P19: 0.0 | U19: Anzahl Mitarbeiter | CW19: 15 | CX19: =MwSt -> 19% | CY19: Leasingraten für Produktionsanlagen, -maschinen | CZ19: Leasing rate for production facityties , -machines | DA19: 15 | DB19: 19% | DC19: Leasingraten für Produktionsanlagen, -maschinen | DD19: Leasing rate for production facityties , -machines
A20: =MwSt -> 19% | B20: =IF($D$3>0, A20,"") ->  | C20: Instandhaltung und Reparaturen | D20: 200.0 | E20: 200.0 | F20: 200.0 | G20: 200.0 | H20: 200.0 | I20: 200.0 | J20: 200.0 | K20: 200.0 | L20: 200.0 | M20: 200.0 | N20: 200.0 | O20: 200.0 | P20: 2,400.0 | U20: Gehalt2 | CW20: 16 | CX20: =MwSt -> 19% | CY20: Instandhaltung und Reparaturen | CZ20: Maintenace and repairs | DA20: 16 | DB20: 19% | DC20: Instandhaltung und Reparaturen | DD20: Maintenace and repairs
A21: =MwSt -> 19% | C21: Sonstiges | P21: 0.0 | U21: Anzahl Mitarbeiter | CW21: 17 | CX21: =MwSt -> 19% | CY21: Sonstiges | CZ21: Others | DA21: 17 | DB21: 19% | DC21: Sonstiges | DD21: Others
C22: Summe Produktionskosten | D22: =SUM(D14:D21) -> 2,500.0 | E22: =SUM(E14:E21) -> 2,500.0 | F22: 2,500.0 | G22: 2,500.0 | H22: 2,500.0 | I22: 2,500.0 | J22: 2,500.0 | K22: 2,500.0 | L22: 2,500.0 | M22: 2,500.0 | N22: 2,500.0 | O22: 2,500.0 | P22: =SUM(D22:O22) -> 30,000.0 | U22: Gehalt3 | CW22: 18 | CY22: ="Summe "&CY13 -> Summe Produktionskosten | CZ22: Sum production costs | DA22: 18 | DB22: 0% | DC22: Summe Produktionskosten | DD22: Sum production costs
B23: 3 | C23: Personalkosten (nur Angestellte) | U23: Nebenkosten (%) | CW23: 19 | CY23: Personalkosten (nur Angestellte) | CZ23: Personnel cost (only salary earners) | DA23: 19 | DB23: 0% | DC23: Personalkosten (nur Angestellte) | DD23: Personnel cost (only salary earners)
A24: 0% | B24: =IF($D$3>0, A24,"") ->  | C24: Löhne, Gehälter mit Nebenkosten (s. Nebenrechnung) | D24: 2,000.0 | E24: 2,000.0 | F24: 2,000.0 | G24: 2,000.0 | H24: 2,000.0 | I24: 4,000.0 | J24: 4,000.0 | K24: 4,000.0 | L24: 4,000.0 | M24: 4,000.0 | N24: 4,000.0 | O24: 4,000.0 | P24: =SUM(D24:O24) -> 38,000.0 | U24: Gehaltssumme | V24: =((V17*V18)+(V19*V20)+(V21*V22))*(1+V23) -> 0 | W24: =((W17*W18)+(W19*W20)+(W21*W22))*(1+W23) -> 0 | X24: 0 | Y24: 0 | Z24: 0 | AA24: 0 | AB24: 0 | AC24: 0 | AD24: 0 | AE24: 0 | AF24: 0 | AG24: 0 | AH24: =SUM(V24:AG24) -> 0 | CW24: 20 | CX24: 0% | CY24: Löhne, Gehälter mit Nebenkosten (s. Nebenrechnung) | CZ24: Wages, salaries with additional costs (s. accillary account) | DA24: 20 | DB24: 0% | DC24: Löhne, Gehälter mit Nebenkosten (s. Nebenrechnung) | DD24: Wages, salaries with additional costs (s. accillary account)
A25: =MwSt -> 19% | C25: Sonstiges | P25: =SUM(D25:O25) -> 0.0 | CW25: 21 | CX25: =MwSt -> 19% | CY25: Sonstiges | CZ25: Others | DA25: 21 | DB25: 19% | DC25: Sonstiges | DD25: Others
C26: Summe Personalkosten | D26: =SUM(D24:D24) -> 2,000.0 | E26: 2,000.0 | F26: 2,000.0 | G26: 2,000.0 | H26: 2,000.0 | I26: 4,000.0 | J26: 4,000.0 | K26: 4,000.0 | L26: 4,000.0 | M26: 4,000.0 | N26: 4,000.0 | O26: 4,000.0 | P26: =SUM(D26:O26) -> 38,000.0 | CW26: 22 | CY26: Summe Personalkosten | CZ26: Sum personal costs | DA26: 22 | DB26: 0% | DC26: Summe Personalkosten | DD26: Sum personal costs
B27: 4 | C27: Reisekosten | CW27: 23 | CY27: Reisekosten | CZ27: Travel expenses | DA27: 23 | DB27: 0% | DC27: Reisekosten | DD27: Travel expenses
A28: =MwSt -> 19% | B28: =IF($D$3>0, A28,"") ->  | C28: Fahrtkosten | D28: 100.0 | E28: 100.0 | F28: 100.0 | G28: 100.0 | H28: 100.0 | I28: 100.0 | J28: 100.0 | K28: 100.0 | L28: 100.0 | M28: 100.0 | N28: 100.0 | O28: 100.0 | P28: =SUM(D28:O28) -> 1,200.0 | U28: =F80 -> 2017 | V28: =V16 -> Jan. | W28: Febr. | X28: März | Y28: April | Z28: Mai | AA28: Juni | AB28: Juli | AC28: Aug. | AD28: Sept. | AE28: Okt. | AF28: Nov. | AG28: Dez. | CW28: 24 | CX28: =MwSt -> 19% | CY28: Fahrtkosten | CZ28: Travel expenses | DA28: 24 | DB28: 19% | DC28: Fahrtkosten | DD28: Travel expenses
A29: =MwSt -> 19% | B29: =IF($D$3>0, A29,"") ->  | C29: Reisekostenpauschalen | P29: =SUM(D29:O29) -> 0.0 | U29: =U5 -> Anzahl Mitarbeiter | CW29: 25 | CX29: =MwSt -> 19% | CY29: Reisekostenpauschalen | CZ29: Travelling allowances | DA29: 25 | DB29: 19% | DC29: Reisekostenpauschalen | DD29: Travelling allowances
A30: =MwStklein -> 7% | C30: Übernachtungen | P30: =SUM(D30:O30) -> 0.0 | U30: Gehalt1 | CW30: 26 | CX30: =MwStklein -> 7% | CY30: Übernachtungen | CZ30: Accomodations | DA30: 26 | DB30: 7% | DC30: Übernachtungen | DD30: Accomodations
A31: =MwSt -> 19% | C31: Sonstiges | P31: =SUM(D31:O31) -> 0.0 | U31: Anzahl Mitarbeiter | CW31: 27 | CX31: =MwSt -> 19% | CY31: Sonstiges | CZ31: Others | DA31: 27 | DB31: 19% | DC31: Sonstiges | DD31: Others
C32: Summe Reisekosten | D32: =SUM(D28:D31) -> 100.0 | E32: =SUM(E28:E31) -> 100.0 | F32: 100.0 | G32: 100.0 | H32: 100.0 | I32: 100.0 | J32: 100.0 | K32: 100.0 | L32: 100.0 | M32: 100.0 | N32: 100.0 | O32: 100.0 | P32: =SUM(D32:O32) -> 1,200.0 | U32: Gehalt2 | CW32: 28 | CY32: ="Summe " &CY27 -> Summe Reisekosten | CZ32: Sum travel expenses | DA32: 28 | DB32: 0% | DC32: Summe Reisekosten | DD32: Sum travel expenses
B33: 5 | C33: Versicherungen und Beiträge (betrieblich!) | U33: Anzahl Mitarbeiter | CW33: 29 | CY33: Versicherungen und Beiträge (betrieblich!) | CZ33: Insurances and Contributions | DA33: 29 | DB33: 0% | DC33: Versicherungen und Beiträge (betrieblich!) | DD33: Insurances and Contributions
A34: =MwSt -> 19% | B34: =IF($D$3>0, A34,"") ->  | C34: Haftpflicht | P34: =SUM(D34:O34) -> 0.0 | U34: Gehalt3 | CW34: 30 | CX34: =MwSt -> 19% | CY34: Haftpflicht | CZ34: Insurance | DA34: 30 | DB34: 19% | DC34: Haftpflicht | DD34: Insurance
A35: =MwSt -> 19% | B35: =IF($D$3>0, A35,"") ->  | C35: Rechtschutzversicherung | D35: 100.0 | E35: 100.0 | F35: 100.0 | G35: 100.0 | H35: 100.0 | I35: 100.0 | J35: 100.0 | K35: 100.0 | L35: 100.0 | M35: 100.0 | N35: 100.0 | O35: 100.0 | P35: =SUM(D35:O35) -> 1,200.0 | U35: Nebenkosten (%) | CW35: 31 | CX35: =MwSt -> 19% | CY35: Rechtschutzversicherung | CZ35: Legal costs insurance | DA35: 31 | DB35: 19% | DC35: Rechtschutzversicherung | DD35: Legal costs insurance
A36: =MwSt -> 19% | C36: =IF($C$1="Deutsch",CY36,IF($C$1="English",CZ36,DB36)) -> Beiträge (IHK, Berufsverbände, ...) | P36: 0.0 | U36: Gehaltssumme | V36: =((V29*V30)+(V31*V32)+(V33*V34))*(1+V35) -> 0 | W36: 0 | X36: 0 | Y36: 0 | Z36: 0 | AA36: 0 | AB36: 0 | AC36: 0 | AD36: 0 | AE36: 0 | AF36: 0 | AG36: 0 | AH36: =SUM(V36:AG36) -> 0 | CW36: 32 | CX36: =MwSt -> 19% | CY36: Beiträge (IHK, Berufsverbände, ...) | CZ36: Conributions (IHK, trade organizations, ...) | DA36: 32 | DB36: 19% | DC36: Beiträge (IHK, Berufsverbände, ...) | DD36: Conributions (IHK, trade organizations, ...)
A37: =MwSt -> 19% | B37: =IF($D$3>0, A37,"") ->  | C37: Sonstiges | P37: 0.0 | CW37: 33 | CX37: =MwSt -> 19% | CY37: Sonstiges | CZ37: Others | DA37: 33 | DB37: 19% | DC37: Sonstiges | DD37: Others
C38: Summe Versicherungen und Beiträge (betrieblich!) | D38: =SUM(D34:D37) -> 100.0 | E38: =SUM(E34:E37) -> 100.0 | F38: 100.0 | G38: 100.0 | H38: 100.0 | I38: 100.0 | J38: 100.0 | K38: 100.0 | L38: 100.0 | M38: 100.0 | N38: 100.0 | O38: 100.0 | P38: =SUM(D38:O38) -> 1,200.0 | CW38: 34 | CY38: ="Summe "&CY33 -> Summe Versicherungen und Beiträge (betrieblich!) | CZ38: Sum insurances (operational) | DA38: 34 | DB38: 0% | DC38: Summe Versicherungen und Beiträge (betrieblich!) | DD38: Sum insurances (operational)
B39: 6 | C39: KFZ Kosten / Betriebliche Nutzung | CW39: 35 | CY39: KFZ Kosten / Betriebliche Nutzung | CZ39: Vehicle costs (operational use) | DA39: 35 | DB39: 0% | DC39: KFZ Kosten / Betriebliche Nutzung | DD39: Vehicle costs (operational use)
A40: =MwSt -> 19% | B40: =IF($D$3>0, A40,"") ->  | C40: Leasingraten Kfz | D40: 100.0 | E40: 100.0 | F40: 100.0 | G40: 100.0 | H40: 100.0 | I40: 100.0 | J40: 100.0 | K40: 100.0 | L40: 100.0 | M40: 100.0 | N40: 100.0 | O40: 100.0 | P40: =SUM(D40:O40) -> 1,200.0 | U40: =G80 -> 2018 | V40: =V4 -> Jan. | W40: Febr. | X40: März | Y40: April | Z40: Mai | AA40: Juni | AB40: Juli | AC40: Aug. | AD40: Sept. | AE40: Okt. | AF40: Nov. | AG40: Dez. | CW40: 36 | CX40: =MwSt -> 19% | CY40: Leasingraten Kfz | CZ40: Vehicle leasing rates | DA40: 36 | DB40: 19% | DC40: Leasingraten Kfz | DD40: Vehicle leasing rates
A41: 19% | B41: =IF($D$3>0, A41,"") ->  | C41: Versicherungen/Kfz-Steuer | D41: 100.0 | E41: 100.0 | F41: 100.0 | G41: 100.0 | H41: 100.0 | I41: 100.0 | J41: 100.0 | K41: 100.0 | L41: 100.0 | M41: 100.0 | N41: 100.0 | O41: 100.0 | P41: =SUM(D41:O41) -> 1,200.0 | U41: =U29 -> Anzahl Mitarbeiter | CW41: 37 | CX41: 19% | CY41: Versicherungen/Kfz-Steuer | CZ41: Insurance/tax on cars | DA41: 37 | DB41: 19% | DC41: Versicherungen/Kfz-Steuer | DD41: Insurance/tax on cars
A42: 19% | C42: Fahrzeugkosten (Tanken und Reparatur) | P42: 0.0 | U42: Gehalt1 | CW42: 38 | CX42: 19% | CY42: Fahrzeugkosten (Tanken und Reparatur) | CZ42: vehicle's costs (fuel and repairs) | DA42: 38 | DB42: 19% | DC42: Fahrzeugkosten (Tanken und Reparatur) | DD42: vehicle's costs (fuel and repairs)
A43: 0% | B43: =IF($D$3>0, A43,"") ->  | C43: Abrechenbare Kilometerkosten | P43: 0.0 | U43: Anzahl Mitarbeiter | CW43: 39 | CX43: 0% | CY43: Abrechenbare Kilometerkosten | CZ43: Costs deductibles per kilometre | DA43: 39 | DB43: 0% | DC43: Abrechenbare Kilometerkosten | DD43: Costs deductibles per kilometre
A44: =MwSt -> 19% | C44: Sonstiges | U44: Gehalt2 | CW44: 40 | CX44: =MwSt -> 19% | CY44: Sonstiges | CZ44: Others | DA44: 40 | DB44: 19% | DC44: Sonstiges | DD44: Others
C45: Summe KFZ Kosten / Betriebliche Nutzung | D45: =SUM(D40:D44) -> 200.0 | E45: =SUM(E40:E44) -> 200.0 | F45: 200.0 | G45: 200.0 | H45: 200.0 | I45: 200.0 | J45: 200.0 | K45: 200.0 | L45: 200.0 | M45: 200.0 | N45: 200.0 | O45: 200.0 | P45: =SUM(D45:O45) -> 2,400.0 | U45: Anzahl Mitarbeiter | CW45: 41 | CY45: ="Summe "&CY39 -> Summe KFZ Kosten / Betriebliche Nutzung | CZ45: Sum vehical costs / operational use) | DA45: 41 | DB45: 0% | DC45: Summe KFZ Kosten / Betriebliche Nutzung | DD45: Sum vehical costs / operational use)
B46: 7 | C46: Marketing u. Werbung | U46: Gehalt3 | CW46: 42 | CY46: Marketing u. Werbung | CZ46: Marketing & advertising | DA46: 42 | DB46: 0% | DC46: Marketing u. Werbung | DD46: Marketing & advertising
A47: =MwSt -> 19% | B47: =IF($D$3>0, A47,"") ->  | C47: Marktforschung | I47: 5,000.0 | P47: =SUM(D47:O47) -> 5,000.0 | U47: Nebenkosten (%) | CW47: 43 | CX47: =MwSt -> 19% | CY47: Marktforschung | CZ47: Market research | DA47: 43 | DB47: 19% | DC47: Marktforschung | DD47: Market research
A48: =MwSt -> 19% | B48: =IF($D$3>0, A48,"") ->  | C48: Briefpapier, Visitenkarte, Stempel | D48: 1,000.0 | P48: 1,000.0 | U48: Gehaltssumme | V48: =((V41*V42)+(V43*V44)+(V45*V46))*(1+V47) -> 0 | W48: 0 | X48: 0 | Y48: 0 | Z48: 0 | AA48: 0 | AB48: 0 | AC48: 0 | AD48: 0 | AE48: 0 | AF48: 0 | AG48: 0 | AH48: =SUM(V48:AG48) -> 0 | CW48: 44 | CX48: =MwSt -> 19% | CY48: Briefpapier, Visitenkarte, Stempel | CZ48: Letter paper, business card, stamp | DA48: 44 | DB48: 19% | DC48: Briefpapier, Visitenkarte, Stempel | DD48: Letter paper, business card, stamp
A49: =MwSt -> 19% | C49: Webseite, lfd. Webseitenpflege | D49: 100.0 | E49: 100.0 | F49: 100.0 | G49: 100.0 | H49: 100.0 | I49: 100.0 | J49: 100.0 | K49: 100.0 | L49: 100.0 | M49: 100.0 | N49: 100.0 | O49: 100.0 | P49: 1,200.0 | CW49: 45 | CX49: =MwSt -> 19% | CY49: Webseite, lfd. Webseitenpflege | CZ49: Website, current website maintenance | DA49: 45 | DB49: 19% | DC49: Webseite, lfd. Webseitenpflege | DD49: Website, current website maintenance
A50: =MwSt -> 19% | B50: =IF($D$3>0, A50,"") ->  | C50: Flyer, Prospekte, Broschüren, Anzeigen | P50: 0.0 | CW50: 46 | CX50: =MwSt -> 19% | CY50: Flyer, Prospekte, Broschüren, Anzeigen | CZ50: Flyers, leaflets, booklets, ads | DA50: 46 | DB50: 19% | DC50: Flyer, Prospekte, Broschüren, Anzeigen | DD50: Flyers, leaflets, booklets, ads
A51: 19% | C51: Bewirtungskosten | P51: 0.0 | CW51: 47 | CX51: 19% | CY51: Bewirtungskosten | CZ51: entertainment expenses | DA51: 47 | DB51: 19% | DC51: Bewirtungskosten | DD51: entertainment expenses
A52: =MwSt -> 19% | C52: Sonstiges, Messen, ... | P52: 0.0 | U52: =H80 -> 2019 | V52: =V16 -> Jan. | W52: Febr. | X52: März | Y52: April | Z52: Mai | AA52: Juni | AB52: Juli | AC52: Aug. | AD52: Sept. | AE52: Okt. | AF52: Nov. | AG52: Dez. | CW52: 48 | CX52: =MwSt -> 19% | CY52: Sonstiges, Messen, ... | CZ52: Others, fairs ... | DA52: 48 | DB52: 19% | DC52: Sonstiges, Messen, ... | DD52: Others, fairs ...
C53: Summe Marketing u. Werbung | D53: =SUM(D47:D52) -> 1,100.0 | E53: =SUM(E47:E52) -> 100.0 | F53: 100.0 | G53: 100.0 | H53: 100.0 | I53: 5,100.0 | J53: 100.0 | K53: 100.0 | L53: 100.0 | M53: 100.0 | N53: 100.0 | O53: 100.0 | P53: 7,200.0 | U53: =U41 -> Anzahl Mitarbeiter | CW53: 49 | CY53: ="Summe "&CY46 -> Summe Marketing u. Werbung | CZ53: Sum marketing & advertising | DA53: 49 | DB53: 0% | DC53: Summe Marketing u. Werbung | DD53: Sum marketing & advertising
B54: 8 | C54: Rechts- und Beratungskosten | U54: Gehalt1 | CW54: 50 | CY54: Rechts- und Beratungskosten | CZ54: Legislation and consultancy fees | DA54: 50 | DB54: 0% | DC54: Rechts- und Beratungskosten | DD54: Legislation and consultancy fees
A55: 19% | B55: =IF($D$3>0, A55,"") ->  | C55: Buchhaltung | P55: 0.0 | U55: Anzahl Mitarbeiter | CW55: 51 | CX55: 19% | CY55: Buchhaltung | CZ55: Bookkeeping | DA55: 51 | DB55: 19% | DC55: Buchhaltung | DD55: Bookkeeping
A56: 19% | B56: =IF($D$3>0, A56,"") ->  | C56: Steuerberatung, Abschluss, Prüfung | P56: 0.0 | U56: Gehalt2 | CW56: 52 | CX56: 19% | CY56: Steuerberatung, Abschluss, Prüfung | CZ56: Tax consultancy, accounts, annual audit | DA56: 52 | DB56: 19% | DC56: Steuerberatung, Abschluss, Prüfung | DD56: Tax consultancy, accounts, annual audit
A57: 7% | C57: Sonstiges | P57: 0.0 | U57: Anzahl Mitarbeiter | CW57: 53 | CX57: 7% | CY57: Sonstiges | CZ57: Others | DA57: 53 | DB57: 7% | DC57: Sonstiges | DD57: Others
C58: Summe Rechts- und Beratungskosten | D58: =SUM(D55:D57) -> 0.0 | E58: =SUM(E55:E57) -> 0.0 | F58: 0.0 | G58: 0.0 | H58: 0.0 | I58: 0.0 | J58: 0.0 | K58: 0.0 | L58: 0.0 | M58: 0.0 | N58: 0.0 | O58: 0.0 | P58: 0.0 | U58: Gehalt3 | CW58: 54 | CY58: Summe Rechts- und Beratungskosten | CZ58: Sum legislation and consultancy fees | DA58: 54 | DB58: 0% | DC58: Summe Rechts- und Beratungskosten | DD58: Sum legislation and consultancy fees
B59: 9 | C59: Verschiedenes | U59: Nebenkosten (%) | CW59: 55 | CY59: Verschiedenes | CZ59: Miscellaneous | DA59: 55 | DB59: 0% | DC59: Verschiedenes | DD59: Miscellaneous
A60: 0% | B60: =IF($D$3=-1, A60,"") ->  | C60: Finanzaufwand / Zinsen *) | D60: ='7 Finanzierung|Financing'!D36 -> 83.3 | E60: ='7 Finanzierung|Financing'!E36 -> 82.6 | F60: ='7 Finanzierung|Financing'!F36 -> 81.9 | G60: ='7 Finanzierung|Financing'!G36 -> 81.3 | H60: ='7 Finanzierung|Financing'!H36 -> 122.2 | I60: ='7 Finanzierung|Financing'!I36 -> 120.8 | J60: ='7 Finanzierung|Financing'!J36 -> 119.4 | K60: ='7 Finanzierung|Financing'!J36 -> 119.4 | L60: ='7 Finanzierung|Financing'!K36 -> 118.1 | M60: ='7 Finanzierung|Financing'!L36 -> 116.7 | N60: ='7 Finanzierung|Financing'!M36 -> 115.3 | O60: ='7 Finanzierung|Financing'!N36 -> 113.9 | P60: =SUM(D60:O60) -> 1,275.0 | U60: Gehaltssumme | V60: =((V53*V54)+(V55*V56)+(V57*V58))*(1+V59) -> 0 | W60: 0 | X60: 0 | Y60: 0 | Z60: 0 | AA60: 0 | AB60: 0 | AC60: 0 | AD60: 0 | AE60: 0 | AF60: 0 | AG60: 0 | AH60: =SUM(V60:AG60) -> 0 | CW60: 56 | CX60: 0% | CY60: Finanzaufwand / Zinsen *) | CZ60: Financial costs / interest *) | DA60: 56 | DB60: 0% | DC60: Finanzaufwand / Zinsen *) | DD60: Financial costs / interest *)
A61: =MwSt -> 19% | B61: =IF($D$3>0, A61,"") ->  | C61: Reisekosten | D61: 100.0 | E61: 100.0 | F61: 100.0 | G61: 100.0 | H61: 100.0 | I61: 100.0 | J61: 100.0 | K61: 100.0 | L61: 100.0 | M61: 100.0 | N61: 100.0 | O61: 100.0 | P61: 1,200.0 | CW61: 57 | CX61: =MwSt -> 19% | CY61: Reisekosten | CZ61: Travel expenses | DA61: 57 | DB61: 19% | DC61: Reisekosten | DD61: Travel expenses
A62: 7% | B62: =IF($D$3>0, A62,"") ->  | C62: Fachliteratur, Bücher | D62: 20.0 | E62: 20.0 | F62: 20.0 | G62: 20.0 | H62: 20.0 | I62: 20.0 | J62: 20.0 | K62: 20.0 | L62: 20.0 | M62: 20.0 | N62: 20.0 | O62: 20.0 | P62: 240.0 | CW62: 58 | CX62: 7% | CY62: Fachliteratur, Bücher | CZ62: Specialist literature, books | DA62: 58 | DB62: 7% | DC62: Fachliteratur, Bücher | DD62: Specialist literature, books
A63: 19% | C63: Schulungen | D63: 1,000.0 | K63: 1,000.0 | P63: 2,000.0 | CW63: 59 | CX63: 19% | CY63: Schulungen | CZ63: Profesional training | DA63: 59 | DB63: 19% | DC63: Schulungen | DD63: Profesional training
A64: 7% | C64: Sonstiges | P64: 0.0 | CW64: 60 | CX64: 7% | CY64: Sonstiges | CZ64: Others | DA64: 60 | DB64: 7% | DC64: Sonstiges | DD64: Others
C65: Summe Verschiedenes | D65: =SUM(D60:D64) -> 1,203.3 | E65: =SUM(E60:E64) -> 202.6 | F65: 201.9 | G65: 201.3 | H65: 242.2 | I65: 240.8 | J65: 239.4 | K65: 1,239.4 | L65: 238.1 | M65: 236.7 | N65: 235.3 | O65: 233.9 | P65: 4,715.0 | CW65: 61 | CY65: Summe Verschiedenes | CZ65: Sum miscellaneous | DA65: 61 | DB65: 0% | DC65: Summe Verschiedenes | DD65: Sum miscellaneous
C66: Summe Betriebskosten I | D66: =SUM(D5:D65)/2 -> 7,903.3 | E66: =SUM(E5:E65)/2 -> 5,902.6 | F66: 5,901.9 | G66: 5,901.3 | H66: 5,942.2 | I66: 12,940.8 | J66: 7,939.4 | K66: 8,939.4 | L66: 7,938.1 | M66: 7,936.7 | N66: 7,935.3 | O66: 7,933.9 | P66: 93,115.0 | CY66: Summe Betriebskosten I | CZ66: Sum operating costs I
C67: Abschreibungen (aus Tab 3a) | D67: ='3 Anschaffungen|Aquirements'!E31 -> 0.0 | E67: ='3 Anschaffungen|Aquirements'!F31 -> 0.0 | F67: ='3 Anschaffungen|Aquirements'!G31 -> 0.0 | G67: ='3 Anschaffungen|Aquirements'!H31 -> 0.0 | H67: ='3 Anschaffungen|Aquirements'!I31 -> 0.0 | I67: ='3 Anschaffungen|Aquirements'!J31 -> 0.0 | J67: ='3 Anschaffungen|Aquirements'!K31 -> 0.0 | K67: ='3 Anschaffungen|Aquirements'!L31 -> 0.0 | L67: ='3 Anschaffungen|Aquirements'!M31 -> 0.0 | M67: ='3 Anschaffungen|Aquirements'!N31 -> 0.0 | N67: ='3 Anschaffungen|Aquirements'!O31 -> 0.0 | O67: ='3 Anschaffungen|Aquirements'!P31 -> 240.0 | P67: =SUM(D67:O67) -> 240.0 | CY67: Abschreibungen (aus Tab 3a) | CZ67: Write offs (from tab. 3a)
C68: Summe Betriebskosten II | D68: =SUM(D66:D67) -> 7,903.3 | E68: =SUM(E66:E67) -> 5,902.6 | F68: =SUM(F66:F67) -> 5,901.9 | G68: 5,901.3 | H68: 5,942.2 | I68: 12,940.8 | J68: 7,939.4 | K68: 8,939.4 | L68: 7,938.1 | M68: 7,936.7 | N68: 7,935.3 | O68: 8,173.9 | P68: 93,355.0 | CY68: ="Summe Betriebskosten II" -> Summe Betriebskosten II | CZ68: Sum operating costs II
C69: *) wird aus Tabelle "Finanzierung" übernommen (auf ganze Euro gerundet!) | CY69: *) wird aus Tabelle "Finanzierung" übernommen (auf ganze Euro gerundet!) | CZ69: *) out of Table "Finanzierung"
C71: =IF($C$1="English",CZ71,CY71) -> 4a Anhang: Ausweis der MwSt in EURO aus der Differenz zwischen den Tabellen 4a und 4c | CY71: 4a Anhang: Ausweis der MwSt in EURO aus der Differenz zwischen den Tabellen 4a und 4c | CZ71: 4a Addendum: Disclosure of VAT (Difference between Tab. 4a and 4c)
C72: =IF($C$1="Deutsch",CY73,IF($C$1="English",CZ73,DB73))& " " & MwSt*100 &"%" -> Summe der angefallenen MwSt 19% | D72: =IF($A6=MwSt,D6*IF(OR($D$3=0,$D$3=3),$A6,$A6/(1+$A6)),0)+IF($A7=MwSt,D7*IF(OR($D$3=0,$D$3=3),$A7,$A7/(1+$A7)),0)+IF($A8=MwSt,D8*IF(OR($D$3=0,$D$3=3),$A8,$A8/(1+$A8)),0)+IF($A9=MwSt,D9*IF(OR($D$3=0,$D$3=3),$A9,$A9/(1+$A9)),0)+IF($A10=MwSt,D10*IF(OR($D$3=0,$D$3=3),$A10,$A10/(1+$A10)),0)+IF($A11=MwSt,D11*IF(OR($D$3=0,$D$3=3),$A11,$A11/(1+$A11)),0)+IF($A14=MwSt,D14*IF(OR($D$3=0,$D$3=3),$A14,$A14/(1+$A14)),0)+IF($A15=MwSt,D15*IF(OR($D$3=0,$D$3=3),$A15,$A15/(1+$A15)),0)+IF($A16=MwSt,D16*IF(OR($D$3=0,$D$3=3),$A16,$A16/(1+$A16)),0)+IF($A17=MwSt,D17*IF(OR($D$3=0,$D$3=3),$A17,$A17/(1+$A17)),0)+IF($A18=MwSt,D18*IF(OR($D$3=0,$D$3=3),$A18,$A18/(1+$A18)),0)+IF($A19=MwSt,D19*IF(OR($D$3=0,$D$3=3),$A19,$A19/(1+$A19)),0)+IF($A20=MwSt,D20*IF(OR($D$3=0,$D$3=3),$A20,$A20/(1+$A20)),0)+IF($A21=MwSt,D21*IF(OR($D$3=0,$D$3=3),$A21,$A21/(1+$A21)),0)+IF($A24=MwSt,D24*IF(OR($D$3=0,$D$3=3),$A24,$A24/(1+$A24)),0)+IF($A25=MwSt,D25*IF(OR($D$3=0,$D$3=3),$A25,$A25/(1+$A25)),0)+IF($A28=MwSt,D28*IF(OR($D$3=0,$D$3=3),$A28,$A28/(1+$A28)),0)+IF($A29=MwSt,D29*IF(OR($D$3=0,$D$3=3),$A29,$A29/(1+$A29)),0)+IF($A30=MwSt,D30*IF(OR($D$3=0,$D$3=3),$A30,$A30/(1+$A30)),0)+IF($A31=MwSt,D31*IF(OR($D$3=0,$D$3=3),$A31,$A31/(1+$A31)),0)+IF($A34=MwSt,D34*IF(OR($D$3=0,$D$3=3),$A34,$A34/(1+$A34)),0)+IF($A35=MwSt,D35*IF(OR($D$3=0,$D$3=3),$A35,$A35/(1+$A35)),0)+IF($A36=MwSt,D36*IF(OR($D$3=0,$D$3=3),$A36,$A36/(1+$A36)),0)+IF($A37=MwSt,D37*IF(OR($D$3=0,$D$3=3),$A37,$A37/(1+$A37)),0)+IF($A40=MwSt,D40*IF(OR($D$3=0,$D$3=3),$A40,$A40/(1+$A40)),0)+IF($A41=MwSt,D41*IF(OR($D$3=0,$D$3=3),$A41,$A41/(1+$A41)),0)+IF($A42=MwSt,D42*IF(OR($D$3=0,$D$3=3),$A42,$A42/(1+$A42)),0)+IF($A43=MwSt,D43*IF(OR($D$3=0,$D$3=3),$A43,$A43/(1+$A43)),0)++IF($A44=MwSt,D44*IF(OR($D$3=0,$D$3=3),$A44,$A44/(1+$A44)),0)*IF($A47=MwSt,D47*IF(OR($D$3=0,$D$3=3),$A47,$A47/(1+$A47)),0)+IF($A48=MwSt,D48*IF(OR($D$3=0,$D$3=3),$A48,$A48/(1+$A48)),0)+IF($A49=MwSt,D49*IF(OR($D$3=0,$D$3=3),$A49,$A49/(1+$A49)),0)+IF($A50=MwSt,D50*IF(OR($D$3=0,$D$3=3),$A50,$A50/(1+$A50)),0)+IF($A52=MwSt,D52*IF(OR($D$3=0,$D$3=3),$A52,$A52/(1+$A52)),0)+IF($A55=MwSt,D55*IF(OR($D$3=0,$D$3=3),$A55,$A55/(1+$A55)),0)+IF($A56=MwSt,D56*IF(OR($D$3=0,$D$3=3),$A56,$A56/(1+$A56)),0)+IF($A57=MwSt,D57*IF(OR($D$3=0,$D$3=3),$A57,$A57/(1+$A57)),0)+IF($A61=MwSt,D61*IF(OR($D$3=0,$D$3=3),$A61,$A61/(1+$A61)),0)+IF($A62=MwSt,D62*IF(OR($D$3=0,$D$3=3),$A62,$A62/(1+$A62)),0)+IF($A63=MwSt,D63*IF(OR($D$3=0,$D$3=3),$A63,$A63/(1+$A63)),0)+IF($A64=MwSt,D64*IF(OR($D$3=0,$D$3=3),$A64,$A64/(1+$A64)),0) -> 1,102.0 | E72: 722.0 | F72: 722.0 | G72: 722.0 | H72: 722.0 | I72: 722.0 | J72: 722.0 | K72: 912.0 | L72: 722.0 | M72: 722.0 | N72: 722.0 | O72: 722.0 | P72: =SUM(D72:O72) -> 9,234.0 | CY72: Summe der angefallenen MwSt | CZ72: Sum VAT
C73: =IF($C$1="Deutsch",CY73,IF($C$1="English",CZ73,DB73))& " " & MwStklein*100 &"%" -> Summe der angefallenen MwSt 7% | D73: =IF($A6=MwStklein,D6*IF(OR($D$3=0,$D$3=3),$A6,$A6/(1+$A6)),0)+IF($A7=MwStklein,D7*IF(OR($D$3=0,$D$3=3),$A7,$A7/(1+$A7)),0)+IF($A8=MwStklein,D8*IF(OR($D$3=0,$D$3=3),$A8,$A8/(1+$A8)),0)+IF($A9=MwStklein,D9*IF(OR($D$3=0,$D$3=3),$A9,$A9/(1+$A9)),0)+IF($A10=MwStklein,D10*IF(OR($D$3=0,$D$3=3),$A10,$A10/(1+$A10)),0)+IF($A11=MwStklein,D11*IF(OR($D$3=0,$D$3=3),$A11,$A11/(1+$A11)),0)+IF($A14=MwStklein,D14*IF(OR($D$3=0,$D$3=3),$A14,$A14/(1+$A14)),0)+IF($A15=MwStklein,D15*IF(OR($D$3=0,$D$3=3),$A15,$A15/(1+$A15)),0)+IF($A16=MwStklein,D16*IF(OR($D$3=0,$D$3=3),$A16,$A16/(1+$A16)),0)+IF($A17=MwStklein,D17*IF(OR($D$3=0,$D$3=3),$A17,$A17/(1+$A17)),0)+IF($A18=MwStklein,D18*IF(OR($D$3=0,$D$3=3),$A18,$A18/(1+$A18)),0)+IF($A19=MwStklein,D19*IF(OR($D$3=0,$D$3=3),$A19,$A19/(1+$A19)),0)+IF($A20=MwStklein,D20*IF(OR($D$3=0,$D$3=3),$A20,$A20/(1+$A20)),0)+IF($A21=MwStklein,D21*IF(OR($D$3=0,$D$3=3),$A21,$A21/(1+$A21)),0)+IF($A24=MwStklein,D24*IF(OR($D$3=0,$D$3=3),$A24,$A24/(1+$A24)),0)+IF($A25=MwStklein,D25*IF(OR($D$3=0,$D$3=3),$A25,$A25/(1+$A25)),0)+IF($A28=MwStklein,#REF!*IF(OR($D$3=0,$D$3=3),$A28,$A28/(1+$A28)),0)+IF($A29=MwStklein,D29*IF(OR($D$3=0,$D$3=3),$A29,$A29/(1+$A29)),0)+IF($A30=MwStklein,D30*IF(OR($D$3=0,$D$3=3),$A30,$A30/(1+$A30)),0)+IF($A31=MwStklein,D31*IF(OR($D$3=0,$D$3=3),$A31,$A31/(1+$A31)),0)+IF($A34=MwStklein,D34*IF(OR($D$3=0,$D$3=3),$A34,$A34/(1+$A34)),0)+IF($A35=MwStklein,D35*IF(OR($D$3=0,$D$3=3),$A35,$A35/(1+$A35)),0)+IF($A36=MwStklein,D36*IF(OR($D$3=0,$D$3=3),$A36,$A36/(1+$A36)),0)+IF($A37=MwStklein,D37*IF(OR($D$3=0,$D$3=3),$A37,$A37/(1+$A37)),0)+IF($A40=MwStklein,D40*IF(OR($D$3=0,$D$3=3),$A40,$A40/(1+$A40)),0)+IF($A41=MwStklein,D41*IF(OR($D$3=0,$D$3=3),$A41,$A41/(1+$A41)),0)+IF($A42=MwStklein,D42*IF(OR($D$3=0,$D$3=3),$A42,$A42/(1+$A42)),0)+IF($A43=MwStklein,D43*IF(OR($D$3=0,$D$3=3),$A43,$A43/(1+$A43)),0)++IF($A44=MwStklein,D44*IF(OR($D$3=0,$D$3=3),$A44,$A44/(1+$A44)),0)*IF($A47=MwStklein,D47*IF(OR($D$3=0,$D$3=3),$A47,$A47/(1+$A47)),0)+IF($A48=MwStklein,D48*IF(OR($D$3=0,$D$3=3),$A48,$A48/(1+$A48)),0)+IF($A49=MwStklein,D49*IF(OR($D$3=0,$D$3=3),$A49,$A49/(1+$A49)),0)+IF($A50=MwStklein,D50*IF(OR($D$3=0,$D$3=3),$A50,$A50/(1+$A50)),0)+IF($A52=MwStklein,D52*IF(OR($D$3=0,$D$3=3),$A52,$A52/(1+$A52)),0)+IF($A55=MwStklein,D55*IF(OR($D$3=0,$D$3=3),$A55,$A55/(1+$A55)),0)+IF($A56=MwStklein,D56*IF(OR($D$3=0,$D$3=3),$A56,$A56/(1+$A56)),0)+IF($A57=MwStklein,D57*IF(OR($D$3=0,$D$3=3),$A57,$A57/(1+$A57)),0)+IF($A61=MwStklein,D61*IF(OR($D$3=0,$D$3=3),$A61,$A61/(1+$A61)),0)+IF($A62=MwStklein,D62*IF(OR($D$3=0,$D$3=3),$A62,$A62/(1+$A62)),0)+IF($A63=MwStklein,D63*IF(OR($D$3=0,$D$3=3),$A63,$A63/(1+$A63)),0)+IF($A64=MwStklein,D64*IF(OR($D$3=0,$D$3=3),$A64,$A64/(1+$A64)),0) -> 1.4 | E73: =IF($A6=MwStklein,E6*IF(OR($D$3=0,$D$3=3),$A6,$A6/(1+$A6)),0)+IF($A7=MwStklein,E7*IF(OR($D$3=0,$D$3=3),$A7,$A7/(1+$A7)),0)+IF($A8=MwStklein,E8*IF(OR($D$3=0,$D$3=3),$A8,$A8/(1+$A8)),0)+IF($A9=MwStklein,E9*IF(OR($D$3=0,$D$3=3),$A9,$A9/(1+$A9)),0)+IF($A10=MwStklein,E10*IF(OR($D$3=0,$D$3=3),$A10,$A10/(1+$A10)),0)+IF($A11=MwStklein,E11*IF(OR($D$3=0,$D$3=3),$A11,$A11/(1+$A11)),0)+IF($A14=MwStklein,E14*IF(OR($D$3=0,$D$3=3),$A14,$A14/(1+$A14)),0)+IF($A15=MwStklein,E15*IF(OR($D$3=0,$D$3=3),$A15,$A15/(1+$A15)),0)+IF($A16=MwStklein,E16*IF(OR($D$3=0,$D$3=3),$A16,$A16/(1+$A16)),0)+IF($A17=MwStklein,E17*IF(OR($D$3=0,$D$3=3),$A17,$A17/(1+$A17)),0)+IF($A18=MwStklein,E18*IF(OR($D$3=0,$D$3=3),$A18,$A18/(1+$A18)),0)+IF($A19=MwStklein,E19*IF(OR($D$3=0,$D$3=3),$A19,$A19/(1+$A19)),0)+IF($A20=MwStklein,E20*IF(OR($D$3=0,$D$3=3),$A20,$A20/(1+$A20)),0)+IF($A21=MwStklein,E21*IF(OR($D$3=0,$D$3=3),$A21,$A21/(1+$A21)),0)+IF($A24=MwStklein,E24*IF(OR($D$3=0,$D$3=3),$A24,$A24/(1+$A24)),0)+IF($A25=MwStklein,E25*IF(OR($D$3=0,$D$3=3),$A25,$A25/(1+$A25)),0)+IF($A28=MwStklein,#REF!*IF(OR($D$3=0,$D$3=3),$A28,$A28/(1+$A28)),0)+IF($A29=MwStklein,E29*IF(OR($D$3=0,$D$3=3),$A29,$A29/(1+$A29)),0)+IF($A30=MwStklein,E30*IF(OR($D$3=0,$D$3=3),$A30,$A30/(1+$A30)),0)+IF($A31=MwStklein,E31*IF(OR($D$3=0,$D$3=3),$A31,$A31/(1+$A31)),0)+IF($A34=MwStklein,E34*IF(OR($D$3=0,$D$3=3),$A34,$A34/(1+$A34)),0)+IF($A35=MwStklein,E35*IF(OR($D$3=0,$D$3=3),$A35,$A35/(1+$A35)),0)+IF($A36=MwStklein,E36*IF(OR($D$3=0,$D$3=3),$A36,$A36/(1+$A36)),0)+IF($A37=MwStklein,E37*IF(OR($D$3=0,$D$3=3),$A37,$A37/(1+$A37)),0)+IF($A40=MwStklein,E40*IF(OR($D$3=0,$D$3=3),$A40,$A40/(1+$A40)),0)+IF($A41=MwStklein,E41*IF(OR($D$3=0,$D$3=3),$A41,$A41/(1+$A41)),0)+IF($A42=MwStklein,E42*IF(OR($D$3=0,$D$3=3),$A42,$A42/(1+$A42)),0)+IF($A43=MwStklein,E43*IF(OR($D$3=0,$D$3=3),$A43,$A43/(1+$A43)),0)++IF($A44=MwStklein,E44*IF(OR($D$3=0,$D$3=3),$A44,$A44/(1+$A44)),0)*IF($A47=MwStklein,E47*IF(OR($D$3=0,$D$3=3),$A47,$A47/(1+$A47)),0)+IF($A48=MwStklein,E48*IF(OR($D$3=0,$D$3=3),$A48,$A48/(1+$A48)),0)+IF($A49=MwStklein,E49*IF(OR($D$3=0,$D$3=3),$A49,$A49/(1+$A49)),0)+IF($A50=MwStklein,E50*IF(OR($D$3=0,$D$3=3),$A50,$A50/(1+$A50)),0)+IF($A52=MwStklein,E52*IF(OR($D$3=0,$D$3=3),$A52,$A52/(1+$A52)),0)+IF($A55=MwStklein,E55*IF(OR($D$3=0,$D$3=3),$A55,$A55/(1+$A55)),0)+IF($A56=MwStklein,E56*IF(OR($D$3=0,$D$3=3),$A56,$A56/(1+$A56)),0)+IF($A57=MwStklein,E57*IF(OR($D$3=0,$D$3=3),$A57,$A57/(1+$A57)),0)+IF($A61=MwStklein,E61*IF(OR($D$3=0,$D$3=3),$A61,$A61/(1+$A61)),0)+IF($A62=MwStklein,E62*IF(OR($D$3=0,$D$3=3),$A62,$A62/(1+$A62)),0)+IF($A63=MwStklein,E63*IF(OR($D$3=0,$D$3=3),$A63,$A63/(1+$A63)),0)+IF($A64=MwStklein,E64*IF(OR($D$3=0,$D$3=3),$A64,$A64/(1+$A64)),0) -> 1.4 | F73: =IF($A6=MwStklein,F6*IF(OR($D$3=0,$D$3=3),$A6,$A6/(1+$A6)),0)+IF($A7=MwStklein,F7*IF(OR($D$3=0,$D$3=3),$A7,$A7/(1+$A7)),0)+IF($A8=MwStklein,F8*IF(OR($D$3=0,$D$3=3),$A8,$A8/(1+$A8)),0)+IF($A9=MwStklein,F9*IF(OR($D$3=0,$D$3=3),$A9,$A9/(1+$A9)),0)+IF($A10=MwStklein,F10*IF(OR($D$3=0,$D$3=3),$A10,$A10/(1+$A10)),0)+IF($A11=MwStklein,F11*IF(OR($D$3=0,$D$3=3),$A11,$A11/(1+$A11)),0)+IF($A14=MwStklein,F14*IF(OR($D$3=0,$D$3=3),$A14,$A14/(1+$A14)),0)+IF($A15=MwStklein,F15*IF(OR($D$3=0,$D$3=3),$A15,$A15/(1+$A15)),0)+IF($A16=MwStklein,F16*IF(OR($D$3=0,$D$3=3),$A16,$A16/(1+$A16)),0)+IF($A17=MwStklein,F17*IF(OR($D$3=0,$D$3=3),$A17,$A17/(1+$A17)),0)+IF($A18=MwStklein,F18*IF(OR($D$3=0,$D$3=3),$A18,$A18/(1+$A18)),0)+IF($A19=MwStklein,F19*IF(OR($D$3=0,$D$3=3),$A19,$A19/(1+$A19)),0)+IF($A20=MwStklein,F20*IF(OR($D$3=0,$D$3=3),$A20,$A20/(1+$A20)),0)+IF($A21=MwStklein,F21*IF(OR($D$3=0,$D$3=3),$A21,$A21/(1+$A21)),0)+IF($A24=MwStklein,F24*IF(OR($D$3=0,$D$3=3),$A24,$A24/(1+$A24)),0)+IF($A25=MwStklein,F25*IF(OR($D$3=0,$D$3=3),$A25,$A25/(1+$A25)),0)+IF($A28=MwStklein,#REF!*IF(OR($D$3=0,$D$3=3),$A28,$A28/(1+$A28)),0)+IF($A29=MwStklein,F29*IF(OR($D$3=0,$D$3=3),$A29,$A29/(1+$A29)),0)+IF($A30=MwStklein,F30*IF(OR($D$3=0,$D$3=3),$A30,$A30/(1+$A30)),0)+IF($A31=MwStklein,F31*IF(OR($D$3=0,$D$3=3),$A31,$A31/(1+$A31)),0)+IF($A34=MwStklein,F34*IF(OR($D$3=0,$D$3=3),$A34,$A34/(1+$A34)),0)+IF($A35=MwStklein,F35*IF(OR($D$3=0,$D$3=3),$A35,$A35/(1+$A35)),0)+IF($A36=MwStklein,F36*IF(OR($D$3=0,$D$3=3),$A36,$A36/(1+$A36)),0)+IF($A37=MwStklein,F37*IF(OR($D$3=0,$D$3=3),$A37,$A37/(1+$A37)),0)+IF($A40=MwStklein,F40*IF(OR($D$3=0,$D$3=3),$A40,$A40/(1+$A40)),0)+IF($A41=MwStklein,F41*IF(OR($D$3=0,$D$3=3),$A41,$A41/(1+$A41)),0)+IF($A42=MwStklein,F42*IF(OR($D$3=0,$D$3=3),$A42,$A42/(1+$A42)),0)+IF($A43=MwStklein,F43*IF(OR($D$3=0,$D$3=3),$A43,$A43/(1+$A43)),0)++IF($A44=MwStklein,F44*IF(OR($D$3=0,$D$3=3),$A44,$A44/(1+$A44)),0)*IF($A47=MwStklein,F47*IF(OR($D$3=0,$D$3=3),$A47,$A47/(1+$A47)),0)+IF($A48=MwStklein,F48*IF(OR($D$3=0,$D$3=3),$A48,$A48/(1+$A48)),0)+IF($A49=MwStklein,F49*IF(OR($D$3=0,$D$3=3),$A49,$A49/(1+$A49)),0)+IF($A50=MwStklein,F50*IF(OR($D$3=0,$D$3=3),$A50,$A50/(1+$A50)),0)+IF($A52=MwStklein,F52*IF(OR($D$3=0,$D$3=3),$A52,$A52/(1+$A52)),0)+IF($A55=MwStklein,F55*IF(OR($D$3=0,$D$3=3),$A55,$A55/(1+$A55)),0)+IF($A56=MwStklein,F56*IF(OR($D$3=0,$D$3=3),$A56,$A56/(1+$A56)),0)+IF($A57=MwStklein,F57*IF(OR($D$3=0,$D$3=3),$A57,$A57/(1+$A57)),0)+IF($A61=MwStklein,F61*IF(OR($D$3=0,$D$3=3),$A61,$A61/(1+$A61)),0)+IF($A62=MwStklein,F62*IF(OR($D$3=0,$D$3=3),$A62,$A62/(1+$A62)),0)+IF($A63=MwStklein,F63*IF(OR($D$3=0,$D$3=3),$A63,$A63/(1+$A63)),0)+IF($A64=MwStklein,F64*IF(OR($D$3=0,$D$3=3),$A64,$A64/(1+$A64)),0) -> 1.4 | G73: =IF($A6=MwStklein,G6*IF(OR($D$3=0,$D$3=3),$A6,$A6/(1+$A6)),0)+IF($A7=MwStklein,G7*IF(OR($D$3=0,$D$3=3),$A7,$A7/(1+$A7)),0)+IF($A8=MwStklein,G8*IF(OR($D$3=0,$D$3=3),$A8,$A8/(1+$A8)),0)+IF($A9=MwStklein,G9*IF(OR($D$3=0,$D$3=3),$A9,$A9/(1+$A9)),0)+IF($A10=MwStklein,G10*IF(OR($D$3=0,$D$3=3),$A10,$A10/(1+$A10)),0)+IF($A11=MwStklein,G11*IF(OR($D$3=0,$D$3=3),$A11,$A11/(1+$A11)),0)+IF($A14=MwStklein,G14*IF(OR($D$3=0,$D$3=3),$A14,$A14/(1+$A14)),0)+IF($A15=MwStklein,G15*IF(OR($D$3=0,$D$3=3),$A15,$A15/(1+$A15)),0)+IF($A16=MwStklein,G16*IF(OR($D$3=0,$D$3=3),$A16,$A16/(1+$A16)),0)+IF($A17=MwStklein,G17*IF(OR($D$3=0,$D$3=3),$A17,$A17/(1+$A17)),0)+IF($A18=MwStklein,G18*IF(OR($D$3=0,$D$3=3),$A18,$A18/(1+$A18)),0)+IF($A19=MwStklein,G19*IF(OR($D$3=0,$D$3=3),$A19,$A19/(1+$A19)),0)+IF($A20=MwStklein,G20*IF(OR($D$3=0,$D$3=3),$A20,$A20/(1+$A20)),0)+IF($A21=MwStklein,G21*IF(OR($D$3=0,$D$3=3),$A21,$A21/(1+$A21)),0)+IF($A24=MwStklein,G24*IF(OR($D$3=0,$D$3=3),$A24,$A24/(1+$A24)),0)+IF($A25=MwStklein,G25*IF(OR($D$3=0,$D$3=3),$A25,$A25/(1+$A25)),0)+IF($A28=MwStklein,#REF!*IF(OR($D$3=0,$D$3=3),$A28,$A28/(1+$A28)),0)+IF($A29=MwStklein,G29*IF(OR($D$3=0,$D$3=3),$A29,$A29/(1+$A29)),0)+IF($A30=MwStklein,G30*IF(OR($D$3=0,$D$3=3),$A30,$A30/(1+$A30)),0)+IF($A31=MwStklein,G31*IF(OR($D$3=0,$D$3=3),$A31,$A31/(1+$A31)),0)+IF($A34=MwStklein,G34*IF(OR($D$3=0,$D$3=3),$A34,$A34/(1+$A34)),0)+IF($A35=MwStklein,G35*IF(OR($D$3=0,$D$3=3),$A35,$A35/(1+$A35)),0)+IF($A36=MwStklein,G36*IF(OR($D$3=0,$D$3=3),$A36,$A36/(1+$A36)),0)+IF($A37=MwStklein,G37*IF(OR($D$3=0,$D$3=3),$A37,$A37/(1+$A37)),0)+IF($A40=MwStklein,G40*IF(OR($D$3=0,$D$3=3),$A40,$A40/(1+$A40)),0)+IF($A41=MwStklein,G41*IF(OR($D$3=0,$D$3=3),$A41,$A41/(1+$A41)),0)+IF($A42=MwStklein,G42*IF(OR($D$3=0,$D$3=3),$A42,$A42/(1+$A42)),0)+IF($A43=MwStklein,G43*IF(OR($D$3=0,$D$3=3),$A43,$A43/(1+$A43)),0)++IF($A44=MwStklein,G44*IF(OR($D$3=0,$D$3=3),$A44,$A44/(1+$A44)),0)*IF($A47=MwStklein,G47*IF(OR($D$3=0,$D$3=3),$A47,$A47/(1+$A47)),0)+IF($A48=MwStklein,G48*IF(OR($D$3=0,$D$3=3),$A48,$A48/(1+$A48)),0)+IF($A49=MwStklein,G49*IF(OR($D$3=0,$D$3=3),$A49,$A49/(1+$A49)),0)+IF($A50=MwStklein,G50*IF(OR($D$3=0,$D$3=3),$A50,$A50/(1+$A50)),0)+IF($A52=MwStklein,G52*IF(OR($D$3=0,$D$3=3),$A52,$A52/(1+$A52)),0)+IF($A55=MwStklein,G55*IF(OR($D$3=0,$D$3=3),$A55,$A55/(1+$A55)),0)+IF($A56=MwStklein,G56*IF(OR($D$3=0,$D$3=3),$A56,$A56/(1+$A56)),0)+IF($A57=MwStklein,G57*IF(OR($D$3=0,$D$3=3),$A57,$A57/(1+$A57)),0)+IF($A61=MwStklein,G61*IF(OR($D$3=0,$D$3=3),$A61,$A61/(1+$A61)),0)+IF($A62=MwStklein,G62*IF(OR($D$3=0,$D$3=3),$A62,$A62/(1+$A62)),0)+IF($A63=MwStklein,G63*IF(OR($D$3=0,$D$3=3),$A63,$A63/(1+$A63)),0)+IF($A64=MwStklein,G64*IF(OR($D$3=0,$D$3=3),$A64,$A64/(1+$A64)),0) -> 1.4 | H73: =IF($A6=MwStklein,H6*IF(OR($D$3=0,$D$3=3),$A6,$A6/(1+$A6)),0)+IF($A7=MwStklein,H7*IF(OR($D$3=0,$D$3=3),$A7,$A7/(1+$A7)),0)+IF($A8=MwStklein,H8*IF(OR($D$3=0,$D$3=3),$A8,$A8/(1+$A8)),0)+IF($A9=MwStklein,H9*IF(OR($D$3=0,$D$3=3),$A9,$A9/(1+$A9)),0)+IF($A10=MwStklein,H10*IF(OR($D$3=0,$D$3=3),$A10,$A10/(1+$A10)),0)+IF($A11=MwStklein,H11*IF(OR($D$3=0,$D$3=3),$A11,$A11/(1+$A11)),0)+IF($A14=MwStklein,H14*IF(OR($D$3=0,$D$3=3),$A14,$A14/(1+$A14)),0)+IF($A15=MwStklein,H15*IF(OR($D$3=0,$D$3=3),$A15,$A15/(1+$A15)),0)+IF($A16=MwStklein,H16*IF(OR($D$3=0,$D$3=3),$A16,$A16/(1+$A16)),0)+IF($A17=MwStklein,H17*IF(OR($D$3=0,$D$3=3),$A17,$A17/(1+$A17)),0)+IF($A18=MwStklein,H18*IF(OR($D$3=0,$D$3=3),$A18,$A18/(1+$A18)),0)+IF($A19=MwStklein,H19*IF(OR($D$3=0,$D$3=3),$A19,$A19/(1+$A19)),0)+IF($A20=MwStklein,H20*IF(OR($D$3=0,$D$3=3),$A20,$A20/(1+$A20)),0)+IF($A21=MwStklein,H21*IF(OR($D$3=0,$D$3=3),$A21,$A21/(1+$A21)),0)+IF($A24=MwStklein,H24*IF(OR($D$3=0,$D$3=3),$A24,$A24/(1+$A24)),0)+IF($A25=MwStklein,H25*IF(OR($D$3=0,$D$3=3),$A25,$A25/(1+$A25)),0)+IF($A28=MwStklein,#REF!*IF(OR($D$3=0,$D$3=3),$A28,$A28/(1+$A28)),0)+IF($A29=MwStklein,H29*IF(OR($D$3=0,$D$3=3),$A29,$A29/(1+$A29)),0)+IF($A30=MwStklein,H30*IF(OR($D$3=0,$D$3=3),$A30,$A30/(1+$A30)),0)+IF($A31=MwStklein,H31*IF(OR($D$3=0,$D$3=3),$A31,$A31/(1+$A31)),0)+IF($A34=MwStklein,H34*IF(OR($D$3=0,$D$3=3),$A34,$A34/(1+$A34)),0)+IF($A35=MwStklein,H35*IF(OR($D$3=0,$D$3=3),$A35,$A35/(1+$A35)),0)+IF($A36=MwStklein,H36*IF(OR($D$3=0,$D$3=3),$A36,$A36/(1+$A36)),0)+IF($A37=MwStklein,H37*IF(OR($D$3=0,$D$3=3),$A37,$A37/(1+$A37)),0)+IF($A40=MwStklein,H40*IF(OR($D$3=0,$D$3=3),$A40,$A40/(1+$A40)),0)+IF($A41=MwStklein,H41*IF(OR($D$3=0,$D$3=3),$A41,$A41/(1+$A41)),0)+IF($A42=MwStklein,H42*IF(OR($D$3=0,$D$3=3),$A42,$A42/(1+$A42)),0)+IF($A43=MwStklein,H43*IF(OR($D$3=0,$D$3=3),$A43,$A43/(1+$A43)),0)++IF($A44=MwStklein,H44*IF(OR($D$3=0,$D$3=3),$A44,$A44/(1+$A44)),0)*IF($A47=MwStklein,H47*IF(OR($D$3=0,$D$3=3),$A47,$A47/(1+$A47)),0)+IF($A48=MwStklein,H48*IF(OR($D$3=0,$D$3=3),$A48,$A48/(1+$A48)),0)+IF($A49=MwStklein,H49*IF(OR($D$3=0,$D$3=3),$A49,$A49/(1+$A49)),0)+IF($A50=MwStklein,H50*IF(OR($D$3=0,$D$3=3),$A50,$A50/(1+$A50)),0)+IF($A52=MwStklein,H52*IF(OR($D$3=0,$D$3=3),$A52,$A52/(1+$A52)),0)+IF($A55=MwStklein,H55*IF(OR($D$3=0,$D$3=3),$A55,$A55/(1+$A55)),0)+IF($A56=MwStklein,H56*IF(OR($D$3=0,$D$3=3),$A56,$A56/(1+$A56)),0)+IF($A57=MwStklein,H57*IF(OR($D$3=0,$D$3=3),$A57,$A57/(1+$A57)),0)+IF($A61=MwStklein,H61*IF(OR($D$3=0,$D$3=3),$A61,$A61/(1+$A61)),0)+IF($A62=MwStklein,H62*IF(OR($D$3=0,$D$3=3),$A62,$A62/(1+$A62)),0)+IF($A63=MwStklein,H63*IF(OR($D$3=0,$D$3=3),$A63,$A63/(1+$A63)),0)+IF($A64=MwStklein,H64*IF(OR($D$3=0,$D$3=3),$A64,$A64/(1+$A64)),0) -> 1.4 | I73: =IF($A6=MwStklein,I6*IF(OR($D$3=0,$D$3=3),$A6,$A6/(1+$A6)),0)+IF($A7=MwStklein,I7*IF(OR($D$3=0,$D$3=3),$A7,$A7/(1+$A7)),0)+IF($A8=MwStklein,I8*IF(OR($D$3=0,$D$3=3),$A8,$A8/(1+$A8)),0)+IF($A9=MwStklein,I9*IF(OR($D$3=0,$D$3=3),$A9,$A9/(1+$A9)),0)+IF($A10=MwStklein,I10*IF(OR($D$3=0,$D$3=3),$A10,$A10/(1+$A10)),0)+IF($A11=MwStklein,I11*IF(OR($D$3=0,$D$3=3),$A11,$A11/(1+$A11)),0)+IF($A14=MwStklein,I14*IF(OR($D$3=0,$D$3=3),$A14,$A14/(1+$A14)),0)+IF($A15=MwStklein,I15*IF(OR($D$3=0,$D$3=3),$A15,$A15/(1+$A15)),0)+IF($A16=MwStklein,I16*IF(OR($D$3=0,$D$3=3),$A16,$A16/(1+$A16)),0)+IF($A17=MwStklein,I17*IF(OR($D$3=0,$D$3=3),$A17,$A17/(1+$A17)),0)+IF($A18=MwStklein,I18*IF(OR($D$3=0,$D$3=3),$A18,$A18/(1+$A18)),0)+IF($A19=MwStklein,I19*IF(OR($D$3=0,$D$3=3),$A19,$A19/(1+$A19)),0)+IF($A20=MwStklein,I20*IF(OR($D$3=0,$D$3=3),$A20,$A20/(1+$A20)),0)+IF($A21=MwStklein,I21*IF(OR($D$3=0,$D$3=3),$A21,$A21/(1+$A21)),0)+IF($A24=MwStklein,I24*IF(OR($D$3=0,$D$3=3),$A24,$A24/(1+$A24)),0)+IF($A25=MwStklein,I25*IF(OR($D$3=0,$D$3=3),$A25,$A25/(1+$A25)),0)+IF($A28=MwStklein,#REF!*IF(OR($D$3=0,$D$3=3),$A28,$A28/(1+$A28)),0)+IF($A29=MwStklein,I29*IF(OR($D$3=0,$D$3=3),$A29,$A29/(1+$A29)),0)+IF($A30=MwStklein,I30*IF(OR($D$3=0,$D$3=3),$A30,$A30/(1+$A30)),0)+IF($A31=MwStklein,I31*IF(OR($D$3=0,$D$3=3),$A31,$A31/(1+$A31)),0)+IF($A34=MwStklein,I34*IF(OR($D$3=0,$D$3=3),$A34,$A34/(1+$A34)),0)+IF($A35=MwStklein,I35*IF(OR($D$3=0,$D$3=3),$A35,$A35/(1+$A35)),0)+IF($A36=MwStklein,I36*IF(OR($D$3=0,$D$3=3),$A36,$A36/(1+$A36)),0)+IF($A37=MwStklein,I37*IF(OR($D$3=0,$D$3=3),$A37,$A37/(1+$A37)),0)+IF($A40=MwStklein,I40*IF(OR($D$3=0,$D$3=3),$A40,$A40/(1+$A40)),0)+IF($A41=MwStklein,I41*IF(OR($D$3=0,$D$3=3),$A41,$A41/(1+$A41)),0)+IF($A42=MwStklein,I42*IF(OR($D$3=0,$D$3=3),$A42,$A42/(1+$A42)),0)+IF($A43=MwStklein,I43*IF(OR($D$3=0,$D$3=3),$A43,$A43/(1+$A43)),0)++IF($A44=MwStklein,I44*IF(OR($D$3=0,$D$3=3),$A44,$A44/(1+$A44)),0)*IF($A47=MwStklein,I47*IF(OR($D$3=0,$D$3=3),$A47,$A47/(1+$A47)),0)+IF($A48=MwStklein,I48*IF(OR($D$3=0,$D$3=3),$A48,$A48/(1+$A48)),0)+IF($A49=MwStklein,I49*IF(OR($D$3=0,$D$3=3),$A49,$A49/(1+$A49)),0)+IF($A50=MwStklein,I50*IF(OR($D$3=0,$D$3=3),$A50,$A50/(1+$A50)),0)+IF($A52=MwStklein,I52*IF(OR($D$3=0,$D$3=3),$A52,$A52/(1+$A52)),0)+IF($A55=MwStklein,I55*IF(OR($D$3=0,$D$3=3),$A55,$A55/(1+$A55)),0)+IF($A56=MwStklein,I56*IF(OR($D$3=0,$D$3=3),$A56,$A56/(1+$A56)),0)+IF($A57=MwStklein,I57*IF(OR($D$3=0,$D$3=3),$A57,$A57/(1+$A57)),0)+IF($A61=MwStklein,I61*IF(OR($D$3=0,$D$3=3),$A61,$A61/(1+$A61)),0)+IF($A62=MwStklein,I62*IF(OR($D$3=0,$D$3=3),$A62,$A62/(1+$A62)),0)+IF($A63=MwStklein,I63*IF(OR($D$3=0,$D$3=3),$A63,$A63/(1+$A63)),0)+IF($A64=MwStklein,I64*IF(OR($D$3=0,$D$3=3),$A64,$A64/(1+$A64)),0) -> 1.4 | J73: =IF($A6=MwStklein,J6*IF(OR($D$3=0,$D$3=3),$A6,$A6/(1+$A6)),0)+IF($A7=MwStklein,J7*IF(OR($D$3=0,$D$3=3),$A7,$A7/(1+$A7)),0)+IF($A8=MwStklein,J8*IF(OR($D$3=0,$D$3=3),$A8,$A8/(1+$A8)),0)+IF($A9=MwStklein,J9*IF(OR($D$3=0,$D$3=3),$A9,$A9/(1+$A9)),0)+IF($A10=MwStklein,J10*IF(OR($D$3=0,$D$3=3),$A10,$A10/(1+$A10)),0)+IF($A11=MwStklein,J11*IF(OR($D$3=0,$D$3=3),$A11,$A11/(1+$A11)),0)+IF($A14=MwStklein,J14*IF(OR($D$3=0,$D$3=3),$A14,$A14/(1+$A14)),0)+IF($A15=MwStklein,J15*IF(OR($D$3=0,$D$3=3),$A15,$A15/(1+$A15)),0)+IF($A16=MwStklein,J16*IF(OR($D$3=0,$D$3=3),$A16,$A16/(1+$A16)),0)+IF($A17=MwStklein,J17*IF(OR($D$3=0,$D$3=3),$A17,$A17/(1+$A17)),0)+IF($A18=MwStklein,J18*IF(OR($D$3=0,$D$3=3),$A18,$A18/(1+$A18)),0)+IF($A19=MwStklein,J19*IF(OR($D$3=0,$D$3=3),$A19,$A19/(1+$A19)),0)+IF($A20=MwStklein,J20*IF(OR($D$3=0,$D$3=3),$A20,$A20/(1+$A20)),0)+IF($A21=MwStklein,J21*IF(OR($D$3=0,$D$3=3),$A21,$A21/(1+$A21)),0)+IF($A24=MwStklein,J24*IF(OR($D$3=0,$D$3=3),$A24,$A24/(1+$A24)),0)+IF($A25=MwStklein,J25*IF(OR($D$3=0,$D$3=3),$A25,$A25/(1+$A25)),0)+IF($A28=MwStklein,#REF!*IF(OR($D$3=0,$D$3=3),$A28,$A28/(1+$A28)),0)+IF($A29=MwStklein,J29*IF(OR($D$3=0,$D$3=3),$A29,$A29/(1+$A29)),0)+IF($A30=MwStklein,J30*IF(OR($D$3=0,$D$3=3),$A30,$A30/(1+$A30)),0)+IF($A31=MwStklein,J31*IF(OR($D$3=0,$D$3=3),$A31,$A31/(1+$A31)),0)+IF($A34=MwStklein,J34*IF(OR($D$3=0,$D$3=3),$A34,$A34/(1+$A34)),0)+IF($A35=MwStklein,J35*IF(OR($D$3=0,$D$3=3),$A35,$A35/(1+$A35)),0)+IF($A36=MwStklein,J36*IF(OR($D$3=0,$D$3=3),$A36,$A36/(1+$A36)),0)+IF($A37=MwStklein,J37*IF(OR($D$3=0,$D$3=3),$A37,$A37/(1+$A37)),0)+IF($A40=MwStklein,J40*IF(OR($D$3=0,$D$3=3),$A40,$A40/(1+$A40)),0)+IF($A41=MwStklein,J41*IF(OR($D$3=0,$D$3=3),$A41,$A41/(1+$A41)),0)+IF($A42=MwStklein,J42*IF(OR($D$3=0,$D$3=3),$A42,$A42/(1+$A42)),0)+IF($A43=MwStklein,J43*IF(OR($D$3=0,$D$3=3),$A43,$A43/(1+$A43)),0)++IF($A44=MwStklein,J44*IF(OR($D$3=0,$D$3=3),$A44,$A44/(1+$A44)),0)*IF($A47=MwStklein,J47*IF(OR($D$3=0,$D$3=3),$A47,$A47/(1+$A47)),0)+IF($A48=MwStklein,J48*IF(OR($D$3=0,$D$3=3),$A48,$A48/(1+$A48)),0)+IF($A49=MwStklein,J49*IF(OR($D$3=0,$D$3=3),$A49,$A49/(1+$A49)),0)+IF($A50=MwStklein,J50*IF(OR($D$3=0,$D$3=3),$A50,$A50/(1+$A50)),0)+IF($A52=MwStklein,J52*IF(OR($D$3=0,$D$3=3),$A52,$A52/(1+$A52)),0)+IF($A55=MwStklein,J55*IF(OR($D$3=0,$D$3=3),$A55,$A55/(1+$A55)),0)+IF($A56=MwStklein,J56*IF(OR($D$3=0,$D$3=3),$A56,$A56/(1+$A56)),0)+IF($A57=MwStklein,J57*IF(OR($D$3=0,$D$3=3),$A57,$A57/(1+$A57)),0)+IF($A61=MwStklein,J61*IF(OR($D$3=0,$D$3=3),$A61,$A61/(1+$A61)),0)+IF($A62=MwStklein,J62*IF(OR($D$3=0,$D$3=3),$A62,$A62/(1+$A62)),0)+IF($A63=MwStklein,J63*IF(OR($D$3=0,$D$3=3),$A63,$A63/(1+$A63)),0)+IF($A64=MwStklein,J64*IF(OR($D$3=0,$D$3=3),$A64,$A64/(1+$A64)),0) -> 1.4 | K73: =IF($A6=MwStklein,K6*IF(OR($D$3=0,$D$3=3),$A6,$A6/(1+$A6)),0)+IF($A7=MwStklein,K7*IF(OR($D$3=0,$D$3=3),$A7,$A7/(1+$A7)),0)+IF($A8=MwStklein,K8*IF(OR($D$3=0,$D$3=3),$A8,$A8/(1+$A8)),0)+IF($A9=MwStklein,K9*IF(OR($D$3=0,$D$3=3),$A9,$A9/(1+$A9)),0)+IF($A10=MwStklein,K10*IF(OR($D$3=0,$D$3=3),$A10,$A10/(1+$A10)),0)+IF($A11=MwStklein,K11*IF(OR($D$3=0,$D$3=3),$A11,$A11/(1+$A11)),0)+IF($A14=MwStklein,K14*IF(OR($D$3=0,$D$3=3),$A14,$A14/(1+$A14)),0)+IF($A15=MwStklein,K15*IF(OR($D$3=0,$D$3=3),$A15,$A15/(1+$A15)),0)+IF($A16=MwStklein,K16*IF(OR($D$3=0,$D$3=3),$A16,$A16/(1+$A16)),0)+IF($A17=MwStklein,K17*IF(OR($D$3=0,$D$3=3),$A17,$A17/(1+$A17)),0)+IF($A18=MwStklein,K18*IF(OR($D$3=0,$D$3=3),$A18,$A18/(1+$A18)),0)+IF($A19=MwStklein,K19*IF(OR($D$3=0,$D$3=3),$A19,$A19/(1+$A19)),0)+IF($A20=MwStklein,K20*IF(OR($D$3=0,$D$3=3),$A20,$A20/(1+$A20)),0)+IF($A21=MwStklein,K21*IF(OR($D$3=0,$D$3=3),$A21,$A21/(1+$A21)),0)+IF($A24=MwStklein,K24*IF(OR($D$3=0,$D$3=3),$A24,$A24/(1+$A24)),0)+IF($A25=MwStklein,K25*IF(OR($D$3=0,$D$3=3),$A25,$A25/(1+$A25)),0)+IF($A28=MwStklein,#REF!*IF(OR($D$3=0,$D$3=3),$A28,$A28/(1+$A28)),0)+IF($A29=MwStklein,K29*IF(OR($D$3=0,$D$3=3),$A29,$A29/(1+$A29)),0)+IF($A30=MwStklein,K30*IF(OR($D$3=0,$D$3=3),$A30,$A30/(1+$A30)),0)+IF($A31=MwStklein,K31*IF(OR($D$3=0,$D$3=3),$A31,$A31/(1+$A31)),0)+IF($A34=MwStklein,K34*IF(OR($D$3=0,$D$3=3),$A34,$A34/(1+$A34)),0)+IF($A35=MwStklein,K35*IF(OR($D$3=0,$D$3=3),$A35,$A35/(1+$A35)),0)+IF($A36=MwStklein,K36*IF(OR($D$3=0,$D$3=3),$A36,$A36/(1+$A36)),0)+IF($A37=MwStklein,K37*IF(OR($D$3=0,$D$3=3),$A37,$A37/(1+$A37)),0)+IF($A40=MwStklein,K40*IF(OR($D$3=0,$D$3=3),$A40,$A40/(1+$A40)),0)+IF($A41=MwStklein,K41*IF(OR($D$3=0,$D$3=3),$A41,$A41/(1+$A41)),0)+IF($A42=MwStklein,K42*IF(OR($D$3=0,$D$3=3),$A42,$A42/(1+$A42)),0)+IF($A43=MwStklein,K43*IF(OR($D$3=0,$D$3=3),$A43,$A43/(1+$A43)),0)++IF($A44=MwStklein,K44*IF(OR($D$3=0,$D$3=3),$A44,$A44/(1+$A44)),0)*IF($A47=MwStklein,K47*IF(OR($D$3=0,$D$3=3),$A47,$A47/(1+$A47)),0)+IF($A48=MwStklein,K48*IF(OR($D$3=0,$D$3=3),$A48,$A48/(1+$A48)),0)+IF($A49=MwStklein,K49*IF(OR($D$3=0,$D$3=3),$A49,$A49/(1+$A49)),0)+IF($A50=MwStklein,K50*IF(OR($D$3=0,$D$3=3),$A50,$A50/(1+$A50)),0)+IF($A52=MwStklein,K52*IF(OR($D$3=0,$D$3=3),$A52,$A52/(1+$A52)),0)+IF($A55=MwStklein,K55*IF(OR($D$3=0,$D$3=3),$A55,$A55/(1+$A55)),0)+IF($A56=MwStklein,K56*IF(OR($D$3=0,$D$3=3),$A56,$A56/(1+$A56)),0)+IF($A57=MwStklein,K57*IF(OR($D$3=0,$D$3=3),$A57,$A57/(1+$A57)),0)+IF($A61=MwStklein,K61*IF(OR($D$3=0,$D$3=3),$A61,$A61/(1+$A61)),0)+IF($A62=MwStklein,K62*IF(OR($D$3=0,$D$3=3),$A62,$A62/(1+$A62)),0)+IF($A63=MwStklein,K63*IF(OR($D$3=0,$D$3=3),$A63,$A63/(1+$A63)),0)+IF($A64=MwStklein,K64*IF(OR($D$3=0,$D$3=3),$A64,$A64/(1+$A64)),0) -> 1.4 | L73: =IF($A6=MwStklein,L6*IF(OR($D$3=0,$D$3=3),$A6,$A6/(1+$A6)),0)+IF($A7=MwStklein,L7*IF(OR($D$3=0,$D$3=3),$A7,$A7/(1+$A7)),0)+IF($A8=MwStklein,L8*IF(OR($D$3=0,$D$3=3),$A8,$A8/(1+$A8)),0)+IF($A9=MwStklein,L9*IF(OR($D$3=0,$D$3=3),$A9,$A9/(1+$A9)),0)+IF($A10=MwStklein,L10*IF(OR($D$3=0,$D$3=3),$A10,$A10/(1+$A10)),0)+IF($A11=MwStklein,L11*IF(OR($D$3=0,$D$3=3),$A11,$A11/(1+$A11)),0)+IF($A14=MwStklein,L14*IF(OR($D$3=0,$D$3=3),$A14,$A14/(1+$A14)),0)+IF($A15=MwStklein,L15*IF(OR($D$3=0,$D$3=3),$A15,$A15/(1+$A15)),0)+IF($A16=MwStklein,L16*IF(OR($D$3=0,$D$3=3),$A16,$A16/(1+$A16)),0)+IF($A17=MwStklein,L17*IF(OR($D$3=0,$D$3=3),$A17,$A17/(1+$A17)),0)+IF($A18=MwStklein,L18*IF(OR($D$3=0,$D$3=3),$A18,$A18/(1+$A18)),0)+IF($A19=MwStklein,L19*IF(OR($D$3=0,$D$3=3),$A19,$A19/(1+$A19)),0)+IF($A20=MwStklein,L20*IF(OR($D$3=0,$D$3=3),$A20,$A20/(1+$A20)),0)+IF($A21=MwStklein,L21*IF(OR($D$3=0,$D$3=3),$A21,$A21/(1+$A21)),0)+IF($A24=MwStklein,L24*IF(OR($D$3=0,$D$3=3),$A24,$A24/(1+$A24)),0)+IF($A25=MwStklein,L25*IF(OR($D$3=0,$D$3=3),$A25,$A25/(1+$A25)),0)+IF($A28=MwStklein,#REF!*IF(OR($D$3=0,$D$3=3),$A28,$A28/(1+$A28)),0)+IF($A29=MwStklein,L29*IF(OR($D$3=0,$D$3=3),$A29,$A29/(1+$A29)),0)+IF($A30=MwStklein,L30*IF(OR($D$3=0,$D$3=3),$A30,$A30/(1+$A30)),0)+IF($A31=MwStklein,L31*IF(OR($D$3=0,$D$3=3),$A31,$A31/(1+$A31)),0)+IF($A34=MwStklein,L34*IF(OR($D$3=0,$D$3=3),$A34,$A34/(1+$A34)),0)+IF($A35=MwStklein,L35*IF(OR($D$3=0,$D$3=3),$A35,$A35/(1+$A35)),0)+IF($A36=MwStklein,L36*IF(OR($D$3=0,$D$3=3),$A36,$A36/(1+$A36)),0)+IF($A37=MwStklein,L37*IF(OR($D$3=0,$D$3=3),$A37,$A37/(1+$A37)),0)+IF($A40=MwStklein,L40*IF(OR($D$3=0,$D$3=3),$A40,$A40/(1+$A40)),0)+IF($A41=MwStklein,L41*IF(OR($D$3=0,$D$3=3),$A41,$A41/(1+$A41)),0)+IF($A42=MwStklein,L42*IF(OR($D$3=0,$D$3=3),$A42,$A42/(1+$A42)),0)+IF($A43=MwStklein,L43*IF(OR($D$3=0,$D$3=3),$A43,$A43/(1+$A43)),0)++IF($A44=MwStklein,L44*IF(OR($D$3=0,$D$3=3),$A44,$A44/(1+$A44)),0)*IF($A47=MwStklein,L47*IF(OR($D$3=0,$D$3=3),$A47,$A47/(1+$A47)),0)+IF($A48=MwStklein,L48*IF(OR($D$3=0,$D$3=3),$A48,$A48/(1+$A48)),0)+IF($A49=MwStklein,L49*IF(OR($D$3=0,$D$3=3),$A49,$A49/(1+$A49)),0)+IF($A50=MwStklein,L50*IF(OR($D$3=0,$D$3=3),$A50,$A50/(1+$A50)),0)+IF($A52=MwStklein,L52*IF(OR($D$3=0,$D$3=3),$A52,$A52/(1+$A52)),0)+IF($A55=MwStklein,L55*IF(OR($D$3=0,$D$3=3),$A55,$A55/(1+$A55)),0)+IF($A56=MwStklein,L56*IF(OR($D$3=0,$D$3=3),$A56,$A56/(1+$A56)),0)+IF($A57=MwStklein,L57*IF(OR($D$3=0,$D$3=3),$A57,$A57/(1+$A57)),0)+IF($A61=MwStklein,L61*IF(OR($D$3=0,$D$3=3),$A61,$A61/(1+$A61)),0)+IF($A62=MwStklein,L62*IF(OR($D$3=0,$D$3=3),$A62,$A62/(1+$A62)),0)+IF($A63=MwStklein,L63*IF(OR($D$3=0,$D$3=3),$A63,$A63/(1+$A63)),0)+IF($A64=MwStklein,L64*IF(OR($D$3=0,$D$3=3),$A64,$A64/(1+$A64)),0) -> 1.4 | M73: =IF($A6=MwStklein,M6*IF(OR($D$3=0,$D$3=3),$A6,$A6/(1+$A6)),0)+IF($A7=MwStklein,M7*IF(OR($D$3=0,$D$3=3),$A7,$A7/(1+$A7)),0)+IF($A8=MwStklein,M8*IF(OR($D$3=0,$D$3=3),$A8,$A8/(1+$A8)),0)+IF($A9=MwStklein,M9*IF(OR($D$3=0,$D$3=3),$A9,$A9/(1+$A9)),0)+IF($A10=MwStklein,M10*IF(OR($D$3=0,$D$3=3),$A10,$A10/(1+$A10)),0)+IF($A11=MwStklein,M11*IF(OR($D$3=0,$D$3=3),$A11,$A11/(1+$A11)),0)+IF($A14=MwStklein,M14*IF(OR($D$3=0,$D$3=3),$A14,$A14/(1+$A14)),0)+IF($A15=MwStklein,M15*IF(OR($D$3=0,$D$3=3),$A15,$A15/(1+$A15)),0)+IF($A16=MwStklein,M16*IF(OR($D$3=0,$D$3=3),$A16,$A16/(1+$A16)),0)+IF($A17=MwStklein,M17*IF(OR($D$3=0,$D$3=3),$A17,$A17/(1+$A17)),0)+IF($A18=MwStklein,M18*IF(OR($D$3=0,$D$3=3),$A18,$A18/(1+$A18)),0)+IF($A19=MwStklein,M19*IF(OR($D$3=0,$D$3=3),$A19,$A19/(1+$A19)),0)+IF($A20=MwStklein,M20*IF(OR($D$3=0,$D$3=3),$A20,$A20/(1+$A20)),0)+IF($A21=MwStklein,M21*IF(OR($D$3=0,$D$3=3),$A21,$A21/(1+$A21)),0)+IF($A24=MwStklein,M24*IF(OR($D$3=0,$D$3=3),$A24,$A24/(1+$A24)),0)+IF($A25=MwStklein,M25*IF(OR($D$3=0,$D$3=3),$A25,$A25/(1+$A25)),0)+IF($A28=MwStklein,#REF!*IF(OR($D$3=0,$D$3=3),$A28,$A28/(1+$A28)),0)+IF($A29=MwStklein,M29*IF(OR($D$3=0,$D$3=3),$A29,$A29/(1+$A29)),0)+IF($A30=MwStklein,M30*IF(OR($D$3=0,$D$3=3),$A30,$A30/(1+$A30)),0)+IF($A31=MwStklein,M31*IF(OR($D$3=0,$D$3=3),$A31,$A31/(1+$A31)),0)+IF($A34=MwStklein,M34*IF(OR($D$3=0,$D$3=3),$A34,$A34/(1+$A34)),0)+IF($A35=MwStklein,M35*IF(OR($D$3=0,$D$3=3),$A35,$A35/(1+$A35)),0)+IF($A36=MwStklein,M36*IF(OR($D$3=0,$D$3=3),$A36,$A36/(1+$A36)),0)+IF($A37=MwStklein,M37*IF(OR($D$3=0,$D$3=3),$A37,$A37/(1+$A37)),0)+IF($A40=MwStklein,M40*IF(OR($D$3=0,$D$3=3),$A40,$A40/(1+$A40)),0)+IF($A41=MwStklein,M41*IF(OR($D$3=0,$D$3=3),$A41,$A41/(1+$A41)),0)+IF($A42=MwStklein,M42*IF(OR($D$3=0,$D$3=3),$A42,$A42/(1+$A42)),0)+IF($A43=MwStklein,M43*IF(OR($D$3=0,$D$3=3),$A43,$A43/(1+$A43)),0)++IF($A44=MwStklein,M44*IF(OR($D$3=0,$D$3=3),$A44,$A44/(1+$A44)),0)*IF($A47=MwStklein,M47*IF(OR($D$3=0,$D$3=3),$A47,$A47/(1+$A47)),0)+IF($A48=MwStklein,M48*IF(OR($D$3=0,$D$3=3),$A48,$A48/(1+$A48)),0)+IF($A49=MwStklein,M49*IF(OR($D$3=0,$D$3=3),$A49,$A49/(1+$A49)),0)+IF($A50=MwStklein,M50*IF(OR($D$3=0,$D$3=3),$A50,$A50/(1+$A50)),0)+IF($A52=MwStklein,M52*IF(OR($D$3=0,$D$3=3),$A52,$A52/(1+$A52)),0)+IF($A55=MwStklein,M55*IF(OR($D$3=0,$D$3=3),$A55,$A55/(1+$A55)),0)+IF($A56=MwStklein,M56*IF(OR($D$3=0,$D$3=3),$A56,$A56/(1+$A56)),0)+IF($A57=MwStklein,M57*IF(OR($D$3=0,$D$3=3),$A57,$A57/(1+$A57)),0)+IF($A61=MwStklein,M61*IF(OR($D$3=0,$D$3=3),$A61,$A61/(1+$A61)),0)+IF($A62=MwStklein,M62*IF(OR($D$3=0,$D$3=3),$A62,$A62/(1+$A62)),0)+IF($A63=MwStklein,M63*IF(OR($D$3=0,$D$3=3),$A63,$A63/(1+$A63)),0)+IF($A64=MwStklein,M64*IF(OR($D$3=0,$D$3=3),$A64,$A64/(1+$A64)),0) -> 1.4 | N73: =IF($A6=MwStklein,N6*IF(OR($D$3=0,$D$3=3),$A6,$A6/(1+$A6)),0)+IF($A7=MwStklein,N7*IF(OR($D$3=0,$D$3=3),$A7,$A7/(1+$A7)),0)+IF($A8=MwStklein,N8*IF(OR($D$3=0,$D$3=3),$A8,$A8/(1+$A8)),0)+IF($A9=MwStklein,N9*IF(OR($D$3=0,$D$3=3),$A9,$A9/(1+$A9)),0)+IF($A10=MwStklein,N10*IF(OR($D$3=0,$D$3=3),$A10,$A10/(1+$A10)),0)+IF($A11=MwStklein,N11*IF(OR($D$3=0,$D$3=3),$A11,$A11/(1+$A11)),0)+IF($A14=MwStklein,N14*IF(OR($D$3=0,$D$3=3),$A14,$A14/(1+$A14)),0)+IF($A15=MwStklein,N15*IF(OR($D$3=0,$D$3=3),$A15,$A15/(1+$A15)),0)+IF($A16=MwStklein,N16*IF(OR($D$3=0,$D$3=3),$A16,$A16/(1+$A16)),0)+IF($A17=MwStklein,N17*IF(OR($D$3=0,$D$3=3),$A17,$A17/(1+$A17)),0)+IF($A18=MwStklein,N18*IF(OR($D$3=0,$D$3=3),$A18,$A18/(1+$A18)),0)+IF($A19=MwStklein,N19*IF(OR($D$3=0,$D$3=3),$A19,$A19/(1+$A19)),0)+IF($A20=MwStklein,N20*IF(OR($D$3=0,$D$3=3),$A20,$A20/(1+$A20)),0)+IF($A21=MwStklein,N21*IF(OR($D$3=0,$D$3=3),$A21,$A21/(1+$A21)),0)+IF($A24=MwStklein,N24*IF(OR($D$3=0,$D$3=3),$A24,$A24/(1+$A24)),0)+IF($A25=MwStklein,N25*IF(OR($D$3=0,$D$3=3),$A25,$A25/(1+$A25)),0)+IF($A28=MwStklein,#REF!*IF(OR($D$3=0,$D$3=3),$A28,$A28/(1+$A28)),0)+IF($A29=MwStklein,N29*IF(OR($D$3=0,$D$3=3),$A29,$A29/(1+$A29)),0)+IF($A30=MwStklein,N30*IF(OR($D$3=0,$D$3=3),$A30,$A30/(1+$A30)),0)+IF($A31=MwStklein,N31*IF(OR($D$3=0,$D$3=3),$A31,$A31/(1+$A31)),0)+IF($A34=MwStklein,N34*IF(OR($D$3=0,$D$3=3),$A34,$A34/(1+$A34)),0)+IF($A35=MwStklein,N35*IF(OR($D$3=0,$D$3=3),$A35,$A35/(1+$A35)),0)+IF($A36=MwStklein,N36*IF(OR($D$3=0,$D$3=3),$A36,$A36/(1+$A36)),0)+IF($A37=MwStklein,N37*IF(OR($D$3=0,$D$3=3),$A37,$A37/(1+$A37)),0)+IF($A40=MwStklein,N40*IF(OR($D$3=0,$D$3=3),$A40,$A40/(1+$A40)),0)+IF($A41=MwStklein,N41*IF(OR($D$3=0,$D$3=3),$A41,$A41/(1+$A41)),0)+IF($A42=MwStklein,N42*IF(OR($D$3=0,$D$3=3),$A42,$A42/(1+$A42)),0)+IF($A43=MwStklein,N43*IF(OR($D$3=0,$D$3=3),$A43,$A43/(1+$A43)),0)++IF($A44=MwStklein,N44*IF(OR($D$3=0,$D$3=3),$A44,$A44/(1+$A44)),0)*IF($A47=MwStklein,N47*IF(OR($D$3=0,$D$3=3),$A47,$A47/(1+$A47)),0)+IF($A48=MwStklein,N48*IF(OR($D$3=0,$D$3=3),$A48,$A48/(1+$A48)),0)+IF($A49=MwStklein,N49*IF(OR($D$3=0,$D$3=3),$A49,$A49/(1+$A49)),0)+IF($A50=MwStklein,N50*IF(OR($D$3=0,$D$3=3),$A50,$A50/(1+$A50)),0)+IF($A52=MwStklein,N52*IF(OR($D$3=0,$D$3=3),$A52,$A52/(1+$A52)),0)+IF($A55=MwStklein,N55*IF(OR($D$3=0,$D$3=3),$A55,$A55/(1+$A55)),0)+IF($A56=MwStklein,N56*IF(OR($D$3=0,$D$3=3),$A56,$A56/(1+$A56)),0)+IF($A57=MwStklein,N57*IF(OR($D$3=0,$D$3=3),$A57,$A57/(1+$A57)),0)+IF($A61=MwStklein,N61*IF(OR($D$3=0,$D$3=3),$A61,$A61/(1+$A61)),0)+IF($A62=MwStklein,N62*IF(OR($D$3=0,$D$3=3),$A62,$A62/(1+$A62)),0)+IF($A63=MwStklein,N63*IF(OR($D$3=0,$D$3=3),$A63,$A63/(1+$A63)),0)+IF($A64=MwStklein,N64*IF(OR($D$3=0,$D$3=3),$A64,$A64/(1+$A64)),0) -> 1.4 | O73: =IF($A6=MwStklein,O6*IF(OR($D$3=0,$D$3=3),$A6,$A6/(1+$A6)),0)+IF($A7=MwStklein,O7*IF(OR($D$3=0,$D$3=3),$A7,$A7/(1+$A7)),0)+IF($A8=MwStklein,O8*IF(OR($D$3=0,$D$3=3),$A8,$A8/(1+$A8)),0)+IF($A9=MwStklein,O9*IF(OR($D$3=0,$D$3=3),$A9,$A9/(1+$A9)),0)+IF($A10=MwStklein,O10*IF(OR($D$3=0,$D$3=3),$A10,$A10/(1+$A10)),0)+IF($A11=MwStklein,O11*IF(OR($D$3=0,$D$3=3),$A11,$A11/(1+$A11)),0)+IF($A14=MwStklein,O14*IF(OR($D$3=0,$D$3=3),$A14,$A14/(1+$A14)),0)+IF($A15=MwStklein,O15*IF(OR($D$3=0,$D$3=3),$A15,$A15/(1+$A15)),0)+IF($A16=MwStklein,O16*IF(OR($D$3=0,$D$3=3),$A16,$A16/(1+$A16)),0)+IF($A17=MwStklein,O17*IF(OR($D$3=0,$D$3=3),$A17,$A17/(1+$A17)),0)+IF($A18=MwStklein,O18*IF(OR($D$3=0,$D$3=3),$A18,$A18/(1+$A18)),0)+IF($A19=MwStklein,O19*IF(OR($D$3=0,$D$3=3),$A19,$A19/(1+$A19)),0)+IF($A20=MwStklein,O20*IF(OR($D$3=0,$D$3=3),$A20,$A20/(1+$A20)),0)+IF($A21=MwStklein,O21*IF(OR($D$3=0,$D$3=3),$A21,$A21/(1+$A21)),0)+IF($A24=MwStklein,O24*IF(OR($D$3=0,$D$3=3),$A24,$A24/(1+$A24)),0)+IF($A25=MwStklein,O25*IF(OR($D$3=0,$D$3=3),$A25,$A25/(1+$A25)),0)+IF($A28=MwStklein,#REF!*IF(OR($D$3=0,$D$3=3),$A28,$A28/(1+$A28)),0)+IF($A29=MwStklein,O29*IF(OR($D$3=0,$D$3=3),$A29,$A29/(1+$A29)),0)+IF($A30=MwStklein,O30*IF(OR($D$3=0,$D$3=3),$A30,$A30/(1+$A30)),0)+IF($A31=MwStklein,O31*IF(OR($D$3=0,$D$3=3),$A31,$A31/(1+$A31)),0)+IF($A34=MwStklein,O34*IF(OR($D$3=0,$D$3=3),$A34,$A34/(1+$A34)),0)+IF($A35=MwStklein,O35*IF(OR($D$3=0,$D$3=3),$A35,$A35/(1+$A35)),0)+IF($A36=MwStklein,O36*IF(OR($D$3=0,$D$3=3),$A36,$A36/(1+$A36)),0)+IF($A37=MwStklein,O37*IF(OR($D$3=0,$D$3=3),$A37,$A37/(1+$A37)),0)+IF($A40=MwStklein,O40*IF(OR($D$3=0,$D$3=3),$A40,$A40/(1+$A40)),0)+IF($A41=MwStklein,O41*IF(OR($D$3=0,$D$3=3),$A41,$A41/(1+$A41)),0)+IF($A42=MwStklein,O42*IF(OR($D$3=0,$D$3=3),$A42,$A42/(1+$A42)),0)+IF($A43=MwStklein,O43*IF(OR($D$3=0,$D$3=3),$A43,$A43/(1+$A43)),0)++IF($A44=MwStklein,O44*IF(OR($D$3=0,$D$3=3),$A44,$A44/(1+$A44)),0)*IF($A47=MwStklein,O47*IF(OR($D$3=0,$D$3=3),$A47,$A47/(1+$A47)),0)+IF($A48=MwStklein,O48*IF(OR($D$3=0,$D$3=3),$A48,$A48/(1+$A48)),0)+IF($A49=MwStklein,O49*IF(OR($D$3=0,$D$3=3),$A49,$A49/(1+$A49)),0)+IF($A50=MwStklein,O50*IF(OR($D$3=0,$D$3=3),$A50,$A50/(1+$A50)),0)+IF($A52=MwStklein,O52*IF(OR($D$3=0,$D$3=3),$A52,$A52/(1+$A52)),0)+IF($A55=MwStklein,O55*IF(OR($D$3=0,$D$3=3),$A55,$A55/(1+$A55)),0)+IF($A56=MwStklein,O56*IF(OR($D$3=0,$D$3=3),$A56,$A56/(1+$A56)),0)+IF($A57=MwStklein,O57*IF(OR($D$3=0,$D$3=3),$A57,$A57/(1+$A57)),0)+IF($A61=MwStklein,O61*IF(OR($D$3=0,$D$3=3),$A61,$A61/(1+$A61)),0)+IF($A62=MwStklein,O62*IF(OR($D$3=0,$D$3=3),$A62,$A62/(1+$A62)),0)+IF($A63=MwStklein,O63*IF(OR($D$3=0,$D$3=3),$A63,$A63/(1+$A63)),0)+IF($A64=MwStklein,O64*IF(OR($D$3=0,$D$3=3),$A64,$A64/(1+$A64)),0) -> 1.4 | P73: =SUM(D73:O73) -> 16.8 | CY73: Summe der angefallenen MwSt | CZ73: Sum VAT
C74: =IF($C$1="Deutsch",CY74,IF($C$1="English",CZ74,DB74)) -> Gesamtsumme angefallener MwSt | D74: =D73+D72 -> 1,103.4 | E74: =E73+E72 -> 723.4 | F74: 723.4 | G74: 723.4 | H74: 723.4 | I74: 723.4 | J74: 723.4 | K74: 913.4 | L74: 723.4 | M74: 723.4 | N74: 723.4 | O74: 723.4 | P74: =SUM(D74:O74) -> 9,250.8 | CY74: Gesamtsumme angefallener MwSt | CZ74: Total sum VAT
G75: =IF($C$1="English",G77,G76) -> Betriebskosten II für das Jahr 2016 (ohne MwSt) | J75: =IF($C$1="English",J77,J76) -> Betriebskosten II für die Jahre 2016 - 2020 (ohne MwSt)
G76: ="Betriebskosten II für das Jahr " &'1 Pers.Ausgaben|Pers Expenses'!C3&" (" & 'Deckblatt Gründer|Data Founder'!J1 & ")" -> Betriebskosten II für das Jahr 2016 (ohne MwSt) | J76: ="Betriebskosten II für die Jahre " &'1 Pers.Ausgaben|Pers Expenses'!$C$3 & " - " & '1 Pers.Ausgaben|Pers Expenses'!$C$3+4& " (" & 'Deckblatt Gründer|Data Founder'!$J$1 & ")" -> Betriebskosten II für die Jahre 2016 - 2020 (ohne MwSt)
G77: ="Operation Expenses II for Year "&'1 Pers.Ausgaben|Pers Expenses'!C3&" ("&'Deckblatt Gründer|Data Founder'!K1&")" -> Operation Expenses II for Year 2016 (w/o VAT) | J77: ="Operation Expense II for Years " &'1 Pers.Ausgaben|Pers Expenses'!$C$3 & " - " & '1 Pers.Ausgaben|Pers Expenses'!$C$3+4 &" (" & 'Deckblatt Gründer|Data Founder'!$K$1 & ")" -> Operation Expense II for Years 2016 - 2020 (w/o VAT)
B78: =IF($C$1="English",CZ78,CY78) -> 4b Betriebskosten für die Jahre 2016 - 2020 in EUR (ohne MwSt) | U78: =IF($C$1="English",DD78,DC78) -> Nebenrechnung für andere Positionen | CU78: Nebenrechnung für andere Positionen | CV78: Ancillary: Account for other Positions | CY78: ="4b Betriebskosten für die Jahre " &'1 Pers.Ausgaben|Pers Expenses'!$C$3& " - " & '1 Pers.Ausgaben|Pers Expenses'!$C$3+4 &" in EUR" & " (" & IF(OR($D$3=1,$D$3=2),"mit MwSt","ohne MwSt")& ") " -> 4b Betriebskosten für die Jahre 2016 - 2020 in EUR (ohne MwSt) | CZ78: ="4b Operating Expense for Years "&'1 Pers.Ausgaben|Pers Expenses'!$C$3&" - "&'1 Pers.Ausgaben|Pers Expenses'!$C$3+4&" in EUR"&" ("&IF(OR($D$3=1,$D$3=2),"incl. VAT","w/o VAT")&") " -> 4b Operating Expense for Years 2016 - 2020 in EUR (w/o VAT) | DC78: Nebenrechnung für andere Positionen | DD78: Ancillary Account for other Positions
B79: =B3 -> ┌ MwSt-Satz der jeweiligen Kostenart | CY79: =IF($D$3=-1," ┌ MwSt-Satz der jeweiligen Kostenart","") ->  | CZ79: =IF($D$3=-1," ┌ VAT for Cost Type","") -> 
B80: =B4 -> No. | C80: =C4 -> Kostenart | D80: ='1 Pers.Ausgaben|Pers Expenses'!C1 -> 2015 | E80: =D80+1 -> 2016 | F80: =E80+1 -> 2017 | G80: =F80+1 -> 2018 | H80: =G80+1 -> 2019 | U80: =U4 -> 2015 | V80: =V52 -> Jan. | W80: Febr. | X80: März | Y80: April | Z80: Mai | AA80: Juni | AB80: Juli | AC80: Aug. | AD80: Sept. | AE80: Okt. | AF80: Nov. | AG80: Dez.
B81: =B5 -> 1 | C81: =C5 -> Bürokosten
A82: 19% | C82: Raummiete | D82: =P6 -> 6,000.0 | E82: 1,000.0 | F82: 1,000.0 | G82: 1,000.0 | H82: 1,000.0 | CX82: =CX6 -> 19%
A83: =A7 -> 19% | C83: Strom, Wasser, Heizung, sonst. Nebenkosten | D83: 600.0 | E83: 600.0 | CX83: 19%
A84: =A8 -> 19% | C84: Telefon, Fax, Internet, Porto | D84: 600.0 | E84: 600.0 | CX84: 19%
A85: =A9 -> 19% | C85: Geringw. Wirtschaftsgüter (Büromöbel, Einrichtungen,...) | D85: 0.0 | CX85: 19%
A86: =A10 -> 19% | C86: IT (Lizenzen, Windows, Office, Wartung) | D86: 0.0 | CX86: 19%
A87: =A11 -> 19% | B87: =A11 -> 19% | C87: Sonstiges | D87: 1,200.0 | E87: 1,200.0 | U87: =IF($C$1="English",DD87,DC87) -> Gesamtsumme | V87: =SUM(V81:V86) -> 0.00 | W87: =SUM(W81:W86) -> 0.00 | X87: 0.00 | Y87: 0.00 | Z87: 0.00 | AA87: 0.00 | AB87: 0.00 | AC87: 0.00 | AD87: 0.00 | AE87: 0.00 | AF87: 0.00 | AG87: 0.00 | AH87: =SUM(V87:AG87) -> 0.00 | CU87: Gesamtsumme | CV87: Total sum | CX87: 19% | DC87: Gesamtsumme | DD87: Total sum
C88: Summe Bürokosten | D88: 8,400.0 | E88: =SUM(E82:E87) -> 3,400.0 | F88: =SUM(F82:F87) -> 1,000.0 | G88: 1,000.0 | H88: 1,000.0
B89: 2 | C89: Produktionskosten
A90: =A14 -> 19% | C90: Raummiete | D90: 14,400.0 | E90: 15,000.0 | F90: 15,000.0 | G90: 15,000.0 | H90: 15,000.0 | CX90: =CX14 -> 19%
A91: 19% | B91: =B15 ->  | C91: Strom, Wasser, Heizung, sonst. Nebenkosten | D91: 0.0 | U91: =U80+1 -> 2016 | V91: =V80 -> Jan. | W91: Febr. | X91: März | Y91: April | Z91: Mai | AA91: Juni | AB91: Juli | AC91: Aug. | AD91: Sept. | AE91: Okt. | AF91: Nov. | AG91: Dez. | CX91: =CX15 -> 19%
A92: 19% | B92: =B16 ->  | C92: Materialaufwand zur Produktion (19%) | D92: 12,000.0 | E92: 15,000.0 | F92: 15,000.0 | G92: 15,000.0 | H92: 15,000.0 | CX92: =CX16 -> 19%
A93: 7% | B93: =B17 ->  | C93: Materialaufwand zur Produktion (7%) | D93: 0.0 | CX93: =CX17 -> 7%
A94: 19% | B94: =B18 ->  | C94: Produktionsbedarf, geringwertige Wirtschaftsgüter | D94: 1,200.0 | E94: 1,400.0 | F94: 1,400.0 | G94: 1,400.0 | H94: 1,400.0 | CX94: =CX18 -> 19%
A95: 19% | B95: =B19 ->  | C95: Leasingraten für Produktionsanlagen, -maschinen | D95: 0.0 | CX95: =CX19 -> 19%
A96: =A20 -> 19% | C96: Instandhaltung und Reparaturen | D96: 2,400.0 | E96: 2,400.0 | F96: 2,400.0 | G96: 2,400.0 | H96: 2,400.0 | CX96: =CX20 -> 19%
A97: 19% | B97: =A21 -> 19% | C97: Sonstiges | D97: 0.0 | CX97: =CX21 -> 19%
C98: Summe Produktionskosten | D98: 30,000.0 | E98: =SUM(E90:E97) -> 33,800.0 | F98: =SUM(F90:F97) -> 33,800.0 | G98: =SUM(G90:G97) -> 33,800.0 | H98: 33,800.0 | U98: =U87 -> Gesamtsumme | V98: =SUM(V92:V97) -> 0.00 | W98: 0.00 | X98: 0.00 | Y98: 0.00 | Z98: 0.00 | AA98: 0.00 | AB98: 0.00 | AC98: 0.00 | AD98: 0.00 | AE98: 0.00 | AF98: 0.00 | AG98: 0.00 | AH98: =SUM(V98:AG98) -> 0.00
B99: 3 | C99: Personalkosten (nur Angestellte)
A100: 0% | C100: Löhne, Gehälter mit Nebenkosten (s. Nebenrechnung) | D100: 38,000.0 | CX100: =CX24 -> 0%
A101: 19% | B101: =A25 -> 19% | C101: Sonstiges | D101: 0.0 | CX101: =CX25 -> 19%
C102: Summe Personalkosten | D102: 38,000.0 | E102: =SUM(E100:E101) -> 0.0 | F102: =SUM(F100:F101) -> 0.0 | G102: 0.0 | H102: 0.0 | U102: =U91+1 -> 2017 | V102: =V80 -> Jan. | W102: Febr. | X102: März | Y102: April | Z102: Mai | AA102: Juni | AB102: Juli | AC102: Aug. | AD102: Sept. | AE102: Okt. | AF102: Nov. | AG102: Dez.
B103: 4 | C103: Reisekosten
A104: 19% | C104: Fahrtkosten | D104: 1,200.0 | E104: 1,000.0 | F104: 1,000.0 | G104: 1,000.0 | H104: 1,000.0 | CX104: =CX28 -> 19%
A105: 19% | B105: =B29 ->  | C105: Reisekostenpauschalen | D105: 0.0 | CX105: =CX29 -> 19%
A106: 7% | B106: =B30 ->  | C106: Übernachtungen | D106: 0.0 | CX106: =CX30 -> 7%
A107: 19% | B107: =A31 -> 19% | C107: Sonstiges | D107: 0.0 | CX107: =CX31 -> 19%
C108: Summe Reisekosten | D108: 1,200.0 | E108: =SUM(E104:E107) -> 1,000.0 | F108: =SUM(F104:F107) -> 1,000.0 | G108: 1,000.0 | H108: 1,000.0
B109: 5 | C109: Versicherungen und Beiträge (betrieblich!) | U109: =U87 -> Gesamtsumme | V109: =SUM(V103:V108) -> 0.00 | W109: =SUM(W103:W108) -> 0.00 | X109: 0.00 | Y109: 0.00 | Z109: 0.00 | AA109: 0.00 | AB109: 0.00 | AC109: 0.00 | AD109: 0.00 | AE109: 0.00 | AF109: 0.00 | AG109: 0.00 | AH109: =SUM(V109:AG109) -> 0.00
A110: =A34 -> 19% | C110: Haftpflicht | D110: 0.0 | CX110: =CX34 -> 19%
A111: 19% | C111: Rechtschutzversicherung | D111: 1,200.0 | E111: 1,200.0 | F111: 1,200.0 | G111: 1,200.0 | H111: 1,200.0 | CX111: =CX35 -> 19%
A112: 19% | C112: Beiträge (IHK, Berufsverbände, ...) | D112: 0.0 | CX112: =CX36 -> 19%
A113: 19% | B113: =A37 -> 19% | C113: Sonstiges | D113: 0.0 | U113: =U102+1 -> 2018 | V113: =V80 -> Jan. | W113: Febr. | X113: März | Y113: April | Z113: Mai | AA113: Juni | AB113: Juli | AC113: Aug. | AD113: Sept. | AE113: Okt. | AF113: Nov. | AG113: Dez. | CX113: =CX37 -> 19%
B114: =B43 ->  | C114: Summe Versicherungen und Beiträge (betrieblich!) | D114: 1,200.0 | E114: =SUM(E110:E113) -> 1,200.0 | F114: =SUM(F110:F113) -> 1,200.0 | G114: =SUM(G110:G113) -> 1,200.0 | H114: =SUM(H110:H113) -> 1,200.0
B115: 6 | C115: KFZ Kosten / Betriebliche Nutzung
A116: 19% | B116: =B40 ->  | C116: Leasingraten Kfz | D116: 1,200.0 | E116: 1,200.0 | F116: 1,200.0 | G116: 3,000.0 | H116: 3,000.0 | CX116: =CX40 -> 19%
A117: =A41 -> 19% | C117: Versicherungen/Kfz-Steuer | D117: 1,200.0 | E117: 1,200.0 | F117: 1,200.0 | G117: 1,200.0 | H117: 1,200.0 | CX117: 19%
A118: 19% | C118: Fahrzeugkosten (Tanken und Reparatur) | D118: 0.0 | CX118: =CX42 -> 19%
A119: 0% | C119: Abrechenbare Kilometerkosten | D119: 0.0 | CX119: =CX43 -> 0%
A120: 19% | B120: =A44 -> 19% | C120: Sonstiges | D120: 0.0 | U120: =U87 -> Gesamtsumme | V120: =SUM(V114:V119) -> 0.00 | W120: =SUM(W114:W119) -> 0.00 | X120: 0.00 | Y120: 0.00 | Z120: 0.00 | AA120: 0.00 | AB120: 0.00 | AC120: 0.00 | AD120: 0.00 | AE120: 0.00 | AF120: 0.00 | AG120: 0.00 | AH120: =SUM(V120:AG120) -> 0.00 | CX120: =CX44 -> 19%
C121: Summe KFZ Kosten / Betriebliche Nutzung | D121: 2,400.0 | E121: =SUM(E116:E120) -> 2,400.0 | F121: =SUM(F116:F120) -> 2,400.0 | G121: 4,200.0 | H121: 4,200.0
B122: 7 | C122: Marketing u. Werbung
A123: 19% | C123: Marktforschung | D123: 5,000.0 | F123: 5,000.0 | CX123: =CX47 -> 19%
A124: =A48 -> 19% | C124: Briefpapier, Visitenkarte, Stempel | D124: 1,000.0 | E124: 1,000.0 | F124: 1,000.0 | G124: 1,000.0 | H124: 1,000.0 | U124: =U113+1 -> 2019 | V124: =V80 -> Jan. | W124: Febr. | X124: März | Y124: April | Z124: Mai | AA124: Juni | AB124: Juli | AC124: Aug. | AD124: Sept. | AE124: Okt. | AF124: Nov. | AG124: Dez. | CX124: 19%
A125: 19% | C125: Webseite, lfd. Webseitenpflege | D125: 1,200.0 | E125: 1,200.0 | F125: 1,200.0 | G125: 1,200.0 | H125: 1,200.0 | CX125: =CX49 -> 19%
A126: 19% | C126: Flyer, Prospekte, Broschüren, Anzeigen | D126: 0.0 | CX126: =CX50 -> 19%
A127: 19% | C127: Bewirtungskosten | D127: 0.0 | CX127: =CX51 -> 19%
A128: 19% | B128: =A52 -> 19% | C128: Sonstiges, Messen, ... | D128: 0.0 | CX128: =CX52 -> 19%
B129: =B49 ->  | C129: Summe Marketing u. Werbung | D129: 7,200.0 | E129: =SUM(E123:E128) -> 2,200.0 | F129: =SUM(F123:F128) -> 7,200.0 | G129: 2,200.0 | H129: 2,200.0
B130: 8 | C130: Rechts- und Beratungskosten
A131: =A55 -> 19% | C131: Buchhaltung | D131: 0.0 | U131: =U87 -> Gesamtsumme | V131: =SUM(V125:V130) -> 0.00 | W131: 0.00 | X131: 0.00 | Y131: 0.00 | Z131: 0.00 | AA131: 0.00 | AB131: 0.00 | AC131: 0.00 | AD131: 0.00 | AE131: 0.00 | AF131: 0.00 | AG131: 0.00 | AH131: =SUM(V131:AG131) -> 0.00 | CX131: =CX55 -> 19%
A132: 19% | B132: =B56 ->  | C132: Steuerberatung, Abschluss, Prüfung | D132: 0.0 | CX132: =CX56 -> 19%
A133: 7% | B133: =A57 -> 7% | C133: Sonstiges | D133: 0.0 | CX133: =CX57 -> 7%
B134: =IF($D$3=-1, 0,"") ->  | C134: Summe Rechts- und Beratungskosten | D134: 0.0 | E134: =SUM(E131:E133) -> 0.0 | F134: =SUM(F131:F133) -> 0.0 | G134: 0.0 | H134: 0.0
B135: 9 | C135: Verschiedenes
A136: 0% | B136: =B60 ->  | C136: Finanzaufwand / Zinsen *) | D136: 1,275.0 | E136: ='7 Finanzierung|Financing'!E55 -> 4,835.4 | F136: ='7 Finanzierung|Financing'!F55 -> 5,286.5 | G136: ='7 Finanzierung|Financing'!G55 -> 4,461.5 | H136: ='7 Finanzierung|Financing'!H55 -> 3,636.5 | CX136: =CX60 -> 0%
A137: 19% | B137: =B61 ->  | C137: Reisekosten | D137: 1,200.0 | E137: 1,200.0 | F137: 1,200.0 | G137: 1,200.0 | H137: 1,200.0 | CX137: =CX61 -> 19%
A138: =A62 -> 7% | C138: Fachliteratur, Bücher | D138: 240.0 | E138: 1,000.0 | F138: 1,000.0 | G138: 1,000.0 | H138: 1,000.0 | CX138: =CX62 -> 7%
A139: 19% | C139: Schulungen | D139: 2,000.0 | E139: 2,000.0 | F139: 2,000.0 | G139: 2,000.0 | H139: 2,000.0 | CX139: =CX63 -> 19%
A140: 7% | B140: =A64 -> 7% | C140: Sonstiges | D140: 0.0 | CX140: =CX64 -> 7%
C141: Summe Verschiedenes | D141: 4,715.0 | E141: =SUM(E136:E140) -> 9,035.4 | F141: =SUM(F136:F140) -> 9,486.5 | G141: =SUM(G136:G140) -> 8,661.5 | H141: 7,836.5
C142: Summe Betriebskosten I | D142: 93,115.0 | E142: =SUM(E82:E141)/2 -> 53,035.4 | F142: =SUM(F82:F141)/2 -> 56,086.5 | G142: =SUM(G82:G141)/2 -> 52,061.5 | H142: =SUM(H82:H141)/2 -> 51,236.5
C143: Abschreibungen (aus Tab 3a) | D143: 240.0 | E143: ='3 Anschaffungen|Aquirements'!F53 -> 6,240.0 | F143: ='3 Anschaffungen|Aquirements'!G53 -> 8,240.0 | G143: ='3 Anschaffungen|Aquirements'!H53 -> 8,240.0 | H143: ='3 Anschaffungen|Aquirements'!I53 -> 8,240.0
C144: =C68 -> Summe Betriebskosten II | D144: 93,355.0 | E144: =SUM(E142:E143) -> 59,275.4 | F144: =SUM(F142:F143) -> 64,326.5 | G144: =SUM(G142:G143) -> 60,301.5 | H144: =SUM(H142:H143) -> 59,476.5
C145: =C69 -> *) wird aus Tabelle "Finanzierung" übernommen (auf ganze Euro gerundet!)
C147: =IF($C$1="English",CZ147,CY147) -> 4b Anhang: Ausweis der MwSt in EURO aus der Differenz zwischen den Tabellen 4b und 4d | CY147: 4b Anhang: Ausweis der MwSt in EURO aus der Differenz zwischen den Tabellen 4b und 4d | CZ147: 4b Addendum: Disclosure of VAT (Difference between Tab. 4b and 4d)
C148: =C72 -> Summe der angefallenen MwSt 19% | D148: =P72 -> 9,234.0 | E148: =IF($A82=MwSt,E82*IF(OR($D$3=0,$D$3=3),$A82,$A82/(1+$A82)),0)+IF($A83=MwSt,E83*IF(OR($D$3=0,$D$3=3),$A83,$A83/(1+$A83)),0)+IF($A84=MwSt,E84*IF(OR($D$3=0,$D$3=3),$A84,$A84/(1+$A84)),0)+IF($A85=MwSt,E85*IF(OR($D$3=0,$D$3=3),$A85,$A85/(1+$A85)),0)+IF($A86=MwSt,E86*IF(OR($D$3=0,$D$3=3),$A86,$A86/(1+$A86)),0)+IF($A87=MwSt,E87*IF(OR($D$3=0,$D$3=3),$A87,$A87/(1+$A87)),0)+IF($A90=MwSt,E90*IF(OR($D$3=0,$D$3=3),$A90,$A90/(1+$A90)),0)+IF($A91=MwSt,E91*IF(OR($D$3=0,$D$3=3),$A91,$A91/(1+$A91)),0)+IF($A92=MwSt,E92*IF(OR($D$3=0,$D$3=3),$A92,$A92/(1+$A92)),0)+IF($A93=MwSt,E93*IF(OR($D$3=0,$D$3=3),$A93,$A93/(1+$A93)),0)+IF($A94=MwSt,E94*IF(OR($D$3=0,$D$3=3),$A94,$A94/(1+$A94)),0)+IF($A95=MwSt,E95*IF(OR($D$3=0,$D$3=3),$A95,$A95/(1+$A95)),0)+IF($A96=MwSt,E96*IF(OR($D$3=0,$D$3=3),$A96,$A96/(1+$A96)),0)+IF($A97=MwSt,E97*IF(OR($D$3=0,$D$3=3),$A97,$A97/(1+$A97)),0)+IF($A100=MwSt,E100*IF(OR($D$3=0,$D$3=3),$A100,$A100/(1+$A100)),0)+IF($A101=MwSt,E101*IF(OR($D$3=0,$D$3=3),$A101,$A101/(1+$A101)),0)+IF($A104=MwSt,E104*IF(OR($D$3=0,$D$3=3),$A104,$A104/(1+$A104)),0)+IF($A105=MwSt,E105*IF(OR($D$3=0,$D$3=3),$A105,$A105/(1+$A105)),0)+IF($A106=MwSt,E106*IF(OR($D$3=0,$D$3=3),$A106,$A106/(1+$A106)),0)+IF($A107=MwSt,E107*IF(OR($D$3=0,$D$3=3),$A107,$A107/(1+$A107)),0)+IF($A110=MwSt,E110*IF(OR($D$3=0,$D$3=3),$A110,$A110/(1+$A110)),0)+IF($A111=MwSt,E111*IF(OR($D$3=0,$D$3=3),$A111,$A111/(1+$A111)),0)+IF($A112=MwSt,E112*IF(OR($D$3=0,$D$3=3),$A112,$A112/(1+$A112)),0)+IF($A113=MwSt,E113*IF(OR($D$3=0,$D$3=3),$A113,$A113/(1+$A113)),0)+IF($A116=MwSt,E116*IF(OR($D$3=0,$D$3=3),$A116,$A116/(1+$A116)),0)+IF($A117=MwSt,E117*IF(OR($D$3=0,$D$3=3),$A117,$A117/(1+$A117)),0)+IF($A118=MwSt,E118*IF(OR($D$3=0,$D$3=3),$A118,$A118/(1+$A118)),0)+IF($A119=MwSt,E119*IF(OR($D$3=0,$D$3=3),$A119,$A119/(1+$A119)),0)++IF($A120=MwSt,E120*IF(OR($D$3=0,$D$3=3),$A120,$A120/(1+$A120)),0)*IF($A123=MwSt,E123*IF(OR($D$3=0,$D$3=3),$A123,$A123/(1+$A123)),0)+IF($A124=MwSt,E124*IF(OR($D$3=0,$D$3=3),$A124,$A124/(1+$A124)),0)+IF($A125=MwSt,E125*IF(OR($D$3=0,$D$3=3),$A125,$A125/(1+$A125)),0)+IF($A126=MwSt,E126*IF(OR($D$3=0,$D$3=3),$A126,$A126/(1+$A126)),0)+IF($A128=MwSt,E128*IF(OR($D$3=0,$D$3=3),$A128,$A128/(1+$A128)),0)+IF($A131=MwSt,E131*IF(OR($D$3=0,$D$3=3),$A131,$A131/(1+$A131)),0)+IF($A132=MwSt,E132*IF(OR($D$3=0,$D$3=3),$A132,$A132/(1+$A132)),0)+IF($A133=MwSt,E133*IF(OR($D$3=0,$D$3=3),$A133,$A133/(1+$A133)),0)+IF($A137=MwSt,E137*IF(OR($D$3=0,$D$3=3),$A137,$A137/(1+$A137)),0)+IF($A138=MwSt,E138*IF(OR($D$3=0,$D$3=3),$A138,$A138/(1+$A138)),0)+IF($A139=MwSt,E139*IF(OR($D$3=0,$D$3=3),$A139,$A139/(1+$A139)),0)+IF($A140=MwSt,E140*IF(OR($D$3=0,$D$3=3),$A140,$A140/(1+$A140)),0) -> 8,968.0 | F148: =IF($A82=MwSt,F82*IF(OR($D$3=0,$D$3=3),$A82,$A82/(1+$A82)),0)+IF($A83=MwSt,F83*IF(OR($D$3=0,$D$3=3),$A83,$A83/(1+$A83)),0)+IF($A84=MwSt,F84*IF(OR($D$3=0,$D$3=3),$A84,$A84/(1+$A84)),0)+IF($A85=MwSt,F85*IF(OR($D$3=0,$D$3=3),$A85,$A85/(1+$A85)),0)+IF($A86=MwSt,F86*IF(OR($D$3=0,$D$3=3),$A86,$A86/(1+$A86)),0)+IF($A87=MwSt,F87*IF(OR($D$3=0,$D$3=3),$A87,$A87/(1+$A87)),0)+IF($A90=MwSt,F90*IF(OR($D$3=0,$D$3=3),$A90,$A90/(1+$A90)),0)+IF($A91=MwSt,F91*IF(OR($D$3=0,$D$3=3),$A91,$A91/(1+$A91)),0)+IF($A92=MwSt,F92*IF(OR($D$3=0,$D$3=3),$A92,$A92/(1+$A92)),0)+IF($A93=MwSt,F93*IF(OR($D$3=0,$D$3=3),$A93,$A93/(1+$A93)),0)+IF($A94=MwSt,F94*IF(OR($D$3=0,$D$3=3),$A94,$A94/(1+$A94)),0)+IF($A95=MwSt,F95*IF(OR($D$3=0,$D$3=3),$A95,$A95/(1+$A95)),0)+IF($A96=MwSt,F96*IF(OR($D$3=0,$D$3=3),$A96,$A96/(1+$A96)),0)+IF($A97=MwSt,F97*IF(OR($D$3=0,$D$3=3),$A97,$A97/(1+$A97)),0)+IF($A100=MwSt,F100*IF(OR($D$3=0,$D$3=3),$A100,$A100/(1+$A100)),0)+IF($A101=MwSt,F101*IF(OR($D$3=0,$D$3=3),$A101,$A101/(1+$A101)),0)+IF($A104=MwSt,F104*IF(OR($D$3=0,$D$3=3),$A104,$A104/(1+$A104)),0)+IF($A105=MwSt,F105*IF(OR($D$3=0,$D$3=3),$A105,$A105/(1+$A105)),0)+IF($A106=MwSt,F106*IF(OR($D$3=0,$D$3=3),$A106,$A106/(1+$A106)),0)+IF($A107=MwSt,F107*IF(OR($D$3=0,$D$3=3),$A107,$A107/(1+$A107)),0)+IF($A110=MwSt,F110*IF(OR($D$3=0,$D$3=3),$A110,$A110/(1+$A110)),0)+IF($A111=MwSt,F111*IF(OR($D$3=0,$D$3=3),$A111,$A111/(1+$A111)),0)+IF($A112=MwSt,F112*IF(OR($D$3=0,$D$3=3),$A112,$A112/(1+$A112)),0)+IF($A113=MwSt,F113*IF(OR($D$3=0,$D$3=3),$A113,$A113/(1+$A113)),0)+IF($A116=MwSt,F116*IF(OR($D$3=0,$D$3=3),$A116,$A116/(1+$A116)),0)+IF($A117=MwSt,F117*IF(OR($D$3=0,$D$3=3),$A117,$A117/(1+$A117)),0)+IF($A118=MwSt,F118*IF(OR($D$3=0,$D$3=3),$A118,$A118/(1+$A118)),0)+IF($A119=MwSt,F119*IF(OR($D$3=0,$D$3=3),$A119,$A119/(1+$A119)),0)++IF($A120=MwSt,F120*IF(OR($D$3=0,$D$3=3),$A120,$A120/(1+$A120)),0)*IF($A123=MwSt,F123*IF(OR($D$3=0,$D$3=3),$A123,$A123/(1+$A123)),0)+IF($A124=MwSt,F124*IF(OR($D$3=0,$D$3=3),$A124,$A124/(1+$A124)),0)+IF($A125=MwSt,F125*IF(OR($D$3=0,$D$3=3),$A125,$A125/(1+$A125)),0)+IF($A126=MwSt,F126*IF(OR($D$3=0,$D$3=3),$A126,$A126/(1+$A126)),0)+IF($A128=MwSt,F128*IF(OR($D$3=0,$D$3=3),$A128,$A128/(1+$A128)),0)+IF($A131=MwSt,F131*IF(OR($D$3=0,$D$3=3),$A131,$A131/(1+$A131)),0)+IF($A132=MwSt,F132*IF(OR($D$3=0,$D$3=3),$A132,$A132/(1+$A132)),0)+IF($A133=MwSt,F133*IF(OR($D$3=0,$D$3=3),$A133,$A133/(1+$A133)),0)+IF($A137=MwSt,F137*IF(OR($D$3=0,$D$3=3),$A137,$A137/(1+$A137)),0)+IF($A138=MwSt,F138*IF(OR($D$3=0,$D$3=3),$A138,$A138/(1+$A138)),0)+IF($A139=MwSt,F139*IF(OR($D$3=0,$D$3=3),$A139,$A139/(1+$A139)),0)+IF($A140=MwSt,F140*IF(OR($D$3=0,$D$3=3),$A140,$A140/(1+$A140)),0) -> 8,512.0 | G148: =IF($A82=MwSt,G82*IF(OR($D$3=0,$D$3=3),$A82,$A82/(1+$A82)),0)+IF($A83=MwSt,G83*IF(OR($D$3=0,$D$3=3),$A83,$A83/(1+$A83)),0)+IF($A84=MwSt,G84*IF(OR($D$3=0,$D$3=3),$A84,$A84/(1+$A84)),0)+IF($A85=MwSt,G85*IF(OR($D$3=0,$D$3=3),$A85,$A85/(1+$A85)),0)+IF($A86=MwSt,G86*IF(OR($D$3=0,$D$3=3),$A86,$A86/(1+$A86)),0)+IF($A87=MwSt,G87*IF(OR($D$3=0,$D$3=3),$A87,$A87/(1+$A87)),0)+IF($A90=MwSt,G90*IF(OR($D$3=0,$D$3=3),$A90,$A90/(1+$A90)),0)+IF($A91=MwSt,G91*IF(OR($D$3=0,$D$3=3),$A91,$A91/(1+$A91)),0)+IF($A92=MwSt,G92*IF(OR($D$3=0,$D$3=3),$A92,$A92/(1+$A92)),0)+IF($A93=MwSt,G93*IF(OR($D$3=0,$D$3=3),$A93,$A93/(1+$A93)),0)+IF($A94=MwSt,G94*IF(OR($D$3=0,$D$3=3),$A94,$A94/(1+$A94)),0)+IF($A95=MwSt,G95*IF(OR($D$3=0,$D$3=3),$A95,$A95/(1+$A95)),0)+IF($A96=MwSt,G96*IF(OR($D$3=0,$D$3=3),$A96,$A96/(1+$A96)),0)+IF($A97=MwSt,G97*IF(OR($D$3=0,$D$3=3),$A97,$A97/(1+$A97)),0)+IF($A100=MwSt,G100*IF(OR($D$3=0,$D$3=3),$A100,$A100/(1+$A100)),0)+IF($A101=MwSt,G101*IF(OR($D$3=0,$D$3=3),$A101,$A101/(1+$A101)),0)+IF($A104=MwSt,G104*IF(OR($D$3=0,$D$3=3),$A104,$A104/(1+$A104)),0)+IF($A105=MwSt,G105*IF(OR($D$3=0,$D$3=3),$A105,$A105/(1+$A105)),0)+IF($A106=MwSt,G106*IF(OR($D$3=0,$D$3=3),$A106,$A106/(1+$A106)),0)+IF($A107=MwSt,G107*IF(OR($D$3=0,$D$3=3),$A107,$A107/(1+$A107)),0)+IF($A110=MwSt,G110*IF(OR($D$3=0,$D$3=3),$A110,$A110/(1+$A110)),0)+IF($A111=MwSt,G111*IF(OR($D$3=0,$D$3=3),$A111,$A111/(1+$A111)),0)+IF($A112=MwSt,G112*IF(OR($D$3=0,$D$3=3),$A112,$A112/(1+$A112)),0)+IF($A113=MwSt,G113*IF(OR($D$3=0,$D$3=3),$A113,$A113/(1+$A113)),0)+IF($A116=MwSt,G116*IF(OR($D$3=0,$D$3=3),$A116,$A116/(1+$A116)),0)+IF($A117=MwSt,G117*IF(OR($D$3=0,$D$3=3),$A117,$A117/(1+$A117)),0)+IF($A118=MwSt,G118*IF(OR($D$3=0,$D$3=3),$A118,$A118/(1+$A118)),0)+IF($A119=MwSt,G119*IF(OR($D$3=0,$D$3=3),$A119,$A119/(1+$A119)),0)++IF($A120=MwSt,G120*IF(OR($D$3=0,$D$3=3),$A120,$A120/(1+$A120)),0)*IF($A123=MwSt,G123*IF(OR($D$3=0,$D$3=3),$A123,$A123/(1+$A123)),0)+IF($A124=MwSt,G124*IF(OR($D$3=0,$D$3=3),$A124,$A124/(1+$A124)),0)+IF($A125=MwSt,G125*IF(OR($D$3=0,$D$3=3),$A125,$A125/(1+$A125)),0)+IF($A126=MwSt,G126*IF(OR($D$3=0,$D$3=3),$A126,$A126/(1+$A126)),0)+IF($A128=MwSt,G128*IF(OR($D$3=0,$D$3=3),$A128,$A128/(1+$A128)),0)+IF($A131=MwSt,G131*IF(OR($D$3=0,$D$3=3),$A131,$A131/(1+$A131)),0)+IF($A132=MwSt,G132*IF(OR($D$3=0,$D$3=3),$A132,$A132/(1+$A132)),0)+IF($A133=MwSt,G133*IF(OR($D$3=0,$D$3=3),$A133,$A133/(1+$A133)),0)+IF($A137=MwSt,G137*IF(OR($D$3=0,$D$3=3),$A137,$A137/(1+$A137)),0)+IF($A138=MwSt,G138*IF(OR($D$3=0,$D$3=3),$A138,$A138/(1+$A138)),0)+IF($A139=MwSt,G139*IF(OR($D$3=0,$D$3=3),$A139,$A139/(1+$A139)),0)+IF($A140=MwSt,G140*IF(OR($D$3=0,$D$3=3),$A140,$A140/(1+$A140)),0) -> 8,854.0 | H148: =IF($A82=MwSt,H82*IF(OR($D$3=0,$D$3=3),$A82,$A82/(1+$A82)),0)+IF($A83=MwSt,H83*IF(OR($D$3=0,$D$3=3),$A83,$A83/(1+$A83)),0)+IF($A84=MwSt,H84*IF(OR($D$3=0,$D$3=3),$A84,$A84/(1+$A84)),0)+IF($A85=MwSt,H85*IF(OR($D$3=0,$D$3=3),$A85,$A85/(1+$A85)),0)+IF($A86=MwSt,H86*IF(OR($D$3=0,$D$3=3),$A86,$A86/(1+$A86)),0)+IF($A87=MwSt,H87*IF(OR($D$3=0,$D$3=3),$A87,$A87/(1+$A87)),0)+IF($A90=MwSt,H90*IF(OR($D$3=0,$D$3=3),$A90,$A90/(1+$A90)),0)+IF($A91=MwSt,H91*IF(OR($D$3=0,$D$3=3),$A91,$A91/(1+$A91)),0)+IF($A92=MwSt,H92*IF(OR($D$3=0,$D$3=3),$A92,$A92/(1+$A92)),0)+IF($A93=MwSt,H93*IF(OR($D$3=0,$D$3=3),$A93,$A93/(1+$A93)),0)+IF($A94=MwSt,H94*IF(OR($D$3=0,$D$3=3),$A94,$A94/(1+$A94)),0)+IF($A95=MwSt,H95*IF(OR($D$3=0,$D$3=3),$A95,$A95/(1+$A95)),0)+IF($A96=MwSt,H96*IF(OR($D$3=0,$D$3=3),$A96,$A96/(1+$A96)),0)+IF($A97=MwSt,H97*IF(OR($D$3=0,$D$3=3),$A97,$A97/(1+$A97)),0)+IF($A100=MwSt,H100*IF(OR($D$3=0,$D$3=3),$A100,$A100/(1+$A100)),0)+IF($A101=MwSt,H101*IF(OR($D$3=0,$D$3=3),$A101,$A101/(1+$A101)),0)+IF($A104=MwSt,H104*IF(OR($D$3=0,$D$3=3),$A104,$A104/(1+$A104)),0)+IF($A105=MwSt,H105*IF(OR($D$3=0,$D$3=3),$A105,$A105/(1+$A105)),0)+IF($A106=MwSt,H106*IF(OR($D$3=0,$D$3=3),$A106,$A106/(1+$A106)),0)+IF($A107=MwSt,H107*IF(OR($D$3=0,$D$3=3),$A107,$A107/(1+$A107)),0)+IF($A110=MwSt,H110*IF(OR($D$3=0,$D$3=3),$A110,$A110/(1+$A110)),0)+IF($A111=MwSt,H111*IF(OR($D$3=0,$D$3=3),$A111,$A111/(1+$A111)),0)+IF($A112=MwSt,H112*IF(OR($D$3=0,$D$3=3),$A112,$A112/(1+$A112)),0)+IF($A113=MwSt,H113*IF(OR($D$3=0,$D$3=3),$A113,$A113/(1+$A113)),0)+IF($A116=MwSt,H116*IF(OR($D$3=0,$D$3=3),$A116,$A116/(1+$A116)),0)+IF($A117=MwSt,H117*IF(OR($D$3=0,$D$3=3),$A117,$A117/(1+$A117)),0)+IF($A118=MwSt,H118*IF(OR($D$3=0,$D$3=3),$A118,$A118/(1+$A118)),0)+IF($A119=MwSt,H119*IF(OR($D$3=0,$D$3=3),$A119,$A119/(1+$A119)),0)++IF($A120=MwSt,H120*IF(OR($D$3=0,$D$3=3),$A120,$A120/(1+$A120)),0)*IF($A123=MwSt,H123*IF(OR($D$3=0,$D$3=3),$A123,$A123/(1+$A123)),0)+IF($A124=MwSt,H124*IF(OR($D$3=0,$D$3=3),$A124,$A124/(1+$A124)),0)+IF($A125=MwSt,H125*IF(OR($D$3=0,$D$3=3),$A125,$A125/(1+$A125)),0)+IF($A126=MwSt,H126*IF(OR($D$3=0,$D$3=3),$A126,$A126/(1+$A126)),0)+IF($A128=MwSt,H128*IF(OR($D$3=0,$D$3=3),$A128,$A128/(1+$A128)),0)+IF($A131=MwSt,H131*IF(OR($D$3=0,$D$3=3),$A131,$A131/(1+$A131)),0)+IF($A132=MwSt,H132*IF(OR($D$3=0,$D$3=3),$A132,$A132/(1+$A132)),0)+IF($A133=MwSt,H133*IF(OR($D$3=0,$D$3=3),$A133,$A133/(1+$A133)),0)+IF($A137=MwSt,H137*IF(OR($D$3=0,$D$3=3),$A137,$A137/(1+$A137)),0)+IF($A138=MwSt,H138*IF(OR($D$3=0,$D$3=3),$A138,$A138/(1+$A138)),0)+IF($A139=MwSt,H139*IF(OR($D$3=0,$D$3=3),$A139,$A139/(1+$A139)),0)+IF($A140=MwSt,H140*IF(OR($D$3=0,$D$3=3),$A140,$A140/(1+$A140)),0) -> 8,854.0
C149: =C73 -> Summe der angefallenen MwSt 7% | D149: =P73 -> 16.8 | E149: =IF($A82=MwStklein,E82*IF(OR($D$3=0,$D$3=3),$A82,$A82/(1+$A82)),0)+IF($A83=MwStklein,E83*IF(OR($D$3=0,$D$3=3),$A83,$A83/(1+$A83)),0)+IF($A84=MwStklein,E84*IF(OR($D$3=0,$D$3=3),$A84,$A84/(1+$A84)),0)+IF($A85=MwStklein,E85*IF(OR($D$3=0,$D$3=3),$A85,$A85/(1+$A85)),0)+IF($A86=MwStklein,E86*IF(OR($D$3=0,$D$3=3),$A86,$A86/(1+$A86)),0)+IF($A87=MwStklein,E87*IF(OR($D$3=0,$D$3=3),$A87,$A87/(1+$A87)),0)+IF($A90=MwStklein,E90*IF(OR($D$3=0,$D$3=3),$A90,$A90/(1+$A90)),0)+IF($A91=MwStklein,E91*IF(OR($D$3=0,$D$3=3),$A91,$A91/(1+$A91)),0)+IF($A92=MwStklein,E92*IF(OR($D$3=0,$D$3=3),$A92,$A92/(1+$A92)),0)+IF($A93=MwStklein,E93*IF(OR($D$3=0,$D$3=3),$A93,$A93/(1+$A93)),0)+IF($A94=MwStklein,E94*IF(OR($D$3=0,$D$3=3),$A94,$A94/(1+$A94)),0)+IF($A95=MwStklein,E95*IF(OR($D$3=0,$D$3=3),$A95,$A95/(1+$A95)),0)+IF($A96=MwStklein,E96*IF(OR($D$3=0,$D$3=3),$A96,$A96/(1+$A96)),0)+IF($A97=MwStklein,E97*IF(OR($D$3=0,$D$3=3),$A97,$A97/(1+$A97)),0)+IF($A100=MwStklein,E100*IF(OR($D$3=0,$D$3=3),$A100,$A100/(1+$A100)),0)+IF($A101=MwStklein,E101*IF(OR($D$3=0,$D$3=3),$A101,$A101/(1+$A101)),0)+IF($A104=MwStklein,E104*IF(OR($D$3=0,$D$3=3),$A104,$A104/(1+$A104)),0)+IF($A105=MwStklein,E105*IF(OR($D$3=0,$D$3=3),$A105,$A105/(1+$A105)),0)+IF($A106=MwStklein,E106*IF(OR($D$3=0,$D$3=3),$A106,$A106/(1+$A106)),0)+IF($A107=MwStklein,E107*IF(OR($D$3=0,$D$3=3),$A107,$A107/(1+$A107)),0)+IF($A110=MwStklein,E110*IF(OR($D$3=0,$D$3=3),$A110,$A110/(1+$A110)),0)+IF($A111=MwStklein,E111*IF(OR($D$3=0,$D$3=3),$A111,$A111/(1+$A111)),0)+IF($A112=MwStklein,E112*IF(OR($D$3=0,$D$3=3),$A112,$A112/(1+$A112)),0)+IF($A113=MwStklein,E113*IF(OR($D$3=0,$D$3=3),$A113,$A113/(1+$A113)),0)+IF($A116=MwStklein,E116*IF(OR($D$3=0,$D$3=3),$A116,$A116/(1+$A116)),0)+IF($A117=MwStklein,E117*IF(OR($D$3=0,$D$3=3),$A117,$A117/(1+$A117)),0)+IF($A118=MwStklein,E118*IF(OR($D$3=0,$D$3=3),$A118,$A118/(1+$A118)),0)+IF($A119=MwStklein,E119*IF(OR($D$3=0,$D$3=3),$A119,$A119/(1+$A119)),0)++IF($A120=MwStklein,E120*IF(OR($D$3=0,$D$3=3),$A120,$A120/(1+$A120)),0)*IF($A123=MwStklein,E123*IF(OR($D$3=0,$D$3=3),$A123,$A123/(1+$A123)),0)+IF($A124=MwStklein,E124*IF(OR($D$3=0,$D$3=3),$A124,$A124/(1+$A124)),0)+IF($A125=MwStklein,E125*IF(OR($D$3=0,$D$3=3),$A125,$A125/(1+$A125)),0)+IF($A126=MwStklein,E126*IF(OR($D$3=0,$D$3=3),$A126,$A126/(1+$A126)),0)+IF($A128=MwStklein,E128*IF(OR($D$3=0,$D$3=3),$A128,$A128/(1+$A128)),0)+IF($A131=MwStklein,E131*IF(OR($D$3=0,$D$3=3),$A131,$A131/(1+$A131)),0)+IF($A132=MwStklein,E132*IF(OR($D$3=0,$D$3=3),$A132,$A132/(1+$A132)),0)+IF($A133=MwStklein,E133*IF(OR($D$3=0,$D$3=3),$A133,$A133/(1+$A133)),0)+IF($A137=MwStklein,E137*IF(OR($D$3=0,$D$3=3),$A137,$A137/(1+$A137)),0)+IF($A138=MwStklein,E138*IF(OR($D$3=0,$D$3=3),$A138,$A138/(1+$A138)),0)+IF($A139=MwStklein,E139*IF(OR($D$3=0,$D$3=3),$A139,$A139/(1+$A139)),0)+IF($A140=MwStklein,E140*IF(OR($D$3=0,$D$3=3),$A140,$A140/(1+$A140)),0) -> 70.0 | F149: =IF($A82=MwStklein,F82*IF(OR($D$3=0,$D$3=3),$A82,$A82/(1+$A82)),0)+IF($A83=MwStklein,F83*IF(OR($D$3=0,$D$3=3),$A83,$A83/(1+$A83)),0)+IF($A84=MwStklein,F84*IF(OR($D$3=0,$D$3=3),$A84,$A84/(1+$A84)),0)+IF($A85=MwStklein,F85*IF(OR($D$3=0,$D$3=3),$A85,$A85/(1+$A85)),0)+IF($A86=MwStklein,F86*IF(OR($D$3=0,$D$3=3),$A86,$A86/(1+$A86)),0)+IF($A87=MwStklein,F87*IF(OR($D$3=0,$D$3=3),$A87,$A87/(1+$A87)),0)+IF($A90=MwStklein,F90*IF(OR($D$3=0,$D$3=3),$A90,$A90/(1+$A90)),0)+IF($A91=MwStklein,F91*IF(OR($D$3=0,$D$3=3),$A91,$A91/(1+$A91)),0)+IF($A92=MwStklein,F92*IF(OR($D$3=0,$D$3=3),$A92,$A92/(1+$A92)),0)+IF($A93=MwStklein,F93*IF(OR($D$3=0,$D$3=3),$A93,$A93/(1+$A93)),0)+IF($A94=MwStklein,F94*IF(OR($D$3=0,$D$3=3),$A94,$A94/(1+$A94)),0)+IF($A95=MwStklein,F95*IF(OR($D$3=0,$D$3=3),$A95,$A95/(1+$A95)),0)+IF($A96=MwStklein,F96*IF(OR($D$3=0,$D$3=3),$A96,$A96/(1+$A96)),0)+IF($A97=MwStklein,F97*IF(OR($D$3=0,$D$3=3),$A97,$A97/(1+$A97)),0)+IF($A100=MwStklein,F100*IF(OR($D$3=0,$D$3=3),$A100,$A100/(1+$A100)),0)+IF($A101=MwStklein,F101*IF(OR($D$3=0,$D$3=3),$A101,$A101/(1+$A101)),0)+IF($A104=MwStklein,F104*IF(OR($D$3=0,$D$3=3),$A104,$A104/(1+$A104)),0)+IF($A105=MwStklein,F105*IF(OR($D$3=0,$D$3=3),$A105,$A105/(1+$A105)),0)+IF($A106=MwStklein,F106*IF(OR($D$3=0,$D$3=3),$A106,$A106/(1+$A106)),0)+IF($A107=MwStklein,F107*IF(OR($D$3=0,$D$3=3),$A107,$A107/(1+$A107)),0)+IF($A110=MwStklein,F110*IF(OR($D$3=0,$D$3=3),$A110,$A110/(1+$A110)),0)+IF($A111=MwStklein,F111*IF(OR($D$3=0,$D$3=3),$A111,$A111/(1+$A111)),0)+IF($A112=MwStklein,F112*IF(OR($D$3=0,$D$3=3),$A112,$A112/(1+$A112)),0)+IF($A113=MwStklein,F113*IF(OR($D$3=0,$D$3=3),$A113,$A113/(1+$A113)),0)+IF($A116=MwStklein,F116*IF(OR($D$3=0,$D$3=3),$A116,$A116/(1+$A116)),0)+IF($A117=MwStklein,F117*IF(OR($D$3=0,$D$3=3),$A117,$A117/(1+$A117)),0)+IF($A118=MwStklein,F118*IF(OR($D$3=0,$D$3=3),$A118,$A118/(1+$A118)),0)+IF($A119=MwStklein,F119*IF(OR($D$3=0,$D$3=3),$A119,$A119/(1+$A119)),0)++IF($A120=MwStklein,F120*IF(OR($D$3=0,$D$3=3),$A120,$A120/(1+$A120)),0)*IF($A123=MwStklein,F123*IF(OR($D$3=0,$D$3=3),$A123,$A123/(1+$A123)),0)+IF($A124=MwStklein,F124*IF(OR($D$3=0,$D$3=3),$A124,$A124/(1+$A124)),0)+IF($A125=MwStklein,F125*IF(OR($D$3=0,$D$3=3),$A125,$A125/(1+$A125)),0)+IF($A126=MwStklein,F126*IF(OR($D$3=0,$D$3=3),$A126,$A126/(1+$A126)),0)+IF($A128=MwStklein,F128*IF(OR($D$3=0,$D$3=3),$A128,$A128/(1+$A128)),0)+IF($A131=MwStklein,F131*IF(OR($D$3=0,$D$3=3),$A131,$A131/(1+$A131)),0)+IF($A132=MwStklein,F132*IF(OR($D$3=0,$D$3=3),$A132,$A132/(1+$A132)),0)+IF($A133=MwStklein,F133*IF(OR($D$3=0,$D$3=3),$A133,$A133/(1+$A133)),0)+IF($A137=MwStklein,F137*IF(OR($D$3=0,$D$3=3),$A137,$A137/(1+$A137)),0)+IF($A138=MwStklein,F138*IF(OR($D$3=0,$D$3=3),$A138,$A138/(1+$A138)),0)+IF($A139=MwStklein,F139*IF(OR($D$3=0,$D$3=3),$A139,$A139/(1+$A139)),0)+IF($A140=MwStklein,F140*IF(OR($D$3=0,$D$3=3),$A140,$A140/(1+$A140)),0) -> 70.0 | G149: =IF($A82=MwStklein,G82*IF(OR($D$3=0,$D$3=3),$A82,$A82/(1+$A82)),0)+IF($A83=MwStklein,G83*IF(OR($D$3=0,$D$3=3),$A83,$A83/(1+$A83)),0)+IF($A84=MwStklein,G84*IF(OR($D$3=0,$D$3=3),$A84,$A84/(1+$A84)),0)+IF($A85=MwStklein,G85*IF(OR($D$3=0,$D$3=3),$A85,$A85/(1+$A85)),0)+IF($A86=MwStklein,G86*IF(OR($D$3=0,$D$3=3),$A86,$A86/(1+$A86)),0)+IF($A87=MwStklein,G87*IF(OR($D$3=0,$D$3=3),$A87,$A87/(1+$A87)),0)+IF($A90=MwStklein,G90*IF(OR($D$3=0,$D$3=3),$A90,$A90/(1+$A90)),0)+IF($A91=MwStklein,G91*IF(OR($D$3=0,$D$3=3),$A91,$A91/(1+$A91)),0)+IF($A92=MwStklein,G92*IF(OR($D$3=0,$D$3=3),$A92,$A92/(1+$A92)),0)+IF($A93=MwStklein,G93*IF(OR($D$3=0,$D$3=3),$A93,$A93/(1+$A93)),0)+IF($A94=MwStklein,G94*IF(OR($D$3=0,$D$3=3),$A94,$A94/(1+$A94)),0)+IF($A95=MwStklein,G95*IF(OR($D$3=0,$D$3=3),$A95,$A95/(1+$A95)),0)+IF($A96=MwStklein,G96*IF(OR($D$3=0,$D$3=3),$A96,$A96/(1+$A96)),0)+IF($A97=MwStklein,G97*IF(OR($D$3=0,$D$3=3),$A97,$A97/(1+$A97)),0)+IF($A100=MwStklein,G100*IF(OR($D$3=0,$D$3=3),$A100,$A100/(1+$A100)),0)+IF($A101=MwStklein,G101*IF(OR($D$3=0,$D$3=3),$A101,$A101/(1+$A101)),0)+IF($A104=MwStklein,G104*IF(OR($D$3=0,$D$3=3),$A104,$A104/(1+$A104)),0)+IF($A105=MwStklein,G105*IF(OR($D$3=0,$D$3=3),$A105,$A105/(1+$A105)),0)+IF($A106=MwStklein,G106*IF(OR($D$3=0,$D$3=3),$A106,$A106/(1+$A106)),0)+IF($A107=MwStklein,G107*IF(OR($D$3=0,$D$3=3),$A107,$A107/(1+$A107)),0)+IF($A110=MwStklein,G110*IF(OR($D$3=0,$D$3=3),$A110,$A110/(1+$A110)),0)+IF($A111=MwStklein,G111*IF(OR($D$3=0,$D$3=3),$A111,$A111/(1+$A111)),0)+IF($A112=MwStklein,G112*IF(OR($D$3=0,$D$3=3),$A112,$A112/(1+$A112)),0)+IF($A113=MwStklein,G113*IF(OR($D$3=0,$D$3=3),$A113,$A113/(1+$A113)),0)+IF($A116=MwStklein,G116*IF(OR($D$3=0,$D$3=3),$A116,$A116/(1+$A116)),0)+IF($A117=MwStklein,G117*IF(OR($D$3=0,$D$3=3),$A117,$A117/(1+$A117)),0)+IF($A118=MwStklein,G118*IF(OR($D$3=0,$D$3=3),$A118,$A118/(1+$A118)),0)+IF($A119=MwStklein,G119*IF(OR($D$3=0,$D$3=3),$A119,$A119/(1+$A119)),0)++IF($A120=MwStklein,G120*IF(OR($D$3=0,$D$3=3),$A120,$A120/(1+$A120)),0)*IF($A123=MwStklein,G123*IF(OR($D$3=0,$D$3=3),$A123,$A123/(1+$A123)),0)+IF($A124=MwStklein,G124*IF(OR($D$3=0,$D$3=3),$A124,$A124/(1+$A124)),0)+IF($A125=MwStklein,G125*IF(OR($D$3=0,$D$3=3),$A125,$A125/(1+$A125)),0)+IF($A126=MwStklein,G126*IF(OR($D$3=0,$D$3=3),$A126,$A126/(1+$A126)),0)+IF($A128=MwStklein,G128*IF(OR($D$3=0,$D$3=3),$A128,$A128/(1+$A128)),0)+IF($A131=MwStklein,G131*IF(OR($D$3=0,$D$3=3),$A131,$A131/(1+$A131)),0)+IF($A132=MwStklein,G132*IF(OR($D$3=0,$D$3=3),$A132,$A132/(1+$A132)),0)+IF($A133=MwStklein,G133*IF(OR($D$3=0,$D$3=3),$A133,$A133/(1+$A133)),0)+IF($A137=MwStklein,G137*IF(OR($D$3=0,$D$3=3),$A137,$A137/(1+$A137)),0)+IF($A138=MwStklein,G138*IF(OR($D$3=0,$D$3=3),$A138,$A138/(1+$A138)),0)+IF($A139=MwStklein,G139*IF(OR($D$3=0,$D$3=3),$A139,$A139/(1+$A139)),0)+IF($A140=MwStklein,G140*IF(OR($D$3=0,$D$3=3),$A140,$A140/(1+$A140)),0) -> 70.0 | H149: =IF($A82=MwStklein,H82*IF(OR($D$3=0,$D$3=3),$A82,$A82/(1+$A82)),0)+IF($A83=MwStklein,H83*IF(OR($D$3=0,$D$3=3),$A83,$A83/(1+$A83)),0)+IF($A84=MwStklein,H84*IF(OR($D$3=0,$D$3=3),$A84,$A84/(1+$A84)),0)+IF($A85=MwStklein,H85*IF(OR($D$3=0,$D$3=3),$A85,$A85/(1+$A85)),0)+IF($A86=MwStklein,H86*IF(OR($D$3=0,$D$3=3),$A86,$A86/(1+$A86)),0)+IF($A87=MwStklein,H87*IF(OR($D$3=0,$D$3=3),$A87,$A87/(1+$A87)),0)+IF($A90=MwStklein,H90*IF(OR($D$3=0,$D$3=3),$A90,$A90/(1+$A90)),0)+IF($A91=MwStklein,H91*IF(OR($D$3=0,$D$3=3),$A91,$A91/(1+$A91)),0)+IF($A92=MwStklein,H92*IF(OR($D$3=0,$D$3=3),$A92,$A92/(1+$A92)),0)+IF($A93=MwStklein,H93*IF(OR($D$3=0,$D$3=3),$A93,$A93/(1+$A93)),0)+IF($A94=MwStklein,H94*IF(OR($D$3=0,$D$3=3),$A94,$A94/(1+$A94)),0)+IF($A95=MwStklein,H95*IF(OR($D$3=0,$D$3=3),$A95,$A95/(1+$A95)),0)+IF($A96=MwStklein,H96*IF(OR($D$3=0,$D$3=3),$A96,$A96/(1+$A96)),0)+IF($A97=MwStklein,H97*IF(OR($D$3=0,$D$3=3),$A97,$A97/(1+$A97)),0)+IF($A100=MwStklein,H100*IF(OR($D$3=0,$D$3=3),$A100,$A100/(1+$A100)),0)+IF($A101=MwStklein,H101*IF(OR($D$3=0,$D$3=3),$A101,$A101/(1+$A101)),0)+IF($A104=MwStklein,H104*IF(OR($D$3=0,$D$3=3),$A104,$A104/(1+$A104)),0)+IF($A105=MwStklein,H105*IF(OR($D$3=0,$D$3=3),$A105,$A105/(1+$A105)),0)+IF($A106=MwStklein,H106*IF(OR($D$3=0,$D$3=3),$A106,$A106/(1+$A106)),0)+IF($A107=MwStklein,H107*IF(OR($D$3=0,$D$3=3),$A107,$A107/(1+$A107)),0)+IF($A110=MwStklein,H110*IF(OR($D$3=0,$D$3=3),$A110,$A110/(1+$A110)),0)+IF($A111=MwStklein,H111*IF(OR($D$3=0,$D$3=3),$A111,$A111/(1+$A111)),0)+IF($A112=MwStklein,H112*IF(OR($D$3=0,$D$3=3),$A112,$A112/(1+$A112)),0)+IF($A113=MwStklein,H113*IF(OR($D$3=0,$D$3=3),$A113,$A113/(1+$A113)),0)+IF($A116=MwStklein,H116*IF(OR($D$3=0,$D$3=3),$A116,$A116/(1+$A116)),0)+IF($A117=MwStklein,H117*IF(OR($D$3=0,$D$3=3),$A117,$A117/(1+$A117)),0)+IF($A118=MwStklein,H118*IF(OR($D$3=0,$D$3=3),$A118,$A118/(1+$A118)),0)+IF($A119=MwStklein,H119*IF(OR($D$3=0,$D$3=3),$A119,$A119/(1+$A119)),0)++IF($A120=MwStklein,H120*IF(OR($D$3=0,$D$3=3),$A120,$A120/(1+$A120)),0)*IF($A123=MwStklein,H123*IF(OR($D$3=0,$D$3=3),$A123,$A123/(1+$A123)),0)+IF($A124=MwStklein,H124*IF(OR($D$3=0,$D$3=3),$A124,$A124/(1+$A124)),0)+IF($A125=MwStklein,H125*IF(OR($D$3=0,$D$3=3),$A125,$A125/(1+$A125)),0)+IF($A126=MwStklein,H126*IF(OR($D$3=0,$D$3=3),$A126,$A126/(1+$A126)),0)+IF($A128=MwStklein,H128*IF(OR($D$3=0,$D$3=3),$A128,$A128/(1+$A128)),0)+IF($A131=MwStklein,H131*IF(OR($D$3=0,$D$3=3),$A131,$A131/(1+$A131)),0)+IF($A132=MwStklein,H132*IF(OR($D$3=0,$D$3=3),$A132,$A132/(1+$A132)),0)+IF($A133=MwStklein,H133*IF(OR($D$3=0,$D$3=3),$A133,$A133/(1+$A133)),0)+IF($A137=MwStklein,H137*IF(OR($D$3=0,$D$3=3),$A137,$A137/(1+$A137)),0)+IF($A138=MwStklein,H138*IF(OR($D$3=0,$D$3=3),$A138,$A138/(1+$A138)),0)+IF($A139=MwStklein,H139*IF(OR($D$3=0,$D$3=3),$A139,$A139/(1+$A139)),0)+IF($A140=MwStklein,H140*IF(OR($D$3=0,$D$3=3),$A140,$A140/(1+$A140)),0) -> 70.0
C150: =C74 -> Gesamtsumme angefallener MwSt | D150: =D149+D148 -> 9,250.8 | E150: =E149+E148 -> 9,038.0 | F150: 8,582.0 | G150: 8,924.0 | H150: 8,924.0
S154: Ende
B165: =IF($C$1="English",CZ165,CY165) -> 4c Betriebskosten für das Jahr 2016 in EUR (mit MwSt;nur zur Kenntnis) | CY165: ="4c Betriebskosten für das Jahr " &'1 Pers.Ausgaben|Pers Expenses'!$C$3&" in EUR" & IF('Deckblatt Gründer|Data Founder'!M1>0," (ohne MwSt;nur zur Kenntnis)"," (mit MwSt;nur zur Kenntnis)") -> 4c Betriebskosten für das Jahr 2016 in EUR (mit MwSt;nur zur Kenntnis) | CZ165: ="4c Operating Expense for Year " &'1 Pers.Ausgaben|Pers Expenses'!$C$3&" in EUR" & IF('Deckblatt Gründer|Data Founder'!M1>0," (w/o VAT;only for knowledge)", " (incl. VAT;only for knowledge)") -> 4c Operating Expense for Year 2016 in EUR (incl. VAT;only for knowledge)
B166: =IF($C$1="English",CZ166,CY166) ->  | D166: =IF(D3>0,-1,1) -> 1 | CY166: =IF($D$3=-1," ┌ MwSt-Satz der jeweiligen Kostenart","") ->  | CZ166: =IF($D$3=-1," ┌ VAT for Cost Type","") -> 
B167: =B4 -> No. | C167: Kostenart | D167: Jan. | E167: Febr. | F167: März | G167: April | H167: Mai | I167: Juni | J167: Juli | K167: Aug. | L167: Sept. | M167: Okt. | N167: Nov. | O167: Dez. | P167: Jahr 2016
B168: 1 | C168: =C5 -> Bürokosten
B169: =A6 -> 19% | C169: Raummiete | D169: =D6*POWER((1+$B169),$D$166) -> 595.0 | E169: =E6*POWER((1+$B169),$D$166) -> 595.0 | F169: 595.0 | G169: 595.0 | H169: 595.0 | I169: 595.0 | J169: 595.0 | K169: 595.0 | L169: 595.0 | M169: 595.0 | N169: 595.0 | O169: 595.0 | P169: =SUM(D169:O169) -> 7,140.0
B170: 19% | C170: Strom, Wasser, Heizung, sonst. Nebenkosten | D170: =D7*POWER((1+$B170),$D$166) -> 59.5 | E170: 59.5 | F170: 59.5 | G170: 59.5 | H170: 59.5 | I170: 59.5 | J170: 59.5 | K170: 59.5 | L170: 59.5 | M170: 59.5 | N170: 59.5 | O170: 59.5 | P170: 714.0
B171: 19% | C171: Telefon, Fax, Internet, Porto | D171: =D8*POWER((1+$B171),$D$166) -> 59.5 | E171: 59.5 | F171: 59.5 | G171: 59.5 | H171: 59.5 | I171: 59.5 | J171: 59.5 | K171: 59.5 | L171: 59.5 | M171: 59.5 | N171: 59.5 | O171: 59.5 | P171: 714.0
B172: 19% | C172: Geringw. Wirtschaftsgüter (Büromöbel, Einrichtungen,...) | D172: =D9*POWER((1+$B172),$D$166) -> 0.0 | E172: 0.0 | F172: 0.0 | G172: 0.0 | H172: 0.0 | I172: 0.0 | J172: 0.0 | K172: 0.0 | L172: 0.0 | M172: 0.0 | N172: 0.0 | O172: 0.0 | P172: 0.0
B173: 19% | C173: IT (Lizenzen, Windows, Office, Wartung) | D173: =D10*POWER((1+$B173),$D$166) -> 0.0 | E173: 0.0 | F173: 0.0 | G173: 0.0 | H173: 0.0 | I173: 0.0 | J173: 0.0 | K173: 0.0 | L173: 0.0 | M173: 0.0 | N173: 0.0 | O173: 0.0 | P173: 0.0
B174: 19% | C174: Sonstiges | D174: =D11*POWER((1+$B174),$D$166) -> 119.0 | E174: 119.0 | F174: 119.0 | G174: 119.0 | H174: 119.0 | I174: 119.0 | J174: 119.0 | K174: 119.0 | L174: 119.0 | M174: 119.0 | N174: 119.0 | O174: 119.0 | P174: 1,428.0
C175: Summe Bürokosten | D175: =SUM(D169:D174) -> 833.0 | E175: =SUM(E169:E174) -> 833.0 | F175: 833.0 | G175: 833.0 | H175: 833.0 | I175: 833.0 | J175: 833.0 | K175: 833.0 | L175: 833.0 | M175: 833.0 | N175: 833.0 | O175: 833.0 | P175: =SUM(D175:O175) -> 9,996.0
B176: =B13 -> 2 | C176: Produktionskosten
B177: 19% | C177: Raummiete | D177: =D14*POWER((1+$B177),$D$166) -> 1,428.0 | E177: 1,428.0 | F177: 1,428.0 | G177: 1,428.0 | H177: 1,428.0 | I177: 1,428.0 | J177: 1,428.0 | K177: 1,428.0 | L177: 1,428.0 | M177: 1,428.0 | N177: 1,428.0 | O177: 1,428.0 | P177: =SUM(D177:O177) -> 17,136.0
B178: 19% | C178: Strom, Wasser, Heizung, sonst. Nebenkosten | D178: =D15*POWER((1+$B178),$D$166) -> 0.0 | E178: 0.0 | F178: 0.0 | G178: 0.0 | H178: 0.0 | I178: 0.0 | J178: 0.0 | K178: 0.0 | L178: 0.0 | M178: 0.0 | N178: 0.0 | O178: 0.0 | P178: 0.0
B179: 19% | C179: Materialaufwand zur Produktion (19%) | D179: =D16*POWER((1+$B179),$D$166) -> 1,190.0 | E179: 1,190.0 | F179: 1,190.0 | G179: 1,190.0 | H179: 1,190.0 | I179: 1,190.0 | J179: 1,190.0 | K179: 1,190.0 | L179: 1,190.0 | M179: 1,190.0 | N179: 1,190.0 | O179: 1,190.0 | P179: 14,280.0
B180: 7% | C180: Materialaufwand zur Produktion (7%) | D180: =D17*POWER((1+$B180),$D$166) -> 0.0 | E180: 0.0 | F180: 0.0 | G180: 0.0 | H180: 0.0 | I180: 0.0 | J180: 0.0 | K180: 0.0 | L180: 0.0 | M180: 0.0 | N180: 0.0 | O180: 0.0 | P180: 0.0
B181: 19% | C181: Produktionsbedarf, geringwertige Wirtschaftsgüter | D181: =D18*POWER((1+$B181),$D$166) -> 119.0 | E181: 119.0 | F181: 119.0 | G181: 119.0 | H181: 119.0 | I181: 119.0 | J181: 119.0 | K181: 119.0 | L181: 119.0 | M181: 119.0 | N181: 119.0 | O181: 119.0 | P181: 1,428.0
B182: 19% | C182: Leasingraten für Produktionsanlagen, -maschinen | D182: =D19*POWER((1+$B182),$D$166) -> 0.0 | E182: 0.0 | F182: 0.0 | G182: 0.0 | H182: 0.0 | I182: 0.0 | J182: 0.0 | K182: 0.0 | L182: 0.0 | M182: 0.0 | N182: 0.0 | O182: 0.0 | P182: 0.0
B183: 19% | C183: Instandhaltung und Reparaturen | D183: =D20*POWER((1+$B183),$D$166) -> 238.0 | E183: 238.0 | F183: 238.0 | G183: 238.0 | H183: 238.0 | I183: 238.0 | J183: 238.0 | K183: 238.0 | L183: 238.0 | M183: 238.0 | N183: 238.0 | O183: 238.0 | P183: 2,856.0
B184: 19% | C184: Sonstiges | D184: =D21*POWER((1+$B184),$D$166) -> 0.0 | E184: 0.0 | F184: 0.0 | G184: 0.0 | H184: 0.0 | I184: 0.0 | J184: 0.0 | K184: 0.0 | L184: 0.0 | M184: 0.0 | N184: 0.0 | O184: 0.0 | P184: =SUM(D184:O184) -> 0.0
C185: Summe Produktionskosten | D185: =SUM(D177:D184) -> 2,975.0 | E185: =SUM(E177:E184) -> 2,975.0 | F185: 2,975.0 | G185: 2,975.0 | H185: 2,975.0 | I185: 2,975.0 | J185: 2,975.0 | K185: 2,975.0 | L185: 2,975.0 | M185: 2,975.0 | N185: 2,975.0 | O185: 2,975.0 | P185: 35,700.0
B186: 3 | C186: Personalkosten (nur Angestellte)
B187: 0% | C187: Löhne, Gehälter mit Nebenkosten (s. Nebenrechnung) | D187: =D24*POWER((1+$B187),$D$166) -> 2,000.0 | E187: 2,000.0 | F187: 2,000.0 | G187: 2,000.0 | H187: 2,000.0 | I187: 4,000.0 | J187: 4,000.0 | K187: 4,000.0 | L187: 4,000.0 | M187: 4,000.0 | N187: 4,000.0 | O187: 4,000.0 | P187: 38,000.0
B188: 19% | C188: Sonstiges | D188: =D25*POWER((1+$B188),$D$166) -> 0.0 | E188: 0.0 | F188: 0.0 | G188: 0.0 | H188: 0.0 | I188: 0.0 | J188: 0.0 | K188: 0.0 | L188: 0.0 | M188: 0.0 | N188: 0.0 | O188: 0.0 | P188: 0.0
C189: Summe Personalkosten | D189: =SUM(D187:D188) -> 2,000.0 | E189: 2,000.0 | F189: 2,000.0 | G189: 2,000.0 | H189: 2,000.0 | I189: 4,000.0 | J189: 4,000.0 | K189: 4,000.0 | L189: 4,000.0 | M189: 4,000.0 | N189: 4,000.0 | O189: =SUM(O187:O188) -> 4,000.0 | P189: 38,000.0
B190: 4 | C190: Reisekosten
B191: 19% | C191: Fahrtkosten | D191: =D28*POWER((1+$B191),$D$166) -> 119.0 | E191: =E28*POWER((1+$B191),$D$166) -> 119.0 | F191: 119.0 | G191: 119.0 | H191: 119.0 | I191: 119.0 | J191: 119.0 | K191: 119.0 | L191: 119.0 | M191: 119.0 | N191: 119.0 | O191: 119.0 | P191: =SUM(D191:O191) -> 1,428.0
B192: 19% | C192: Reisekostenpauschalen | D192: =D29*POWER((1+$B192),$D$166) -> 0.0 | E192: =E29*POWER((1+$B192),$D$166) -> 0.0 | F192: 0.0 | G192: 0.0 | H192: 0.0 | I192: 0.0 | J192: 0.0 | K192: 0.0 | L192: 0.0 | M192: 0.0 | N192: 0.0 | O192: 0.0 | P192: =SUM(D192:O192) -> 0.0
B193: 7% | C193: Übernachtungen | D193: =D30*POWER((1+$B193),$D$166) -> 0.0 | E193: 0.0 | F193: 0.0 | G193: 0.0 | H193: 0.0 | I193: 0.0 | J193: 0.0 | K193: 0.0 | L193: 0.0 | M193: 0.0 | N193: 0.0 | O193: 0.0 | P193: =SUM(D193:O193) -> 0.0
B194: 19% | C194: Sonstiges | D194: =D31*POWER((1+$B194),$D$166) -> 0.0 | E194: 0.0 | F194: 0.0 | G194: 0.0 | H194: 0.0 | I194: 0.0 | J194: 0.0 | K194: 0.0 | L194: 0.0 | M194: 0.0 | N194: 0.0 | O194: 0.0 | P194: =SUM(D194:O194) -> 0.0
C195: Summe Reisekosten | D195: =SUM(D191:D194) -> 119.0 | E195: =SUM(E191:E194) -> 119.0 | F195: 119.0 | G195: 119.0 | H195: 119.0 | I195: 119.0 | J195: 119.0 | K195: 119.0 | L195: 119.0 | M195: 119.0 | N195: 119.0 | O195: =SUM(O191:O194) -> 119.0 | P195: =SUM(D195:O195) -> 1,428.0
B196: 5 | C196: Versicherungen und Beiträge (betrieblich!)
B197: 19% | C197: Haftpflicht | D197: =D34*POWER((1+$B197),$D$166) -> 0.0 | E197: 0.0 | F197: 0.0 | G197: 0.0 | H197: 0.0 | I197: 0.0 | J197: 0.0 | K197: 0.0 | L197: 0.0 | M197: 0.0 | N197: 0.0 | O197: 0.0 | P197: =SUM(D197:O197) -> 0.0
B198: 19% | C198: Rechtschutzversicherung | D198: =D35*POWER((1+$B198),$D$166) -> 119.0 | E198: 119.0 | F198: 119.0 | G198: 119.0 | H198: 119.0 | I198: 119.0 | J198: 119.0 | K198: 119.0 | L198: 119.0 | M198: 119.0 | N198: 119.0 | O198: 119.0 | P198: =SUM(D198:O198) -> 1,428.0
B199: 19% | C199: Beiträge (IHK, Berufsverbände, ...) | D199: =D36*POWER((1+$B199),$D$166) -> 0.0 | E199: 0.0 | F199: 0.0 | G199: 0.0 | H199: 0.0 | I199: 0.0 | J199: 0.0 | K199: 0.0 | L199: 0.0 | M199: 0.0 | N199: 0.0 | O199: 0.0 | P199: 0.0
B200: 19% | C200: Sonstiges | D200: =D37*POWER((1+$B200),$D$166) -> 0.0 | E200: 0.0 | F200: 0.0 | G200: 0.0 | H200: 0.0 | I200: 0.0 | J200: 0.0 | K200: 0.0 | L200: 0.0 | M200: 0.0 | N200: 0.0 | O200: 0.0 | P200: 0.0
C201: Summe Versicherungen und Beiträge (betrieblich!) | D201: =SUM(D197:D200) -> 119.0 | E201: 119.0 | F201: 119.0 | G201: 119.0 | H201: 119.0 | I201: 119.0 | J201: 119.0 | K201: 119.0 | L201: 119.0 | M201: 119.0 | N201: 119.0 | O201: =SUM(O197:O200) -> 119.0 | P201: =SUM(D201:O201) -> 1,428.0
B202: 6 | C202: KFZ Kosten / Betriebliche Nutzung
B203: 19% | C203: Leasingraten Kfz | D203: =D40*POWER((1+$B203),$D$166) -> 119.0 | E203: 119.0 | F203: 119.0 | G203: 119.0 | H203: 119.0 | I203: 119.0 | J203: 119.0 | K203: 119.0 | L203: 119.0 | M203: 119.0 | N203: 119.0 | O203: 119.0 | P203: =SUM(D203:O203) -> 1,428.0
B204: 19% | C204: Versicherungen/Kfz-Steuer | D204: =D41*POWER((1+$B204),$D$166) -> 119.0 | E204: 119.0 | F204: 119.0 | G204: 119.0 | H204: 119.0 | I204: 119.0 | J204: 119.0 | K204: 119.0 | L204: 119.0 | M204: 119.0 | N204: 119.0 | O204: 119.0 | P204: 1,428.0
B205: 19% | C205: Fahrzeugkosten (Tanken und Reparatur) | D205: =D42*POWER((1+$B205),$D$166) -> 0.0 | E205: 0.0 | F205: 0.0 | G205: 0.0 | H205: 0.0 | I205: 0.0 | J205: 0.0 | K205: 0.0 | L205: 0.0 | M205: 0.0 | N205: 0.0 | O205: 0.0 | P205: =SUM(D205:O205) -> 0.0
B206: 0% | C206: Abrechenbare Kilometerkosten | D206: =D43*POWER((1+$B206),$D$166) -> 0.0 | E206: 0.0 | F206: 0.0 | G206: 0.0 | H206: 0.0 | I206: 0.0 | J206: 0.0 | K206: 0.0 | L206: 0.0 | M206: 0.0 | N206: 0.0 | O206: 0.0 | P206: 0.0
B207: 19% | C207: Sonstiges | D207: =D44*POWER((1+$B207),$D$166) -> 0.0 | E207: 0.0 | F207: 0.0 | G207: 0.0 | H207: 0.0 | I207: 0.0 | J207: 0.0 | K207: 0.0 | L207: 0.0 | M207: 0.0 | N207: 0.0 | O207: 0.0 | P207: 0.0
C208: Summe KFZ Kosten / Betriebliche Nutzung | D208: =SUM(D203:D207) -> 238.0 | E208: =SUM(E203:E207) -> 238.0 | F208: 238.0 | G208: 238.0 | H208: 238.0 | I208: 238.0 | J208: 238.0 | K208: 238.0 | L208: 238.0 | M208: 238.0 | N208: 238.0 | O208: =SUM(O203:O207) -> 238.0 | P208: =SUM(D208:O208) -> 2,856.0
B209: 7 | C209: Marketing u. Werbung
B210: 19% | C210: Marktforschung | D210: =D47*POWER((1+$B210),$D$166) -> 0.0 | E210: 0.0 | F210: 0.0 | G210: 0.0 | H210: 0.0 | I210: 5,950.0 | J210: 0.0 | K210: 0.0 | L210: 0.0 | M210: 0.0 | N210: 0.0 | O210: 0.0 | P210: =SUM(D210:O210) -> 5,950.0
B211: 19% | C211: Briefpapier, Visitenkarte, Stempel | D211: =D48*POWER((1+$B211),$D$166) -> 1,190.0 | E211: 0.0 | F211: 0.0 | G211: 0.0 | H211: 0.0 | I211: 0.0 | J211: 0.0 | K211: 0.0 | L211: 0.0 | M211: 0.0 | N211: 0.0 | O211: 0.0 | P211: 1,190.0
B212: 19% | C212: Webseite, lfd. Webseitenpflege | D212: =D49*POWER((1+$B212),$D$166) -> 119.0 | E212: 119.0 | F212: 119.0 | G212: 119.0 | H212: 119.0 | I212: 119.0 | J212: 119.0 | K212: 119.0 | L212: 119.0 | M212: 119.0 | N212: 119.0 | O212: 119.0 | P212: =SUM(D212:O212) -> 1,428.0
B213: 19% | C213: Flyer, Prospekte, Broschüren, Anzeigen | D213: =D50*POWER((1+$B213),$D$166) -> 0.0 | E213: 0.0 | F213: 0.0 | G213: 0.0 | H213: 0.0 | I213: 0.0 | J213: 0.0 | K213: 0.0 | L213: 0.0 | M213: 0.0 | N213: 0.0 | O213: 0.0 | P213: 0.0
B214: 19% | C214: Bewirtungskosten | D214: =D51*POWER((1+$B214),$D$166) -> 0.0 | E214: 0.0 | F214: 0.0 | G214: 0.0 | H214: 0.0 | I214: 0.0 | J214: 0.0 | K214: 0.0 | L214: 0.0 | M214: 0.0 | N214: 0.0 | O214: 0.0 | P214: 0.0
B215: 19% | C215: Sonstiges, Messen, ... | D215: =D52*POWER((1+$B215),$D$166) -> 0.0 | E215: 0.0 | F215: 0.0 | G215: 0.0 | H215: 0.0 | I215: 0.0 | J215: 0.0 | K215: 0.0 | L215: 0.0 | M215: 0.0 | N215: 0.0 | O215: 0.0 | P215: =SUM(D215:O215) -> 0.0
... 95 more rows

Sheet 4 Betriebskosten|Operation Ex (hidden)
A1: Auswahl MwSt | C1: ='Deckblatt Gründer|Data Founder'!$D$6 -> Deutsch | Q1: =MwSt -> 19% | T1: Aufgaben und/oder Kommentar | CW1: Zeilen | CX1: Steuersatz | DA1: Zeilen | DB1: Steuersatz | DC1: Jan. | DD1: Febr. | DE1: März | DF1: April | DG1: Mai | DH1: Juni | DI1: Juli | DJ1: Aug. | DK1: Sept. | DL1: Okt. | DM1: Nov. | DN1: Dez. | DO1: ="Jahr "&'1 Pers.Ausgaben|Pers Expenses'!$C$3 -> Jahr 2016 | DP1: ="Jahr "&'1 Pers.Ausgaben|Pers Expenses'!$C$3+1 -> Jahr 2017
B2: =IF($C$1="English",CZ2,CY2) -> 4a-1 Betriebskosten für das Jahr 2016 in EUR (ohne MwSt) | Q2: =MwStklein -> 7% | T2: To Do list / Comments | U2: =IF($C$1="English",CV4,CU4) -> Nebenrechung Personalkosten | CW2: Original | CY2: ="4a-1 Betriebskosten für das Jahr " &'1 Pers.Ausgaben|Pers Expenses'!$C$3&" in EUR" & " (" & IF(OR($D$3=1,$D$3=2),"mit MwSt","ohne MwSt")& ") " -> 4a-1 Betriebskosten für das Jahr 2016 in EUR (ohne MwSt) | CZ2: ="4a-1 Operating Expense for Year " &'1 Pers.Ausgaben|Pers Expenses'!$C$3&" in EUR" & " (" &IF(OR($D$3=1,$D$3=2),"incl. VAT","w/o VAT")& ") " -> 4a-1 Operating Expense for Year 2016 in EUR (w/o VAT) | DA2: DATEV | DC2: Jan | DD2: Feb | DE2: Mar | DF2: Apr | DG2: May | DH2: June | DI2: July | DJ2: Aug | DK2: Sept | DL2: Oct | DM2: Nov | DN2: Dec | DO2: ="Year "&'1 Pers.Ausgaben|Pers Expenses'!$C$3 -> Year 2016 | DP2: ="Year "&'1 Pers.Ausgaben|Pers Expenses'!$C$3+1 -> Year 2017
B3: =IF($C$1="English",CZ3,CY3) -> ┌ MwSt-Satz der jeweiligen Kostenart | D3: ='Deckblatt Gründer|Data Founder'!M1 -> 0 | Q3: 0% | CY3: =IF($D$3=-1,""," ┌ MwSt-Satz der jeweiligen Kostenart") -> ┌ MwSt-Satz der jeweiligen Kostenart | CZ3: =IF($D$3=-1,""," ┌ VAT for Cost Type") -> ┌ VAT for Cost Type
B4: No. | C4: =IF($C$1="Deutsch",CY4,IF($C$1="English",CZ4,DB4)) -> Kostenart | D4: =IF($C$1="English",DC2,DC1) -> Jan. | E4: =IF($C$1="English",DD2,DD1) -> Febr. | F4: März | G4: April | H4: Mai | I4: Juni | J4: Juli | K4: Aug. | L4: Sept. | M4: Okt. | N4: Nov. | O4: Dez. | P4: Jahr 2016 | S4: =IF(C1="English",T2,T1) -> Aufgaben und/oder Kommentar | U4: =D152 -> 2016 | V4: =D4 -> Jan. | W4: Febr. | X4: März | Y4: April | Z4: Mai | AA4: Juni | AB4: Juli | AC4: Aug. | AD4: Sept. | AE4: Okt. | AF4: Nov. | AG4: Dez. | CU4: Nebenrechung Personalkosten | CV4: Ancillary: Account for Personal Costs | CY4: Kostenart | CZ4: Cost Type | DC4: Nebenrechung Personalkosten | DD4: Ancillary Account for Personal Costs
B5: 1 | C5: Bürokosten | U5: =IF($C$1="English",CV5,CU5) -> Anzahl Mitarbeiter | CU5: Anzahl Mitarbeiter | CV5: No of Employees | CW5: 1 | CY5: Bürokosten | CZ5: Office expences | DA5: 1 | DB5: =VLOOKUP(DA5,$CW$5:$CZ$65,2,FALSE) -> 0% | DC5: =VLOOKUP(DA5,$CW$5:$CZ$65,3,FALSE) -> Bürokosten | DD5: =VLOOKUP(DA5,$CW$5:$CZ$65,4,FALSE) -> Office expences
A6: =MwSt -> 19% | B6: =IF($D$3>0, A6,"") ->  | C6: Raummiete | D6: 100.0 | E6: 100.0 | F6: 100.0 | G6: 100.0 | H6: 100.0 | I6: 100.0 | J6: 100.0 | K6: 100.0 | L6: 100.0 | M6: 100.0 | N6: 100.0 | O6: 100.0 | P6: =SUM(D6:O6) -> 1,200.0 | U6: Gehalt1 | CU6: Gehalt1 | CV6: Salary1 | CW6: 2 | CX6: =MwSt -> 19% | CY6: Raummiete | CZ6: Space rent | DA6: 2 | DB6: =VLOOKUP(DA6,$CW$5:$CZ$65,2,FALSE) -> 19% | DC6: =VLOOKUP(DA6,$CW$5:$CZ$65,3,FALSE) -> Raummiete | DD6: =VLOOKUP(DA6,$CW$5:$CZ$65,4,FALSE) -> Space rent
A7: =MwSt -> 19% | B7: =IF($D$3>0, A7,"") ->  | C7: Strom, Wasser, Heizung, sonst. Nebenkosten | P7: 0.0 | U7: =IF($C$1="English",CV7,CU7) -> Anzahl Mitarbeiter | CU7: Anzahl Mitarbeiter | CV7: No of Employees | CW7: 3 | CX7: 19% | CY7: Strom, Wasser, Heizung, sonst. Nebenkosten | CZ7: Electricity, water, heating, other costs | DA7: 3 | DB7: 19% | DC7: Strom, Wasser, Heizung, sonst. Nebenkosten | DD7: Electricity, water, heating, other costs
A8: 19% | C8: Telefon, Fax, Internet, Porto | P8: 0.0 | U8: Gehalt2 | CU8: Gehalt2 | CV8: Salary2 | CW8: 4 | CX8: 19% | CY8: Telefon, Fax, Internet, Porto | CZ8: Phone, fax, internet, porto | DA8: 5 | DB8: 19% | DC8: Geringw. Wirtschaftsgüter (Büromöbel, Einrichtungen,...) | DD8: Inferior assets (office furniture, facilities, ...)
A9: 19% | C9: Geringw. Wirtschaftsgüter (Büromöbel, Einrichtungen,...) | P9: 0.0 | U9: Anzahl Mitarbeiter | CU9: Anzahl Mitarbeiter | CV9: No of Employees | CW9: 5 | CX9: 19% | CY9: Geringw. Wirtschaftsgüter (Büromöbel, Einrichtungen,...) | CZ9: Inferior assets (office furniture, facilities, ...) | DA9: 4 | DB9: 19% | DC9: Telefon, Fax, Internet, Porto | DD9: Phone, fax, internet, porto
A10: 19% | C10: IT (Lizenzen, Windows, Office, Wartung) | P10: 0.0 | U10: Gehalt3 | CU10: Gehalt3 | CV10: Salery3 | CW10: 6 | CX10: 19% | CY10: IT (Lizenzen, Windows, Office, Wartung) | CZ10: IT (licenses, windows, office, maintenace, ...) | DA10: 6 | DB10: 19% | DC10: IT (Lizenzen, Windows, Office, Wartung) | DD10: IT (licenses, windows, office, maintenace, ...)
A11: 19% | C11: Sonstiges | D11: 100.0 | E11: 100.0 | F11: 100.0 | G11: 100.0 | H11: 100.0 | I11: 100.0 | J11: 100.0 | K11: 100.0 | L11: 100.0 | M11: 100.0 | N11: 100.0 | O11: 100.0 | P11: 1,200.0 | U11: Nebenkosten (%) | CU11: Nebenkosten (%) | CV11: Additional Expenses (%) | CW11: 7 | CX11: 19% | CY11: Sonstiges | CZ11: Others | DA11: 7 | DB11: 19% | DC11: Sonstiges | DD11: Others
C12: Summe Bürokosten | D12: =SUM(D6:D11) -> 200.0 | E12: =SUM(E6:E11) -> 200.0 | F12: 200.0 | G12: 200.0 | H12: 200.0 | I12: 200.0 | J12: 200.0 | K12: 200.0 | L12: 200.0 | M12: 200.0 | N12: 200.0 | O12: 200.0 | P12: =SUM(D12:O12) -> 2,400.0 | U12: Gehaltssumme | V12: =((V5*V6)+(V7*V8)+(V9*V10))*(1+V11) -> 0 | W12: =((W5*W6)+(W7*W8)+(W9*W10))*(1+W11) -> 0 | X12: 0 | Y12: 0 | Z12: 0 | AA12: 0 | AB12: 0 | AC12: 0 | AD12: 0 | AE12: 0 | AF12: 0 | AG12: 0 | AH12: =SUM(V12:AG12) -> 0 | CU12: Gehaltssumme | CV12: Payroll | CW12: 8 | CY12: ="Summe " &CY5 -> Summe Bürokosten | CZ12: Sum office expences | DA12: 8 | DB12: 0% | DC12: Summe Bürokosten | DD12: Sum office expences
B13: 2 | C13: Produktionskosten | CW13: 9 | CY13: Produktionskosten | CZ13: Production costs | DA13: 9 | DB13: 0% | DC13: Produktionskosten | DD13: Production costs
A14: =MwSt -> 19% | B14: =IF($D$3>0, A14,"") ->  | C14: Raummiete | P14: =SUM(D14:O14) -> 0.0 | CW14: 10 | CX14: =MwSt -> 19% | CY14: Raummiete | CZ14: Space rent | DA14: 10 | DB14: 19% | DC14: Raummiete | DD14: Space rent
A15: =MwSt -> 19% | B15: =IF($D$3>0, A15,"") ->  | C15: Strom, Wasser, Heizung, sonst. Nebenkosten | P15: 0.0 | CW15: 11 | CX15: =MwSt -> 19% | CY15: Strom, Wasser, Heizung, sonst. Nebenkosten | CZ15: Electricity, water, heating, other costs | DA15: 11 | DB15: 19% | DC15: Strom, Wasser, Heizung, sonst. Nebenkosten | DD15: Electricity, water, heating, other costs
A16: =MwSt -> 19% | C16: Materialaufwand zur Produktion (19%) | D16: 100.0 | E16: 100.0 | F16: 100.0 | G16: 100.0 | H16: 100.0 | I16: 100.0 | J16: 100.0 | K16: 100.0 | L16: 100.0 | M16: 100.0 | N16: 100.0 | O16: 100.0 | P16: =SUM(D16:O16) -> 1,200.0 | U16: =E152 -> 2017 | V16: =V4 -> Jan. | W16: Febr. | X16: März | Y16: April | Z16: Mai | AA16: Juni | AB16: Juli | AC16: Aug. | AD16: Sept. | AE16: Okt. | AF16: Nov. | AG16: Dez. | CW16: 12 | CX16: =MwSt -> 19% | CY16: ="Materialaufwand zur Produktion ("&MwSt*100 &"%)" -> Materialaufwand zur Produktion (19%) | CZ16: ="Cost for materials for production ("&MwSt*100 &"%)" -> Cost for materials for production (19%) | DA16: 12 | DB16: 19% | DC16: Materialaufwand zur Produktion (19%) | DD16: Cost for materials for production (19%)
A17: =MwStklein -> 7% | C17: Materialaufwand zur Produktion (7%) | P17: 0.0 | U17: =U5 -> Anzahl Mitarbeiter | CW17: 13 | CX17: =MwStklein -> 7% | CY17: ="Materialaufwand zur Produktion ("&MwStklein*100 &"%)" -> Materialaufwand zur Produktion (7%) | CZ17: ="Cost for materials for production ("&MwStklein*100 &"%)" -> Cost for materials for production (7%) | DA17: 13 | DB17: 7% | DC17: Materialaufwand zur Produktion (7%) | DD17: Cost for materials for production (7%)
A18: =MwSt -> 19% | C18: =IF($C$1="Deutsch",CY18,IF($C$1="English",CZ18,DB18)) -> Produktionsbedarf, geringwertige Wirtschaftsgüter | D18: 100.0 | E18: 100.0 | F18: 100.0 | G18: 100.0 | H18: 100.0 | I18: 100.0 | J18: 100.0 | K18: 100.0 | L18: 100.0 | M18: 100.0 | N18: 100.0 | O18: 100.0 | P18: 1,200.0 | U18: Gehalt1 | CW18: 14 | CX18: =MwSt -> 19% | CY18: Produktionsbedarf, geringwertige Wirtschaftsgüter | CZ18: Production need, inferior assets | DA18: 14 | DB18: 19% | DC18: Produktionsbedarf, geringwertige Wirtschaftsgüter | DD18: Production need, inferior assets
A19: =MwSt -> 19% | C19: Leasingraten für Produktionsanlagen, -maschinen | P19: 0.0 | U19: Anzahl Mitarbeiter | CW19: 15 | CX19: =MwSt -> 19% | CY19: Leasingraten für Produktionsanlagen, -maschinen | CZ19: Leasing rate for production facityties , -machines | DA19: 15 | DB19: 19% | DC19: Leasingraten für Produktionsanlagen, -maschinen | DD19: Leasing rate for production facityties , -machines
A20: =MwSt -> 19% | B20: =IF($D$3>0, A20,"") ->  | C20: Instandhaltung und Reparaturen | P20: 0.0 | U20: Gehalt2 | CW20: 16 | CX20: =MwSt -> 19% | CY20: Instandhaltung und Reparaturen | CZ20: Maintenace and repairs | DA20: 16 | DB20: 19% | DC20: Instandhaltung und Reparaturen | DD20: Maintenace and repairs
A21: =MwSt -> 19% | C21: Sonstiges | P21: 0.0 | U21: Anzahl Mitarbeiter | CW21: 17 | CX21: =MwSt -> 19% | CY21: Sonstiges | CZ21: Others | DA21: 17 | DB21: 19% | DC21: Sonstiges | DD21: Others
C22: Summe Produktionskosten | D22: =SUM(D14:D21) -> 200.0 | E22: =SUM(E14:E21) -> 200.0 | F22: =SUM(F14:F21) -> 200.0 | G22: 200.0 | H22: 200.0 | I22: 200.0 | J22: 200.0 | K22: 200.0 | L22: 200.0 | M22: 200.0 | N22: 200.0 | O22: 200.0 | P22: =SUM(D22:O22) -> 2,400.0 | U22: Gehalt3 | CW22: 18 | CY22: ="Summe "&CY13 -> Summe Produktionskosten | CZ22: Sum production costs | DA22: 18 | DB22: 0% | DC22: Summe Produktionskosten | DD22: Sum production costs
B23: 3 | C23: Personalkosten (nur Angestellte) | U23: Nebenkosten (%) | CW23: 19 | CY23: Personalkosten (nur Angestellte) | CZ23: Personnel cost (only salary earners) | DA23: 19 | DB23: 0% | DC23: Personalkosten (nur Angestellte) | DD23: Personnel cost (only salary earners)
A24: 0% | B24: =IF($D$3>0, A24,"") ->  | C24: Löhne, Gehälter mit Nebenkosten (s. Nebenrechnung) | I24: 300.0 | J24: 400.0 | K24: 400.0 | L24: 400.0 | M24: 400.0 | N24: 400.0 | O24: 400.0 | P24: =SUM(D24:O24) -> 2,700.0 | U24: Gehaltssumme | V24: =((V17*V18)+(V19*V20)+(V21*V22))*(1+V23) -> 0 | W24: =((W17*W18)+(W19*W20)+(W21*W22))*(1+W23) -> 0 | X24: 0 | Y24: 0 | Z24: 0 | AA24: 0 | AB24: 0 | AC24: 0 | AD24: 0 | AE24: 0 | AF24: 0 | AG24: 0 | AH24: =SUM(V24:AG24) -> 0 | CW24: 20 | CX24: 0% | CY24: Löhne, Gehälter mit Nebenkosten (s. Nebenrechnung) | CZ24: Wages, salaries with additional costs (s. accillary account) | DA24: 20 | DB24: 0% | DC24: Löhne, Gehälter mit Nebenkosten (s. Nebenrechnung) | DD24: Wages, salaries with additional costs (s. accillary account)
A25: =MwSt -> 19% | B25: =IF($D$3>0, A25,"") ->  | C25: Sonstiges | P25: =SUM(D25:O25) -> 0.0 | CW25: 21 | CX25: =MwSt -> 19% | CY25: Sonstiges | CZ25: Others | DA25: 21 | DB25: 19% | DC25: Sonstiges | DD25: Others
C26: Summe Personalkosten | D26: =SUM(D24:D24) -> 0.0 | E26: 0.0 | F26: 0.0 | G26: 0.0 | H26: 0.0 | I26: 300.0 | J26: 400.0 | K26: 400.0 | L26: 400.0 | M26: 400.0 | N26: 400.0 | O26: 400.0 | P26: =SUM(D26:O26) -> 2,700.0 | CW26: 22 | CY26: Summe Personalkosten | CZ26: Sum personal costs | DA26: 22 | DB26: 0% | DC26: Summe Personalkosten | DD26: Sum personal costs
B27: 4 | C27: Reisekosten | CW27: 23 | CY27: Reisekosten | CZ27: Travel expenses | DA27: 23 | DB27: 0% | DC27: Reisekosten | DD27: Travel expenses
A28: =MwSt -> 19% | B28: =IF($D$3>0, A28,"") ->  | C28: Fahrtkosten | D28: 100.0 | E28: 100.0 | F28: 100.0 | G28: 100.0 | H28: 100.0 | I28: 100.0 | J28: 100.0 | K28: 100.0 | L28: 100.0 | M28: 100.0 | N28: 100.0 | O28: 100.0 | P28: =SUM(D28:O28) -> 1,200.0 | U28: =F152 -> 2018 | V28: =V16 -> Jan. | W28: Febr. | X28: März | Y28: April | Z28: Mai | AA28: Juni | AB28: Juli | AC28: Aug. | AD28: Sept. | AE28: Okt. | AF28: Nov. | AG28: Dez. | CW28: 24 | CX28: =MwSt -> 19% | CY28: Fahrtkosten | CZ28: Travel expenses | DA28: 24 | DB28: 19% | DC28: Fahrtkosten | DD28: Travel expenses
A29: =MwSt -> 19% | B29: =IF($D$3>0, A29,"") ->  | C29: Reisekostenpauschalen | P29: =SUM(D29:O29) -> 0.0 | U29: =U5 -> Anzahl Mitarbeiter | CW29: 25 | CX29: =MwSt -> 19% | CY29: Reisekostenpauschalen | CZ29: Travelling allowances | DA29: 25 | DB29: 19% | DC29: Reisekostenpauschalen | DD29: Travelling allowances
A30: =MwStklein -> 7% | B30: =IF($D$3>0, A30,"") ->  | C30: Übernachtungen | P30: =SUM(D30:O30) -> 0.0 | U30: Gehalt1 | CW30: 26 | CX30: =MwStklein -> 7% | CY30: Übernachtungen | CZ30: Accomodations | DA30: 26 | DB30: 7% | DC30: Übernachtungen | DD30: Accomodations
A31: =MwSt -> 19% | C31: Sonstiges | P31: =SUM(D31:O31) -> 0.0 | U31: Anzahl Mitarbeiter | CW31: 27 | CX31: =MwSt -> 19% | CY31: Sonstiges | CZ31: Others | DA31: 27 | DB31: 19% | DC31: Sonstiges | DD31: Others
C32: Summe Reisekosten | D32: =SUM(D28:D31) -> 100.0 | E32: =SUM(E28:E31) -> 100.0 | F32: 100.0 | G32: 100.0 | H32: 100.0 | I32: 100.0 | J32: 100.0 | K32: 100.0 | L32: 100.0 | M32: 100.0 | N32: 100.0 | O32: 100.0 | P32: =SUM(D32:O32) -> 1,200.0 | U32: Gehalt2 | CW32: 28 | CY32: ="Summe " &CY27 -> Summe Reisekosten | CZ32: Sum travel expenses | DA32: 28 | DB32: 0% | DC32: Summe Reisekosten | DD32: Sum travel expenses
B33: 5 | C33: Versicherungen und Beiträge (betrieblich!) | U33: Anzahl Mitarbeiter | CW33: 29 | CY33: Versicherungen und Beiträge (betrieblich!) | CZ33: Insurances and Contributions | DA33: 29 | DB33: 0% | DC33: Versicherungen und Beiträge (betrieblich!) | DD33: Insurances and Contributions
A34: =MwSt -> 19% | B34: =IF($D$3>0, A34,"") ->  | C34: Haftpflicht | P34: =SUM(D34:O34) -> 0.0 | U34: Gehalt3 | CW34: 30 | CX34: =MwSt -> 19% | CY34: Haftpflicht | CZ34: Insurance | DA34: 30 | DB34: 19% | DC34: Haftpflicht | DD34: Insurance
A35: =MwSt -> 19% | B35: =IF($D$3>0, A35,"") ->  | C35: Rechtschutzversicherung | D35: 100.0 | E35: 100.0 | F35: 100.0 | G35: 100.0 | H35: 100.0 | I35: 100.0 | J35: 100.0 | K35: 100.0 | L35: 100.0 | M35: 100.0 | N35: 100.0 | O35: 100.0 | P35: =SUM(D35:O35) -> 1,200.0 | U35: Nebenkosten (%) | CW35: 31 | CX35: =MwSt -> 19% | CY35: Rechtschutzversicherung | CZ35: Legal costs insurance | DA35: 31 | DB35: 19% | DC35: Rechtschutzversicherung | DD35: Legal costs insurance
A36: =MwSt -> 19% | B36: =IF($D$3>0, A36,"") ->  | C36: Beiträge (IHK, Berufsverbände, ...) | P36: 0.0 | U36: Gehaltssumme | V36: =((V29*V30)+(V31*V32)+(V33*V34))*(1+V35) -> 0 | W36: 0 | X36: 0 | Y36: 0 | Z36: 0 | AA36: 0 | AB36: 0 | AC36: 0 | AD36: 0 | AE36: 0 | AF36: 0 | AG36: 0 | AH36: =SUM(V36:AG36) -> 0 | CW36: 32 | CX36: =MwSt -> 19% | CY36: Beiträge (IHK, Berufsverbände, ...) | CZ36: Conributions (IHK, trade organizations, ...) | DA36: 32 | DB36: 19% | DC36: Beiträge (IHK, Berufsverbände, ...) | DD36: Conributions (IHK, trade organizations, ...)
A37: =MwSt -> 19% | C37: Sonstiges | P37: 0.0 | CW37: 33 | CX37: =MwSt -> 19% | CY37: Sonstiges | CZ37: Others | DA37: 33 | DB37: 19% | DC37: Sonstiges | DD37: Others
C38: Summe Versicherungen und Beiträge (betrieblich!) | D38: =SUM(D34:D37) -> 100.0 | E38: =SUM(E34:E37) -> 100.0 | F38: 100.0 | G38: 100.0 | H38: 100.0 | I38: 100.0 | J38: 100.0 | K38: 100.0 | L38: 100.0 | M38: 100.0 | N38: 100.0 | O38: 100.0 | P38: =SUM(D38:O38) -> 1,200.0 | CW38: 34 | CY38: ="Summe "&CY33 -> Summe Versicherungen und Beiträge (betrieblich!) | CZ38: Sum insurances (operational) | DA38: 34 | DB38: 0% | DC38: Summe Versicherungen und Beiträge (betrieblich!) | DD38: Sum insurances (operational)
B39: 6 | C39: KFZ Kosten / Betriebliche Nutzung | CW39: 35 | CY39: KFZ Kosten / Betriebliche Nutzung | CZ39: Vehicle costs (operational use) | DA39: 35 | DB39: 0% | DC39: KFZ Kosten / Betriebliche Nutzung | DD39: Vehicle costs (operational use)
A40: =MwSt -> 19% | B40: =IF($D$3>0, A40,"") ->  | C40: Leasingraten Kfz | D40: 100.0 | P40: =SUM(D40:O40) -> 100.0 | U40: =G152 -> 2019 | V40: =V4 -> Jan. | W40: Febr. | X40: März | Y40: April | Z40: Mai | AA40: Juni | AB40: Juli | AC40: Aug. | AD40: Sept. | AE40: Okt. | AF40: Nov. | AG40: Dez. | CW40: 36 | CX40: =MwSt -> 19% | CY40: Leasingraten Kfz | CZ40: Vehicle leasing rates | DA40: 36 | DB40: 19% | DC40: Leasingraten Kfz | DD40: Vehicle leasing rates
A41: 19% | B41: =IF($D$3>0, A41,"") ->  | C41: Versicherungen/Kfz-Steuer | D41: 100.0 | P41: =SUM(D41:O41) -> 100.0 | U41: =U29 -> Anzahl Mitarbeiter | CW41: 37 | CX41: 19% | CY41: Versicherungen/Kfz-Steuer | CZ41: Insurance/tax on cars | DA41: 37 | DB41: 19% | DC41: Versicherungen/Kfz-Steuer | DD41: Insurance/tax on cars
A42: 19% | B42: =IF($D$3>0, A42,"") ->  | C42: Fahrzeugkosten (Tanken und Reparatur) | P42: 0.0 | U42: Gehalt1 | CW42: 38 | CX42: 19% | CY42: Fahrzeugkosten (Tanken und Reparatur) | CZ42: vehicle's costs (fuel and repairs) | DA42: 38 | DB42: 19% | DC42: Fahrzeugkosten (Tanken und Reparatur) | DD42: vehicle's costs (fuel and repairs)
A43: 0% | C43: Abrechenbare Kilometerkosten | P43: 0.0 | U43: Anzahl Mitarbeiter | CW43: 39 | CX43: 0% | CY43: Abrechenbare Kilometerkosten | CZ43: Costs deductibles per kilometre | DA43: 39 | DB43: 0% | DC43: Abrechenbare Kilometerkosten | DD43: Costs deductibles per kilometre
A44: =MwSt -> 19% | C44: Sonstiges | U44: Gehalt2 | CW44: 40 | CX44: =MwSt -> 19% | CY44: Sonstiges | CZ44: Others | DA44: 40 | DB44: 19% | DC44: Sonstiges | DD44: Others
C45: Summe KFZ Kosten / Betriebliche Nutzung | D45: =SUM(D40:D43) -> 200.0 | E45: 0.0 | F45: 0.0 | G45: 0.0 | H45: 0.0 | I45: 0.0 | J45: 0.0 | K45: 0.0 | L45: 0.0 | M45: 0.0 | N45: 0.0 | O45: 0.0 | P45: =SUM(D45:O45) -> 200.0 | U45: Anzahl Mitarbeiter | CW45: 41 | CY45: ="Summe "&CY39 -> Summe KFZ Kosten / Betriebliche Nutzung | CZ45: Sum vehical costs / operational use) | DA45: 41 | DB45: 0% | DC45: Summe KFZ Kosten / Betriebliche Nutzung | DD45: Sum vehical costs / operational use)
B46: 7 | C46: Marketing u. Werbung | U46: Gehalt3 | CW46: 42 | CY46: Marketing u. Werbung | CZ46: Marketing & advertising | DA46: 42 | DB46: 0% | DC46: Marketing u. Werbung | DD46: Marketing & advertising
A47: =MwSt -> 19% | B47: =IF($D$3>0, A47,"") ->  | C47: Marktforschung | P47: =SUM(D47:O47) -> 0.0 | U47: Nebenkosten (%) | CW47: 43 | CX47: =MwSt -> 19% | CY47: Marktforschung | CZ47: Market research | DA47: 43 | DB47: 19% | DC47: Marktforschung | DD47: Market research
A48: =MwSt -> 19% | B48: =IF($D$3>0, A48,"") ->  | C48: Briefpapier, Visitenkarte, Stempel | P48: 0.0 | U48: Gehaltssumme | V48: =((V41*V42)+(V43*V44)+(V45*V46))*(1+V47) -> 0 | W48: 0 | X48: 0 | Y48: 0 | Z48: 0 | AA48: 0 | AB48: 0 | AC48: 0 | AD48: 0 | AE48: 0 | AF48: 0 | AG48: 0 | AH48: =SUM(V48:AG48) -> 0 | CW48: 44 | CX48: =MwSt -> 19% | CY48: Briefpapier, Visitenkarte, Stempel | CZ48: Letter paper, business card, stamp | DA48: 44 | DB48: 19% | DC48: Briefpapier, Visitenkarte, Stempel | DD48: Letter paper, business card, stamp
A49: =MwSt -> 19% | B49: =IF($D$3>0, A49,"") ->  | C49: Webseite, lfd. Webseitenpflege | D49: 100.0 | E49: 100.0 | F49: 100.0 | G49: 100.0 | H49: 100.0 | I49: 100.0 | J49: 100.0 | K49: 100.0 | L49: 100.0 | M49: 100.0 | N49: 100.0 | O49: 100.0 | P49: 1,200.0 | CW49: 45 | CX49: =MwSt -> 19% | CY49: Webseite, lfd. Webseitenpflege | CZ49: Website, current website maintenance | DA49: 45 | DB49: 19% | DC49: Webseite, lfd. Webseitenpflege | DD49: Website, current website maintenance
A50: =MwSt -> 19% | C50: Flyer, Prospekte, Broschüren, Anzeigen | P50: 0.0 | CW50: 46 | CX50: =MwSt -> 19% | CY50: Flyer, Prospekte, Broschüren, Anzeigen | CZ50: Flyers, leaflets, booklets, ads | DA50: 46 | DB50: 19% | DC50: Flyer, Prospekte, Broschüren, Anzeigen | DD50: Flyers, leaflets, booklets, ads
A51: 19% | C51: Bewirtungskosten | P51: 0.0 | CW51: 47 | CX51: 19% | CY51: Bewirtungskosten | CZ51: Entertainment expenses | DA51: 47 | DB51: 19% | DC51: Bewirtungskosten | DD51: Entertainment expenses
A52: 7% | C52: Sonstiges, Messen, ... | P52: 0.0 | U52: =H152 -> 2020 | V52: =V16 -> Jan. | W52: Febr. | X52: März | Y52: April | Z52: Mai | AA52: Juni | AB52: Juli | AC52: Aug. | AD52: Sept. | AE52: Okt. | AF52: Nov. | AG52: Dez. | CW52: 48 | CX52: =MwSt -> 19% | CY52: Sonstiges, Messen, ... | CZ52: Others, fairs ... | DA52: 48 | DB52: 19% | DC52: Sonstiges, Messen, ... | DD52: Others, fairs ...
C53: Summe Marketing u. Werbung | D53: =SUM(D47:D52) -> 100.0 | E53: =SUM(E47:E52) -> 100.0 | F53: 100.0 | G53: 100.0 | H53: 100.0 | I53: 100.0 | J53: 100.0 | K53: 100.0 | L53: 100.0 | M53: 100.0 | N53: 100.0 | O53: 100.0 | P53: 1,200.0 | U53: =U41 -> Anzahl Mitarbeiter | CW53: 49 | CY53: ="Summe "&CY46 -> Summe Marketing u. Werbung | CZ53: Sum marketing & advertising | DA53: 49 | DB53: 0% | DC53: Summe Marketing u. Werbung | DD53: Sum marketing & advertising
B54: 8 | C54: Rechts- und Beratungskosten | U54: Gehalt1 | CW54: 50 | CY54: Rechts- und Beratungskosten | CZ54: Legislation and consultancy fees | DA54: 50 | DB54: 0% | DC54: Rechts- und Beratungskosten | DD54: Legislation and consultancy fees
A55: 19% | B55: =IF($D$3>0, A55,"") ->  | C55: Buchhaltung | P55: 0.0 | U55: Anzahl Mitarbeiter | CW55: 51 | CX55: 19% | CY55: Buchhaltung | CZ55: Bookkeeping | DA55: 51 | DB55: 19% | DC55: Buchhaltung | DD55: Bookkeeping
A56: 19% | B56: =IF($D$3>0, A56,"") ->  | C56: Steuerberatung, Abschluss, Prüfung | P56: 0.0 | U56: Gehalt2 | CW56: 52 | CX56: 19% | CY56: Steuerberatung, Abschluss, Prüfung | CZ56: Tax consultancy, accounts, annual audit | DA56: 52 | DB56: 19% | DC56: Steuerberatung, Abschluss, Prüfung | DD56: Tax consultancy, accounts, annual audit
A57: 19% | B57: =IF($D$3>0, A57,"") ->  | C57: Sonstiges | P57: 0.0 | U57: Anzahl Mitarbeiter | CW57: 53 | CX57: 7% | CY57: Sonstiges | CZ57: Others | DA57: 53 | DB57: 7% | DC57: Sonstiges | DD57: Others
C58: Summe Rechts- und Beratungskosten | D58: =SUM(D55:D57) -> 0.0 | E58: =SUM(E55:E57) -> 0.0 | F58: 0.0 | G58: 0.0 | H58: 0.0 | I58: 0.0 | J58: 0.0 | K58: 0.0 | L58: 0.0 | M58: 0.0 | N58: 0.0 | O58: 0.0 | P58: 0.0 | U58: Gehalt3 | CW58: 54 | CY58: Summe Rechts- und Beratungskosten | CZ58: Sum legislation and consultancy fees | DA58: 54 | DB58: 0% | DC58: Summe Rechts- und Beratungskosten | DD58: Sum legislation and consultancy fees
B59: 9 | C59: Verschiedenes | U59: Nebenkosten (%) | CW59: 55 | CY59: Verschiedenes | CZ59: Miscellaneous | DA59: 55 | DB59: 0% | DC59: Verschiedenes | DD59: Miscellaneous
A60: 0% | B60: =IF($D$3=-1, A60,"") ->  | C60: Finanzaufwand / Zinsen *) | D60: ='7 Finanzierung|Financing'!D36 -> 83.3 | E60: ='7 Finanzierung|Financing'!E36 -> 82.6 | F60: ='7 Finanzierung|Financing'!F36 -> 81.9 | G60: ='7 Finanzierung|Financing'!G36 -> 81.3 | H60: ='7 Finanzierung|Financing'!H36 -> 122.2 | I60: ='7 Finanzierung|Financing'!I36 -> 120.8 | J60: ='7 Finanzierung|Financing'!J36 -> 119.4 | K60: ='7 Finanzierung|Financing'!J36 -> 119.4 | L60: ='7 Finanzierung|Financing'!K36 -> 118.1 | M60: ='7 Finanzierung|Financing'!L36 -> 116.7 | N60: ='7 Finanzierung|Financing'!M36 -> 115.3 | O60: ='7 Finanzierung|Financing'!N36 -> 113.9 | P60: =SUM(D60:O60) -> 1,275.0 | U60: Gehaltssumme | V60: =((V53*V54)+(V55*V56)+(V57*V58))*(1+V59) -> 0 | W60: 0 | X60: 0 | Y60: 0 | Z60: 0 | AA60: 0 | AB60: 0 | AC60: 0 | AD60: 0 | AE60: 0 | AF60: 0 | AG60: 0 | AH60: =SUM(V60:AG60) -> 0 | CW60: 56 | CX60: 0% | CY60: Finanzaufwand / Zinsen *) | CZ60: Financial costs / interest *) | DA60: 56 | DB60: 0% | DC60: Finanzaufwand / Zinsen *) | DD60: Financial costs / interest *)
A61: =MwSt -> 19% | B61: =IF($D$3>0, A61,"") ->  | C61: Reisekosten | D61: 100.0 | E61: 100.0 | F61: 100.0 | G61: 100.0 | H61: 100.0 | I61: 100.0 | J61: 100.0 | K61: 100.0 | L61: 100.0 | M61: 100.0 | N61: 100.0 | O61: 100.0 | P61: 1,200.0 | CW61: 57 | CX61: =MwSt -> 19% | CY61: Reisekosten | CZ61: Travel expenses | DA61: 57 | DB61: 19% | DC61: Reisekosten | DD61: Travel expenses
A62: 7% | B62: =IF($D$3>0, A62,"") ->  | C62: Fachliteratur, Bücher | D62: 1,000.0 | P62: 1,000.0 | CW62: 58 | CX62: 7% | CY62: Fachliteratur, Bücher | CZ62: Specialist literature, books | DA62: 58 | DB62: 7% | DC62: Fachliteratur, Bücher | DD62: Specialist literature, books
A63: 19% | B63: =IF($D$3>0, A63,"") ->  | C63: Schulungen | D63: 1,000.0 | P63: 1,000.0 | CW63: 59 | CX63: 19% | CY63: Schulungen | CZ63: Profesional training | DA63: 59 | DB63: 19% | DC63: Schulungen | DD63: Profesional training
A64: 7% | C64: Sonstiges | P64: 0.0 | CW64: 60 | CX64: 7% | CY64: Sonstiges | CZ64: Others | DA64: 60 | DB64: 7% | DC64: Sonstiges | DD64: Others
C65: Summe Verschiedenes | D65: =SUM(D60:D64) -> 2,183.3 | E65: =SUM(E60:E64) -> 182.6 | F65: 181.9 | G65: 181.3 | H65: 222.2 | I65: 220.8 | J65: 219.4 | K65: 219.4 | L65: 218.1 | M65: 216.7 | N65: 215.3 | O65: 213.9 | P65: 4,475.0 | CW65: 61 | CY65: Summe Verschiedenes | CZ65: Sum miscellaneous | DA65: 61 | DB65: 0% | DC65: Summe Verschiedenes | DD65: Sum miscellaneous
C66: Summe Betriebskosten I | D66: =SUM(D5:D65)/2 -> 3,083.3 | E66: =SUM(E5:E65)/2 -> 882.6 | F66: 881.9 | G66: 881.3 | H66: 922.2 | I66: 1,220.8 | J66: 1,319.4 | K66: 1,319.4 | L66: 1,318.1 | M66: 1,316.7 | N66: 1,315.3 | O66: 1,313.9 | P66: 15,775.0 | CY66: Summe Betriebskosten I | CZ66: Sum operating costs I
C67: Abschreibungen (aus Tab 3a) | D67: ='3 Anschaffungen|Aquirements'!E31 -> 0.0 | E67: ='3 Anschaffungen|Aquirements'!F31 -> 0.0 | F67: ='3 Anschaffungen|Aquirements'!G31 -> 0.0 | G67: ='3 Anschaffungen|Aquirements'!H31 -> 0.0 | H67: ='3 Anschaffungen|Aquirements'!I31 -> 0.0 | I67: ='3 Anschaffungen|Aquirements'!J31 -> 0.0 | J67: ='3 Anschaffungen|Aquirements'!K31 -> 0.0 | K67: ='3 Anschaffungen|Aquirements'!L31 -> 0.0 | L67: ='3 Anschaffungen|Aquirements'!M31 -> 0.0 | M67: ='3 Anschaffungen|Aquirements'!N31 -> 0.0 | N67: ='3 Anschaffungen|Aquirements'!O31 -> 0.0 | O67: ='3 Anschaffungen|Aquirements'!P31 -> 240.0 | P67: =SUM(D67:O67) -> 240.0 | CY67: Abschreibungen (aus Tab 3a) | CZ67: Write offs (from tab. 3a)
C68: =IF($C$1="Deutsch",CY68,IF($C$1="English",CZ68,DB68)) -> Summe Betriebskosten II | D68: =SUM(D66:D67) -> 3,083.3 | E68: =SUM(E66:E67) -> 882.6 | F68: =SUM(F66:F67) -> 881.9 | G68: 881.3 | H68: 922.2 | I68: 1,220.8 | J68: 1,319.4 | K68: 1,319.4 | L68: 1,318.1 | M68: 1,316.7 | N68: 1,315.3 | O68: 1,553.9 | P68: 16,015.0 | CY68: ="Summe Betriebskosten II" -> Summe Betriebskosten II | CZ68: Sum operating costs II
C69: *) wird aus Tabelle "Finanzierung" übernommen (auf ganze Euro gerundet!) | CY69: *) wird aus Tabelle "Finanzierung" übernommen (auf ganze Euro gerundet!) | CZ69: *) out of Table "Finanzierung"
C71: =IF($C$1="English",CZ71,CY71) -> 4a-1 Anhang: Ausweis der MwSt in EURO aus der Differenz zwischen den Tabellen 4a-1 und 4c-1 | CY71: 4a-1 Anhang: Ausweis der MwSt in EURO aus der Differenz zwischen den Tabellen 4a-1 und 4c-1 | CZ71: 4a-1 Addendum: Disclosure of VAT (Difference between Tab. 4a-1 and 4-1c)
C72: =IF($C$1="Deutsch",CY73,IF($C$1="English",CZ73,DB73))& " " & MwSt*100 &"%" -> Summe der angefallenen MwSt 19% | D72: =IF($A6=MwSt,D6*IF($D$3=0,$A6,$A6/(1+$A6)),0)+IF($A7=MwSt,D7*IF($D$3=0,$A7,$A7/(1+$A7)),0)+IF($A8=MwSt,D8*IF($D$3=0,$A8,$A8/(1+$A8)),0)+IF($A9=MwSt,D9*IF($D$3=0,$A9,$A9/(1+$A9)),0)+IF($A10=MwSt,D10*IF($D$3=0,$A10,$A10/(1+$A10)),0)+IF($A11=MwSt,D11*IF($D$3=0,$A11,$A11/(1+$A11)),0)+IF($A14=MwSt,D14*IF($D$3=0,$A14,$A14/(1+$A14)),0)+IF($A15=MwSt,D15*IF($D$3=0,$A15,$A15/(1+$A15)),0)+IF($A16=MwSt,D16*IF($D$3=0,$A16,$A16/(1+$A16)),0)+IF($A17=MwSt,D17*IF($D$3=0,$A17,$A17/(1+$A17)),0)+IF($A18=MwSt,D18*IF($D$3=0,$A18,$A18/(1+$A18)),0)+IF($A19=MwSt,D19*IF($D$3=0,$A19,$A19/(1+$A19)),0)+IF($A20=MwSt,D20*IF($D$3=0,$A20,$A20/(1+$A20)),0)+IF($A21=MwSt,D21*IF($D$3=0,$A21,$A21/(1+$A21)),0)+IF($A24=MwSt,D24*IF($D$3=0,$A24,$A24/(1+$A24)),0)+IF($A25=MwSt,D25*IF($D$3=0,$A25,$A25/(1+$A25)),0)+IF($A28=MwSt,D28*IF($D$3=0,$A28,$A28/(1+$A28)),0)+IF($A29=MwSt,D29*IF($D$3=0,$A29,$A29/(1+$A29)),0)+IF($A30=MwSt,D30*IF($D$3=0,$A30,$A30/(1+$A30)),0)+IF($A31=MwSt,D31*IF($D$3=0,$A31,$A31/(1+$A31)),0)+IF($A34=MwSt,D34*IF($D$3=0,$A34,$A34/(1+$A34)),0)+IF($A35=MwSt,D35*IF($D$3=0,$A35,$A35/(1+$A35)),0)+IF($A36=MwSt,D36*IF($D$3=0,$A36,$A36/(1+$A36)),0)+IF($A37=MwSt,D37*IF($D$3=0,$A37,$A37/(1+$A37)),0)+IF($A40=MwSt,D40*IF($D$3=0,$A40,$A40/(1+$A40)),0)+IF($A41=MwSt,D41*IF($D$3=0,$A41,$A41/(1+$A41)),0)+IF($A42=MwSt,D42*IF($D$3=0,$A42,$A42/(1+$A42)),0)+IF($A43=MwSt,D43*IF($D$3=0,$A43,$A43/(1+$A43)),0)++IF($A44=MwSt,D44*IF($D$3=0,$A44,$A44/(1+$A44)),0)*IF($A47=MwSt,D47*IF($D$3=0,$A47,$A47/(1+$A47)),0)+IF($A48=MwSt,D48*IF($D$3=0,$A48,$A48/(1+$A48)),0)+IF($A49=MwSt,D49*IF($D$3=0,$A49,$A49/(1+$A49)),0)+IF($A50=MwSt,D50*IF($D$3=0,$A50,$A50/(1+$A50)),0)+IF($A52=MwSt,D52*IF($D$3=0,$A52,$A52/(1+$A52)),0)+IF($A55=MwSt,D55*IF($D$3=0,$A55,$A55/(1+$A55)),0)+IF($A56=MwSt,D56*IF($D$3=0,$A56,$A56/(1+$A56)),0)+IF($A57=MwSt,D57*IF($D$3=0,$A57,$A57/(1+$A57)),0)+IF($A61=MwSt,D61*IF($D$3=0,$A61,$A61/(1+$A61)),0)+IF($A62=MwSt,D62*IF($D$3=0,$A62,$A62/(1+$A62)),0)+IF($A63=MwSt,D63*IF($D$3=0,$A63,$A63/(1+$A63)),0)+IF($A64=MwSt,D64*IF($D$3=0,$A64,$A64/(1+$A64)),0) -> 380.0 | E72: 152.0 | F72: 152.0 | G72: 152.0 | H72: 152.0 | I72: 152.0 | J72: 152.0 | K72: 152.0 | L72: 152.0 | M72: 152.0 | N72: 152.0 | O72: 152.0 | P72: =SUM(D72:O72) -> 2,052.0 | CY72: Summe der angefallenen MwSt | CZ72: Sum VAT
C73: =IF($C$1="Deutsch",CY73,IF($C$1="English",CZ73,DB73))& " " & MwStklein*100 &"%" -> Summe der angefallenen MwSt 7% | D73: =IF($A6=MwStklein,D6*IF($D$3=0,$A6,$A6/(1+$A6)),0)+IF($A7=MwStklein,D7*IF($D$3=0,$A7,$A7/(1+$A7)),0)+IF($A8=MwStklein,D8*IF($D$3=0,$A8,$A8/(1+$A8)),0)+IF($A9=MwStklein,D9*IF($D$3=0,$A9,$A9/(1+$A9)),0)+IF($A10=MwStklein,D10*IF($D$3=0,$A10,$A10/(1+$A10)),0)+IF($A11=MwStklein,D11*IF($D$3=0,$A11,$A11/(1+$A11)),0)+IF($A14=MwStklein,D14*IF($D$3=0,$A14,$A14/(1+$A14)),0)+IF($A15=MwStklein,D15*IF($D$3=0,$A15,$A15/(1+$A15)),0)+IF($A16=MwStklein,D16*IF($D$3=0,$A16,$A16/(1+$A16)),0)+IF($A17=MwStklein,D17*IF($D$3=0,$A17,$A17/(1+$A17)),0)+IF($A18=MwStklein,D18*IF($D$3=0,$A18,$A18/(1+$A18)),0)+IF($A19=MwStklein,D19*IF($D$3=0,$A19,$A19/(1+$A19)),0)+IF($A20=MwStklein,D20*IF($D$3=0,$A20,$A20/(1+$A20)),0)+IF($A21=MwStklein,D21*IF($D$3=0,$A21,$A21/(1+$A21)),0)+IF($A24=MwStklein,D24*IF($D$3=0,$A24,$A24/(1+$A24)),0)+IF($A25=MwStklein,D25*IF($D$3=0,$A25,$A25/(1+$A25)),0)+IF($A28=MwStklein,#REF!*IF($D$3=0,$A28,$A28/(1+$A28)),0)+IF($A29=MwStklein,D29*IF($D$3=0,$A29,$A29/(1+$A29)),0)+IF($A30=MwStklein,D30*IF($D$3=0,$A30,$A30/(1+$A30)),0)+IF($A31=MwStklein,D31*IF($D$3=0,$A31,$A31/(1+$A31)),0)+IF($A34=MwStklein,D34*IF($D$3=0,$A34,$A34/(1+$A34)),0)+IF($A35=MwStklein,D35*IF($D$3=0,$A35,$A35/(1+$A35)),0)+IF($A36=MwStklein,D36*IF($D$3=0,$A36,$A36/(1+$A36)),0)+IF($A37=MwStklein,D37*IF($D$3=0,$A37,$A37/(1+$A37)),0)+IF($A40=MwStklein,D40*IF($D$3=0,$A40,$A40/(1+$A40)),0)+IF($A41=MwStklein,D41*IF($D$3=0,$A41,$A41/(1+$A41)),0)+IF($A42=MwStklein,D42*IF($D$3=0,$A42,$A42/(1+$A42)),0)+IF($A43=MwStklein,D43*IF($D$3=0,$A43,$A43/(1+$A43)),0)++IF($A44=MwStklein,D44*IF($D$3=0,$A44,$A44/(1+$A44)),0)*IF($A47=MwStklein,D47*IF($D$3=0,$A47,$A47/(1+$A47)),0)+IF($A48=MwStklein,D48*IF($D$3=0,$A48,$A48/(1+$A48)),0)+IF($A49=MwStklein,D49*IF($D$3=0,$A49,$A49/(1+$A49)),0)+IF($A50=MwStklein,D50*IF($D$3=0,$A50,$A50/(1+$A50)),0)+IF($A52=MwStklein,D52*IF($D$3=0,$A52,$A52/(1+$A52)),0)+IF($A55=MwStklein,D55*IF($D$3=0,$A55,$A55/(1+$A55)),0)+IF($A56=MwStklein,D56*IF($D$3=0,$A56,$A56/(1+$A56)),0)+IF($A57=MwStklein,D57*IF($D$3=0,$A57,$A57/(1+$A57)),0)+IF($A61=MwStklein,D61*IF($D$3=0,$A61,$A61/(1+$A61)),0)+IF($A62=MwStklein,D62*IF($D$3=0,$A62,$A62/(1+$A62)),0)+IF($A63=MwStklein,D63*IF($D$3=0,$A63,$A63/(1+$A63)),0)+IF($A64=MwStklein,D64*IF($D$3=0,$A64,$A64/(1+$A64)),0) -> 70.0 | E73: =IF($A6=MwStklein,E6*IF($D$3=0,$A6,$A6/(1+$A6)),0)+IF($A7=MwStklein,E7*IF($D$3=0,$A7,$A7/(1+$A7)),0)+IF($A8=MwStklein,E8*IF($D$3=0,$A8,$A8/(1+$A8)),0)+IF($A9=MwStklein,E9*IF($D$3=0,$A9,$A9/(1+$A9)),0)+IF($A10=MwStklein,E10*IF($D$3=0,$A10,$A10/(1+$A10)),0)+IF($A11=MwStklein,E11*IF($D$3=0,$A11,$A11/(1+$A11)),0)+IF($A14=MwStklein,E14*IF($D$3=0,$A14,$A14/(1+$A14)),0)+IF($A15=MwStklein,E15*IF($D$3=0,$A15,$A15/(1+$A15)),0)+IF($A16=MwStklein,E16*IF($D$3=0,$A16,$A16/(1+$A16)),0)+IF($A17=MwStklein,E17*IF($D$3=0,$A17,$A17/(1+$A17)),0)+IF($A18=MwStklein,E18*IF($D$3=0,$A18,$A18/(1+$A18)),0)+IF($A19=MwStklein,E19*IF($D$3=0,$A19,$A19/(1+$A19)),0)+IF($A20=MwStklein,E20*IF($D$3=0,$A20,$A20/(1+$A20)),0)+IF($A21=MwStklein,E21*IF($D$3=0,$A21,$A21/(1+$A21)),0)+IF($A24=MwStklein,E24*IF($D$3=0,$A24,$A24/(1+$A24)),0)+IF($A25=MwStklein,E25*IF($D$3=0,$A25,$A25/(1+$A25)),0)+IF($A28=MwStklein,#REF!*IF($D$3=0,$A28,$A28/(1+$A28)),0)+IF($A29=MwStklein,E29*IF($D$3=0,$A29,$A29/(1+$A29)),0)+IF($A30=MwStklein,E30*IF($D$3=0,$A30,$A30/(1+$A30)),0)+IF($A31=MwStklein,E31*IF($D$3=0,$A31,$A31/(1+$A31)),0)+IF($A34=MwStklein,E34*IF($D$3=0,$A34,$A34/(1+$A34)),0)+IF($A35=MwStklein,E35*IF($D$3=0,$A35,$A35/(1+$A35)),0)+IF($A36=MwStklein,E36*IF($D$3=0,$A36,$A36/(1+$A36)),0)+IF($A37=MwStklein,E37*IF($D$3=0,$A37,$A37/(1+$A37)),0)+IF($A40=MwStklein,E40*IF($D$3=0,$A40,$A40/(1+$A40)),0)+IF($A41=MwStklein,E41*IF($D$3=0,$A41,$A41/(1+$A41)),0)+IF($A42=MwStklein,E42*IF($D$3=0,$A42,$A42/(1+$A42)),0)+IF($A43=MwStklein,E43*IF($D$3=0,$A43,$A43/(1+$A43)),0)++IF($A44=MwStklein,E44*IF($D$3=0,$A44,$A44/(1+$A44)),0)*IF($A47=MwStklein,E47*IF($D$3=0,$A47,$A47/(1+$A47)),0)+IF($A48=MwStklein,E48*IF($D$3=0,$A48,$A48/(1+$A48)),0)+IF($A49=MwStklein,E49*IF($D$3=0,$A49,$A49/(1+$A49)),0)+IF($A50=MwStklein,E50*IF($D$3=0,$A50,$A50/(1+$A50)),0)+IF($A52=MwStklein,E52*IF($D$3=0,$A52,$A52/(1+$A52)),0)+IF($A55=MwStklein,E55*IF($D$3=0,$A55,$A55/(1+$A55)),0)+IF($A56=MwStklein,E56*IF($D$3=0,$A56,$A56/(1+$A56)),0)+IF($A57=MwStklein,E57*IF($D$3=0,$A57,$A57/(1+$A57)),0)+IF($A61=MwStklein,E61*IF($D$3=0,$A61,$A61/(1+$A61)),0)+IF($A62=MwStklein,E62*IF($D$3=0,$A62,$A62/(1+$A62)),0)+IF($A63=MwStklein,E63*IF($D$3=0,$A63,$A63/(1+$A63)),0)+IF($A64=MwStklein,E64*IF($D$3=0,$A64,$A64/(1+$A64)),0) -> 0.0 | F73: =IF($A6=MwStklein,F6*IF($D$3=0,$A6,$A6/(1+$A6)),0)+IF($A7=MwStklein,F7*IF($D$3=0,$A7,$A7/(1+$A7)),0)+IF($A8=MwStklein,F8*IF($D$3=0,$A8,$A8/(1+$A8)),0)+IF($A9=MwStklein,F9*IF($D$3=0,$A9,$A9/(1+$A9)),0)+IF($A10=MwStklein,F10*IF($D$3=0,$A10,$A10/(1+$A10)),0)+IF($A11=MwStklein,F11*IF($D$3=0,$A11,$A11/(1+$A11)),0)+IF($A14=MwStklein,F14*IF($D$3=0,$A14,$A14/(1+$A14)),0)+IF($A15=MwStklein,F15*IF($D$3=0,$A15,$A15/(1+$A15)),0)+IF($A16=MwStklein,F16*IF($D$3=0,$A16,$A16/(1+$A16)),0)+IF($A17=MwStklein,F17*IF($D$3=0,$A17,$A17/(1+$A17)),0)+IF($A18=MwStklein,F18*IF($D$3=0,$A18,$A18/(1+$A18)),0)+IF($A19=MwStklein,F19*IF($D$3=0,$A19,$A19/(1+$A19)),0)+IF($A20=MwStklein,F20*IF($D$3=0,$A20,$A20/(1+$A20)),0)+IF($A21=MwStklein,F21*IF($D$3=0,$A21,$A21/(1+$A21)),0)+IF($A24=MwStklein,F24*IF($D$3=0,$A24,$A24/(1+$A24)),0)+IF($A25=MwStklein,F25*IF($D$3=0,$A25,$A25/(1+$A25)),0)+IF($A28=MwStklein,#REF!*IF($D$3=0,$A28,$A28/(1+$A28)),0)+IF($A29=MwStklein,F29*IF($D$3=0,$A29,$A29/(1+$A29)),0)+IF($A30=MwStklein,F30*IF($D$3=0,$A30,$A30/(1+$A30)),0)+IF($A31=MwStklein,F31*IF($D$3=0,$A31,$A31/(1+$A31)),0)+IF($A34=MwStklein,F34*IF($D$3=0,$A34,$A34/(1+$A34)),0)+IF($A35=MwStklein,F35*IF($D$3=0,$A35,$A35/(1+$A35)),0)+IF($A36=MwStklein,F36*IF($D$3=0,$A36,$A36/(1+$A36)),0)+IF($A37=MwStklein,F37*IF($D$3=0,$A37,$A37/(1+$A37)),0)+IF($A40=MwStklein,F40*IF($D$3=0,$A40,$A40/(1+$A40)),0)+IF($A41=MwStklein,F41*IF($D$3=0,$A41,$A41/(1+$A41)),0)+IF($A42=MwStklein,F42*IF($D$3=0,$A42,$A42/(1+$A42)),0)+IF($A43=MwStklein,F43*IF($D$3=0,$A43,$A43/(1+$A43)),0)++IF($A44=MwStklein,F44*IF($D$3=0,$A44,$A44/(1+$A44)),0)*IF($A47=MwStklein,F47*IF($D$3=0,$A47,$A47/(1+$A47)),0)+IF($A48=MwStklein,F48*IF($D$3=0,$A48,$A48/(1+$A48)),0)+IF($A49=MwStklein,F49*IF($D$3=0,$A49,$A49/(1+$A49)),0)+IF($A50=MwStklein,F50*IF($D$3=0,$A50,$A50/(1+$A50)),0)+IF($A52=MwStklein,F52*IF($D$3=0,$A52,$A52/(1+$A52)),0)+IF($A55=MwStklein,F55*IF($D$3=0,$A55,$A55/(1+$A55)),0)+IF($A56=MwStklein,F56*IF($D$3=0,$A56,$A56/(1+$A56)),0)+IF($A57=MwStklein,F57*IF($D$3=0,$A57,$A57/(1+$A57)),0)+IF($A61=MwStklein,F61*IF($D$3=0,$A61,$A61/(1+$A61)),0)+IF($A62=MwStklein,F62*IF($D$3=0,$A62,$A62/(1+$A62)),0)+IF($A63=MwStklein,F63*IF($D$3=0,$A63,$A63/(1+$A63)),0)+IF($A64=MwStklein,F64*IF($D$3=0,$A64,$A64/(1+$A64)),0) -> 0.0 | G73: =IF($A6=MwStklein,G6*IF($D$3=0,$A6,$A6/(1+$A6)),0)+IF($A7=MwStklein,G7*IF($D$3=0,$A7,$A7/(1+$A7)),0)+IF($A8=MwStklein,G8*IF($D$3=0,$A8,$A8/(1+$A8)),0)+IF($A9=MwStklein,G9*IF($D$3=0,$A9,$A9/(1+$A9)),0)+IF($A10=MwStklein,G10*IF($D$3=0,$A10,$A10/(1+$A10)),0)+IF($A11=MwStklein,G11*IF($D$3=0,$A11,$A11/(1+$A11)),0)+IF($A14=MwStklein,G14*IF($D$3=0,$A14,$A14/(1+$A14)),0)+IF($A15=MwStklein,G15*IF($D$3=0,$A15,$A15/(1+$A15)),0)+IF($A16=MwStklein,G16*IF($D$3=0,$A16,$A16/(1+$A16)),0)+IF($A17=MwStklein,G17*IF($D$3=0,$A17,$A17/(1+$A17)),0)+IF($A18=MwStklein,G18*IF($D$3=0,$A18,$A18/(1+$A18)),0)+IF($A19=MwStklein,G19*IF($D$3=0,$A19,$A19/(1+$A19)),0)+IF($A20=MwStklein,G20*IF($D$3=0,$A20,$A20/(1+$A20)),0)+IF($A21=MwStklein,G21*IF($D$3=0,$A21,$A21/(1+$A21)),0)+IF($A24=MwStklein,G24*IF($D$3=0,$A24,$A24/(1+$A24)),0)+IF($A25=MwStklein,G25*IF($D$3=0,$A25,$A25/(1+$A25)),0)+IF($A28=MwStklein,#REF!*IF($D$3=0,$A28,$A28/(1+$A28)),0)+IF($A29=MwStklein,G29*IF($D$3=0,$A29,$A29/(1+$A29)),0)+IF($A30=MwStklein,G30*IF($D$3=0,$A30,$A30/(1+$A30)),0)+IF($A31=MwStklein,G31*IF($D$3=0,$A31,$A31/(1+$A31)),0)+IF($A34=MwStklein,G34*IF($D$3=0,$A34,$A34/(1+$A34)),0)+IF($A35=MwStklein,G35*IF($D$3=0,$A35,$A35/(1+$A35)),0)+IF($A36=MwStklein,G36*IF($D$3=0,$A36,$A36/(1+$A36)),0)+IF($A37=MwStklein,G37*IF($D$3=0,$A37,$A37/(1+$A37)),0)+IF($A40=MwStklein,G40*IF($D$3=0,$A40,$A40/(1+$A40)),0)+IF($A41=MwStklein,G41*IF($D$3=0,$A41,$A41/(1+$A41)),0)+IF($A42=MwStklein,G42*IF($D$3=0,$A42,$A42/(1+$A42)),0)+IF($A43=MwStklein,G43*IF($D$3=0,$A43,$A43/(1+$A43)),0)++IF($A44=MwStklein,G44*IF($D$3=0,$A44,$A44/(1+$A44)),0)*IF($A47=MwStklein,G47*IF($D$3=0,$A47,$A47/(1+$A47)),0)+IF($A48=MwStklein,G48*IF($D$3=0,$A48,$A48/(1+$A48)),0)+IF($A49=MwStklein,G49*IF($D$3=0,$A49,$A49/(1+$A49)),0)+IF($A50=MwStklein,G50*IF($D$3=0,$A50,$A50/(1+$A50)),0)+IF($A52=MwStklein,G52*IF($D$3=0,$A52,$A52/(1+$A52)),0)+IF($A55=MwStklein,G55*IF($D$3=0,$A55,$A55/(1+$A55)),0)+IF($A56=MwStklein,G56*IF($D$3=0,$A56,$A56/(1+$A56)),0)+IF($A57=MwStklein,G57*IF($D$3=0,$A57,$A57/(1+$A57)),0)+IF($A61=MwStklein,G61*IF($D$3=0,$A61,$A61/(1+$A61)),0)+IF($A62=MwStklein,G62*IF($D$3=0,$A62,$A62/(1+$A62)),0)+IF($A63=MwStklein,G63*IF($D$3=0,$A63,$A63/(1+$A63)),0)+IF($A64=MwStklein,G64*IF($D$3=0,$A64,$A64/(1+$A64)),0) -> 0.0 | H73: =IF($A6=MwStklein,H6*IF($D$3=0,$A6,$A6/(1+$A6)),0)+IF($A7=MwStklein,H7*IF($D$3=0,$A7,$A7/(1+$A7)),0)+IF($A8=MwStklein,H8*IF($D$3=0,$A8,$A8/(1+$A8)),0)+IF($A9=MwStklein,H9*IF($D$3=0,$A9,$A9/(1+$A9)),0)+IF($A10=MwStklein,H10*IF($D$3=0,$A10,$A10/(1+$A10)),0)+IF($A11=MwStklein,H11*IF($D$3=0,$A11,$A11/(1+$A11)),0)+IF($A14=MwStklein,H14*IF($D$3=0,$A14,$A14/(1+$A14)),0)+IF($A15=MwStklein,H15*IF($D$3=0,$A15,$A15/(1+$A15)),0)+IF($A16=MwStklein,H16*IF($D$3=0,$A16,$A16/(1+$A16)),0)+IF($A17=MwStklein,H17*IF($D$3=0,$A17,$A17/(1+$A17)),0)+IF($A18=MwStklein,H18*IF($D$3=0,$A18,$A18/(1+$A18)),0)+IF($A19=MwStklein,H19*IF($D$3=0,$A19,$A19/(1+$A19)),0)+IF($A20=MwStklein,H20*IF($D$3=0,$A20,$A20/(1+$A20)),0)+IF($A21=MwStklein,H21*IF($D$3=0,$A21,$A21/(1+$A21)),0)+IF($A24=MwStklein,H24*IF($D$3=0,$A24,$A24/(1+$A24)),0)+IF($A25=MwStklein,H25*IF($D$3=0,$A25,$A25/(1+$A25)),0)+IF($A28=MwStklein,#REF!*IF($D$3=0,$A28,$A28/(1+$A28)),0)+IF($A29=MwStklein,H29*IF($D$3=0,$A29,$A29/(1+$A29)),0)+IF($A30=MwStklein,H30*IF($D$3=0,$A30,$A30/(1+$A30)),0)+IF($A31=MwStklein,H31*IF($D$3=0,$A31,$A31/(1+$A31)),0)+IF($A34=MwStklein,H34*IF($D$3=0,$A34,$A34/(1+$A34)),0)+IF($A35=MwStklein,H35*IF($D$3=0,$A35,$A35/(1+$A35)),0)+IF($A36=MwStklein,H36*IF($D$3=0,$A36,$A36/(1+$A36)),0)+IF($A37=MwStklein,H37*IF($D$3=0,$A37,$A37/(1+$A37)),0)+IF($A40=MwStklein,H40*IF($D$3=0,$A40,$A40/(1+$A40)),0)+IF($A41=MwStklein,H41*IF($D$3=0,$A41,$A41/(1+$A41)),0)+IF($A42=MwStklein,H42*IF($D$3=0,$A42,$A42/(1+$A42)),0)+IF($A43=MwStklein,H43*IF($D$3=0,$A43,$A43/(1+$A43)),0)++IF($A44=MwStklein,H44*IF($D$3=0,$A44,$A44/(1+$A44)),0)*IF($A47=MwStklein,H47*IF($D$3=0,$A47,$A47/(1+$A47)),0)+IF($A48=MwStklein,H48*IF($D$3=0,$A48,$A48/(1+$A48)),0)+IF($A49=MwStklein,H49*IF($D$3=0,$A49,$A49/(1+$A49)),0)+IF($A50=MwStklein,H50*IF($D$3=0,$A50,$A50/(1+$A50)),0)+IF($A52=MwStklein,H52*IF($D$3=0,$A52,$A52/(1+$A52)),0)+IF($A55=MwStklein,H55*IF($D$3=0,$A55,$A55/(1+$A55)),0)+IF($A56=MwStklein,H56*IF($D$3=0,$A56,$A56/(1+$A56)),0)+IF($A57=MwStklein,H57*IF($D$3=0,$A57,$A57/(1+$A57)),0)+IF($A61=MwStklein,H61*IF($D$3=0,$A61,$A61/(1+$A61)),0)+IF($A62=MwStklein,H62*IF($D$3=0,$A62,$A62/(1+$A62)),0)+IF($A63=MwStklein,H63*IF($D$3=0,$A63,$A63/(1+$A63)),0)+IF($A64=MwStklein,H64*IF($D$3=0,$A64,$A64/(1+$A64)),0) -> 0.0 | I73: =IF($A6=MwStklein,I6*IF($D$3=0,$A6,$A6/(1+$A6)),0)+IF($A7=MwStklein,I7*IF($D$3=0,$A7,$A7/(1+$A7)),0)+IF($A8=MwStklein,I8*IF($D$3=0,$A8,$A8/(1+$A8)),0)+IF($A9=MwStklein,I9*IF($D$3=0,$A9,$A9/(1+$A9)),0)+IF($A10=MwStklein,I10*IF($D$3=0,$A10,$A10/(1+$A10)),0)+IF($A11=MwStklein,I11*IF($D$3=0,$A11,$A11/(1+$A11)),0)+IF($A14=MwStklein,I14*IF($D$3=0,$A14,$A14/(1+$A14)),0)+IF($A15=MwStklein,I15*IF($D$3=0,$A15,$A15/(1+$A15)),0)+IF($A16=MwStklein,I16*IF($D$3=0,$A16,$A16/(1+$A16)),0)+IF($A17=MwStklein,I17*IF($D$3=0,$A17,$A17/(1+$A17)),0)+IF($A18=MwStklein,I18*IF($D$3=0,$A18,$A18/(1+$A18)),0)+IF($A19=MwStklein,I19*IF($D$3=0,$A19,$A19/(1+$A19)),0)+IF($A20=MwStklein,I20*IF($D$3=0,$A20,$A20/(1+$A20)),0)+IF($A21=MwStklein,I21*IF($D$3=0,$A21,$A21/(1+$A21)),0)+IF($A24=MwStklein,I24*IF($D$3=0,$A24,$A24/(1+$A24)),0)+IF($A25=MwStklein,I25*IF($D$3=0,$A25,$A25/(1+$A25)),0)+IF($A28=MwStklein,#REF!*IF($D$3=0,$A28,$A28/(1+$A28)),0)+IF($A29=MwStklein,I29*IF($D$3=0,$A29,$A29/(1+$A29)),0)+IF($A30=MwStklein,I30*IF($D$3=0,$A30,$A30/(1+$A30)),0)+IF($A31=MwStklein,I31*IF($D$3=0,$A31,$A31/(1+$A31)),0)+IF($A34=MwStklein,I34*IF($D$3=0,$A34,$A34/(1+$A34)),0)+IF($A35=MwStklein,I35*IF($D$3=0,$A35,$A35/(1+$A35)),0)+IF($A36=MwStklein,I36*IF($D$3=0,$A36,$A36/(1+$A36)),0)+IF($A37=MwStklein,I37*IF($D$3=0,$A37,$A37/(1+$A37)),0)+IF($A40=MwStklein,I40*IF($D$3=0,$A40,$A40/(1+$A40)),0)+IF($A41=MwStklein,I41*IF($D$3=0,$A41,$A41/(1+$A41)),0)+IF($A42=MwStklein,I42*IF($D$3=0,$A42,$A42/(1+$A42)),0)+IF($A43=MwStklein,I43*IF($D$3=0,$A43,$A43/(1+$A43)),0)++IF($A44=MwStklein,I44*IF($D$3=0,$A44,$A44/(1+$A44)),0)*IF($A47=MwStklein,I47*IF($D$3=0,$A47,$A47/(1+$A47)),0)+IF($A48=MwStklein,I48*IF($D$3=0,$A48,$A48/(1+$A48)),0)+IF($A49=MwStklein,I49*IF($D$3=0,$A49,$A49/(1+$A49)),0)+IF($A50=MwStklein,I50*IF($D$3=0,$A50,$A50/(1+$A50)),0)+IF($A52=MwStklein,I52*IF($D$3=0,$A52,$A52/(1+$A52)),0)+IF($A55=MwStklein,I55*IF($D$3=0,$A55,$A55/(1+$A55)),0)+IF($A56=MwStklein,I56*IF($D$3=0,$A56,$A56/(1+$A56)),0)+IF($A57=MwStklein,I57*IF($D$3=0,$A57,$A57/(1+$A57)),0)+IF($A61=MwStklein,I61*IF($D$3=0,$A61,$A61/(1+$A61)),0)+IF($A62=MwStklein,I62*IF($D$3=0,$A62,$A62/(1+$A62)),0)+IF($A63=MwStklein,I63*IF($D$3=0,$A63,$A63/(1+$A63)),0)+IF($A64=MwStklein,I64*IF($D$3=0,$A64,$A64/(1+$A64)),0) -> 0.0 | J73: =IF($A6=MwStklein,J6*IF($D$3=0,$A6,$A6/(1+$A6)),0)+IF($A7=MwStklein,J7*IF($D$3=0,$A7,$A7/(1+$A7)),0)+IF($A8=MwStklein,J8*IF($D$3=0,$A8,$A8/(1+$A8)),0)+IF($A9=MwStklein,J9*IF($D$3=0,$A9,$A9/(1+$A9)),0)+IF($A10=MwStklein,J10*IF($D$3=0,$A10,$A10/(1+$A10)),0)+IF($A11=MwStklein,J11*IF($D$3=0,$A11,$A11/(1+$A11)),0)+IF($A14=MwStklein,J14*IF($D$3=0,$A14,$A14/(1+$A14)),0)+IF($A15=MwStklein,J15*IF($D$3=0,$A15,$A15/(1+$A15)),0)+IF($A16=MwStklein,J16*IF($D$3=0,$A16,$A16/(1+$A16)),0)+IF($A17=MwStklein,J17*IF($D$3=0,$A17,$A17/(1+$A17)),0)+IF($A18=MwStklein,J18*IF($D$3=0,$A18,$A18/(1+$A18)),0)+IF($A19=MwStklein,J19*IF($D$3=0,$A19,$A19/(1+$A19)),0)+IF($A20=MwStklein,J20*IF($D$3=0,$A20,$A20/(1+$A20)),0)+IF($A21=MwStklein,J21*IF($D$3=0,$A21,$A21/(1+$A21)),0)+IF($A24=MwStklein,J24*IF($D$3=0,$A24,$A24/(1+$A24)),0)+IF($A25=MwStklein,J25*IF($D$3=0,$A25,$A25/(1+$A25)),0)+IF($A28=MwStklein,#REF!*IF($D$3=0,$A28,$A28/(1+$A28)),0)+IF($A29=MwStklein,J29*IF($D$3=0,$A29,$A29/(1+$A29)),0)+IF($A30=MwStklein,J30*IF($D$3=0,$A30,$A30/(1+$A30)),0)+IF($A31=MwStklein,J31*IF($D$3=0,$A31,$A31/(1+$A31)),0)+IF($A34=MwStklein,J34*IF($D$3=0,$A34,$A34/(1+$A34)),0)+IF($A35=MwStklein,J35*IF($D$3=0,$A35,$A35/(1+$A35)),0)+IF($A36=MwStklein,J36*IF($D$3=0,$A36,$A36/(1+$A36)),0)+IF($A37=MwStklein,J37*IF($D$3=0,$A37,$A37/(1+$A37)),0)+IF($A40=MwStklein,J40*IF($D$3=0,$A40,$A40/(1+$A40)),0)+IF($A41=MwStklein,J41*IF($D$3=0,$A41,$A41/(1+$A41)),0)+IF($A42=MwStklein,J42*IF($D$3=0,$A42,$A42/(1+$A42)),0)+IF($A43=MwStklein,J43*IF($D$3=0,$A43,$A43/(1+$A43)),0)++IF($A44=MwStklein,J44*IF($D$3=0,$A44,$A44/(1+$A44)),0)*IF($A47=MwStklein,J47*IF($D$3=0,$A47,$A47/(1+$A47)),0)+IF($A48=MwStklein,J48*IF($D$3=0,$A48,$A48/(1+$A48)),0)+IF($A49=MwStklein,J49*IF($D$3=0,$A49,$A49/(1+$A49)),0)+IF($A50=MwStklein,J50*IF($D$3=0,$A50,$A50/(1+$A50)),0)+IF($A52=MwStklein,J52*IF($D$3=0,$A52,$A52/(1+$A52)),0)+IF($A55=MwStklein,J55*IF($D$3=0,$A55,$A55/(1+$A55)),0)+IF($A56=MwStklein,J56*IF($D$3=0,$A56,$A56/(1+$A56)),0)+IF($A57=MwStklein,J57*IF($D$3=0,$A57,$A57/(1+$A57)),0)+IF($A61=MwStklein,J61*IF($D$3=0,$A61,$A61/(1+$A61)),0)+IF($A62=MwStklein,J62*IF($D$3=0,$A62,$A62/(1+$A62)),0)+IF($A63=MwStklein,J63*IF($D$3=0,$A63,$A63/(1+$A63)),0)+IF($A64=MwStklein,J64*IF($D$3=0,$A64,$A64/(1+$A64)),0) -> 0.0 | K73: =IF($A6=MwStklein,K6*IF($D$3=0,$A6,$A6/(1+$A6)),0)+IF($A7=MwStklein,K7*IF($D$3=0,$A7,$A7/(1+$A7)),0)+IF($A8=MwStklein,K8*IF($D$3=0,$A8,$A8/(1+$A8)),0)+IF($A9=MwStklein,K9*IF($D$3=0,$A9,$A9/(1+$A9)),0)+IF($A10=MwStklein,K10*IF($D$3=0,$A10,$A10/(1+$A10)),0)+IF($A11=MwStklein,K11*IF($D$3=0,$A11,$A11/(1+$A11)),0)+IF($A14=MwStklein,K14*IF($D$3=0,$A14,$A14/(1+$A14)),0)+IF($A15=MwStklein,K15*IF($D$3=0,$A15,$A15/(1+$A15)),0)+IF($A16=MwStklein,K16*IF($D$3=0,$A16,$A16/(1+$A16)),0)+IF($A17=MwStklein,K17*IF($D$3=0,$A17,$A17/(1+$A17)),0)+IF($A18=MwStklein,K18*IF($D$3=0,$A18,$A18/(1+$A18)),0)+IF($A19=MwStklein,K19*IF($D$3=0,$A19,$A19/(1+$A19)),0)+IF($A20=MwStklein,K20*IF($D$3=0,$A20,$A20/(1+$A20)),0)+IF($A21=MwStklein,K21*IF($D$3=0,$A21,$A21/(1+$A21)),0)+IF($A24=MwStklein,K24*IF($D$3=0,$A24,$A24/(1+$A24)),0)+IF($A25=MwStklein,K25*IF($D$3=0,$A25,$A25/(1+$A25)),0)+IF($A28=MwStklein,#REF!*IF($D$3=0,$A28,$A28/(1+$A28)),0)+IF($A29=MwStklein,K29*IF($D$3=0,$A29,$A29/(1+$A29)),0)+IF($A30=MwStklein,K30*IF($D$3=0,$A30,$A30/(1+$A30)),0)+IF($A31=MwStklein,K31*IF($D$3=0,$A31,$A31/(1+$A31)),0)+IF($A34=MwStklein,K34*IF($D$3=0,$A34,$A34/(1+$A34)),0)+IF($A35=MwStklein,K35*IF($D$3=0,$A35,$A35/(1+$A35)),0)+IF($A36=MwStklein,K36*IF($D$3=0,$A36,$A36/(1+$A36)),0)+IF($A37=MwStklein,K37*IF($D$3=0,$A37,$A37/(1+$A37)),0)+IF($A40=MwStklein,K40*IF($D$3=0,$A40,$A40/(1+$A40)),0)+IF($A41=MwStklein,K41*IF($D$3=0,$A41,$A41/(1+$A41)),0)+IF($A42=MwStklein,K42*IF($D$3=0,$A42,$A42/(1+$A42)),0)+IF($A43=MwStklein,K43*IF($D$3=0,$A43,$A43/(1+$A43)),0)++IF($A44=MwStklein,K44*IF($D$3=0,$A44,$A44/(1+$A44)),0)*IF($A47=MwStklein,K47*IF($D$3=0,$A47,$A47/(1+$A47)),0)+IF($A48=MwStklein,K48*IF($D$3=0,$A48,$A48/(1+$A48)),0)+IF($A49=MwStklein,K49*IF($D$3=0,$A49,$A49/(1+$A49)),0)+IF($A50=MwStklein,K50*IF($D$3=0,$A50,$A50/(1+$A50)),0)+IF($A52=MwStklein,K52*IF($D$3=0,$A52,$A52/(1+$A52)),0)+IF($A55=MwStklein,K55*IF($D$3=0,$A55,$A55/(1+$A55)),0)+IF($A56=MwStklein,K56*IF($D$3=0,$A56,$A56/(1+$A56)),0)+IF($A57=MwStklein,K57*IF($D$3=0,$A57,$A57/(1+$A57)),0)+IF($A61=MwStklein,K61*IF($D$3=0,$A61,$A61/(1+$A61)),0)+IF($A62=MwStklein,K62*IF($D$3=0,$A62,$A62/(1+$A62)),0)+IF($A63=MwStklein,K63*IF($D$3=0,$A63,$A63/(1+$A63)),0)+IF($A64=MwStklein,K64*IF($D$3=0,$A64,$A64/(1+$A64)),0) -> 0.0 | L73: =IF($A6=MwStklein,L6*IF($D$3=0,$A6,$A6/(1+$A6)),0)+IF($A7=MwStklein,L7*IF($D$3=0,$A7,$A7/(1+$A7)),0)+IF($A8=MwStklein,L8*IF($D$3=0,$A8,$A8/(1+$A8)),0)+IF($A9=MwStklein,L9*IF($D$3=0,$A9,$A9/(1+$A9)),0)+IF($A10=MwStklein,L10*IF($D$3=0,$A10,$A10/(1+$A10)),0)+IF($A11=MwStklein,L11*IF($D$3=0,$A11,$A11/(1+$A11)),0)+IF($A14=MwStklein,L14*IF($D$3=0,$A14,$A14/(1+$A14)),0)+IF($A15=MwStklein,L15*IF($D$3=0,$A15,$A15/(1+$A15)),0)+IF($A16=MwStklein,L16*IF($D$3=0,$A16,$A16/(1+$A16)),0)+IF($A17=MwStklein,L17*IF($D$3=0,$A17,$A17/(1+$A17)),0)+IF($A18=MwStklein,L18*IF($D$3=0,$A18,$A18/(1+$A18)),0)+IF($A19=MwStklein,L19*IF($D$3=0,$A19,$A19/(1+$A19)),0)+IF($A20=MwStklein,L20*IF($D$3=0,$A20,$A20/(1+$A20)),0)+IF($A21=MwStklein,L21*IF($D$3=0,$A21,$A21/(1+$A21)),0)+IF($A24=MwStklein,L24*IF($D$3=0,$A24,$A24/(1+$A24)),0)+IF($A25=MwStklein,L25*IF($D$3=0,$A25,$A25/(1+$A25)),0)+IF($A28=MwStklein,#REF!*IF($D$3=0,$A28,$A28/(1+$A28)),0)+IF($A29=MwStklein,L29*IF($D$3=0,$A29,$A29/(1+$A29)),0)+IF($A30=MwStklein,L30*IF($D$3=0,$A30,$A30/(1+$A30)),0)+IF($A31=MwStklein,L31*IF($D$3=0,$A31,$A31/(1+$A31)),0)+IF($A34=MwStklein,L34*IF($D$3=0,$A34,$A34/(1+$A34)),0)+IF($A35=MwStklein,L35*IF($D$3=0,$A35,$A35/(1+$A35)),0)+IF($A36=MwStklein,L36*IF($D$3=0,$A36,$A36/(1+$A36)),0)+IF($A37=MwStklein,L37*IF($D$3=0,$A37,$A37/(1+$A37)),0)+IF($A40=MwStklein,L40*IF($D$3=0,$A40,$A40/(1+$A40)),0)+IF($A41=MwStklein,L41*IF($D$3=0,$A41,$A41/(1+$A41)),0)+IF($A42=MwStklein,L42*IF($D$3=0,$A42,$A42/(1+$A42)),0)+IF($A43=MwStklein,L43*IF($D$3=0,$A43,$A43/(1+$A43)),0)++IF($A44=MwStklein,L44*IF($D$3=0,$A44,$A44/(1+$A44)),0)*IF($A47=MwStklein,L47*IF($D$3=0,$A47,$A47/(1+$A47)),0)+IF($A48=MwStklein,L48*IF($D$3=0,$A48,$A48/(1+$A48)),0)+IF($A49=MwStklein,L49*IF($D$3=0,$A49,$A49/(1+$A49)),0)+IF($A50=MwStklein,L50*IF($D$3=0,$A50,$A50/(1+$A50)),0)+IF($A52=MwStklein,L52*IF($D$3=0,$A52,$A52/(1+$A52)),0)+IF($A55=MwStklein,L55*IF($D$3=0,$A55,$A55/(1+$A55)),0)+IF($A56=MwStklein,L56*IF($D$3=0,$A56,$A56/(1+$A56)),0)+IF($A57=MwStklein,L57*IF($D$3=0,$A57,$A57/(1+$A57)),0)+IF($A61=MwStklein,L61*IF($D$3=0,$A61,$A61/(1+$A61)),0)+IF($A62=MwStklein,L62*IF($D$3=0,$A62,$A62/(1+$A62)),0)+IF($A63=MwStklein,L63*IF($D$3=0,$A63,$A63/(1+$A63)),0)+IF($A64=MwStklein,L64*IF($D$3=0,$A64,$A64/(1+$A64)),0) -> 0.0 | M73: =IF($A6=MwStklein,M6*IF($D$3=0,$A6,$A6/(1+$A6)),0)+IF($A7=MwStklein,M7*IF($D$3=0,$A7,$A7/(1+$A7)),0)+IF($A8=MwStklein,M8*IF($D$3=0,$A8,$A8/(1+$A8)),0)+IF($A9=MwStklein,M9*IF($D$3=0,$A9,$A9/(1+$A9)),0)+IF($A10=MwStklein,M10*IF($D$3=0,$A10,$A10/(1+$A10)),0)+IF($A11=MwStklein,M11*IF($D$3=0,$A11,$A11/(1+$A11)),0)+IF($A14=MwStklein,M14*IF($D$3=0,$A14,$A14/(1+$A14)),0)+IF($A15=MwStklein,M15*IF($D$3=0,$A15,$A15/(1+$A15)),0)+IF($A16=MwStklein,M16*IF($D$3=0,$A16,$A16/(1+$A16)),0)+IF($A17=MwStklein,M17*IF($D$3=0,$A17,$A17/(1+$A17)),0)+IF($A18=MwStklein,M18*IF($D$3=0,$A18,$A18/(1+$A18)),0)+IF($A19=MwStklein,M19*IF($D$3=0,$A19,$A19/(1+$A19)),0)+IF($A20=MwStklein,M20*IF($D$3=0,$A20,$A20/(1+$A20)),0)+IF($A21=MwStklein,M21*IF($D$3=0,$A21,$A21/(1+$A21)),0)+IF($A24=MwStklein,M24*IF($D$3=0,$A24,$A24/(1+$A24)),0)+IF($A25=MwStklein,M25*IF($D$3=0,$A25,$A25/(1+$A25)),0)+IF($A28=MwStklein,#REF!*IF($D$3=0,$A28,$A28/(1+$A28)),0)+IF($A29=MwStklein,M29*IF($D$3=0,$A29,$A29/(1+$A29)),0)+IF($A30=MwStklein,M30*IF($D$3=0,$A30,$A30/(1+$A30)),0)+IF($A31=MwStklein,M31*IF($D$3=0,$A31,$A31/(1+$A31)),0)+IF($A34=MwStklein,M34*IF($D$3=0,$A34,$A34/(1+$A34)),0)+IF($A35=MwStklein,M35*IF($D$3=0,$A35,$A35/(1+$A35)),0)+IF($A36=MwStklein,M36*IF($D$3=0,$A36,$A36/(1+$A36)),0)+IF($A37=MwStklein,M37*IF($D$3=0,$A37,$A37/(1+$A37)),0)+IF($A40=MwStklein,M40*IF($D$3=0,$A40,$A40/(1+$A40)),0)+IF($A41=MwStklein,M41*IF($D$3=0,$A41,$A41/(1+$A41)),0)+IF($A42=MwStklein,M42*IF($D$3=0,$A42,$A42/(1+$A42)),0)+IF($A43=MwStklein,M43*IF($D$3=0,$A43,$A43/(1+$A43)),0)++IF($A44=MwStklein,M44*IF($D$3=0,$A44,$A44/(1+$A44)),0)*IF($A47=MwStklein,M47*IF($D$3=0,$A47,$A47/(1+$A47)),0)+IF($A48=MwStklein,M48*IF($D$3=0,$A48,$A48/(1+$A48)),0)+IF($A49=MwStklein,M49*IF($D$3=0,$A49,$A49/(1+$A49)),0)+IF($A50=MwStklein,M50*IF($D$3=0,$A50,$A50/(1+$A50)),0)+IF($A52=MwStklein,M52*IF($D$3=0,$A52,$A52/(1+$A52)),0)+IF($A55=MwStklein,M55*IF($D$3=0,$A55,$A55/(1+$A55)),0)+IF($A56=MwStklein,M56*IF($D$3=0,$A56,$A56/(1+$A56)),0)+IF($A57=MwStklein,M57*IF($D$3=0,$A57,$A57/(1+$A57)),0)+IF($A61=MwStklein,M61*IF($D$3=0,$A61,$A61/(1+$A61)),0)+IF($A62=MwStklein,M62*IF($D$3=0,$A62,$A62/(1+$A62)),0)+IF($A63=MwStklein,M63*IF($D$3=0,$A63,$A63/(1+$A63)),0)+IF($A64=MwStklein,M64*IF($D$3=0,$A64,$A64/(1+$A64)),0) -> 0.0 | N73: =IF($A6=MwStklein,N6*IF($D$3=0,$A6,$A6/(1+$A6)),0)+IF($A7=MwStklein,N7*IF($D$3=0,$A7,$A7/(1+$A7)),0)+IF($A8=MwStklein,N8*IF($D$3=0,$A8,$A8/(1+$A8)),0)+IF($A9=MwStklein,N9*IF($D$3=0,$A9,$A9/(1+$A9)),0)+IF($A10=MwStklein,N10*IF($D$3=0,$A10,$A10/(1+$A10)),0)+IF($A11=MwStklein,N11*IF($D$3=0,$A11,$A11/(1+$A11)),0)+IF($A14=MwStklein,N14*IF($D$3=0,$A14,$A14/(1+$A14)),0)+IF($A15=MwStklein,N15*IF($D$3=0,$A15,$A15/(1+$A15)),0)+IF($A16=MwStklein,N16*IF($D$3=0,$A16,$A16/(1+$A16)),0)+IF($A17=MwStklein,N17*IF($D$3=0,$A17,$A17/(1+$A17)),0)+IF($A18=MwStklein,N18*IF($D$3=0,$A18,$A18/(1+$A18)),0)+IF($A19=MwStklein,N19*IF($D$3=0,$A19,$A19/(1+$A19)),0)+IF($A20=MwStklein,N20*IF($D$3=0,$A20,$A20/(1+$A20)),0)+IF($A21=MwStklein,N21*IF($D$3=0,$A21,$A21/(1+$A21)),0)+IF($A24=MwStklein,N24*IF($D$3=0,$A24,$A24/(1+$A24)),0)+IF($A25=MwStklein,N25*IF($D$3=0,$A25,$A25/(1+$A25)),0)+IF($A28=MwStklein,#REF!*IF($D$3=0,$A28,$A28/(1+$A28)),0)+IF($A29=MwStklein,N29*IF($D$3=0,$A29,$A29/(1+$A29)),0)+IF($A30=MwStklein,N30*IF($D$3=0,$A30,$A30/(1+$A30)),0)+IF($A31=MwStklein,N31*IF($D$3=0,$A31,$A31/(1+$A31)),0)+IF($A34=MwStklein,N34*IF($D$3=0,$A34,$A34/(1+$A34)),0)+IF($A35=MwStklein,N35*IF($D$3=0,$A35,$A35/(1+$A35)),0)+IF($A36=MwStklein,N36*IF($D$3=0,$A36,$A36/(1+$A36)),0)+IF($A37=MwStklein,N37*IF($D$3=0,$A37,$A37/(1+$A37)),0)+IF($A40=MwStklein,N40*IF($D$3=0,$A40,$A40/(1+$A40)),0)+IF($A41=MwStklein,N41*IF($D$3=0,$A41,$A41/(1+$A41)),0)+IF($A42=MwStklein,N42*IF($D$3=0,$A42,$A42/(1+$A42)),0)+IF($A43=MwStklein,N43*IF($D$3=0,$A43,$A43/(1+$A43)),0)++IF($A44=MwStklein,N44*IF($D$3=0,$A44,$A44/(1+$A44)),0)*IF($A47=MwStklein,N47*IF($D$3=0,$A47,$A47/(1+$A47)),0)+IF($A48=MwStklein,N48*IF($D$3=0,$A48,$A48/(1+$A48)),0)+IF($A49=MwStklein,N49*IF($D$3=0,$A49,$A49/(1+$A49)),0)+IF($A50=MwStklein,N50*IF($D$3=0,$A50,$A50/(1+$A50)),0)+IF($A52=MwStklein,N52*IF($D$3=0,$A52,$A52/(1+$A52)),0)+IF($A55=MwStklein,N55*IF($D$3=0,$A55,$A55/(1+$A55)),0)+IF($A56=MwStklein,N56*IF($D$3=0,$A56,$A56/(1+$A56)),0)+IF($A57=MwStklein,N57*IF($D$3=0,$A57,$A57/(1+$A57)),0)+IF($A61=MwStklein,N61*IF($D$3=0,$A61,$A61/(1+$A61)),0)+IF($A62=MwStklein,N62*IF($D$3=0,$A62,$A62/(1+$A62)),0)+IF($A63=MwStklein,N63*IF($D$3=0,$A63,$A63/(1+$A63)),0)+IF($A64=MwStklein,N64*IF($D$3=0,$A64,$A64/(1+$A64)),0) -> 0.0 | O73: =IF($A6=MwStklein,O6*IF($D$3=0,$A6,$A6/(1+$A6)),0)+IF($A7=MwStklein,O7*IF($D$3=0,$A7,$A7/(1+$A7)),0)+IF($A8=MwStklein,O8*IF($D$3=0,$A8,$A8/(1+$A8)),0)+IF($A9=MwStklein,O9*IF($D$3=0,$A9,$A9/(1+$A9)),0)+IF($A10=MwStklein,O10*IF($D$3=0,$A10,$A10/(1+$A10)),0)+IF($A11=MwStklein,O11*IF($D$3=0,$A11,$A11/(1+$A11)),0)+IF($A14=MwStklein,O14*IF($D$3=0,$A14,$A14/(1+$A14)),0)+IF($A15=MwStklein,O15*IF($D$3=0,$A15,$A15/(1+$A15)),0)+IF($A16=MwStklein,O16*IF($D$3=0,$A16,$A16/(1+$A16)),0)+IF($A17=MwStklein,O17*IF($D$3=0,$A17,$A17/(1+$A17)),0)+IF($A18=MwStklein,O18*IF($D$3=0,$A18,$A18/(1+$A18)),0)+IF($A19=MwStklein,O19*IF($D$3=0,$A19,$A19/(1+$A19)),0)+IF($A20=MwStklein,O20*IF($D$3=0,$A20,$A20/(1+$A20)),0)+IF($A21=MwStklein,O21*IF($D$3=0,$A21,$A21/(1+$A21)),0)+IF($A24=MwStklein,O24*IF($D$3=0,$A24,$A24/(1+$A24)),0)+IF($A25=MwStklein,O25*IF($D$3=0,$A25,$A25/(1+$A25)),0)+IF($A28=MwStklein,#REF!*IF($D$3=0,$A28,$A28/(1+$A28)),0)+IF($A29=MwStklein,O29*IF($D$3=0,$A29,$A29/(1+$A29)),0)+IF($A30=MwStklein,O30*IF($D$3=0,$A30,$A30/(1+$A30)),0)+IF($A31=MwStklein,O31*IF($D$3=0,$A31,$A31/(1+$A31)),0)+IF($A34=MwStklein,O34*IF($D$3=0,$A34,$A34/(1+$A34)),0)+IF($A35=MwStklein,O35*IF($D$3=0,$A35,$A35/(1+$A35)),0)+IF($A36=MwStklein,O36*IF($D$3=0,$A36,$A36/(1+$A36)),0)+IF($A37=MwStklein,O37*IF($D$3=0,$A37,$A37/(1+$A37)),0)+IF($A40=MwStklein,O40*IF($D$3=0,$A40,$A40/(1+$A40)),0)+IF($A41=MwStklein,O41*IF($D$3=0,$A41,$A41/(1+$A41)),0)+IF($A42=MwStklein,O42*IF($D$3=0,$A42,$A42/(1+$A42)),0)+IF($A43=MwStklein,O43*IF($D$3=0,$A43,$A43/(1+$A43)),0)++IF($A44=MwStklein,O44*IF($D$3=0,$A44,$A44/(1+$A44)),0)*IF($A47=MwStklein,O47*IF($D$3=0,$A47,$A47/(1+$A47)),0)+IF($A48=MwStklein,O48*IF($D$3=0,$A48,$A48/(1+$A48)),0)+IF($A49=MwStklein,O49*IF($D$3=0,$A49,$A49/(1+$A49)),0)+IF($A50=MwStklein,O50*IF($D$3=0,$A50,$A50/(1+$A50)),0)+IF($A52=MwStklein,O52*IF($D$3=0,$A52,$A52/(1+$A52)),0)+IF($A55=MwStklein,O55*IF($D$3=0,$A55,$A55/(1+$A55)),0)+IF($A56=MwStklein,O56*IF($D$3=0,$A56,$A56/(1+$A56)),0)+IF($A57=MwStklein,O57*IF($D$3=0,$A57,$A57/(1+$A57)),0)+IF($A61=MwStklein,O61*IF($D$3=0,$A61,$A61/(1+$A61)),0)+IF($A62=MwStklein,O62*IF($D$3=0,$A62,$A62/(1+$A62)),0)+IF($A63=MwStklein,O63*IF($D$3=0,$A63,$A63/(1+$A63)),0)+IF($A64=MwStklein,O64*IF($D$3=0,$A64,$A64/(1+$A64)),0) -> 0.0 | P73: =SUM(D73:O73) -> 70.0 | CY73: Summe der angefallenen MwSt | CZ73: Sum VAT
C74: =IF($C$1="Deutsch",CY74,IF($C$1="English",CZ74,DB74)) -> Gesamtsumme angefallener MwSt | D74: =D73+D72 -> 450.0 | E74: =E73+E72 -> 152.0 | F74: 152.0 | G74: 152.0 | H74: 152.0 | I74: 152.0 | J74: 152.0 | K74: 152.0 | L74: 152.0 | M74: 152.0 | N74: 152.0 | O74: 152.0 | P74: =SUM(D74:O74) -> 2,122.0 | CY74: Gesamtsumme angefallener MwSt | CZ74: Total sum VAT
B76: =IF($C$1="English",CZ76,CY76) -> 4a-2 Betriebskosten für das Jahr 2017 in EUR (ohne MwSt) | Q76: =MwStklein -> 7% | T76: To Do list / Comments | CW76: Original | CY76: ="4a-2 Betriebskosten für das Jahr " &'1 Pers.Ausgaben|Pers Expenses'!$C$3+1&" in EUR" & " (" & IF(OR($D$3=1,$D$3=2),"mit MwSt","ohne MwSt")& ") " -> 4a-2 Betriebskosten für das Jahr 2017 in EUR (ohne MwSt) | CZ76: ="4a-2 Operating Expense for Year " &'1 Pers.Ausgaben|Pers Expenses'!$C$3+1&" in EUR" & " (" &IF(OR($D$3=1,$D$3=2),"incl. VAT","w/o VAT")& ") " -> 4a-2 Operating Expense for Year 2017 in EUR (w/o VAT) | DA76: DATEV | DC76: Jan | DD76: Feb | DE76: Mar | DF76: Apr | DG76: May | DH76: June | DI76: July | DJ76: Aug | DK76: Sept | DL76: Oct | DM76: Nov | DN76: Dec | DO76: ="Year "&'1 Pers.Ausgaben|Pers Expenses'!C79 -> Year Zahlungsverpflichtungen
B77: =IF($C$1="English",CZ77,CY77) -> ┌ MwSt-Satz der jeweiligen Kostenart | D77: ='Deckblatt Gründer|Data Founder'!M76 -> 0 | Q77: 0% | CY77: =IF($D$3=-1,""," ┌ MwSt-Satz der jeweiligen Kostenart") -> ┌ MwSt-Satz der jeweiligen Kostenart | CZ77: =IF($D$3=-1,""," ┌ VAT for Cost Type") -> ┌ VAT for Cost Type
B78: No. | C78: =IF($C$1="Deutsch",CY78,IF($C$1="English",CZ78,DB78)) -> Kostenart | D78: =D4 -> Jan. | E78: =E4 -> Febr. | F78: März | G78: April | H78: Mai | I78: Juni | J78: Juli | K78: Aug. | L78: Sept. | M78: Okt. | N78: Nov. | O78: Dez. | P78: =IF($C$1="English",DP2,DP1) -> Jahr 2017 | CU78: Nebenrechung Personalkosten | CV78: Ancillary: Account for Personal Costs | CY78: Kostenart | CZ78: Cost Type | DC78: Nebenrechung Personalkosten | DD78: Ancillary Account for Personal Costs
B79: 1 | C79: Bürokosten | CU79: Anzahl Mitarbeiter | CV79: No of Employees | CW79: 1 | CY79: Bürokosten | CZ79: Office expences | DA79: 1 | DB79: =VLOOKUP(DA79,$CW$5:$CZ$65,2,FALSE) -> 0% | DC79: =VLOOKUP(DA79,$CW$5:$CZ$65,3,FALSE) -> Bürokosten | DD79: =VLOOKUP(DA79,$CW$5:$CZ$65,4,FALSE) -> Office expences
A80: =A6 -> 19% | B80: =IF($D$3>0, A80,"") ->  | C80: Raummiete | D80: 100.0 | E80: 100.0 | F80: 100.0 | G80: 100.0 | H80: 100.0 | I80: 100.0 | J80: 100.0 | K80: 100.0 | L80: 100.0 | M80: 100.0 | N80: 100.0 | O80: 100.0 | P80: =SUM(D80:O80) -> 1,200.0 | CU80: Gehalt1 | CV80: Salary1 | CW80: 2 | CX80: =MwSt -> 19% | CY80: Raummiete | CZ80: Space rent | DA80: 2 | DB80: =VLOOKUP(DA80,$CW$5:$CZ$65,2,FALSE) -> 19% | DC80: =VLOOKUP(DA80,$CW$5:$CZ$65,3,FALSE) -> Raummiete | DD80: =VLOOKUP(DA80,$CW$5:$CZ$65,4,FALSE) -> Space rent
A81: 19% | B81: =IF($D$3>0, A81,"") ->  | C81: Strom, Wasser, Heizung, sonst. Nebenkosten | P81: 0.0 | CU81: Anzahl Mitarbeiter | CV81: No of Employees | CW81: 3 | CX81: 19% | CY81: Strom, Wasser, Heizung, sonst. Nebenkosten | CZ81: Electricity, water, heating, other costs | DA81: 3 | DB81: 19% | DC81: Strom, Wasser, Heizung, sonst. Nebenkosten | DD81: Electricity, water, heating, other costs
A82: 19% | C82: Telefon, Fax, Internet, Porto | P82: 0.0 | CU82: Gehalt2 | CV82: Salary2 | CW82: 4 | CX82: 19% | CY82: Telefon, Fax, Internet, Porto | CZ82: Phone, fax, internet, porto | DA82: 5 | DB82: 19% | DC82: Geringw. Wirtschaftsgüter (Büromöbel, Einrichtungen,...) | DD82: Inferior assets (office furniture, facilities, ...)
A83: 19% | C83: Geringw. Wirtschaftsgüter (Büromöbel, Einrichtungen,...) | P83: 0.0 | CU83: Anzahl Mitarbeiter | CV83: No of Employees | CW83: 5 | CX83: 19% | CY83: Geringw. Wirtschaftsgüter (Büromöbel, Einrichtungen,...) | CZ83: Inferior assets (office furniture, facilities, ...) | DA83: 4 | DB83: 19% | DC83: Telefon, Fax, Internet, Porto | DD83: Phone, fax, internet, porto
A84: 19% | C84: IT (Lizenzen, Windows, Office, Wartung) | P84: 0.0 | CU84: Gehalt3 | CV84: Salery3 | CW84: 6 | CX84: 19% | CY84: IT (Lizenzen, Windows, Office, Wartung) | CZ84: IT (licenses, windows, office, maintenace, ...) | DA84: 6 | DB84: 19% | DC84: IT (Lizenzen, Windows, Office, Wartung) | DD84: IT (licenses, windows, office, maintenace, ...)
A85: 19% | C85: =C11 -> Sonstiges | D85: 100.0 | E85: 100.0 | F85: 100.0 | G85: 100.0 | H85: 100.0 | I85: 100.0 | J85: 100.0 | K85: 100.0 | L85: 100.0 | M85: 100.0 | N85: 100.0 | O85: 100.0 | P85: 1,200.0 | CU85: Nebenkosten (%) | CV85: Additional Expenses (%) | CW85: 7 | CX85: 19% | CY85: Sonstiges | CZ85: Others | DA85: 7 | DB85: 19% | DC85: Sonstiges | DD85: Others
C86: Summe Bürokosten | D86: =SUM(D80:D85) -> 200.0 | E86: =SUM(E80:E85) -> 200.0 | F86: 200.0 | G86: 200.0 | H86: 200.0 | I86: 200.0 | J86: 200.0 | K86: 200.0 | L86: 200.0 | M86: 200.0 | N86: =SUM(N80:N85) -> 200.0 | O86: 200.0 | P86: =SUM(D86:O86) -> 2,400.0 | CU86: Gehaltssumme | CV86: Payroll | CW86: 8 | CY86: ="Summe " &CY79 -> Summe Bürokosten | CZ86: Sum office expences | DA86: 8 | DB86: 0% | DC86: Summe Bürokosten | DD86: Sum office expences
B87: 2 | C87: Produktionskosten | CW87: 9 | CY87: Produktionskosten | CZ87: Production costs | DA87: 9 | DB87: 0% | DC87: Produktionskosten | DD87: Production costs
A88: =A14 -> 19% | B88: =IF($D$3>0, A88,"") ->  | C88: Raummiete | P88: =SUM(D88:O88) -> 0.0 | CW88: 10 | CX88: =MwSt -> 19% | CY88: Raummiete | CZ88: Space rent | DA88: 10 | DB88: 19% | DC88: Raummiete | DD88: Space rent
A89: 19% | B89: =IF($D$3>0, A89,"") ->  | C89: Strom, Wasser, Heizung, sonst. Nebenkosten | P89: 0.0 | CW89: 11 | CX89: =MwSt -> 19% | CY89: Strom, Wasser, Heizung, sonst. Nebenkosten | CZ89: Electricity, water, heating, other costs | DA89: 11 | DB89: 19% | DC89: Strom, Wasser, Heizung, sonst. Nebenkosten | DD89: Electricity, water, heating, other costs
A90: 19% | C90: Materialaufwand zur Produktion (19%) | D90: 100.0 | E90: 100.0 | F90: 100.0 | G90: 100.0 | H90: 100.0 | I90: 100.0 | J90: 100.0 | K90: 100.0 | L90: 100.0 | M90: 100.0 | N90: 100.0 | O90: 100.0 | P90: =SUM(D90:O90) -> 1,200.0 | CW90: 12 | CX90: =MwSt -> 19% | CY90: ="Materialaufwand zur Produktion ("&MwSt*100 &"%)" -> Materialaufwand zur Produktion (19%) | CZ90: ="Cost for materials for production ("&MwSt*100 &"%)" -> Cost for materials for production (19%) | DA90: 12 | DB90: 19% | DC90: Materialaufwand zur Produktion (19%) | DD90: Cost for materials for production (19%)
A91: 7% | C91: Materialaufwand zur Produktion (7%) | P91: =SUM(D91:O91) -> 0.0 | CW91: 13 | CX91: =MwStklein -> 7% | CY91: ="Materialaufwand zur Produktion ("&MwStklein*100 &"%)" -> Materialaufwand zur Produktion (7%) | CZ91: ="Cost for materials for production ("&MwStklein*100 &"%)" -> Cost for materials for production (7%) | DA91: 13 | DB91: 7% | DC91: Materialaufwand zur Produktion (7%) | DD91: Cost for materials for production (7%)
